Workbook

Sheet 1. Info
R1: 1
B22: Name: | E22: Toronto Hydro-Electric System Limited
B24: Title: | C24: Title:
B26: Phone Number:
B28: Email Address:

Sheet Incremental Capital Summary
B10: Year of IRM Cycle
B11: 4th Year of IRM Cycle
B13: Name or General Description of Project | K13: ISA Year
B14: B21 Externally-Initiated Plant Relocations and Expansions | K14: 2014
B16: Details of Project | K16: Number of Asset Components
B17: =VLOOKUP(PROJECT_SELECTION,APP_A!$C$46:$C$67,1,FALSE) -> B21 Externally-Initiated Plant Relocations and Expansions | K17: =IFERROR(SUMPRODUCT((C21:C50<>"")*1),1) -> 14
I19: Capital Cost (1/2 year rule applied) | K19: Depreciation Rate
B20: Asset Component (Click on the Number to View the Component Details) | G20: ="Capital Cost" -> Capital Cost | M20: CCA Class | O20: CCA Rate
B21: 1 | C21: =IFERROR(INDEX(ASSETS_LIST_SELECTED_YEAR,MATCH('Incremental Capital Summary'!$B$14,PROJECTS_LIST_SELECTED_YEAR,0)),"") -> 1830_Poles Towers and Fixtures | G21: =IFERROR(INDEX(ASSET_AMOUNT_SELECTED_YEAR,MATCH('Incremental Capital Summary'!$B$14,PROJECTS_LIST_SELECTED_YEAR,0)),0) -> 32565.47623 | I21: =IF(IRM_CYCLE_YEAR="4th year of IRM cycle", G21/2, 0) -> 16282.73811 | K21: =IFERROR(IF(C21="",0,1/INDEX(APP_D!B:B,MATCH('Incremental Capital Summary'!C21,APP_D!P:P,0))),0) -> 0.025 | M21: =IFERROR(IF(C21="",0,INDEX(APP_C!E:E,MATCH('Incremental Capital Summary'!C21,APP_C!K:K,0))),0) -> 47 | O21: =IFERROR(IF(C21="",0,INDEX(APP_C!I:I,MATCH(C21,APP_C!K:K,0))),0) -> 0.08
B22: 2 | C22: =IF(C21="","",IF(INDEX(ASSETS_LIST_SELECTED_YEAR,MATCH('Incremental Capital Summary'!$B$14,PROJECTS_LIST_SELECTED_YEAR,0)+B21)=0,"",INDEX(ASSETS_LIST_SELECTED_YEAR,MATCH('Incremental Capital Summary'!$B$14,PROJECTS_LIST_SELECTED_YEAR,0)+B21))) -> 1835_Overhead Conductors and Devices | G22: =IF(C22="",0,IF(INDEX(ASSET_AMOUNT_SELECTED_YEAR,MATCH('Incremental Capital Summary'!$B$14,PROJECTS_LIST_SELECTED_YEAR,0)+B21)=0,0,INDEX(ASSET_AMOUNT_SELECTED_YEAR,MATCH('Incremental Capital Summary'!$B$14,PROJECTS_LIST_SELECTED_YEAR,0)+B21))) -> 51152.01793 | I22: 25576.00897 | K22: =IF(C22="",0,1/INDEX(APP_D!B:B,MATCH('Incremental Capital Summary'!C22,APP_D!P:P,0))) -> 0.02 | M22: =IF(C22="",0,INDEX(APP_C!E:E,MATCH('Incremental Capital Summary'!C22,APP_C!K:K,0))) -> 47 | O22: =IF(C22="",0,INDEX(APP_C!I:I,MATCH(C22,APP_C!K:K,0))) -> 0.08
B23: 3 | C23: =IF(C22="","",IF(INDEX(ASSETS_LIST_SELECTED_YEAR,MATCH('Incremental Capital Summary'!$B$14,PROJECTS_LIST_SELECTED_YEAR,0)+B22)=0,"",INDEX(ASSETS_LIST_SELECTED_YEAR,MATCH('Incremental Capital Summary'!$B$14,PROJECTS_LIST_SELECTED_YEAR,0)+B22))) -> 1835_Overhead Conductors and Devices - Switches | G23: =IF(C23="",0,IF(INDEX(ASSET_AMOUNT_SELECTED_YEAR,MATCH('Incremental Capital Summary'!$B$14,PROJECTS_LIST_SELECTED_YEAR,0)+B22)=0,0,INDEX(ASSET_AMOUNT_SELECTED_YEAR,MATCH('Incremental Capital Summary'!$B$14,PROJECTS_LIST_SELECTED_YEAR,0)+B22))) -> 6484.132199 | I23: 3242.0661 | K23: =IF(C23="",0,1/INDEX(APP_D!B:B,MATCH('Incremental Capital Summary'!C23,APP_D!P:P,0))) -> 0.03333333333 | M23: =IF(C23="",0,INDEX(APP_C!E:E,MATCH('Incremental Capital Summary'!C23,APP_C!K:K,0))) -> 47 | O23: =IF(C23="",0,INDEX(APP_C!I:I,MATCH(C23,APP_C!K:K,0))) -> 0.08
B24: 4 | C24: =IF(C23="","",IF(INDEX(ASSETS_LIST_SELECTED_YEAR,MATCH('Incremental Capital Summary'!$B$14,PROJECTS_LIST_SELECTED_YEAR,0)+B23)=0,"",INDEX(ASSETS_LIST_SELECTED_YEAR,MATCH('Incremental Capital Summary'!$B$14,PROJECTS_LIST_SELECTED_YEAR,0)+B23))) -> 1840_Underground Conduit - Cable Chamber | G24: =IF(C24="",0,IF(INDEX(ASSET_AMOUNT_SELECTED_YEAR,MATCH('Incremental Capital Summary'!$B$14,PROJECTS_LIST_SELECTED_YEAR,0)+B23)=0,0,INDEX(ASSET_AMOUNT_SELECTED_YEAR,MATCH('Incremental Capital Summary'!$B$14,PROJECTS_LIST_SELECTED_YEAR,0)+B23))) -> 1013977.418 | I24: 506988.7091 | K24: =IF(C24="",0,1/INDEX(APP_D!B:B,MATCH('Incremental Capital Summary'!C24,APP_D!P:P,0))) -> 0.02 | M24: =IF(C24="",0,INDEX(APP_C!E:E,MATCH('Incremental Capital Summary'!C24,APP_C!K:K,0))) -> 47 | O24: =IF(C24="",0,INDEX(APP_C!I:I,MATCH(C24,APP_C!K:K,0))) -> 0.08
B25: 5 | C25: =IF(C24="","",IF(INDEX(ASSETS_LIST_SELECTED_YEAR,MATCH('Incremental Capital Summary'!$B$14,PROJECTS_LIST_SELECTED_YEAR,0)+B24)=0,"",INDEX(ASSETS_LIST_SELECTED_YEAR,MATCH('Incremental Capital Summary'!$B$14,PROJECTS_LIST_SELECTED_YEAR,0)+B24))) -> 1840_Underground Conduit - Duct Bank | G25: =IF(C25="",0,IF(INDEX(ASSET_AMOUNT_SELECTED_YEAR,MATCH('Incremental Capital Summary'!$B$14,PROJECTS_LIST_SELECTED_YEAR,0)+B24)=0,0,INDEX(ASSET_AMOUNT_SELECTED_YEAR,MATCH('Incremental Capital Summary'!$B$14,PROJECTS_LIST_SELECTED_YEAR,0)+B24))) -> 7363926.239 | I25: 3681963.119 | K25: =IF(C25="",0,1/INDEX(APP_D!B:B,MATCH('Incremental Capital Summary'!C25,APP_D!P:P,0))) -> 0.03333333333 | M25: =IF(C25="",0,INDEX(APP_C!E:E,MATCH('Incremental Capital Summary'!C25,APP_C!K:K,0))) -> 47 | O25: =IF(C25="",0,INDEX(APP_C!I:I,MATCH(C25,APP_C!K:K,0))) -> 0.08
B26: 6 | C26: =IF(C25="","",IF(INDEX(ASSETS_LIST_SELECTED_YEAR,MATCH('Incremental Capital Summary'!$B$14,PROJECTS_LIST_SELECTED_YEAR,0)+B25)=0,"",INDEX(ASSETS_LIST_SELECTED_YEAR,MATCH('Incremental Capital Summary'!$B$14,PROJECTS_LIST_SELECTED_YEAR,0)+B25))) -> 1840_Underground Conduit - Vault | G26: =IF(C26="",0,IF(INDEX(ASSET_AMOUNT_SELECTED_YEAR,MATCH('Incremental Capital Summary'!$B$14,PROJECTS_LIST_SELECTED_YEAR,0)+B25)=0,0,INDEX(ASSET_AMOUNT_SELECTED_YEAR,MATCH('Incremental Capital Summary'!$B$14,PROJECTS_LIST_SELECTED_YEAR,0)+B25))) -> 133898.0475 | I26: 66949.02376 | K26: =IF(C26="",0,1/INDEX(APP_D!B:B,MATCH('Incremental Capital Summary'!C26,APP_D!P:P,0))) -> 0.025 | M26: =IF(C26="",0,INDEX(APP_C!E:E,MATCH('Incremental Capital Summary'!C26,APP_C!K:K,0))) -> 47 | O26: =IF(C26="",0,INDEX(APP_C!I:I,MATCH(C26,APP_C!K:K,0))) -> 0.08
B27: 7 | C27: =IF(C26="","",IF(INDEX(ASSETS_LIST_SELECTED_YEAR,MATCH('Incremental Capital Summary'!$B$14,PROJECTS_LIST_SELECTED_YEAR,0)+B26)=0,"",INDEX(ASSETS_LIST_SELECTED_YEAR,MATCH('Incremental Capital Summary'!$B$14,PROJECTS_LIST_SELECTED_YEAR,0)+B26))) -> 1840_Underground Conduit - Vault Roof | G27: =IF(C27="",0,IF(INDEX(ASSET_AMOUNT_SELECTED_YEAR,MATCH('Incremental Capital Summary'!$B$14,PROJECTS_LIST_SELECTED_YEAR,0)+B26)=0,0,INDEX(ASSET_AMOUNT_SELECTED_YEAR,MATCH('Incremental Capital Summary'!$B$14,PROJECTS_LIST_SELECTED_YEAR,0)+B26))) -> 21883.19626 | I27: 10941.59813 | K27: =IF(C27="",0,1/INDEX(APP_D!B:B,MATCH('Incremental Capital Summary'!C27,APP_D!P:P,0))) -> 0.05 | M27: =IF(C27="",0,INDEX(APP_C!E:E,MATCH('Incremental Capital Summary'!C27,APP_C!K:K,0))) -> 47 | O27: =IF(C27="",0,INDEX(APP_C!I:I,MATCH(C27,APP_C!K:K,0))) -> 0.08
B28: 8 | C28: =IF(C27="","",IF(INDEX(ASSETS_LIST_SELECTED_YEAR,MATCH('Incremental Capital Summary'!$B$14,PROJECTS_LIST_SELECTED_YEAR,0)+B27)=0,"",INDEX(ASSETS_LIST_SELECTED_YEAR,MATCH('Incremental Capital Summary'!$B$14,PROJECTS_LIST_SELECTED_YEAR,0)+B27))) -> 1845_Underground Conductors and Devices | G28: =IF(C28="",0,IF(INDEX(ASSET_AMOUNT_SELECTED_YEAR,MATCH('Incremental Capital Summary'!$B$14,PROJECTS_LIST_SELECTED_YEAR,0)+B27)=0,0,INDEX(ASSET_AMOUNT_SELECTED_YEAR,MATCH('Incremental Capital Summary'!$B$14,PROJECTS_LIST_SELECTED_YEAR,0)+B27))) -> 1027709.957 | I28: 513854.9784 | K28: =IF(C28="",0,1/INDEX(APP_D!B:B,MATCH('Incremental Capital Summary'!C28,APP_D!P:P,0))) -> 0.025 | M28: =IF(C28="",0,INDEX(APP_C!E:E,MATCH('Incremental Capital Summary'!C28,APP_C!K:K,0))) -> 47 | O28: =IF(C28="",0,INDEX(APP_C!I:I,MATCH(C28,APP_C!K:K,0))) -> 0.08
B29: 9 | C29: =IF(C28="","",IF(INDEX(ASSETS_LIST_SELECTED_YEAR,MATCH('Incremental Capital Summary'!$B$14,PROJECTS_LIST_SELECTED_YEAR,0)+B28)=0,"",INDEX(ASSETS_LIST_SELECTED_YEAR,MATCH('Incremental Capital Summary'!$B$14,PROJECTS_LIST_SELECTED_YEAR,0)+B28))) -> 1845_Underground Conductors and Devices - Switch | G29: =IF(C29="",0,IF(INDEX(ASSET_AMOUNT_SELECTED_YEAR,MATCH('Incremental Capital Summary'!$B$14,PROJECTS_LIST_SELECTED_YEAR,0)+B28)=0,0,INDEX(ASSET_AMOUNT_SELECTED_YEAR,MATCH('Incremental Capital Summary'!$B$14,PROJECTS_LIST_SELECTED_YEAR,0)+B28))) -> 395.268743 | I29: 197.6343715 | K29: =IF(C29="",0,1/INDEX(APP_D!B:B,MATCH('Incremental Capital Summary'!C29,APP_D!P:P,0))) -> 0.05 | M29: =IF(C29="",0,INDEX(APP_C!E:E,MATCH('Incremental Capital Summary'!C29,APP_C!K:K,0))) -> 47 | O29: =IF(C29="",0,INDEX(APP_C!I:I,MATCH(C29,APP_C!K:K,0))) -> 0.08
B30: 10 | C30: =IF(C29="","",IF(INDEX(ASSETS_LIST_SELECTED_YEAR,MATCH('Incremental Capital Summary'!$B$14,PROJECTS_LIST_SELECTED_YEAR,0)+B29)=0,"",INDEX(ASSETS_LIST_SELECTED_YEAR,MATCH('Incremental Capital Summary'!$B$14,PROJECTS_LIST_SELECTED_YEAR,0)+B29))) -> 1850_Line Transformers - OH | G30: =IF(C30="",0,IF(INDEX(ASSET_AMOUNT_SELECTED_YEAR,MATCH('Incremental Capital Summary'!$B$14,PROJECTS_LIST_SELECTED_YEAR,0)+B29)=0,0,INDEX(ASSET_AMOUNT_SELECTED_YEAR,MATCH('Incremental Capital Summary'!$B$14,PROJECTS_LIST_SELECTED_YEAR,0)+B29))) -> 2327.170944 | I30: 1163.585472 | K30: =IF(C30="",0,1/INDEX(APP_D!B:B,MATCH('Incremental Capital Summary'!C30,APP_D!P:P,0))) -> 0.03333333333 | M30: =IF(C30="",0,INDEX(APP_C!E:E,MATCH('Incremental Capital Summary'!C30,APP_C!K:K,0))) -> 47 | O30: =IF(C30="",0,INDEX(APP_C!I:I,MATCH(C30,APP_C!K:K,0))) -> 0.08
B31: 11 | C31: =IF(C30="","",IF(INDEX(ASSETS_LIST_SELECTED_YEAR,MATCH('Incremental Capital Summary'!$B$14,PROJECTS_LIST_SELECTED_YEAR,0)+B30)=0,"",INDEX(ASSETS_LIST_SELECTED_YEAR,MATCH('Incremental Capital Summary'!$B$14,PROJECTS_LIST_SELECTED_YEAR,0)+B30))) -> 1850_Line Transformers - UG | G31: =IF(C31="",0,IF(INDEX(ASSET_AMOUNT_SELECTED_YEAR,MATCH('Incremental Capital Summary'!$B$14,PROJECTS_LIST_SELECTED_YEAR,0)+B30)=0,0,INDEX(ASSET_AMOUNT_SELECTED_YEAR,MATCH('Incremental Capital Summary'!$B$14,PROJECTS_LIST_SELECTED_YEAR,0)+B30))) -> 1107.025267 | I31: 553.5126336 | K31: =IF(C31="",0,1/INDEX(APP_D!B:B,MATCH('Incremental Capital Summary'!C31,APP_D!P:P,0))) -> 0.03333333333 | M31: =IF(C31="",0,INDEX(APP_C!E:E,MATCH('Incremental Capital Summary'!C31,APP_C!K:K,0))) -> 47 | O31: =IF(C31="",0,INDEX(APP_C!I:I,MATCH(C31,APP_C!K:K,0))) -> 0.08
B32: 12 | C32: =IF(C31="","",IF(INDEX(ASSETS_LIST_SELECTED_YEAR,MATCH('Incremental Capital Summary'!$B$14,PROJECTS_LIST_SELECTED_YEAR,0)+B31)=0,"",INDEX(ASSETS_LIST_SELECTED_YEAR,MATCH('Incremental Capital Summary'!$B$14,PROJECTS_LIST_SELECTED_YEAR,0)+B31))) -> 1850_Line Transformers - UG Network w/protector | G32: =IF(C32="",0,IF(INDEX(ASSET_AMOUNT_SELECTED_YEAR,MATCH('Incremental Capital Summary'!$B$14,PROJECTS_LIST_SELECTED_YEAR,0)+B31)=0,0,INDEX(ASSET_AMOUNT_SELECTED_YEAR,MATCH('Incremental Capital Summary'!$B$14,PROJECTS_LIST_SELECTED_YEAR,0)+B31))) -> 64057.3415 | I32: 32028.67075 | K32: =IF(C32="",0,1/INDEX(APP_D!B:B,MATCH('Incremental Capital Summary'!C32,APP_D!P:P,0))) -> 0.05 | M32: =IF(C32="",0,INDEX(APP_C!E:E,MATCH('Incremental Capital Summary'!C32,APP_C!K:K,0))) -> 47 | O32: =IF(C32="",0,INDEX(APP_C!I:I,MATCH(C32,APP_C!K:K,0))) -> 0.08
B33: 13 | C33: =IF(C32="","",IF(INDEX(ASSETS_LIST_SELECTED_YEAR,MATCH('Incremental Capital Summary'!$B$14,PROJECTS_LIST_SELECTED_YEAR,0)+B32)=0,"",INDEX(ASSETS_LIST_SELECTED_YEAR,MATCH('Incremental Capital Summary'!$B$14,PROJECTS_LIST_SELECTED_YEAR,0)+B32))) -> 1855_Services - UG | G33: =IF(C33="",0,IF(INDEX(ASSET_AMOUNT_SELECTED_YEAR,MATCH('Incremental Capital Summary'!$B$14,PROJECTS_LIST_SELECTED_YEAR,0)+B32)=0,0,INDEX(ASSET_AMOUNT_SELECTED_YEAR,MATCH('Incremental Capital Summary'!$B$14,PROJECTS_LIST_SELECTED_YEAR,0)+B32))) -> 451.9753296 | I33: 225.9876648 | K33: =IF(C33="",0,1/INDEX(APP_D!B:B,MATCH('Incremental Capital Summary'!C33,APP_D!P:P,0))) -> 0.025 | M33: =IF(C33="",0,INDEX(APP_C!E:E,MATCH('Incremental Capital Summary'!C33,APP_C!K:K,0))) -> 47 | O33: =IF(C33="",0,INDEX(APP_C!I:I,MATCH(C33,APP_C!K:K,0))) -> 0.08
B34: 14 | C34: =IF(C33="","",IF(INDEX(ASSETS_LIST_SELECTED_YEAR,MATCH('Incremental Capital Summary'!$B$14,PROJECTS_LIST_SELECTED_YEAR,0)+B33)=0,"",INDEX(ASSETS_LIST_SELECTED_YEAR,MATCH('Incremental Capital Summary'!$B$14,PROJECTS_LIST_SELECTED_YEAR,0)+B33))) -> 1855_Services - OH | G34: =IF(C34="",0,IF(INDEX(ASSET_AMOUNT_SELECTED_YEAR,MATCH('Incremental Capital Summary'!$B$14,PROJECTS_LIST_SELECTED_YEAR,0)+B33)=0,0,INDEX(ASSET_AMOUNT_SELECTED_YEAR,MATCH('Incremental Capital Summary'!$B$14,PROJECTS_LIST_SELECTED_YEAR,0)+B33))) -> 2356.583899 | I34: 1178.291949 | K34: =IF(C34="",0,1/INDEX(APP_D!B:B,MATCH('Incremental Capital Summary'!C34,APP_D!P:P,0))) -> 0.02 | M34: =IF(C34="",0,INDEX(APP_C!E:E,MATCH('Incremental Capital Summary'!C34,APP_C!K:K,0))) -> 47 | O34: =IF(C34="",0,INDEX(APP_C!I:I,MATCH(C34,APP_C!K:K,0))) -> 0.08
B35: 15 | C35: =IF(C34="","",IF(INDEX(ASSETS_LIST_SELECTED_YEAR,MATCH('Incremental Capital Summary'!$B$14,PROJECTS_LIST_SELECTED_YEAR,0)+B34)=0,"",INDEX(ASSETS_LIST_SELECTED_YEAR,MATCH('Incremental Capital Summary'!$B$14,PROJECTS_LIST_SELECTED_YEAR,0)+B34))) ->  | G35: =IF(C35="",0,IF(INDEX(ASSET_AMOUNT_SELECTED_YEAR,MATCH('Incremental Capital Summary'!$B$14,PROJECTS_LIST_SELECTED_YEAR,0)+B34)=0,0,INDEX(ASSET_AMOUNT_SELECTED_YEAR,MATCH('Incremental Capital Summary'!$B$14,PROJECTS_LIST_SELECTED_YEAR,0)+B34))) -> 0 | I35: 0 | K35: =IF(C35="",0,1/INDEX(APP_D!B:B,MATCH('Incremental Capital Summary'!C35,APP_D!P:P,0))) -> 0 | M35: =IF(C35="",0,INDEX(APP_C!E:E,MATCH('Incremental Capital Summary'!C35,APP_C!K:K,0))) -> 0 | O35: =IF(C35="",0,INDEX(APP_C!I:I,MATCH(C35,APP_C!K:K,0))) -> 0
B36: 16 | C36: =IF(C35="","",IF(INDEX(ASSETS_LIST_SELECTED_YEAR,MATCH('Incremental Capital Summary'!$B$14,PROJECTS_LIST_SELECTED_YEAR,0)+B35)=0,"",INDEX(ASSETS_LIST_SELECTED_YEAR,MATCH('Incremental Capital Summary'!$B$14,PROJECTS_LIST_SELECTED_YEAR,0)+B35))) ->  | G36: =IF(C36="",0,IF(INDEX(ASSET_AMOUNT_SELECTED_YEAR,MATCH('Incremental Capital Summary'!$B$14,PROJECTS_LIST_SELECTED_YEAR,0)+B35)=0,0,INDEX(ASSET_AMOUNT_SELECTED_YEAR,MATCH('Incremental Capital Summary'!$B$14,PROJECTS_LIST_SELECTED_YEAR,0)+B35))) -> 0 | I36: 0 | K36: =IF(C36="",0,1/INDEX(APP_D!B:B,MATCH('Incremental Capital Summary'!C36,APP_D!P:P,0))) -> 0 | M36: =IF(C36="",0,INDEX(APP_C!E:E,MATCH('Incremental Capital Summary'!C36,APP_C!K:K,0))) -> 0 | O36: =IF(C36="",0,INDEX(APP_C!I:I,MATCH(C36,APP_C!K:K,0))) -> 0
B37: 17 | C37: =IF(C36="","",IF(INDEX(ASSETS_LIST_SELECTED_YEAR,MATCH('Incremental Capital Summary'!$B$14,PROJECTS_LIST_SELECTED_YEAR,0)+B36)=0,"",INDEX(ASSETS_LIST_SELECTED_YEAR,MATCH('Incremental Capital Summary'!$B$14,PROJECTS_LIST_SELECTED_YEAR,0)+B36))) ->  | G37: =IF(C37="",0,IF(INDEX(ASSET_AMOUNT_SELECTED_YEAR,MATCH('Incremental Capital Summary'!$B$14,PROJECTS_LIST_SELECTED_YEAR,0)+B36)=0,0,INDEX(ASSET_AMOUNT_SELECTED_YEAR,MATCH('Incremental Capital Summary'!$B$14,PROJECTS_LIST_SELECTED_YEAR,0)+B36))) -> 0 | I37: 0 | K37: =IF(C37="",0,1/INDEX(APP_D!B:B,MATCH('Incremental Capital Summary'!C37,APP_D!P:P,0))) -> 0 | M37: =IF(C37="",0,INDEX(APP_C!E:E,MATCH('Incremental Capital Summary'!C37,APP_C!K:K,0))) -> 0 | O37: =IF(C37="",0,INDEX(APP_C!I:I,MATCH(C37,APP_C!K:K,0))) -> 0
B38: 18 | C38: =IF(C37="","",IF(INDEX(ASSETS_LIST_SELECTED_YEAR,MATCH('Incremental Capital Summary'!$B$14,PROJECTS_LIST_SELECTED_YEAR,0)+B37)=0,"",INDEX(ASSETS_LIST_SELECTED_YEAR,MATCH('Incremental Capital Summary'!$B$14,PROJECTS_LIST_SELECTED_YEAR,0)+B37))) ->  | G38: =IF(C38="",0,IF(INDEX(ASSET_AMOUNT_SELECTED_YEAR,MATCH('Incremental Capital Summary'!$B$14,PROJECTS_LIST_SELECTED_YEAR,0)+B37)=0,0,INDEX(ASSET_AMOUNT_SELECTED_YEAR,MATCH('Incremental Capital Summary'!$B$14,PROJECTS_LIST_SELECTED_YEAR,0)+B37))) -> 0 | I38: 0 | K38: =IF(C38="",0,1/INDEX(APP_D!B:B,MATCH('Incremental Capital Summary'!C38,APP_D!P:P,0))) -> 0 | M38: =IF(C38="",0,INDEX(APP_C!E:E,MATCH('Incremental Capital Summary'!C38,APP_C!K:K,0))) -> 0 | O38: =IF(C38="",0,INDEX(APP_C!I:I,MATCH(C38,APP_C!K:K,0))) -> 0
B39: 19 | C39: =IF(C38="","",IF(INDEX(ASSETS_LIST_SELECTED_YEAR,MATCH('Incremental Capital Summary'!$B$14,PROJECTS_LIST_SELECTED_YEAR,0)+B38)=0,"",INDEX(ASSETS_LIST_SELECTED_YEAR,MATCH('Incremental Capital Summary'!$B$14,PROJECTS_LIST_SELECTED_YEAR,0)+B38))) ->  | G39: =IF(C39="",0,IF(INDEX(ASSET_AMOUNT_SELECTED_YEAR,MATCH('Incremental Capital Summary'!$B$14,PROJECTS_LIST_SELECTED_YEAR,0)+B38)=0,0,INDEX(ASSET_AMOUNT_SELECTED_YEAR,MATCH('Incremental Capital Summary'!$B$14,PROJECTS_LIST_SELECTED_YEAR,0)+B38))) -> 0 | I39: 0 | K39: =IF(C39="",0,1/INDEX(APP_D!B:B,MATCH('Incremental Capital Summary'!C39,APP_D!P:P,0))) -> 0 | M39: =IF(C39="",0,INDEX(APP_C!E:E,MATCH('Incremental Capital Summary'!C39,APP_C!K:K,0))) -> 0 | O39: =IF(C39="",0,INDEX(APP_C!I:I,MATCH(C39,APP_C!K:K,0))) -> 0
B40: 20 | C40: =IF(C39="","",IF(INDEX(ASSETS_LIST_SELECTED_YEAR,MATCH('Incremental Capital Summary'!$B$14,PROJECTS_LIST_SELECTED_YEAR,0)+B39)=0,"",INDEX(ASSETS_LIST_SELECTED_YEAR,MATCH('Incremental Capital Summary'!$B$14,PROJECTS_LIST_SELECTED_YEAR,0)+B39))) ->  | G40: =IF(C40="",0,IF(INDEX(ASSET_AMOUNT_SELECTED_YEAR,MATCH('Incremental Capital Summary'!$B$14,PROJECTS_LIST_SELECTED_YEAR,0)+B39)=0,0,INDEX(ASSET_AMOUNT_SELECTED_YEAR,MATCH('Incremental Capital Summary'!$B$14,PROJECTS_LIST_SELECTED_YEAR,0)+B39))) -> 0 | I40: 0 | K40: =IF(C40="",0,1/INDEX(APP_D!B:B,MATCH('Incremental Capital Summary'!C40,APP_D!P:P,0))) -> 0 | M40: =IF(C40="",0,INDEX(APP_C!E:E,MATCH('Incremental Capital Summary'!C40,APP_C!K:K,0))) -> 0 | O40: =IF(C40="",0,INDEX(APP_C!I:I,MATCH(C40,APP_C!K:K,0))) -> 0
B41: 21 | C41: =IF(C40="","",IF(INDEX(ASSETS_LIST_SELECTED_YEAR,MATCH('Incremental Capital Summary'!$B$14,PROJECTS_LIST_SELECTED_YEAR,0)+B40)=0,"",INDEX(ASSETS_LIST_SELECTED_YEAR,MATCH('Incremental Capital Summary'!$B$14,PROJECTS_LIST_SELECTED_YEAR,0)+B40))) ->  | G41: =IF(C41="",0,IF(INDEX(ASSET_AMOUNT_SELECTED_YEAR,MATCH('Incremental Capital Summary'!$B$14,PROJECTS_LIST_SELECTED_YEAR,0)+B40)=0,0,INDEX(ASSET_AMOUNT_SELECTED_YEAR,MATCH('Incremental Capital Summary'!$B$14,PROJECTS_LIST_SELECTED_YEAR,0)+B40))) -> 0 | I41: 0 | K41: =IF(C41="",0,1/INDEX(APP_D!B:B,MATCH('Incremental Capital Summary'!C41,APP_D!P:P,0))) -> 0 | M41: =IF(C41="",0,INDEX(APP_C!E:E,MATCH('Incremental Capital Summary'!C41,APP_C!K:K,0))) -> 0 | O41: =IF(C41="",0,INDEX(APP_C!I:I,MATCH(C41,APP_C!K:K,0))) -> 0
B42: 22 | C42: =IF(C41="","",IF(INDEX(ASSETS_LIST_SELECTED_YEAR,MATCH('Incremental Capital Summary'!$B$14,PROJECTS_LIST_SELECTED_YEAR,0)+B41)=0,"",INDEX(ASSETS_LIST_SELECTED_YEAR,MATCH('Incremental Capital Summary'!$B$14,PROJECTS_LIST_SELECTED_YEAR,0)+B41))) ->  | G42: =IF(C42="",0,IF(INDEX(ASSET_AMOUNT_SELECTED_YEAR,MATCH('Incremental Capital Summary'!$B$14,PROJECTS_LIST_SELECTED_YEAR,0)+B41)=0,0,INDEX(ASSET_AMOUNT_SELECTED_YEAR,MATCH('Incremental Capital Summary'!$B$14,PROJECTS_LIST_SELECTED_YEAR,0)+B41))) -> 0 | I42: 0 | K42: =IF(C42="",0,1/INDEX(APP_D!B:B,MATCH('Incremental Capital Summary'!C42,APP_D!P:P,0))) -> 0 | M42: =IF(C42="",0,INDEX(APP_C!E:E,MATCH('Incremental Capital Summary'!C42,APP_C!K:K,0))) -> 0 | O42: =IF(C42="",0,INDEX(APP_C!I:I,MATCH(C42,APP_C!K:K,0))) -> 0
B43: 23 | C43: =IF(C42="","",IF(INDEX(ASSETS_LIST_SELECTED_YEAR,MATCH('Incremental Capital Summary'!$B$14,PROJECTS_LIST_SELECTED_YEAR,0)+B42)=0,"",INDEX(ASSETS_LIST_SELECTED_YEAR,MATCH('Incremental Capital Summary'!$B$14,PROJECTS_LIST_SELECTED_YEAR,0)+B42))) ->  | G43: =IF(C43="",0,IF(INDEX(ASSET_AMOUNT_SELECTED_YEAR,MATCH('Incremental Capital Summary'!$B$14,PROJECTS_LIST_SELECTED_YEAR,0)+B42)=0,0,INDEX(ASSET_AMOUNT_SELECTED_YEAR,MATCH('Incremental Capital Summary'!$B$14,PROJECTS_LIST_SELECTED_YEAR,0)+B42))) -> 0 | I43: 0 | K43: =IF(C43="",0,1/INDEX(APP_D!B:B,MATCH('Incremental Capital Summary'!C43,APP_D!P:P,0))) -> 0 | M43: =IF(C43="",0,INDEX(APP_C!E:E,MATCH('Incremental Capital Summary'!C43,APP_C!K:K,0))) -> 0 | O43: =IF(C43="",0,INDEX(APP_C!I:I,MATCH(C43,APP_C!K:K,0))) -> 0
B44: 24 | C44: =IF(C43="","",IF(INDEX(ASSETS_LIST_SELECTED_YEAR,MATCH('Incremental Capital Summary'!$B$14,PROJECTS_LIST_SELECTED_YEAR,0)+B43)=0,"",INDEX(ASSETS_LIST_SELECTED_YEAR,MATCH('Incremental Capital Summary'!$B$14,PROJECTS_LIST_SELECTED_YEAR,0)+B43))) ->  | G44: =IF(C44="",0,IF(INDEX(ASSET_AMOUNT_SELECTED_YEAR,MATCH('Incremental Capital Summary'!$B$14,PROJECTS_LIST_SELECTED_YEAR,0)+B43)=0,0,INDEX(ASSET_AMOUNT_SELECTED_YEAR,MATCH('Incremental Capital Summary'!$B$14,PROJECTS_LIST_SELECTED_YEAR,0)+B43))) -> 0 | I44: 0 | K44: =IF(C44="",0,1/INDEX(APP_D!B:B,MATCH('Incremental Capital Summary'!C44,APP_D!P:P,0))) -> 0 | M44: =IF(C44="",0,INDEX(APP_C!E:E,MATCH('Incremental Capital Summary'!C44,APP_C!K:K,0))) -> 0 | O44: =IF(C44="",0,INDEX(APP_C!I:I,MATCH(C44,APP_C!K:K,0))) -> 0
B45: 25 | C45: =IF(C44="","",IF(INDEX(ASSETS_LIST_SELECTED_YEAR,MATCH('Incremental Capital Summary'!$B$14,PROJECTS_LIST_SELECTED_YEAR,0)+B44)=0,"",INDEX(ASSETS_LIST_SELECTED_YEAR,MATCH('Incremental Capital Summary'!$B$14,PROJECTS_LIST_SELECTED_YEAR,0)+B44))) ->  | G45: =IF(C45="",0,IF(INDEX(ASSET_AMOUNT_SELECTED_YEAR,MATCH('Incremental Capital Summary'!$B$14,PROJECTS_LIST_SELECTED_YEAR,0)+B44)=0,0,INDEX(ASSET_AMOUNT_SELECTED_YEAR,MATCH('Incremental Capital Summary'!$B$14,PROJECTS_LIST_SELECTED_YEAR,0)+B44))) -> 0 | I45: 0 | K45: =IF(C45="",0,1/INDEX(APP_D!B:B,MATCH('Incremental Capital Summary'!C45,APP_D!P:P,0))) -> 0 | M45: =IF(C45="",0,INDEX(APP_C!E:E,MATCH('Incremental Capital Summary'!C45,APP_C!K:K,0))) -> 0 | O45: =IF(C45="",0,INDEX(APP_C!I:I,MATCH(C45,APP_C!K:K,0))) -> 0
B46: 26 | C46: =IF(C45="","",IF(INDEX(ASSETS_LIST_SELECTED_YEAR,MATCH('Incremental Capital Summary'!$B$14,PROJECTS_LIST_SELECTED_YEAR,0)+B45)=0,"",INDEX(ASSETS_LIST_SELECTED_YEAR,MATCH('Incremental Capital Summary'!$B$14,PROJECTS_LIST_SELECTED_YEAR,0)+B45))) ->  | G46: =IF(C46="",0,IF(INDEX(ASSET_AMOUNT_SELECTED_YEAR,MATCH('Incremental Capital Summary'!$B$14,PROJECTS_LIST_SELECTED_YEAR,0)+B45)=0,0,INDEX(ASSET_AMOUNT_SELECTED_YEAR,MATCH('Incremental Capital Summary'!$B$14,PROJECTS_LIST_SELECTED_YEAR,0)+B45))) -> 0 | I46: =IF(IRM_CYCLE_YEAR="4th year of IRM cycle", G46/2, 0) -> 0 | K46: =IF(C46="",0,1/INDEX(APP_D!B:B,MATCH('Incremental Capital Summary'!C46,APP_D!P:P,0))) -> 0 | M46: =IF(C46="",0,INDEX(APP_C!E:E,MATCH('Incremental Capital Summary'!C46,APP_C!K:K,0))) -> 0 | O46: =IF(C46="",0,INDEX(APP_C!I:I,MATCH(C46,APP_C!K:K,0))) -> 0
B47: 27 | C47: =IF(C46="","",IF(INDEX(ASSETS_LIST_SELECTED_YEAR,MATCH('Incremental Capital Summary'!$B$14,PROJECTS_LIST_SELECTED_YEAR,0)+B46)=0,"",INDEX(ASSETS_LIST_SELECTED_YEAR,MATCH('Incremental Capital Summary'!$B$14,PROJECTS_LIST_SELECTED_YEAR,0)+B46))) ->  | G47: =IF(C47="",0,IF(INDEX(ASSET_AMOUNT_SELECTED_YEAR,MATCH('Incremental Capital Summary'!$B$14,PROJECTS_LIST_SELECTED_YEAR,0)+B46)=0,0,INDEX(ASSET_AMOUNT_SELECTED_YEAR,MATCH('Incremental Capital Summary'!$B$14,PROJECTS_LIST_SELECTED_YEAR,0)+B46))) -> 0 | I47: 0 | K47: =IF(C47="",0,1/INDEX(APP_D!B:B,MATCH('Incremental Capital Summary'!C47,APP_D!P:P,0))) -> 0 | M47: =IF(C47="",0,INDEX(APP_C!E:E,MATCH('Incremental Capital Summary'!C47,APP_C!K:K,0))) -> 0 | O47: =IF(C47="",0,INDEX(APP_C!I:I,MATCH(C47,APP_C!K:K,0))) -> 0
B48: 28 | C48: =IF(C47="","",IF(INDEX(ASSETS_LIST_SELECTED_YEAR,MATCH('Incremental Capital Summary'!$B$14,PROJECTS_LIST_SELECTED_YEAR,0)+B47)=0,"",INDEX(ASSETS_LIST_SELECTED_YEAR,MATCH('Incremental Capital Summary'!$B$14,PROJECTS_LIST_SELECTED_YEAR,0)+B47))) ->  | G48: =IF(C48="",0,IF(INDEX(ASSET_AMOUNT_SELECTED_YEAR,MATCH('Incremental Capital Summary'!$B$14,PROJECTS_LIST_SELECTED_YEAR,0)+B47)=0,0,INDEX(ASSET_AMOUNT_SELECTED_YEAR,MATCH('Incremental Capital Summary'!$B$14,PROJECTS_LIST_SELECTED_YEAR,0)+B47))) -> 0 | I48: 0 | K48: =IF(C48="",0,1/INDEX(APP_D!B:B,MATCH('Incremental Capital Summary'!C48,APP_D!P:P,0))) -> 0 | M48: =IF(C48="",0,INDEX(APP_C!E:E,MATCH('Incremental Capital Summary'!C48,APP_C!K:K,0))) -> 0 | O48: =IF(C48="",0,INDEX(APP_C!I:I,MATCH(C48,APP_C!K:K,0))) -> 0
B49: 29 | C49: =IF(C48="","",IF(INDEX(ASSETS_LIST_SELECTED_YEAR,MATCH('Incremental Capital Summary'!$B$14,PROJECTS_LIST_SELECTED_YEAR,0)+B48)=0,"",INDEX(ASSETS_LIST_SELECTED_YEAR,MATCH('Incremental Capital Summary'!$B$14,PROJECTS_LIST_SELECTED_YEAR,0)+B48))) ->  | G49: =IF(C49="",0,IF(INDEX(ASSET_AMOUNT_SELECTED_YEAR,MATCH('Incremental Capital Summary'!$B$14,PROJECTS_LIST_SELECTED_YEAR,0)+B48)=0,0,INDEX(ASSET_AMOUNT_SELECTED_YEAR,MATCH('Incremental Capital Summary'!$B$14,PROJECTS_LIST_SELECTED_YEAR,0)+B48))) -> 0 | I49: 0 | K49: =IF(C49="",0,1/INDEX(APP_D!B:B,MATCH('Incremental Capital Summary'!C49,APP_D!P:P,0))) -> 0 | M49: =IF(C49="",0,INDEX(APP_C!E:E,MATCH('Incremental Capital Summary'!C49,APP_C!K:K,0))) -> 0 | O49: =IF(C49="",0,INDEX(APP_C!I:I,MATCH(C49,APP_C!K:K,0))) -> 0
B50: 30 | C50: =IF(C49="","",IF(INDEX(ASSETS_LIST_SELECTED_YEAR,MATCH('Incremental Capital Summary'!$B$14,PROJECTS_LIST_SELECTED_YEAR,0)+B49)=0,"",INDEX(ASSETS_LIST_SELECTED_YEAR,MATCH('Incremental Capital Summary'!$B$14,PROJECTS_LIST_SELECTED_YEAR,0)+B49))) ->  | G50: =IF(C50="",0,IF(INDEX(ASSET_AMOUNT_SELECTED_YEAR,MATCH('Incremental Capital Summary'!$B$14,PROJECTS_LIST_SELECTED_YEAR,0)+B49)=0,0,INDEX(ASSET_AMOUNT_SELECTED_YEAR,MATCH('Incremental Capital Summary'!$B$14,PROJECTS_LIST_SELECTED_YEAR,0)+B49))) -> 0 | I50: 0 | K50: =IF(C50="",0,1/INDEX(APP_D!B:B,MATCH('Incremental Capital Summary'!C50,APP_D!P:P,0))) -> 0 | M50: =IF(C50="",0,INDEX(APP_C!E:E,MATCH('Incremental Capital Summary'!C50,APP_C!K:K,0))) -> 0 | O50: =IF(C50="",0,INDEX(APP_C!I:I,MATCH(C50,APP_C!K:K,0))) -> 0
G52: =YEAR_SELECTED -> 2014 | K52: =IF((G52+1)<=2014,G52+1,"") -> 
B53: Closing Net Fixed Asset | G53: =SUM('Fixed Asset Amort and UCC 1'!D32,'Fixed Asset Amort and UCC 2'!D32, 'Fixed Asset Amort and UCC 3'!D32, 'Fixed Asset Amort and UCC 4'!D32, 'Fixed Asset Amort and UCC 5'!D32,'Fixed Asset Amort and UCC 6'!D32,'Fixed Asset Amort and UCC 7'!D32,'Fixed Asset Amort and UCC 8'!D32,'Fixed Asset Amort and UCC 9'!D32,'Fixed Asset Amort and UCC 10'!D32,'Fixed Asset Amort and UCC 11'!D32,'Fixed Asset Amort and UCC 12'!D32,'Fixed Asset Amort and UCC 13'!D32,'Fixed Asset Amort and UCC 14'!D32,'Fixed Asset Amort and UCC 15'!D32,'Fixed Asset Amort and UCC 16'!D32,'Fixed Asset Amort and UCC 17'!D32,'Fixed Asset Amort and UCC 18'!D32, 'Fixed Asset Amort and UCC 19'!D32,'Fixed Asset Amort and UCC 20'!D32,'Fixed Asset Amort and UCC 21'!D32,'Fixed Asset Amort and UCC 22'!D32,'Fixed Asset Amort and UCC 23'!D32,'Fixed Asset Amort and UCC 24'!D32,'Fixed Asset Amort and UCC 25'!D32,'Fixed Asset Amort and UCC 26'!D32,'Fixed Asset Amort and UCC 27'!D32,'Fixed Asset Amort and UCC 28'!D32,'Fixed Asset Amort and UCC 29'!D32,'Fixed Asset Amort and UCC 30'!D32) -> 4710482.442 | K53: =SUM('Fixed Asset Amort and UCC 1'!E32,'Fixed Asset Amort and UCC 2'!E32, 'Fixed Asset Amort and UCC 3'!E32, 'Fixed Asset Amort and UCC 4'!E32, 'Fixed Asset Amort and UCC 5'!E32,'Fixed Asset Amort and UCC 6'!E32,'Fixed Asset Amort and UCC 7'!E32,'Fixed Asset Amort and UCC 8'!E32,'Fixed Asset Amort and UCC 9'!E32,'Fixed Asset Amort and UCC 10'!E32,'Fixed Asset Amort and UCC 11'!E32,'Fixed Asset Amort and UCC 12'!E32,'Fixed Asset Amort and UCC 13'!E32,'Fixed Asset Amort and UCC 14'!E32,'Fixed Asset Amort and UCC 15'!E32,'Fixed Asset Amort and UCC 16'!E32,'Fixed Asset Amort and UCC 17'!E32,'Fixed Asset Amort and UCC 18'!E32, 'Fixed Asset Amort and UCC 19'!E32,'Fixed Asset Amort and UCC 20'!E32,'Fixed Asset Amort and UCC 21'!E32,'Fixed Asset Amort and UCC 22'!E32,'Fixed Asset Amort and UCC 23'!E32,'Fixed Asset Amort and UCC 24'!E32,'Fixed Asset Amort and UCC 25'!E32,'Fixed Asset Amort and UCC 26'!E32,'Fixed Asset Amort and UCC 27'!E32,'Fixed Asset Amort and UCC 28'!E32,'Fixed Asset Amort and UCC 29'!E32,'Fixed Asset Amort and UCC 30'!E32) -> 4559818.959
B55: Amortization Expense | G55: =SUM('Fixed Asset Amort and UCC 1'!D28,'Fixed Asset Amort and UCC 2'!D28, 'Fixed Asset Amort and UCC 3'!D28, 'Fixed Asset Amort and UCC 4'!D28, 'Fixed Asset Amort and UCC 5'!D28,'Fixed Asset Amort and UCC 6'!D28,'Fixed Asset Amort and UCC 7'!D28,'Fixed Asset Amort and UCC 8'!D28,'Fixed Asset Amort and UCC 9'!D28,'Fixed Asset Amort and UCC 10'!D28,'Fixed Asset Amort and UCC 11'!D28,'Fixed Asset Amort and UCC 12'!D28,'Fixed Asset Amort and UCC 13'!D28,'Fixed Asset Amort and UCC 14'!D28,'Fixed Asset Amort and UCC 15'!D28,'Fixed Asset Amort and UCC 16'!D28,'Fixed Asset Amort and UCC 17'!D28,'Fixed Asset Amort and UCC 18'!D28, 'Fixed Asset Amort and UCC 19'!D28,'Fixed Asset Amort and UCC 20'!D28,'Fixed Asset Amort and UCC 21'!D28,'Fixed Asset Amort and UCC 22'!D28,'Fixed Asset Amort and UCC 23'!D28,'Fixed Asset Amort and UCC 24'!D28,'Fixed Asset Amort and UCC 25'!D28,'Fixed Asset Amort and UCC 26'!D28,'Fixed Asset Amort and UCC 27'!D28,'Fixed Asset Amort and UCC 28'!D28,'Fixed Asset Amort and UCC 29'!D28,'Fixed Asset Amort and UCC 30'!D28) -> 150663.483 | K55: =SUM('Fixed Asset Amort and UCC 1'!E28,'Fixed Asset Amort and UCC 2'!E28, 'Fixed Asset Amort and UCC 3'!E28, 'Fixed Asset Amort and UCC 4'!E28, 'Fixed Asset Amort and UCC 5'!E28,'Fixed Asset Amort and UCC 6'!E28,'Fixed Asset Amort and UCC 7'!E28,'Fixed Asset Amort and UCC 8'!E28,'Fixed Asset Amort and UCC 9'!E28,'Fixed Asset Amort and UCC 10'!E28,'Fixed Asset Amort and UCC 11'!E28,'Fixed Asset Amort and UCC 12'!E28,'Fixed Asset Amort and UCC 13'!E28,'Fixed Asset Amort and UCC 14'!E28,'Fixed Asset Amort and UCC 15'!E28,'Fixed Asset Amort and UCC 16'!E28,'Fixed Asset Amort and UCC 17'!E28,'Fixed Asset Amort and UCC 18'!E28, 'Fixed Asset Amort and UCC 19'!E28,'Fixed Asset Amort and UCC 20'!E28,'Fixed Asset Amort and UCC 21'!E28,'Fixed Asset Amort and UCC 22'!E28,'Fixed Asset Amort and UCC 23'!E28,'Fixed Asset Amort and UCC 24'!E28,'Fixed Asset Amort and UCC 25'!E28,'Fixed Asset Amort and UCC 26'!E28,'Fixed Asset Amort and UCC 27'!E28,'Fixed Asset Amort and UCC 28'!E28,'Fixed Asset Amort and UCC 29'!E28,'Fixed Asset Amort and UCC 30'!E28) -> 150663.483
B57: CCA | G57: =SUM('Fixed Asset Amort and UCC 1'!D50,'Fixed Asset Amort and UCC 2'!D50, 'Fixed Asset Amort and UCC 3'!D50, 'Fixed Asset Amort and UCC 4'!D50, 'Fixed Asset Amort and UCC 5'!D50,'Fixed Asset Amort and UCC 6'!D50,'Fixed Asset Amort and UCC 7'!D50,'Fixed Asset Amort and UCC 8'!D50,'Fixed Asset Amort and UCC 9'!D50,'Fixed Asset Amort and UCC 10'!D50,'Fixed Asset Amort and UCC 11'!D50,'Fixed Asset Amort and UCC 12'!D50,'Fixed Asset Amort and UCC 13'!D50,'Fixed Asset Amort and UCC 14'!D50,'Fixed Asset Amort and UCC 15'!D50,'Fixed Asset Amort and UCC 16'!D50,'Fixed Asset Amort and UCC 17'!D50,'Fixed Asset Amort and UCC 18'!D50, 'Fixed Asset Amort and UCC 19'!D50,'Fixed Asset Amort and UCC 20'!D50,'Fixed Asset Amort and UCC 21'!D50,'Fixed Asset Amort and UCC 22'!D50,'Fixed Asset Amort and UCC 23'!D50,'Fixed Asset Amort and UCC 24'!D50,'Fixed Asset Amort and UCC 25'!D50,'Fixed Asset Amort and UCC 26'!D50,'Fixed Asset Amort and UCC 27'!D50,'Fixed Asset Amort and UCC 28'!D50,'Fixed Asset Amort and UCC 29'!D50,'Fixed Asset Amort and UCC 30'!D50) -> 388891.674 | K57: =SUM('Fixed Asset Amort and UCC 1'!E50,'Fixed Asset Amort and UCC 2'!E50, 'Fixed Asset Amort and UCC 3'!E50, 'Fixed Asset Amort and UCC 4'!E50, 'Fixed Asset Amort and UCC 5'!E50,'Fixed Asset Amort and UCC 6'!E50,'Fixed Asset Amort and UCC 7'!E50,'Fixed Asset Amort and UCC 8'!E50,'Fixed Asset Amort and UCC 9'!E50,'Fixed Asset Amort and UCC 10'!E50,'Fixed Asset Amort and UCC 11'!E50,'Fixed Asset Amort and UCC 12'!E50,'Fixed Asset Amort and UCC 13'!E50,'Fixed Asset Amort and UCC 14'!E50,'Fixed Asset Amort and UCC 15'!E50,'Fixed Asset Amort and UCC 16'!E50,'Fixed Asset Amort and UCC 17'!E50,'Fixed Asset Amort and UCC 18'!E50, 'Fixed Asset Amort and UCC 19'!E50,'Fixed Asset Amort and UCC 20'!E50,'Fixed Asset Amort and UCC 21'!E50,'Fixed Asset Amort and UCC 22'!E50,'Fixed Asset Amort and UCC 23'!E50,'Fixed Asset Amort and UCC 24'!E50,'Fixed Asset Amort and UCC 25'!E50,'Fixed Asset Amort and UCC 26'!E50,'Fixed Asset Amort and UCC 27'!E50,'Fixed Asset Amort and UCC 28'!E50,'Fixed Asset Amort and UCC 29'!E50,'Fixed Asset Amort and UCC 30'!E50) -> 357780.3401

Sheet Fixed Asset Amort and UCC 1
B10: Fixed Asset Amortization and UCC 1
B12: Name or General Description of Project
B13: =IF(ISBLANK('Incremental Capital Summary'!B14), "", 'Incremental Capital Summary'!B14) -> B21 Externally-Initiated Plant Relocations and Expansions
B15: Asset Component
B16: =IF(ISBLANK('Incremental Capital Summary'!C21),"",'Incremental Capital Summary'!C21) -> 1830_Poles Towers and Fixtures
B19: Average Net Fixed Assets
D20: =YEAR_SELECTED -> 2014 | E20: =IF((D20+1)<=2014,D20+1,"") -> 
B21: Net Fixed Assets | D21: Forecasted | E21: Forecasted
B23: Opening Capital Investment | D23: 0 | E23: =D25 -> 16282.73811
B24: Capital Investment | D24: =IF(IRM_CYCLE_YEAR="4th Year of IRM Cycle", 'Incremental Capital Summary'!G21/2, 'Incremental Capital Summary'!G21) -> 16282.73811 | E24: 0
B25: Closing Capital Investment | D25: =SUM(D23:D24) -> 16282.73811 | E25: =SUM(E23:E24) -> 16282.73811
B27: Opening Accumulated Amortization | D27: 0 | E27: =D29 -> 407.0684528
B28: Amortization | C28: ='Incremental Capital Summary'!K21 -> 0.025 | D28: =D24*$C$28 -> 407.0684528 | E28: =E25*$C$28 -> 407.0684528
B29: Closing Accumulated Amortization | D29: =SUM(D27:D28) -> 407.0684528 | E29: =SUM(E27:E28) -> 814.1369057
B31: Opening Net Fixed Assets | D31: 0 | E31: =E23-E27 -> 15875.66966
B32: Closing Net Fixed Assets | D32: =D25-D29 -> 15875.66966 | E32: =E25-E29 -> 15468.60121
B33: Average Net Fixed Assets | D33: =SUM(D31:D32)/2 -> 7937.83483 | E33: =SUM(E31:E32)/2 -> 15672.13543
B38: For PILs Calculation
B40: UCC | D40: =YEAR_SELECTED -> 2014 | E40: =IF((D40+1)<=2014,D40+1,"") -> 
D41: Forecasted | E41: Forecasted
B43: Opening UCC | D43: 0 | E43: =D51 -> 14980.11906
B44: Capital Additions | D44: =D24 -> 16282.73811 | E44: =E24 -> 0
B45: UCC Before Half Year Rule | D45: =SUM(D43:D44) -> 16282.73811 | E45: =SUM(E43:E44) -> 14980.11906
B46: Half Year Rule (1/2 Additions - Disposals) | D46: 0 | E46: =E44/2 -> 0
B47: Reduced UCC | D47: =D45-D46 -> 16282.73811 | E47: =E45-E46 -> 14980.11906
B48: CCA Rate Class | C48: ='Incremental Capital Summary'!M21 -> 47
B49: CCA Rate | C49: ='Incremental Capital Summary'!O21 -> 0.08
B50: CCA | D50: =D47*$C$49 -> 1302.619049 | E50: =E47*$C$49 -> 1198.409525
B51: Closing UCC | D51: =D45-D50 -> 14980.11906 | E51: =E45-E50 -> 13781.70954

Sheet Fixed Asset Amort and UCC 2
B10: Fixed Asset Amortization and UCC 2
B12: Name or General Description of Project
B13: =IF(ISBLANK('Incremental Capital Summary'!B14), "", 'Incremental Capital Summary'!B14) -> B21 Externally-Initiated Plant Relocations and Expansions
B15: Asset Component
B16: =IF(ISBLANK('Incremental Capital Summary'!C22),"",'Incremental Capital Summary'!C22) -> 1835_Overhead Conductors and Devices
B19: Average Net Fixed Assets
D20: =YEAR_SELECTED -> 2014 | E20: =IF((D20+1)<=2014,D20+1,"") -> 
B21: Net Fixed Assets | D21: Forecasted | E21: Forecasted
B23: Opening Capital Investment | D23: 0 | E23: =D25 -> 25576.00897
B24: Capital Investment | D24: =IF(IRM_CYCLE_YEAR="4th Year of IRM Cycle", 'Incremental Capital Summary'!G22/2, 'Incremental Capital Summary'!G22) -> 25576.00897 | E24: 0
B25: Closing Capital Investment | D25: =SUM(D23:D24) -> 25576.00897 | E25: =SUM(E23:E24) -> 25576.00897
B27: Opening Accumulated Amortization | D27: 0 | E27: =D29 -> 511.5201793
B28: Amortization | C28: ='Incremental Capital Summary'!K22 -> 0.02 | D28: =D24*$C$28 -> 511.5201793 | E28: =E25*$C$28 -> 511.5201793
B29: Closing Accumulated Amortization | D29: =SUM(D27:D28) -> 511.5201793 | E29: =SUM(E27:E28) -> 1023.040359
B31: Opening Net Fixed Assets | D31: 0 | E31: =E23-E27 -> 25064.48879
B32: Closing Net Fixed Assets | D32: =D25-D29 -> 25064.48879 | E32: =E25-E29 -> 24552.96861
B33: Average Net Fixed Assets | D33: =SUM(D31:D32)/2 -> 12532.24439 | E33: =SUM(E31:E32)/2 -> 24808.7287
B38: For PILs Calculation
B40: UCC | D40: =YEAR_SELECTED -> 2014 | E40: =IF((D40+1)<=2014,D40+1,"") -> 
D41: Forecasted | E41: Forecasted
B43: Opening UCC | D43: 0 | E43: =D51 -> 23529.92825
B44: Capital Additions | D44: =D24 -> 25576.00897 | E44: =E24 -> 0
B45: UCC Before Half Year Rule | D45: =SUM(D43:D44) -> 25576.00897 | E45: =SUM(E43:E44) -> 23529.92825
B46: Half Year Rule (1/2 Additions - Disposals) | D46: 0 | E46: =E44/2 -> 0
B47: Reduced UCC | D47: =D45-D46 -> 25576.00897 | E47: =E45-E46 -> 23529.92825
B48: CCA Rate Class | C48: ='Incremental Capital Summary'!M22 -> 47
B49: CCA Rate | C49: ='Incremental Capital Summary'!O22 -> 0.08
B50: CCA | D50: =D47*$C$49 -> 2046.080717 | E50: =E47*$C$49 -> 1882.39426
B51: Closing UCC | D51: =D45-D50 -> 23529.92825 | E51: =E45-E50 -> 21647.53399

Sheet Fixed Asset Amort and UCC 3
B10: Fixed Asset Amortization and UCC 3
B12: Name or General Description of Project
B13: =IF(ISBLANK('Incremental Capital Summary'!B14), "", 'Incremental Capital Summary'!B14) -> B21 Externally-Initiated Plant Relocations and Expansions
B15: Asset Component
B16: =IF(ISBLANK('Incremental Capital Summary'!C23),"",'Incremental Capital Summary'!C23) -> 1835_Overhead Conductors and Devices - Switches
B19: Average Net Fixed Assets
D20: =YEAR_SELECTED -> 2014 | E20: =IF((D20+1)<=2014,D20+1,"") -> 
B21: Net Fixed Assets | D21: Forecasted | E21: Forecasted
B23: Opening Capital Investment | D23: 0 | E23: =D25 -> 3242.0661
B24: Capital Investment | D24: =IF(IRM_CYCLE_YEAR="4th Year of IRM Cycle", 'Incremental Capital Summary'!G23/2, 'Incremental Capital Summary'!G23) -> 3242.0661 | E24: 0
B25: Closing Capital Investment | D25: =SUM(D23:D24) -> 3242.0661 | E25: =SUM(E23:E24) -> 3242.0661
B27: Opening Accumulated Amortization | D27: 0 | E27: =D29 -> 108.06887
B28: Amortization | C28: ='Incremental Capital Summary'!K23 -> 0.03333333333 | D28: =D24*$C$28 -> 108.06887 | E28: =E25*$C$28 -> 108.06887
B29: Closing Accumulated Amortization | D29: =SUM(D27:D28) -> 108.06887 | E29: =SUM(E27:E28) -> 216.13774
B31: Opening Net Fixed Assets | D31: 0 | E31: =E23-E27 -> 3133.99723
B32: Closing Net Fixed Assets | D32: =D25-D29 -> 3133.99723 | E32: =E25-E29 -> 3025.92836
B33: Average Net Fixed Assets | D33: =SUM(D31:D32)/2 -> 1566.998615 | E33: =SUM(E31:E32)/2 -> 3079.962795
B38: For PILs Calculation
B40: UCC | D40: =YEAR_SELECTED -> 2014 | E40: =IF((D40+1)<=2014,D40+1,"") -> 
D41: Forecasted | E41: Forecasted
B43: Opening UCC | D43: 0 | E43: =D51 -> 2982.700812
B44: Capital Additions | D44: =D24 -> 3242.0661 | E44: =E24 -> 0
B45: UCC Before Half Year Rule | D45: =SUM(D43:D44) -> 3242.0661 | E45: =SUM(E43:E44) -> 2982.700812
B46: Half Year Rule (1/2 Additions - Disposals) | D46: 0 | E46: =E44/2 -> 0
B47: Reduced UCC | D47: =D45-D46 -> 3242.0661 | E47: =E45-E46 -> 2982.700812
B48: CCA Rate Class | C48: ='Incremental Capital Summary'!M23 -> 47
B49: CCA Rate | C49: ='Incremental Capital Summary'!O23 -> 0.08
B50: CCA | D50: =D47*$C$49 -> 259.365288 | E50: =E47*$C$49 -> 238.6160649
B51: Closing UCC | D51: =D45-D50 -> 2982.700812 | E51: =E45-E50 -> 2744.084747

Sheet Fixed Asset Amort and UCC 4
B10: Fixed Asset Amortization and UCC 4
B12: Name or General Description of Project
B13: =IF(ISBLANK('Incremental Capital Summary'!B14), "", 'Incremental Capital Summary'!B14) -> B21 Externally-Initiated Plant Relocations and Expansions
B15: Asset Component
B16: =IF(ISBLANK('Incremental Capital Summary'!C24),"",'Incremental Capital Summary'!C24) -> 1840_Underground Conduit - Cable Chamber
B19: Average Net Fixed Assets
D20: =YEAR_SELECTED -> 2014 | E20: =IF((D20+1)<=2014,D20+1,"") -> 
B21: Net Fixed Assets | D21: Forecasted | E21: Forecasted
B23: Opening Capital Investment | D23: 0 | E23: =D25 -> 506988.7091
B24: Capital Investment | D24: =IF(IRM_CYCLE_YEAR="4th Year of IRM Cycle", 'Incremental Capital Summary'!G24/2, 'Incremental Capital Summary'!G24) -> 506988.7091 | E24: 0
B25: Closing Capital Investment | D25: =SUM(D23:D24) -> 506988.7091 | E25: =SUM(E23:E24) -> 506988.7091
B27: Opening Accumulated Amortization | D27: 0 | E27: =D29 -> 10139.77418
B28: Amortization | C28: ='Incremental Capital Summary'!K24 -> 0.02 | D28: =D24*$C$28 -> 10139.77418 | E28: =E25*$C$28 -> 10139.77418
B29: Closing Accumulated Amortization | D29: =SUM(D27:D28) -> 10139.77418 | E29: =SUM(E27:E28) -> 20279.54836
B31: Opening Net Fixed Assets | D31: 0 | E31: =E23-E27 -> 496848.9349
B32: Closing Net Fixed Assets | D32: =D25-D29 -> 496848.9349 | E32: =E25-E29 -> 486709.1607
B33: Average Net Fixed Assets | D33: =SUM(D31:D32)/2 -> 248424.4675 | E33: =SUM(E31:E32)/2 -> 491779.0478
B38: For PILs Calculation
B40: UCC | D40: =YEAR_SELECTED -> 2014 | E40: =IF((D40+1)<=2014,D40+1,"") -> 
D41: Forecasted | E41: Forecasted
B43: Opening UCC | D43: 0 | E43: =D51 -> 466429.6124
B44: Capital Additions | D44: =D24 -> 506988.7091 | E44: =E24 -> 0
B45: UCC Before Half Year Rule | D45: =SUM(D43:D44) -> 506988.7091 | E45: =SUM(E43:E44) -> 466429.6124
B46: Half Year Rule (1/2 Additions - Disposals) | D46: 0 | E46: =E44/2 -> 0
B47: Reduced UCC | D47: =D45-D46 -> 506988.7091 | E47: =E45-E46 -> 466429.6124
B48: CCA Rate Class | C48: ='Incremental Capital Summary'!M24 -> 47
B49: CCA Rate | C49: ='Incremental Capital Summary'!O24 -> 0.08
B50: CCA | D50: =D47*$C$49 -> 40559.09673 | E50: =E47*$C$49 -> 37314.36899
B51: Closing UCC | D51: =D45-D50 -> 466429.6124 | E51: =E45-E50 -> 429115.2434

Sheet Fixed Asset Amort and UCC 5
B10: Fixed Asset Amortization and UCC 5
B12: Name or General Description of Project
B13: =IF(ISBLANK('Incremental Capital Summary'!B14), "", 'Incremental Capital Summary'!B14) -> B21 Externally-Initiated Plant Relocations and Expansions
B15: Asset Component
B16: =IF(ISBLANK('Incremental Capital Summary'!C25),"",'Incremental Capital Summary'!C25) -> 1840_Underground Conduit - Duct Bank
B19: Average Net Fixed Assets
D20: =YEAR_SELECTED -> 2014 | E20: =IF((D20+1)<=2014,D20+1,"") -> 
B21: Net Fixed Assets | D21: Forecasted | E21: Forecasted
B23: Opening Capital Investment | D23: 0 | E23: =D25 -> 3681963.119
B24: Capital Investment | D24: =IF(IRM_CYCLE_YEAR="4th Year of IRM Cycle", 'Incremental Capital Summary'!G25/2, 'Incremental Capital Summary'!G25) -> 3681963.119 | E24: 0
B25: Closing Capital Investment | D25: =SUM(D23:D24) -> 3681963.119 | E25: =SUM(E23:E24) -> 3681963.119
B27: Opening Accumulated Amortization | D27: 0 | E27: =D29 -> 122732.104
B28: Amortization | C28: ='Incremental Capital Summary'!K25 -> 0.03333333333 | D28: =D24*$C$28 -> 122732.104 | E28: =E25*$C$28 -> 122732.104
B29: Closing Accumulated Amortization | D29: =SUM(D27:D28) -> 122732.104 | E29: =SUM(E27:E28) -> 245464.208
B31: Opening Net Fixed Assets | D31: 0 | E31: =E23-E27 -> 3559231.016
B32: Closing Net Fixed Assets | D32: =D25-D29 -> 3559231.016 | E32: =E25-E29 -> 3436498.912
B33: Average Net Fixed Assets | D33: =SUM(D31:D32)/2 -> 1779615.508 | E33: =SUM(E31:E32)/2 -> 3497864.964
B38: For PILs Calculation
B40: UCC | D40: =YEAR_SELECTED -> 2014 | E40: =IF((D40+1)<=2014,D40+1,"") -> 
D41: Forecasted | E41: Forecasted
B43: Opening UCC | D43: 0 | E43: =D51 -> 3387406.07
B44: Capital Additions | D44: =D24 -> 3681963.119 | E44: =E24 -> 0
B45: UCC Before Half Year Rule | D45: =SUM(D43:D44) -> 3681963.119 | E45: =SUM(E43:E44) -> 3387406.07
B46: Half Year Rule (1/2 Additions - Disposals) | D46: 0 | E46: =E44/2 -> 0
B47: Reduced UCC | D47: =D45-D46 -> 3681963.119 | E47: =E45-E46 -> 3387406.07
B48: CCA Rate Class | C48: ='Incremental Capital Summary'!M25 -> 47
B49: CCA Rate | C49: ='Incremental Capital Summary'!O25 -> 0.08
B50: CCA | D50: =D47*$C$49 -> 294557.0496 | E50: =E47*$C$49 -> 270992.4856
B51: Closing UCC | D51: =D45-D50 -> 3387406.07 | E51: =E45-E50 -> 3116413.584

Sheet Fixed Asset Amort and UCC 6
B10: Fixed Asset Amortization and UCC 6
B12: Name or General Description of Project
B13: =IF(ISBLANK('Incremental Capital Summary'!B14), "", 'Incremental Capital Summary'!B14) -> B21 Externally-Initiated Plant Relocations and Expansions
B15: Asset Component
B16: =IF(ISBLANK('Incremental Capital Summary'!C26),"",'Incremental Capital Summary'!C26) -> 1840_Underground Conduit - Vault
B19: Average Net Fixed Assets
D20: =YEAR_SELECTED -> 2014 | E20: =IF((D20+1)<=2014,D20+1,"") -> 
B21: Net Fixed Assets | D21: Forecasted | E21: Forecasted
B23: Opening Capital Investment | D23: 0 | E23: =D25 -> 66949.02376
B24: Capital Investment | D24: =IF(IRM_CYCLE_YEAR="4th Year of IRM Cycle", 'Incremental Capital Summary'!G26/2, 'Incremental Capital Summary'!G26) -> 66949.02376 | E24: 0
B25: Closing Capital Investment | D25: =SUM(D23:D24) -> 66949.02376 | E25: =SUM(E23:E24) -> 66949.02376
B27: Opening Accumulated Amortization | D27: 0 | E27: =D29 -> 1673.725594
B28: Amortization | C28: ='Incremental Capital Summary'!K26 -> 0.025 | D28: =D24*$C$28 -> 1673.725594 | E28: =E25*$C$28 -> 1673.725594
B29: Closing Accumulated Amortization | D29: =SUM(D27:D28) -> 1673.725594 | E29: =SUM(E27:E28) -> 3347.451188
B31: Opening Net Fixed Assets | D31: 0 | E31: =E23-E27 -> 65275.29816
B32: Closing Net Fixed Assets | D32: =D25-D29 -> 65275.29816 | E32: =E25-E29 -> 63601.57257
B33: Average Net Fixed Assets | D33: =SUM(D31:D32)/2 -> 32637.64908 | E33: =SUM(E31:E32)/2 -> 64438.43537
B38: For PILs Calculation
B40: UCC | D40: =YEAR_SELECTED -> 2014 | E40: =IF((D40+1)<=2014,D40+1,"") -> 
D41: Forecasted | E41: Forecasted
B43: Opening UCC | D43: 0 | E43: =D51 -> 61593.10186
B44: Capital Additions | D44: =D24 -> 66949.02376 | E44: =E24 -> 0
B45: UCC Before Half Year Rule | D45: =SUM(D43:D44) -> 66949.02376 | E45: =SUM(E43:E44) -> 61593.10186
B46: Half Year Rule (1/2 Additions - Disposals) | D46: 0 | E46: =E44/2 -> 0
B47: Reduced UCC | D47: =D45-D46 -> 66949.02376 | E47: =E45-E46 -> 61593.10186
B48: CCA Rate Class | C48: ='Incremental Capital Summary'!M26 -> 47
B49: CCA Rate | C49: ='Incremental Capital Summary'!O26 -> 0.08
B50: CCA | D50: =D47*$C$49 -> 5355.921901 | E50: =E47*$C$49 -> 4927.448148
B51: Closing UCC | D51: =D45-D50 -> 61593.10186 | E51: =E45-E50 -> 56665.65371

Sheet Fixed Asset Amort and UCC 7
B10: Fixed Asset Amortization and UCC 7
B12: Name or General Description of Project
B13: =IF(ISBLANK('Incremental Capital Summary'!B14), "", 'Incremental Capital Summary'!B14) -> B21 Externally-Initiated Plant Relocations and Expansions
B15: Asset Component
B16: =IF(ISBLANK('Incremental Capital Summary'!C27),"",'Incremental Capital Summary'!C27) -> 1840_Underground Conduit - Vault Roof
B19: Average Net Fixed Assets
D20: =YEAR_SELECTED -> 2014 | E20: =IF((D20+1)<=2014,D20+1,"") -> 
B21: Net Fixed Assets | D21: Forecasted | E21: Forecasted
B23: Opening Capital Investment | D23: 0 | E23: =D25 -> 10941.59813
B24: Capital Investment | D24: =IF(IRM_CYCLE_YEAR="4th Year of IRM Cycle", 'Incremental Capital Summary'!G27/2, 'Incremental Capital Summary'!G27) -> 10941.59813 | E24: 0
B25: Closing Capital Investment | D25: =SUM(D23:D24) -> 10941.59813 | E25: =SUM(E23:E24) -> 10941.59813
B27: Opening Accumulated Amortization | D27: 0 | E27: =D29 -> 547.0799066
B28: Amortization | C28: ='Incremental Capital Summary'!K27 -> 0.05 | D28: =D24*$C$28 -> 547.0799066 | E28: =E25*$C$28 -> 547.0799066
B29: Closing Accumulated Amortization | D29: =SUM(D27:D28) -> 547.0799066 | E29: =SUM(E27:E28) -> 1094.159813
B31: Opening Net Fixed Assets | D31: 0 | E31: =E23-E27 -> 10394.51822
B32: Closing Net Fixed Assets | D32: =D25-D29 -> 10394.51822 | E32: =E25-E29 -> 9847.438318
B33: Average Net Fixed Assets | D33: =SUM(D31:D32)/2 -> 5197.259112 | E33: =SUM(E31:E32)/2 -> 10120.97827
B38: For PILs Calculation
B40: UCC | D40: =YEAR_SELECTED -> 2014 | E40: =IF((D40+1)<=2014,D40+1,"") -> 
D41: Forecasted | E41: Forecasted
B43: Opening UCC | D43: 0 | E43: =D51 -> 10066.27028
B44: Capital Additions | D44: =D24 -> 10941.59813 | E44: =E24 -> 0
B45: UCC Before Half Year Rule | D45: =SUM(D43:D44) -> 10941.59813 | E45: =SUM(E43:E44) -> 10066.27028
B46: Half Year Rule (1/2 Additions - Disposals) | D46: 0 | E46: =E44/2 -> 0
B47: Reduced UCC | D47: =D45-D46 -> 10941.59813 | E47: =E45-E46 -> 10066.27028
B48: CCA Rate Class | C48: ='Incremental Capital Summary'!M27 -> 47
B49: CCA Rate | C49: ='Incremental Capital Summary'!O27 -> 0.08
B50: CCA | D50: =D47*$C$49 -> 875.3278505 | E50: =E47*$C$49 -> 805.3016225
B51: Closing UCC | D51: =D45-D50 -> 10066.27028 | E51: =E45-E50 -> 9260.968658

Sheet Fixed Asset Amort and UCC 8
B10: Fixed Asset Amortization and UCC 8
B12: Name or General Description of Project
B13: =IF(ISBLANK('Incremental Capital Summary'!B14), "", 'Incremental Capital Summary'!B14) -> B21 Externally-Initiated Plant Relocations and Expansions
B15: Asset Component
B16: =IF(ISBLANK('Incremental Capital Summary'!C28),"",'Incremental Capital Summary'!C28) -> 1845_Underground Conductors and Devices
B19: Average Net Fixed Assets
D20: =YEAR_SELECTED -> 2014 | E20: =IF((D20+1)<=2014,D20+1,"") -> 
B21: Net Fixed Assets | D21: Forecasted | E21: Forecasted
B23: Opening Capital Investment | D23: 0 | E23: =D25 -> 513854.9784
B24: Capital Investment | D24: =IF(IRM_CYCLE_YEAR="4th Year of IRM Cycle", 'Incremental Capital Summary'!G28/2, 'Incremental Capital Summary'!G28) -> 513854.9784 | E24: 0
B25: Closing Capital Investment | D25: =SUM(D23:D24) -> 513854.9784 | E25: =SUM(E23:E24) -> 513854.9784
B27: Opening Accumulated Amortization | D27: 0 | E27: =D29 -> 12846.37446
B28: Amortization | C28: ='Incremental Capital Summary'!K28 -> 0.025 | D28: =D24*$C$28 -> 12846.37446 | E28: =E25*$C$28 -> 12846.37446
B29: Closing Accumulated Amortization | D29: =SUM(D27:D28) -> 12846.37446 | E29: =SUM(E27:E28) -> 25692.74892
B31: Opening Net Fixed Assets | D31: 0 | E31: =E23-E27 -> 501008.6039
B32: Closing Net Fixed Assets | D32: =D25-D29 -> 501008.6039 | E32: =E25-E29 -> 488162.2295
B33: Average Net Fixed Assets | D33: =SUM(D31:D32)/2 -> 250504.302 | E33: =SUM(E31:E32)/2 -> 494585.4167
B38: For PILs Calculation
B40: UCC | D40: =YEAR_SELECTED -> 2014 | E40: =IF((D40+1)<=2014,D40+1,"") -> 
D41: Forecasted | E41: Forecasted
B43: Opening UCC | D43: 0 | E43: =D51 -> 472746.5801
B44: Capital Additions | D44: =D24 -> 513854.9784 | E44: =E24 -> 0
B45: UCC Before Half Year Rule | D45: =SUM(D43:D44) -> 513854.9784 | E45: =SUM(E43:E44) -> 472746.5801
B46: Half Year Rule (1/2 Additions - Disposals) | D46: 0 | E46: =E44/2 -> 0
B47: Reduced UCC | D47: =D45-D46 -> 513854.9784 | E47: =E45-E46 -> 472746.5801
B48: CCA Rate Class | C48: ='Incremental Capital Summary'!M28 -> 47
B49: CCA Rate | C49: ='Incremental Capital Summary'!O28 -> 0.08
B50: CCA | D50: =D47*$C$49 -> 41108.39827 | E50: =E47*$C$49 -> 37819.72641
B51: Closing UCC | D51: =D45-D50 -> 472746.5801 | E51: =E45-E50 -> 434926.8537

Sheet Fixed Asset Amort and UCC 9
B10: Fixed Asset Amortization and UCC 9
B12: Name or General Description of Project
B13: =IF(ISBLANK('Incremental Capital Summary'!B14), "", 'Incremental Capital Summary'!B14) -> B21 Externally-Initiated Plant Relocations and Expansions
B15: Asset Component
B16: =IF(ISBLANK('Incremental Capital Summary'!C29),"",'Incremental Capital Summary'!C29) -> 1845_Underground Conductors and Devices - Switch
B19: Average Net Fixed Assets
D20: =YEAR_SELECTED -> 2014 | E20: =IF((D20+1)<=2014,D20+1,"") -> 
B21: Net Fixed Assets | D21: Forecasted | E21: Forecasted
B23: Opening Capital Investment | D23: 0 | E23: =D25 -> 197.6343715
B24: Capital Investment | D24: =IF(IRM_CYCLE_YEAR="4th Year of IRM Cycle", 'Incremental Capital Summary'!G29/2, 'Incremental Capital Summary'!G29) -> 197.6343715 | E24: 0
B25: Closing Capital Investment | D25: =SUM(D23:D24) -> 197.6343715 | E25: =SUM(E23:E24) -> 197.6343715
B27: Opening Accumulated Amortization | D27: 0 | E27: =D29 -> 9.881718576
B28: Amortization | C28: ='Incremental Capital Summary'!K29 -> 0.05 | D28: =D24*$C$28 -> 9.881718576 | E28: =E25*$C$28 -> 9.881718576
B29: Closing Accumulated Amortization | D29: =SUM(D27:D28) -> 9.881718576 | E29: =SUM(E27:E28) -> 19.76343715
B31: Opening Net Fixed Assets | D31: 0 | E31: =E23-E27 -> 187.7526529
B32: Closing Net Fixed Assets | D32: =D25-D29 -> 187.7526529 | E32: =E25-E29 -> 177.8709344
B33: Average Net Fixed Assets | D33: =SUM(D31:D32)/2 -> 93.87632647 | E33: =SUM(E31:E32)/2 -> 182.8117937
B38: For PILs Calculation
B40: UCC | D40: =YEAR_SELECTED -> 2014 | E40: =IF((D40+1)<=2014,D40+1,"") -> 
D41: Forecasted | E41: Forecasted
B43: Opening UCC | D43: 0 | E43: =D51 -> 181.8236218
B44: Capital Additions | D44: =D24 -> 197.6343715 | E44: =E24 -> 0
B45: UCC Before Half Year Rule | D45: =SUM(D43:D44) -> 197.6343715 | E45: =SUM(E43:E44) -> 181.8236218
B46: Half Year Rule (1/2 Additions - Disposals) | D46: 0 | E46: =E44/2 -> 0
B47: Reduced UCC | D47: =D45-D46 -> 197.6343715 | E47: =E45-E46 -> 181.8236218
B48: CCA Rate Class | C48: ='Incremental Capital Summary'!M29 -> 47
B49: CCA Rate | C49: ='Incremental Capital Summary'!O29 -> 0.08
B50: CCA | D50: =D47*$C$49 -> 15.81074972 | E50: =E47*$C$49 -> 14.54588974
B51: Closing UCC | D51: =D45-D50 -> 181.8236218 | E51: =E45-E50 -> 167.2777321

Sheet Fixed Asset Amort and UCC 10
B10: Fixed Asset Amortization and UCC 10
B12: Name or General Description of Project
B13: =IF(ISBLANK('Incremental Capital Summary'!B14), "", 'Incremental Capital Summary'!B14) -> B21 Externally-Initiated Plant Relocations and Expansions
B15: Asset Component
B16: =IF(ISBLANK('Incremental Capital Summary'!C30),"",'Incremental Capital Summary'!C30) -> 1850_Line Transformers - OH
B19: Average Net Fixed Assets
D20: =YEAR_SELECTED -> 2014 | E20: =IF((D20+1)<=2014,D20+1,"") -> 
B21: Net Fixed Assets | D21: Forecasted | E21: Forecasted
B23: Opening Capital Investment | D23: 0 | E23: =D25 -> 1163.585472
B24: Capital Investment | D24: =IF(IRM_CYCLE_YEAR="4th Year of IRM Cycle", 'Incremental Capital Summary'!G30/2, 'Incremental Capital Summary'!G30) -> 1163.585472 | E24: 0
B25: Closing Capital Investment | D25: =SUM(D23:D24) -> 1163.585472 | E25: =SUM(E23:E24) -> 1163.585472
B27: Opening Accumulated Amortization | D27: 0 | E27: =D29 -> 38.7861824
B28: Amortization | C28: ='Incremental Capital Summary'!K30 -> 0.03333333333 | D28: =D24*$C$28 -> 38.7861824 | E28: =E25*$C$28 -> 38.7861824
B29: Closing Accumulated Amortization | D29: =SUM(D27:D28) -> 38.7861824 | E29: =SUM(E27:E28) -> 77.57236481
B31: Opening Net Fixed Assets | D31: 0 | E31: =E23-E27 -> 1124.79929
B32: Closing Net Fixed Assets | D32: =D25-D29 -> 1124.79929 | E32: =E25-E29 -> 1086.013107
B33: Average Net Fixed Assets | D33: =SUM(D31:D32)/2 -> 562.3996448 | E33: =SUM(E31:E32)/2 -> 1105.406198
B38: For PILs Calculation
B40: UCC | D40: =YEAR_SELECTED -> 2014 | E40: =IF((D40+1)<=2014,D40+1,"") -> 
D41: Forecasted | E41: Forecasted
B43: Opening UCC | D43: 0 | E43: =D51 -> 1070.498634
B44: Capital Additions | D44: =D24 -> 1163.585472 | E44: =E24 -> 0
B45: UCC Before Half Year Rule | D45: =SUM(D43:D44) -> 1163.585472 | E45: =SUM(E43:E44) -> 1070.498634
B46: Half Year Rule (1/2 Additions - Disposals) | D46: 0 | E46: =E44/2 -> 0
B47: Reduced UCC | D47: =D45-D46 -> 1163.585472 | E47: =E45-E46 -> 1070.498634
B48: CCA Rate Class | C48: ='Incremental Capital Summary'!M30 -> 47
B49: CCA Rate | C49: ='Incremental Capital Summary'!O30 -> 0.08
B50: CCA | D50: =D47*$C$49 -> 93.08683777 | E50: =E47*$C$49 -> 85.63989075
B51: Closing UCC | D51: =D45-D50 -> 1070.498634 | E51: =E45-E50 -> 984.8587436

Sheet Fixed Asset Amort and UCC 11
B10: Fixed Asset Amortization and UCC 11
B12: Name or General Description of Project
B13: =IF(ISBLANK('Incremental Capital Summary'!B14), "", 'Incremental Capital Summary'!B14) -> B21 Externally-Initiated Plant Relocations and Expansions
B15: Asset Component
B16: =IF(ISBLANK('Incremental Capital Summary'!C31),"",'Incremental Capital Summary'!C31) -> 1850_Line Transformers - UG
B19: Average Net Fixed Assets
D20: =YEAR_SELECTED -> 2014 | E20: =IF((D20+1)<=2014,D20+1,"") -> 
B21: Net Fixed Assets | D21: Forecasted | E21: Forecasted
B23: Opening Capital Investment | D23: 0 | E23: =D25 -> 553.5126336
B24: Capital Investment | D24: =IF(IRM_CYCLE_YEAR="4th Year of IRM Cycle", 'Incremental Capital Summary'!G31/2, 'Incremental Capital Summary'!G31) -> 553.5126336 | E24: 0
B25: Closing Capital Investment | D25: =SUM(D23:D24) -> 553.5126336 | E25: =SUM(E23:E24) -> 553.5126336
B27: Opening Accumulated Amortization | D27: 0 | E27: =D29 -> 18.45042112
B28: Amortization | C28: ='Incremental Capital Summary'!K31 -> 0.03333333333 | D28: =D24*$C$28 -> 18.45042112 | E28: =E25*$C$28 -> 18.45042112
B29: Closing Accumulated Amortization | D29: =SUM(D27:D28) -> 18.45042112 | E29: =SUM(E27:E28) -> 36.90084224
B31: Opening Net Fixed Assets | D31: 0 | E31: =E23-E27 -> 535.0622125
B32: Closing Net Fixed Assets | D32: =D25-D29 -> 535.0622125 | E32: =E25-E29 -> 516.6117914
B33: Average Net Fixed Assets | D33: =SUM(D31:D32)/2 -> 267.5311063 | E33: =SUM(E31:E32)/2 -> 525.837002
B38: For PILs Calculation
B40: UCC | D40: =YEAR_SELECTED -> 2014 | E40: =IF((D40+1)<=2014,D40+1,"") -> 
D41: Forecasted | E41: Forecasted
B43: Opening UCC | D43: 0 | E43: =D51 -> 509.231623
B44: Capital Additions | D44: =D24 -> 553.5126336 | E44: =E24 -> 0
B45: UCC Before Half Year Rule | D45: =SUM(D43:D44) -> 553.5126336 | E45: =SUM(E43:E44) -> 509.231623
B46: Half Year Rule (1/2 Additions - Disposals) | D46: 0 | E46: =E44/2 -> 0
B47: Reduced UCC | D47: =D45-D46 -> 553.5126336 | E47: =E45-E46 -> 509.231623
B48: CCA Rate Class | C48: ='Incremental Capital Summary'!M31 -> 47
B49: CCA Rate | C49: ='Incremental Capital Summary'!O31 -> 0.08
B50: CCA | D50: =D47*$C$49 -> 44.28101069 | E50: =E47*$C$49 -> 40.73852984
B51: Closing UCC | D51: =D45-D50 -> 509.231623 | E51: =E45-E50 -> 468.4930931

Sheet Fixed Asset Amort and UCC 12
B10: Fixed Asset Amortization and UCC 12
B12: Name or General Description of Project
B13: =IF(ISBLANK('Incremental Capital Summary'!B14), "", 'Incremental Capital Summary'!B14) -> B21 Externally-Initiated Plant Relocations and Expansions
B15: Asset Component
B16: =IF(ISBLANK('Incremental Capital Summary'!C32),"",'Incremental Capital Summary'!C32) -> 1850_Line Transformers - UG Network w/protector
B19: Average Net Fixed Assets
D20: =YEAR_SELECTED -> 2014 | E20: =IF((D20+1)<=2014,D20+1,"") -> 
B21: Net Fixed Assets | D21: Forecasted | E21: Forecasted
B23: Opening Capital Investment | D23: 0 | E23: =D25 -> 32028.67075
B24: Capital Investment | D24: =IF(IRM_CYCLE_YEAR="4th Year of IRM Cycle", 'Incremental Capital Summary'!G32/2, 'Incremental Capital Summary'!G32) -> 32028.67075 | E24: 0
B25: Closing Capital Investment | D25: =SUM(D23:D24) -> 32028.67075 | E25: =SUM(E23:E24) -> 32028.67075
B27: Opening Accumulated Amortization | D27: 0 | E27: =D29 -> 1601.433537
B28: Amortization | C28: ='Incremental Capital Summary'!K32 -> 0.05 | D28: =D24*$C$28 -> 1601.433537 | E28: =E25*$C$28 -> 1601.433537
B29: Closing Accumulated Amortization | D29: =SUM(D27:D28) -> 1601.433537 | E29: =SUM(E27:E28) -> 3202.867075
B31: Opening Net Fixed Assets | D31: 0 | E31: =E23-E27 -> 30427.23721
B32: Closing Net Fixed Assets | D32: =D25-D29 -> 30427.23721 | E32: =E25-E29 -> 28825.80367
B33: Average Net Fixed Assets | D33: =SUM(D31:D32)/2 -> 15213.61861 | E33: =SUM(E31:E32)/2 -> 29626.52044
B38: For PILs Calculation
B40: UCC | D40: =YEAR_SELECTED -> 2014 | E40: =IF((D40+1)<=2014,D40+1,"") -> 
D41: Forecasted | E41: Forecasted
B43: Opening UCC | D43: 0 | E43: =D51 -> 29466.37709
B44: Capital Additions | D44: =D24 -> 32028.67075 | E44: =E24 -> 0
B45: UCC Before Half Year Rule | D45: =SUM(D43:D44) -> 32028.67075 | E45: =SUM(E43:E44) -> 29466.37709
B46: Half Year Rule (1/2 Additions - Disposals) | D46: 0 | E46: =E44/2 -> 0
B47: Reduced UCC | D47: =D45-D46 -> 32028.67075 | E47: =E45-E46 -> 29466.37709
B48: CCA Rate Class | C48: ='Incremental Capital Summary'!M32 -> 47
B49: CCA Rate | C49: ='Incremental Capital Summary'!O32 -> 0.08
B50: CCA | D50: =D47*$C$49 -> 2562.29366 | E50: =E47*$C$49 -> 2357.310167
B51: Closing UCC | D51: =D45-D50 -> 29466.37709 | E51: =E45-E50 -> 27109.06692

Sheet Fixed Asset Amort and UCC 13
B10: Fixed Asset Amortization and UCC 13
B12: Name or General Description of Project
B13: =IF(ISBLANK('Incremental Capital Summary'!B14), "", 'Incremental Capital Summary'!B14) -> B21 Externally-Initiated Plant Relocations and Expansions
B15: Asset Component
B16: =IF(ISBLANK('Incremental Capital Summary'!C33),"",'Incremental Capital Summary'!C33) -> 1855_Services - UG
B19: Average Net Fixed Assets
D20: =YEAR_SELECTED -> 2014 | E20: =IF((D20+1)<=2014,D20+1,"") -> 
B21: Net Fixed Assets | D21: Forecasted | E21: Forecasted
B23: Opening Capital Investment | D23: 0 | E23: =D25 -> 225.9876648
B24: Capital Investment | D24: =IF(IRM_CYCLE_YEAR="4th Year of IRM Cycle", 'Incremental Capital Summary'!G33/2, 'Incremental Capital Summary'!G33) -> 225.9876648 | E24: 0
B25: Closing Capital Investment | D25: =SUM(D23:D24) -> 225.9876648 | E25: =SUM(E23:E24) -> 225.9876648
B27: Opening Accumulated Amortization | D27: 0 | E27: =D29 -> 5.649691621
B28: Amortization | C28: ='Incremental Capital Summary'!K33 -> 0.025 | D28: =D24*$C$28 -> 5.649691621 | E28: =E25*$C$28 -> 5.649691621
B29: Closing Accumulated Amortization | D29: =SUM(D27:D28) -> 5.649691621 | E29: =SUM(E27:E28) -> 11.29938324
B31: Opening Net Fixed Assets | D31: 0 | E31: =E23-E27 -> 220.3379732
B32: Closing Net Fixed Assets | D32: =D25-D29 -> 220.3379732 | E32: =E25-E29 -> 214.6882816
B33: Average Net Fixed Assets | D33: =SUM(D31:D32)/2 -> 110.1689866 | E33: =SUM(E31:E32)/2 -> 217.5131274
B38: For PILs Calculation
B40: UCC | D40: =YEAR_SELECTED -> 2014 | E40: =IF((D40+1)<=2014,D40+1,"") -> 
D41: Forecasted | E41: Forecasted
B43: Opening UCC | D43: 0 | E43: =D51 -> 207.9086516
B44: Capital Additions | D44: =D24 -> 225.9876648 | E44: =E24 -> 0
B45: UCC Before Half Year Rule | D45: =SUM(D43:D44) -> 225.9876648 | E45: =SUM(E43:E44) -> 207.9086516
B46: Half Year Rule (1/2 Additions - Disposals) | D46: 0 | E46: =E44/2 -> 0
B47: Reduced UCC | D47: =D45-D46 -> 225.9876648 | E47: =E45-E46 -> 207.9086516
B48: CCA Rate Class | C48: ='Incremental Capital Summary'!M33 -> 47
B49: CCA Rate | C49: ='Incremental Capital Summary'!O33 -> 0.08
B50: CCA | D50: =D47*$C$49 -> 18.07901319 | E50: =E47*$C$49 -> 16.63269213
B51: Closing UCC | D51: =D45-D50 -> 207.9086516 | E51: =E45-E50 -> 191.2759595

Sheet Fixed Asset Amort and UCC 14
B10: Fixed Asset Amortization and UCC 14
B12: Name or General Description of Project
B13: =IF(ISBLANK('Incremental Capital Summary'!B14), "", 'Incremental Capital Summary'!B14) -> B21 Externally-Initiated Plant Relocations and Expansions
B15: Asset Component
B16: =IF(ISBLANK('Incremental Capital Summary'!C34),"",'Incremental Capital Summary'!C34) -> 1855_Services - OH
B19: Average Net Fixed Assets
D20: =YEAR_SELECTED -> 2014 | E20: =IF((D20+1)<=2014,D20+1,"") -> 
B21: Net Fixed Assets | D21: Forecasted | E21: Forecasted
B23: Opening Capital Investment | D23: 0 | E23: =D25 -> 1178.291949
B24: Capital Investment | D24: =IF(IRM_CYCLE_YEAR="4th Year of IRM Cycle", 'Incremental Capital Summary'!G34/2, 'Incremental Capital Summary'!G34) -> 1178.291949 | E24: 0
B25: Closing Capital Investment | D25: =SUM(D23:D24) -> 1178.291949 | E25: =SUM(E23:E24) -> 1178.291949
B27: Opening Accumulated Amortization | D27: 0 | E27: =D29 -> 23.56583899
B28: Amortization | C28: ='Incremental Capital Summary'!K34 -> 0.02 | D28: =D24*$C$28 -> 23.56583899 | E28: =E25*$C$28 -> 23.56583899
B29: Closing Accumulated Amortization | D29: =SUM(D27:D28) -> 23.56583899 | E29: =SUM(E27:E28) -> 47.13167798
B31: Opening Net Fixed Assets | D31: 0 | E31: =E23-E27 -> 1154.72611
B32: Closing Net Fixed Assets | D32: =D25-D29 -> 1154.72611 | E32: =E25-E29 -> 1131.160271
B33: Average Net Fixed Assets | D33: =SUM(D31:D32)/2 -> 577.3630552 | E33: =SUM(E31:E32)/2 -> 1142.943191
B38: For PILs Calculation
B40: UCC | D40: =YEAR_SELECTED -> 2014 | E40: =IF((D40+1)<=2014,D40+1,"") -> 
D41: Forecasted | E41: Forecasted
B43: Opening UCC | D43: 0 | E43: =D51 -> 1084.028594
B44: Capital Additions | D44: =D24 -> 1178.291949 | E44: =E24 -> 0
B45: UCC Before Half Year Rule | D45: =SUM(D43:D44) -> 1178.291949 | E45: =SUM(E43:E44) -> 1084.028594
B46: Half Year Rule (1/2 Additions - Disposals) | D46: 0 | E46: =E44/2 -> 0
B47: Reduced UCC | D47: =D45-D46 -> 1178.291949 | E47: =E45-E46 -> 1084.028594
B48: CCA Rate Class | C48: ='Incremental Capital Summary'!M34 -> 47
B49: CCA Rate | C49: ='Incremental Capital Summary'!O34 -> 0.08
B50: CCA | D50: =D47*$C$49 -> 94.26335596 | E50: =E47*$C$49 -> 86.72228748
B51: Closing UCC | D51: =D45-D50 -> 1084.028594 | E51: =E45-E50 -> 997.306306

Sheet Fixed Asset Amort and UCC 15 (hidden)
B10: Fixed Asset Amortization and UCC 15
B12: Name or General Description of Project
B13: =IF(ISBLANK('Incremental Capital Summary'!B14), "", 'Incremental Capital Summary'!B14) -> B21 Externally-Initiated Plant Relocations and Expansions
B15: Asset Component
B16: =IF(ISBLANK('Incremental Capital Summary'!C35),"",'Incremental Capital Summary'!C35) -> 
B19: Average Net Fixed Assets
D20: =YEAR_SELECTED -> 2014 | E20: =IF((D20+1)<=2014,D20+1,"") -> 
B21: Net Fixed Assets | D21: Forecasted | E21: Forecasted
B23: Opening Capital Investment | D23: 0 | E23: =D25 -> 0
B24: Capital Investment | D24: =IF(IRM_CYCLE_YEAR="4th Year of IRM Cycle", 'Incremental Capital Summary'!G35/2, 'Incremental Capital Summary'!G35) -> 0 | E24: 0
B25: Closing Capital Investment | D25: =SUM(D23:D24) -> 0 | E25: =SUM(E23:E24) -> 0
B27: Opening Accumulated Amortization | D27: 0 | E27: =D29 -> 0
B28: Amortization | C28: ='Incremental Capital Summary'!K35 -> 0 | D28: =D24*$C$28 -> 0 | E28: =E25*$C$28 -> 0
B29: Closing Accumulated Amortization | D29: =SUM(D27:D28) -> 0 | E29: =SUM(E27:E28) -> 0
B31: Opening Net Fixed Assets | D31: 0 | E31: =E23-E27 -> 0
B32: Closing Net Fixed Assets | D32: =D25-D29 -> 0 | E32: =E25-E29 -> 0
B33: Average Net Fixed Assets | D33: =SUM(D31:D32)/2 -> 0 | E33: =SUM(E31:E32)/2 -> 0
B38: For PILs Calculation
B40: UCC | D40: =YEAR_SELECTED -> 2014 | E40: =IF((D40+1)<=2014,D40+1,"") -> 
D41: Forecasted | E41: Forecasted
B43: Opening UCC | D43: 0 | E43: =D51 -> 0
B44: Capital Additions | D44: =D24 -> 0 | E44: =E24 -> 0
B45: UCC Before Half Year Rule | D45: =SUM(D43:D44) -> 0 | E45: =SUM(E43:E44) -> 0
B46: Half Year Rule (1/2 Additions - Disposals) | D46: 0 | E46: =E44/2 -> 0
B47: Reduced UCC | D47: =D45-D46 -> 0 | E47: =E45-E46 -> 0
B48: CCA Rate Class | C48: ='Incremental Capital Summary'!M35 -> 0
B49: CCA Rate | C49: ='Incremental Capital Summary'!O35 -> 0
B50: CCA | D50: =D47*$C$49 -> 0 | E50: =E47*$C$49 -> 0
B51: Closing UCC | D51: =D45-D50 -> 0 | E51: =E45-E50 -> 0

Sheet Fixed Asset Amort and UCC 16 (hidden)
B10: Fixed Asset Amortization and UCC 16
B12: Name or General Description of Project
B13: =IF(ISBLANK('Incremental Capital Summary'!B14), "", 'Incremental Capital Summary'!B14) -> B21 Externally-Initiated Plant Relocations and Expansions
B15: Asset Component
B16: =IF(ISBLANK('Incremental Capital Summary'!C36),"",'Incremental Capital Summary'!C36) -> 
B19: Average Net Fixed Assets
D20: =YEAR_SELECTED -> 2014 | E20: =IF((D20+1)<=2014,D20+1,"") -> 
B21: Net Fixed Assets | D21: Forecasted | E21: Forecasted
B23: Opening Capital Investment | D23: 0 | E23: =D25 -> 0
B24: Capital Investment | D24: =IF(IRM_CYCLE_YEAR="4th Year of IRM Cycle", 'Incremental Capital Summary'!G36/2, 'Incremental Capital Summary'!G36) -> 0 | E24: 0
B25: Closing Capital Investment | D25: =SUM(D23:D24) -> 0 | E25: =SUM(E23:E24) -> 0
B27: Opening Accumulated Amortization | D27: 0 | E27: =D29 -> 0
B28: Amortization | C28: ='Incremental Capital Summary'!K36 -> 0 | D28: =D24*$C$28 -> 0 | E28: =E25*$C$28 -> 0
B29: Closing Accumulated Amortization | D29: =SUM(D27:D28) -> 0 | E29: =SUM(E27:E28) -> 0
B31: Opening Net Fixed Assets | D31: 0 | E31: =E23-E27 -> 0
B32: Closing Net Fixed Assets | D32: =D25-D29 -> 0 | E32: =E25-E29 -> 0
B33: Average Net Fixed Assets | D33: =SUM(D31:D32)/2 -> 0 | E33: =SUM(E31:E32)/2 -> 0
B38: For PILs Calculation
B40: UCC | D40: =YEAR_SELECTED -> 2014 | E40: =IF((D40+1)<=2014,D40+1,"") -> 
D41: Forecasted | E41: Forecasted
B43: Opening UCC | D43: 0 | E43: =D51 -> 0
B44: Capital Additions | D44: =D24 -> 0 | E44: =E24 -> 0
B45: UCC Before Half Year Rule | D45: =SUM(D43:D44) -> 0 | E45: =SUM(E43:E44) -> 0
B46: Half Year Rule (1/2 Additions - Disposals) | D46: 0 | E46: =E44/2 -> 0
B47: Reduced UCC | D47: =D45-D46 -> 0 | E47: =E45-E46 -> 0
B48: CCA Rate Class | C48: ='Incremental Capital Summary'!M36 -> 0
B49: CCA Rate | C49: ='Incremental Capital Summary'!O36 -> 0
B50: CCA | D50: =D47*$C$49 -> 0 | E50: =E47*$C$49 -> 0
B51: Closing UCC | D51: =D45-D50 -> 0 | E51: =E45-E50 -> 0

Sheet Fixed Asset Amort and UCC 17 (hidden)
B10: Fixed Asset Amortization and UCC 17
B12: Name or General Description of Project
B13: =IF(ISBLANK('Incremental Capital Summary'!B14), "", 'Incremental Capital Summary'!B14) -> B21 Externally-Initiated Plant Relocations and Expansions
B15: Asset Component
B16: =IF(ISBLANK('Incremental Capital Summary'!C37),"",'Incremental Capital Summary'!C37) -> 
B19: Average Net Fixed Assets
D20: =YEAR_SELECTED -> 2014 | E20: =IF((D20+1)<=2014,D20+1,"") -> 
B21: Net Fixed Assets | D21: Forecasted | E21: Forecasted
B23: Opening Capital Investment | D23: 0 | E23: =D25 -> 0
B24: Capital Investment | D24: =IF(IRM_CYCLE_YEAR="4th Year of IRM Cycle", 'Incremental Capital Summary'!G37/2, 'Incremental Capital Summary'!G37) -> 0 | E24: 0
B25: Closing Capital Investment | D25: =SUM(D23:D24) -> 0 | E25: =SUM(E23:E24) -> 0
B27: Opening Accumulated Amortization | D27: 0 | E27: =D29 -> 0
B28: Amortization | C28: ='Incremental Capital Summary'!K37 -> 0 | D28: =D24*$C$28 -> 0 | E28: =E25*$C$28 -> 0
B29: Closing Accumulated Amortization | D29: =SUM(D27:D28) -> 0 | E29: =SUM(E27:E28) -> 0
B31: Opening Net Fixed Assets | D31: 0 | E31: =E23-E27 -> 0
B32: Closing Net Fixed Assets | D32: =D25-D29 -> 0 | E32: =E25-E29 -> 0
B33: Average Net Fixed Assets | D33: =SUM(D31:D32)/2 -> 0 | E33: =SUM(E31:E32)/2 -> 0
B38: For PILs Calculation
B40: UCC | D40: =YEAR_SELECTED -> 2014 | E40: =IF((D40+1)<=2014,D40+1,"") -> 
D41: Forecasted | E41: Forecasted
B43: Opening UCC | D43: 0 | E43: =D51 -> 0
B44: Capital Additions | D44: =D24 -> 0 | E44: =E24 -> 0
B45: UCC Before Half Year Rule | D45: =SUM(D43:D44) -> 0 | E45: =SUM(E43:E44) -> 0
B46: Half Year Rule (1/2 Additions - Disposals) | D46: 0 | E46: =E44/2 -> 0
B47: Reduced UCC | D47: =D45-D46 -> 0 | E47: =E45-E46 -> 0
B48: CCA Rate Class | C48: ='Incremental Capital Summary'!M37 -> 0
B49: CCA Rate | C49: ='Incremental Capital Summary'!O37 -> 0
B50: CCA | D50: =D47*$C$49 -> 0 | E50: =E47*$C$49 -> 0
B51: Closing UCC | D51: =D45-D50 -> 0 | E51: =E45-E50 -> 0

Sheet Fixed Asset Amort and UCC 18 (hidden)
B10: Fixed Asset Amortization and UCC 18
B12: Name or General Description of Project
B13: =IF(ISBLANK('Incremental Capital Summary'!B14), "", 'Incremental Capital Summary'!B14) -> B21 Externally-Initiated Plant Relocations and Expansions
B15: Asset Component
B16: =IF(ISBLANK('Incremental Capital Summary'!C38),"",'Incremental Capital Summary'!C38) -> 
B19: Average Net Fixed Assets
D20: =YEAR_SELECTED -> 2014 | E20: =IF((D20+1)<=2014,D20+1,"") -> 
B21: Net Fixed Assets | D21: Forecasted | E21: Forecasted
B23: Opening Capital Investment | D23: 0 | E23: =D25 -> 0
B24: Capital Investment | D24: =IF(IRM_CYCLE_YEAR="4th Year of IRM Cycle", 'Incremental Capital Summary'!G38/2, 'Incremental Capital Summary'!G38) -> 0 | E24: 0
B25: Closing Capital Investment | D25: =SUM(D23:D24) -> 0 | E25: =SUM(E23:E24) -> 0
B27: Opening Accumulated Amortization | D27: 0 | E27: =D29 -> 0
B28: Amortization | C28: ='Incremental Capital Summary'!K38 -> 0 | D28: =D24*$C$28 -> 0 | E28: =E25*$C$28 -> 0
B29: Closing Accumulated Amortization | D29: =SUM(D27:D28) -> 0 | E29: =SUM(E27:E28) -> 0
B31: Opening Net Fixed Assets | D31: 0 | E31: =E23-E27 -> 0
B32: Closing Net Fixed Assets | D32: =D25-D29 -> 0 | E32: =E25-E29 -> 0
B33: Average Net Fixed Assets | D33: =SUM(D31:D32)/2 -> 0 | E33: =SUM(E31:E32)/2 -> 0
B38: For PILs Calculation
B40: UCC | D40: =YEAR_SELECTED -> 2014 | E40: =IF((D40+1)<=2014,D40+1,"") -> 
D41: Forecasted | E41: Forecasted
B43: Opening UCC | D43: 0 | E43: =D51 -> 0
B44: Capital Additions | D44: =D24 -> 0 | E44: =E24 -> 0
B45: UCC Before Half Year Rule | D45: =SUM(D43:D44) -> 0 | E45: =SUM(E43:E44) -> 0
B46: Half Year Rule (1/2 Additions - Disposals) | D46: 0 | E46: =E44/2 -> 0
B47: Reduced UCC | D47: =D45-D46 -> 0 | E47: =E45-E46 -> 0
B48: CCA Rate Class | C48: ='Incremental Capital Summary'!M38 -> 0
B49: CCA Rate | C49: ='Incremental Capital Summary'!O38 -> 0
B50: CCA | D50: =D47*$C$49 -> 0 | E50: =E47*$C$49 -> 0
B51: Closing UCC | D51: =D45-D50 -> 0 | E51: =E45-E50 -> 0

Sheet Fixed Asset Amort and UCC 19 (hidden)
B10: Fixed Asset Amortization and UCC 19
B12: Name or General Description of Project
B13: =IF(ISBLANK('Incremental Capital Summary'!B14), "", 'Incremental Capital Summary'!B14) -> B21 Externally-Initiated Plant Relocations and Expansions
B15: Asset Component
B16: =IF(ISBLANK('Incremental Capital Summary'!C39),"",'Incremental Capital Summary'!C39) -> 
B19: Average Net Fixed Assets
D20: =YEAR_SELECTED -> 2014 | E20: =IF((D20+1)<=2014,D20+1,"") -> 
B21: Net Fixed Assets | D21: Forecasted | E21: Forecasted
B23: Opening Capital Investment | D23: 0 | E23: =D25 -> 0
B24: Capital Investment | D24: =IF(IRM_CYCLE_YEAR="4th Year of IRM Cycle", 'Incremental Capital Summary'!G39/2, 'Incremental Capital Summary'!G39) -> 0 | E24: 0
B25: Closing Capital Investment | D25: =SUM(D23:D24) -> 0 | E25: =SUM(E23:E24) -> 0
B27: Opening Accumulated Amortization | D27: 0 | E27: =D29 -> 0
B28: Amortization | C28: ='Incremental Capital Summary'!K39 -> 0 | D28: =D24*$C$28 -> 0 | E28: =E25*$C$28 -> 0
B29: Closing Accumulated Amortization | D29: =SUM(D27:D28) -> 0 | E29: =SUM(E27:E28) -> 0
B31: Opening Net Fixed Assets | D31: 0 | E31: =E23-E27 -> 0
B32: Closing Net Fixed Assets | D32: =D25-D29 -> 0 | E32: =E25-E29 -> 0
B33: Average Net Fixed Assets | D33: =SUM(D31:D32)/2 -> 0 | E33: =SUM(E31:E32)/2 -> 0
B38: For PILs Calculation
B40: UCC | D40: =YEAR_SELECTED -> 2014 | E40: =IF((D40+1)<=2014,D40+1,"") -> 
D41: Forecasted | E41: Forecasted
B43: Opening UCC | D43: 0 | E43: =D51 -> 0
B44: Capital Additions | D44: =D24 -> 0 | E44: =E24 -> 0
B45: UCC Before Half Year Rule | D45: =SUM(D43:D44) -> 0 | E45: =SUM(E43:E44) -> 0
B46: Half Year Rule (1/2 Additions - Disposals) | D46: 0 | E46: =E44/2 -> 0
B47: Reduced UCC | D47: =D45-D46 -> 0 | E47: =E45-E46 -> 0
B48: CCA Rate Class | C48: ='Incremental Capital Summary'!M39 -> 0
B49: CCA Rate | C49: ='Incremental Capital Summary'!O39 -> 0
B50: CCA | D50: =D47*$C$49 -> 0 | E50: =E47*$C$49 -> 0
B51: Closing UCC | D51: =D45-D50 -> 0 | E51: =E45-E50 -> 0

Sheet Fixed Asset Amort and UCC 20 (hidden)
B10: Fixed Asset Amortization and UCC 20
B12: Name or General Description of Project
B13: =IF(ISBLANK('Incremental Capital Summary'!B14), "", 'Incremental Capital Summary'!B14) -> B21 Externally-Initiated Plant Relocations and Expansions
B15: Asset Component
B16: =IF(ISBLANK('Incremental Capital Summary'!C40),"",'Incremental Capital Summary'!C40) -> 
B19: Average Net Fixed Assets
D20: =YEAR_SELECTED -> 2014 | E20: =IF((D20+1)<=2014,D20+1,"") -> 
B21: Net Fixed Assets | D21: Forecasted | E21: Forecasted
B23: Opening Capital Investment | D23: 0 | E23: =D25 -> 0
B24: Capital Investment | D24: =IF(IRM_CYCLE_YEAR="4th Year of IRM Cycle", 'Incremental Capital Summary'!G40/2, 'Incremental Capital Summary'!G40) -> 0 | E24: 0
B25: Closing Capital Investment | D25: =SUM(D23:D24) -> 0 | E25: =SUM(E23:E24) -> 0
B27: Opening Accumulated Amortization | D27: 0 | E27: =D29 -> 0
B28: Amortization | C28: ='Incremental Capital Summary'!K40 -> 0 | D28: =D24*$C$28 -> 0 | E28: =E25*$C$28 -> 0
B29: Closing Accumulated Amortization | D29: =SUM(D27:D28) -> 0 | E29: =SUM(E27:E28) -> 0
B31: Opening Net Fixed Assets | D31: 0 | E31: =E23-E27 -> 0
B32: Closing Net Fixed Assets | D32: =D25-D29 -> 0 | E32: =E25-E29 -> 0
B33: Average Net Fixed Assets | D33: =SUM(D31:D32)/2 -> 0 | E33: =SUM(E31:E32)/2 -> 0
B38: For PILs Calculation
B40: UCC | D40: =YEAR_SELECTED -> 2014 | E40: =IF((D40+1)<=2014,D40+1,"") -> 
D41: Forecasted | E41: Forecasted
B43: Opening UCC | D43: 0 | E43: =D51 -> 0
B44: Capital Additions | D44: =D24 -> 0 | E44: =E24 -> 0
B45: UCC Before Half Year Rule | D45: =SUM(D43:D44) -> 0 | E45: =SUM(E43:E44) -> 0
B46: Half Year Rule (1/2 Additions - Disposals) | D46: 0 | E46: =E44/2 -> 0
B47: Reduced UCC | D47: =D45-D46 -> 0 | E47: =E45-E46 -> 0
B48: CCA Rate Class | C48: ='Incremental Capital Summary'!M40 -> 0
B49: CCA Rate | C49: ='Incremental Capital Summary'!O40 -> 0
B50: CCA | D50: =D47*$C$49 -> 0 | E50: =E47*$C$49 -> 0
B51: Closing UCC | D51: =D45-D50 -> 0 | E51: =E45-E50 -> 0

Sheet Fixed Asset Amort and UCC 21 (hidden)
B10: Fixed Asset Amortization and UCC 21
B12: Name or General Description of Project
B13: =IF(ISBLANK('Incremental Capital Summary'!B14), "", 'Incremental Capital Summary'!B14) -> B21 Externally-Initiated Plant Relocations and Expansions
B15: Asset Component
B16: =IF(ISBLANK('Incremental Capital Summary'!C41),"",'Incremental Capital Summary'!C41) -> 
B19: Average Net Fixed Assets
D20: =YEAR_SELECTED -> 2014 | E20: =IF((D20+1)<=2014,D20+1,"") -> 
B21: Net Fixed Assets | D21: Forecasted | E21: Forecasted
B23: Opening Capital Investment | D23: 0 | E23: =D25 -> 0
B24: Capital Investment | D24: =IF(IRM_CYCLE_YEAR="4th Year of IRM Cycle", 'Incremental Capital Summary'!G41/2, 'Incremental Capital Summary'!G41) -> 0 | E24: 0
B25: Closing Capital Investment | D25: =SUM(D23:D24) -> 0 | E25: =SUM(E23:E24) -> 0
B27: Opening Accumulated Amortization | D27: 0 | E27: =D29 -> 0
B28: Amortization | C28: ='Incremental Capital Summary'!K41 -> 0 | D28: =D24*$C$28 -> 0 | E28: =E25*$C$28 -> 0
B29: Closing Accumulated Amortization | D29: =SUM(D27:D28) -> 0 | E29: =SUM(E27:E28) -> 0
B31: Opening Net Fixed Assets | D31: 0 | E31: =E23-E27 -> 0
B32: Closing Net Fixed Assets | D32: =D25-D29 -> 0 | E32: =E25-E29 -> 0
B33: Average Net Fixed Assets | D33: =SUM(D31:D32)/2 -> 0 | E33: =SUM(E31:E32)/2 -> 0
B38: For PILs Calculation
B40: UCC | D40: =YEAR_SELECTED -> 2014 | E40: =IF((D40+1)<=2014,D40+1,"") -> 
D41: Forecasted | E41: Forecasted
B43: Opening UCC | D43: 0 | E43: =D51 -> 0
B44: Capital Additions | D44: =D24 -> 0 | E44: =E24 -> 0
B45: UCC Before Half Year Rule | D45: =SUM(D43:D44) -> 0 | E45: =SUM(E43:E44) -> 0
B46: Half Year Rule (1/2 Additions - Disposals) | D46: 0 | E46: =E44/2 -> 0
B47: Reduced UCC | D47: =D45-D46 -> 0 | E47: =E45-E46 -> 0
B48: CCA Rate Class | C48: ='Incremental Capital Summary'!M41 -> 0
B49: CCA Rate | C49: ='Incremental Capital Summary'!O41 -> 0
B50: CCA | D50: =D47*$C$49 -> 0 | E50: =E47*$C$49 -> 0
B51: Closing UCC | D51: =D45-D50 -> 0 | E51: =E45-E50 -> 0

Sheet Fixed Asset Amort and UCC 22 (hidden)
B10: Fixed Asset Amortization and UCC 22
B12: Name or General Description of Project
B13: =IF(ISBLANK('Incremental Capital Summary'!B14), "", 'Incremental Capital Summary'!B14) -> B21 Externally-Initiated Plant Relocations and Expansions
B15: Asset Component
B16: =IF(ISBLANK('Incremental Capital Summary'!C42),"",'Incremental Capital Summary'!C42) -> 
B19: Average Net Fixed Assets
D20: =YEAR_SELECTED -> 2014 | E20: =IF((D20+1)<=2014,D20+1,"") -> 
B21: Net Fixed Assets | D21: Forecasted | E21: Forecasted
B23: Opening Capital Investment | D23: 0 | E23: =D25 -> 0
B24: Capital Investment | D24: =IF(IRM_CYCLE_YEAR="4th Year of IRM Cycle", 'Incremental Capital Summary'!G42/2, 'Incremental Capital Summary'!G42) -> 0 | E24: 0
B25: Closing Capital Investment | D25: =SUM(D23:D24) -> 0 | E25: =SUM(E23:E24) -> 0
B27: Opening Accumulated Amortization | D27: 0 | E27: =D29 -> 0
B28: Amortization | C28: ='Incremental Capital Summary'!K42 -> 0 | D28: =D24*$C$28 -> 0 | E28: =E25*$C$28 -> 0
B29: Closing Accumulated Amortization | D29: =SUM(D27:D28) -> 0 | E29: =SUM(E27:E28) -> 0
B31: Opening Net Fixed Assets | D31: 0 | E31: =E23-E27 -> 0
B32: Closing Net Fixed Assets | D32: =D25-D29 -> 0 | E32: =E25-E29 -> 0
B33: Average Net Fixed Assets | D33: =SUM(D31:D32)/2 -> 0 | E33: =SUM(E31:E32)/2 -> 0
B38: For PILs Calculation
B40: UCC | D40: =YEAR_SELECTED -> 2014 | E40: =IF((D40+1)<=2014,D40+1,"") -> 
D41: Forecasted | E41: Forecasted
B43: Opening UCC | D43: 0 | E43: =D51 -> 0
B44: Capital Additions | D44: =D24 -> 0 | E44: =E24 -> 0
B45: UCC Before Half Year Rule | D45: =SUM(D43:D44) -> 0 | E45: =SUM(E43:E44) -> 0
B46: Half Year Rule (1/2 Additions - Disposals) | D46: 0 | E46: =E44/2 -> 0
B47: Reduced UCC | D47: =D45-D46 -> 0 | E47: =E45-E46 -> 0
B48: CCA Rate Class | C48: ='Incremental Capital Summary'!M42 -> 0
B49: CCA Rate | C49: ='Incremental Capital Summary'!O42 -> 0
B50: CCA | D50: =D47*$C$49 -> 0 | E50: =E47*$C$49 -> 0
B51: Closing UCC | D51: =D45-D50 -> 0 | E51: =E45-E50 -> 0

Sheet Fixed Asset Amort and UCC 23 (hidden)
B10: Fixed Asset Amortization and UCC 23
B12: Name or General Description of Project
B13: =IF(ISBLANK('Incremental Capital Summary'!B14), "", 'Incremental Capital Summary'!B14) -> B21 Externally-Initiated Plant Relocations and Expansions
B15: Asset Component
B16: =IF(ISBLANK('Incremental Capital Summary'!C43),"",'Incremental Capital Summary'!C43) -> 
B19: Average Net Fixed Assets
D20: =YEAR_SELECTED -> 2014 | E20: =IF((D20+1)<=2014,D20+1,"") -> 
B21: Net Fixed Assets | D21: Forecasted | E21: Forecasted
B23: Opening Capital Investment | D23: 0 | E23: =D25 -> 0
B24: Capital Investment | D24: =IF(IRM_CYCLE_YEAR="4th Year of IRM Cycle", 'Incremental Capital Summary'!G43/2, 'Incremental Capital Summary'!G43) -> 0 | E24: 0
B25: Closing Capital Investment | D25: =SUM(D23:D24) -> 0 | E25: =SUM(E23:E24) -> 0
B27: Opening Accumulated Amortization | D27: 0 | E27: =D29 -> 0
B28: Amortization | C28: ='Incremental Capital Summary'!K43 -> 0 | D28: =D24*$C$28 -> 0 | E28: =E25*$C$28 -> 0
B29: Closing Accumulated Amortization | D29: =SUM(D27:D28) -> 0 | E29: =SUM(E27:E28) -> 0
B31: Opening Net Fixed Assets | D31: 0 | E31: =E23-E27 -> 0
B32: Closing Net Fixed Assets | D32: =D25-D29 -> 0 | E32: =E25-E29 -> 0
B33: Average Net Fixed Assets | D33: =SUM(D31:D32)/2 -> 0 | E33: =SUM(E31:E32)/2 -> 0
B38: For PILs Calculation
B40: UCC | D40: =YEAR_SELECTED -> 2014 | E40: =IF((D40+1)<=2014,D40+1,"") -> 
D41: Forecasted | E41: Forecasted
B43: Opening UCC | D43: 0 | E43: =D51 -> 0
B44: Capital Additions | D44: =D24 -> 0 | E44: =E24 -> 0
B45: UCC Before Half Year Rule | D45: =SUM(D43:D44) -> 0 | E45: =SUM(E43:E44) -> 0
B46: Half Year Rule (1/2 Additions - Disposals) | D46: 0 | E46: =E44/2 -> 0
B47: Reduced UCC | D47: =D45-D46 -> 0 | E47: =E45-E46 -> 0
B48: CCA Rate Class | C48: ='Incremental Capital Summary'!M43 -> 0
B49: CCA Rate | C49: ='Incremental Capital Summary'!O43 -> 0
B50: CCA | D50: =D47*$C$49 -> 0 | E50: =E47*$C$49 -> 0
B51: Closing UCC | D51: =D45-D50 -> 0 | E51: =E45-E50 -> 0

Sheet Fixed Asset Amort and UCC 24 (hidden)
B10: Fixed Asset Amortization and UCC 24
B12: Name or General Description of Project
B13: =IF(ISBLANK('Incremental Capital Summary'!B14), "", 'Incremental Capital Summary'!B14) -> B21 Externally-Initiated Plant Relocations and Expansions
B15: Asset Component
B16: =IF(ISBLANK('Incremental Capital Summary'!C44),"",'Incremental Capital Summary'!C44) -> 
B19: Average Net Fixed Assets
D20: =YEAR_SELECTED -> 2014 | E20: =IF((D20+1)<=2014,D20+1,"") -> 
B21: Net Fixed Assets | D21: Forecasted | E21: Forecasted
B23: Opening Capital Investment | D23: 0 | E23: =D25 -> 0
B24: Capital Investment | D24: =IF(IRM_CYCLE_YEAR="4th Year of IRM Cycle", 'Incremental Capital Summary'!G44/2, 'Incremental Capital Summary'!G44) -> 0 | E24: 0
B25: Closing Capital Investment | D25: =SUM(D23:D24) -> 0 | E25: =SUM(E23:E24) -> 0
B27: Opening Accumulated Amortization | D27: 0 | E27: =D29 -> 0
B28: Amortization | C28: ='Incremental Capital Summary'!K44 -> 0 | D28: =D24*$C$28 -> 0 | E28: =E25*$C$28 -> 0
B29: Closing Accumulated Amortization | D29: =SUM(D27:D28) -> 0 | E29: =SUM(E27:E28) -> 0
B31: Opening Net Fixed Assets | D31: 0 | E31: =E23-E27 -> 0
B32: Closing Net Fixed Assets | D32: =D25-D29 -> 0 | E32: =E25-E29 -> 0
B33: Average Net Fixed Assets | D33: =SUM(D31:D32)/2 -> 0 | E33: =SUM(E31:E32)/2 -> 0
B38: For PILs Calculation
B40: UCC | D40: =YEAR_SELECTED -> 2014 | E40: =IF((D40+1)<=2014,D40+1,"") -> 
D41: Forecasted | E41: Forecasted
B43: Opening UCC | D43: 0 | E43: =D51 -> 0
B44: Capital Additions | D44: =D24 -> 0 | E44: =E24 -> 0
B45: UCC Before Half Year Rule | D45: =SUM(D43:D44) -> 0 | E45: =SUM(E43:E44) -> 0
B46: Half Year Rule (1/2 Additions - Disposals) | D46: 0 | E46: =E44/2 -> 0
B47: Reduced UCC | D47: =D45-D46 -> 0 | E47: =E45-E46 -> 0
B48: CCA Rate Class | C48: ='Incremental Capital Summary'!M44 -> 0
B49: CCA Rate | C49: ='Incremental Capital Summary'!O44 -> 0
B50: CCA | D50: =D47*$C$49 -> 0 | E50: =E47*$C$49 -> 0
B51: Closing UCC | D51: =D45-D50 -> 0 | E51: =E45-E50 -> 0

Sheet Fixed Asset Amort and UCC 25 (hidden)
B10: Fixed Asset Amortization and UCC 25
B12: Name or General Description of Project
B13: =IF(ISBLANK('Incremental Capital Summary'!B14), "", 'Incremental Capital Summary'!B14) -> B21 Externally-Initiated Plant Relocations and Expansions
B15: Asset Component
B16: =IF(ISBLANK('Incremental Capital Summary'!C45),"",'Incremental Capital Summary'!C45) -> 
B19: Average Net Fixed Assets
D20: =YEAR_SELECTED -> 2014 | E20: =IF((D20+1)<=2014,D20+1,"") -> 
B21: Net Fixed Assets | D21: Forecasted | E21: Forecasted
B23: Opening Capital Investment | D23: 0 | E23: =D25 -> 0
B24: Capital Investment | D24: =IF(IRM_CYCLE_YEAR="4th Year of IRM Cycle", 'Incremental Capital Summary'!G45/2, 'Incremental Capital Summary'!G45) -> 0 | E24: 0
B25: Closing Capital Investment | D25: =SUM(D23:D24) -> 0 | E25: =SUM(E23:E24) -> 0
B27: Opening Accumulated Amortization | D27: 0 | E27: =D29 -> 0
B28: Amortization | C28: ='Incremental Capital Summary'!K45 -> 0 | D28: =D24*$C$28 -> 0 | E28: =E25*$C$28 -> 0
B29: Closing Accumulated Amortization | D29: =SUM(D27:D28) -> 0 | E29: =SUM(E27:E28) -> 0
B31: Opening Net Fixed Assets | D31: 0 | E31: =E23-E27 -> 0
B32: Closing Net Fixed Assets | D32: =D25-D29 -> 0 | E32: =E25-E29 -> 0
B33: Average Net Fixed Assets | D33: =SUM(D31:D32)/2 -> 0 | E33: =SUM(E31:E32)/2 -> 0
B38: For PILs Calculation
B40: UCC | D40: =YEAR_SELECTED -> 2014 | E40: =IF((D40+1)<=2014,D40+1,"") -> 
D41: Forecasted | E41: Forecasted
B43: Opening UCC | D43: 0 | E43: =D51 -> 0
B44: Capital Additions | D44: =D24 -> 0 | E44: =E24 -> 0
B45: UCC Before Half Year Rule | D45: =SUM(D43:D44) -> 0 | E45: =SUM(E43:E44) -> 0
B46: Half Year Rule (1/2 Additions - Disposals) | D46: 0 | E46: =E44/2 -> 0
B47: Reduced UCC | D47: =D45-D46 -> 0 | E47: =E45-E46 -> 0
B48: CCA Rate Class | C48: ='Incremental Capital Summary'!M45 -> 0
B49: CCA Rate | C49: ='Incremental Capital Summary'!O45 -> 0
B50: CCA | D50: =D47*$C$49 -> 0 | E50: =E47*$C$49 -> 0
B51: Closing UCC | D51: =D45-D50 -> 0 | E51: =E45-E50 -> 0

Sheet Fixed Asset Amort and UCC 26 (hidden)
B10: Fixed Asset Amortization and UCC 26
B12: Name or General Description of Project
B13: =IF(ISBLANK('Incremental Capital Summary'!B14), "", 'Incremental Capital Summary'!B14) -> B21 Externally-Initiated Plant Relocations and Expansions
B15: Asset Component
B16: =IF(ISBLANK('Incremental Capital Summary'!C46),"",'Incremental Capital Summary'!C46) -> 
B19: Average Net Fixed Assets
D20: =YEAR_SELECTED -> 2014 | E20: =IF((D20+1)<=2014,D20+1,"") -> 
B21: Net Fixed Assets | D21: Forecasted | E21: Forecasted
B23: Opening Capital Investment | D23: 0 | E23: =D25 -> 0
B24: Capital Investment | D24: =IF(IRM_CYCLE_YEAR="4th Year of IRM Cycle", 'Incremental Capital Summary'!G46/2, 'Incremental Capital Summary'!G46) -> 0 | E24: 0
B25: Closing Capital Investment | D25: =SUM(D23:D24) -> 0 | E25: =SUM(E23:E24) -> 0
B27: Opening Accumulated Amortization | D27: 0 | E27: =D29 -> 0
B28: Amortization | C28: ='Incremental Capital Summary'!K46 -> 0 | D28: =D24*$C$28 -> 0 | E28: =E25*$C$28 -> 0
B29: Closing Accumulated Amortization | D29: =SUM(D27:D28) -> 0 | E29: =SUM(E27:E28) -> 0
B31: Opening Net Fixed Assets | D31: 0 | E31: =E23-E27 -> 0
B32: Closing Net Fixed Assets | D32: =D25-D29 -> 0 | E32: =E25-E29 -> 0
B33: Average Net Fixed Assets | D33: =SUM(D31:D32)/2 -> 0 | E33: =SUM(E31:E32)/2 -> 0
B38: For PILs Calculation
B40: UCC | D40: =YEAR_SELECTED -> 2014 | E40: =IF((D40+1)<=2014,D40+1,"") -> 
D41: Forecasted | E41: Forecasted
B43: Opening UCC | D43: 0 | E43: =D51 -> 0
B44: Capital Additions | D44: =D24 -> 0 | E44: =E24 -> 0
B45: UCC Before Half Year Rule | D45: =SUM(D43:D44) -> 0 | E45: =SUM(E43:E44) -> 0
B46: Half Year Rule (1/2 Additions - Disposals) | D46: 0 | E46: =E44/2 -> 0
B47: Reduced UCC | D47: =D45-D46 -> 0 | E47: =E45-E46 -> 0
B48: CCA Rate Class | C48: ='Incremental Capital Summary'!M46 -> 0
B49: CCA Rate | C49: ='Incremental Capital Summary'!O46 -> 0
B50: CCA | D50: =D47*$C$49 -> 0 | E50: =E47*$C$49 -> 0
B51: Closing UCC | D51: =D45-D50 -> 0 | E51: =E45-E50 -> 0

Sheet Fixed Asset Amort and UCC 27 (hidden)
B10: Fixed Asset Amortization and UCC 27
B12: Name or General Description of Project
B13: =IF(ISBLANK('Incremental Capital Summary'!B14), "", 'Incremental Capital Summary'!B14) -> B21 Externally-Initiated Plant Relocations and Expansions
B15: Asset Component
B16: =IF(ISBLANK('Incremental Capital Summary'!C47),"",'Incremental Capital Summary'!C47) -> 
B19: Average Net Fixed Assets
D20: =YEAR_SELECTED -> 2014 | E20: =IF((D20+1)<=2014,D20+1,"") -> 
B21: Net Fixed Assets | D21: Forecasted | E21: Forecasted
B23: Opening Capital Investment | D23: 0 | E23: =D25 -> 0
B24: Capital Investment | D24: =IF(IRM_CYCLE_YEAR="4th Year of IRM Cycle", 'Incremental Capital Summary'!G47/2, 'Incremental Capital Summary'!G47) -> 0 | E24: 0
B25: Closing Capital Investment | D25: =SUM(D23:D24) -> 0 | E25: =SUM(E23:E24) -> 0
B27: Opening Accumulated Amortization | D27: 0 | E27: =D29 -> 0
B28: Amortization | C28: ='Incremental Capital Summary'!K47 -> 0 | D28: =D24*$C$28 -> 0 | E28: =E25*$C$28 -> 0
B29: Closing Accumulated Amortization | D29: =SUM(D27:D28) -> 0 | E29: =SUM(E27:E28) -> 0
B31: Opening Net Fixed Assets | D31: 0 | E31: =E23-E27 -> 0
B32: Closing Net Fixed Assets | D32: =D25-D29 -> 0 | E32: =E25-E29 -> 0
B33: Average Net Fixed Assets | D33: =SUM(D31:D32)/2 -> 0 | E33: =SUM(E31:E32)/2 -> 0
B38: For PILs Calculation
B40: UCC | D40: =YEAR_SELECTED -> 2014 | E40: =IF((D40+1)<=2014,D40+1,"") -> 
D41: Forecasted | E41: Forecasted
B43: Opening UCC | D43: 0 | E43: =D51 -> 0
B44: Capital Additions | D44: =D24 -> 0 | E44: =E24 -> 0
B45: UCC Before Half Year Rule | D45: =SUM(D43:D44) -> 0 | E45: =SUM(E43:E44) -> 0
B46: Half Year Rule (1/2 Additions - Disposals) | D46: 0 | E46: =E44/2 -> 0
B47: Reduced UCC | D47: =D45-D46 -> 0 | E47: =E45-E46 -> 0
B48: CCA Rate Class | C48: ='Incremental Capital Summary'!M47 -> 0
B49: CCA Rate | C49: ='Incremental Capital Summary'!O47 -> 0
B50: CCA | D50: =D47*$C$49 -> 0 | E50: =E47*$C$49 -> 0
B51: Closing UCC | D51: =D45-D50 -> 0 | E51: =E45-E50 -> 0

Sheet Fixed Asset Amort and UCC 28 (hidden)
B10: Fixed Asset Amortization and UCC 28
B12: Name or General Description of Project
B13: =IF(ISBLANK('Incremental Capital Summary'!B14), "", 'Incremental Capital Summary'!B14) -> B21 Externally-Initiated Plant Relocations and Expansions
B15: Asset Component
B16: =IF(ISBLANK('Incremental Capital Summary'!C48),"",'Incremental Capital Summary'!C48) -> 
B19: Average Net Fixed Assets
D20: =YEAR_SELECTED -> 2014 | E20: =IF((D20+1)<=2014,D20+1,"") -> 
B21: Net Fixed Assets | D21: Forecasted | E21: Forecasted
B23: Opening Capital Investment | D23: 0 | E23: =D25 -> 0
B24: Capital Investment | D24: =IF(IRM_CYCLE_YEAR="4th Year of IRM Cycle", 'Incremental Capital Summary'!G48/2, 'Incremental Capital Summary'!G48) -> 0 | E24: 0
B25: Closing Capital Investment | D25: =SUM(D23:D24) -> 0 | E25: =SUM(E23:E24) -> 0
B27: Opening Accumulated Amortization | D27: 0 | E27: =D29 -> 0
B28: Amortization | C28: ='Incremental Capital Summary'!K48 -> 0 | D28: =D24*$C$28 -> 0 | E28: =E25*$C$28 -> 0
B29: Closing Accumulated Amortization | D29: =SUM(D27:D28) -> 0 | E29: =SUM(E27:E28) -> 0
B31: Opening Net Fixed Assets | D31: 0 | E31: =E23-E27 -> 0
B32: Closing Net Fixed Assets | D32: =D25-D29 -> 0 | E32: =E25-E29 -> 0
B33: Average Net Fixed Assets | D33: =SUM(D31:D32)/2 -> 0 | E33: =SUM(E31:E32)/2 -> 0
B38: For PILs Calculation
B40: UCC | D40: =YEAR_SELECTED -> 2014 | E40: =IF((D40+1)<=2014,D40+1,"") -> 
D41: Forecasted | E41: Forecasted
B43: Opening UCC | D43: 0 | E43: =D51 -> 0
B44: Capital Additions | D44: =D24 -> 0 | E44: =E24 -> 0
B45: UCC Before Half Year Rule | D45: =SUM(D43:D44) -> 0 | E45: =SUM(E43:E44) -> 0
B46: Half Year Rule (1/2 Additions - Disposals) | D46: 0 | E46: =E44/2 -> 0
B47: Reduced UCC | D47: =D45-D46 -> 0 | E47: =E45-E46 -> 0
B48: CCA Rate Class | C48: ='Incremental Capital Summary'!M48 -> 0
B49: CCA Rate | C49: ='Incremental Capital Summary'!O48 -> 0
B50: CCA | D50: =D47*$C$49 -> 0 | E50: =E47*$C$49 -> 0
B51: Closing UCC | D51: =D45-D50 -> 0 | E51: =E45-E50 -> 0

Sheet Fixed Asset Amort and UCC 29 (hidden)
B10: Fixed Asset Amortization and UCC 29
B12: Name or General Description of Project
B13: =IF(ISBLANK('Incremental Capital Summary'!B14), "", 'Incremental Capital Summary'!B14) -> B21 Externally-Initiated Plant Relocations and Expansions
B15: Asset Component
B16: =IF(ISBLANK('Incremental Capital Summary'!C49),"",'Incremental Capital Summary'!C49) -> 
B19: Average Net Fixed Assets
D20: =YEAR_SELECTED -> 2014 | E20: =IF((D20+1)<=2014,D20+1,"") -> 
B21: Net Fixed Assets | D21: Forecasted | E21: Forecasted
B23: Opening Capital Investment | D23: 0 | E23: =D25 -> 0
B24: Capital Investment | D24: =IF(IRM_CYCLE_YEAR="4th Year of IRM Cycle", 'Incremental Capital Summary'!G49/2, 'Incremental Capital Summary'!G49) -> 0 | E24: 0
B25: Closing Capital Investment | D25: =SUM(D23:D24) -> 0 | E25: =SUM(E23:E24) -> 0
B27: Opening Accumulated Amortization | D27: 0 | E27: =D29 -> 0
B28: Amortization | C28: ='Incremental Capital Summary'!K49 -> 0 | D28: =D24*$C$28 -> 0 | E28: =E25*$C$28 -> 0
B29: Closing Accumulated Amortization | D29: =SUM(D27:D28) -> 0 | E29: =SUM(E27:E28) -> 0
B31: Opening Net Fixed Assets | D31: 0 | E31: =E23-E27 -> 0
B32: Closing Net Fixed Assets | D32: =D25-D29 -> 0 | E32: =E25-E29 -> 0
B33: Average Net Fixed Assets | D33: =SUM(D31:D32)/2 -> 0 | E33: =SUM(E31:E32)/2 -> 0
B38: For PILs Calculation
B40: UCC | D40: =YEAR_SELECTED -> 2014 | E40: =IF((D40+1)<=2014,D40+1,"") -> 
D41: Forecasted | E41: Forecasted
B43: Opening UCC | D43: 0 | E43: =D51 -> 0
B44: Capital Additions | D44: =D24 -> 0 | E44: =E24 -> 0
B45: UCC Before Half Year Rule | D45: =SUM(D43:D44) -> 0 | E45: =SUM(E43:E44) -> 0
B46: Half Year Rule (1/2 Additions - Disposals) | D46: 0 | E46: =E44/2 -> 0
B47: Reduced UCC | D47: =D45-D46 -> 0 | E47: =E45-E46 -> 0
B48: CCA Rate Class | C48: ='Incremental Capital Summary'!M49 -> 0
B49: CCA Rate | C49: ='Incremental Capital Summary'!O49 -> 0
B50: CCA | D50: =D47*$C$49 -> 0 | E50: =E47*$C$49 -> 0
B51: Closing UCC | D51: =D45-D50 -> 0 | E51: =E45-E50 -> 0

Sheet Fixed Asset Amort and UCC 30 (hidden)
B10: Fixed Asset Amortization and UCC 30
B12: Name or General Description of Project
B13: =IF(ISBLANK('Incremental Capital Summary'!B14), "", 'Incremental Capital Summary'!B14) -> B21 Externally-Initiated Plant Relocations and Expansions
B15: Asset Component
B16: =IF(ISBLANK('Incremental Capital Summary'!C50),"",'Incremental Capital Summary'!C50) -> 
B19: Average Net Fixed Assets
D20: =YEAR_SELECTED -> 2014 | E20: =IF((D20+1)<=2014,D20+1,"") -> 
B21: Net Fixed Assets | D21: Forecasted | E21: Forecasted
B23: Opening Capital Investment | D23: 0 | E23: =D25 -> 0
B24: Capital Investment | D24: =IF(IRM_CYCLE_YEAR="4th Year of IRM Cycle", 'Incremental Capital Summary'!G50/2, 'Incremental Capital Summary'!G50) -> 0 | E24: 0
B25: Closing Capital Investment | D25: =SUM(D23:D24) -> 0 | E25: =SUM(E23:E24) -> 0
B27: Opening Accumulated Amortization | D27: 0 | E27: =D29 -> 0
B28: Amortization | C28: ='Incremental Capital Summary'!K50 -> 0 | D28: =D24*$C$28 -> 0 | E28: =E25*$C$28 -> 0
B29: Closing Accumulated Amortization | D29: =SUM(D27:D28) -> 0 | E29: =SUM(E27:E28) -> 0
B31: Opening Net Fixed Assets | D31: 0 | E31: =E23-E27 -> 0
B32: Closing Net Fixed Assets | D32: =D25-D29 -> 0 | E32: =E25-E29 -> 0
B33: Average Net Fixed Assets | D33: =SUM(D31:D32)/2 -> 0 | E33: =SUM(E31:E32)/2 -> 0
B38: For PILs Calculation
B40: UCC | D40: =YEAR_SELECTED -> 2014 | E40: =IF((D40+1)<=2014,D40+1,"") -> 
D41: Forecasted | E41: Forecasted
B43: Opening UCC | D43: 0 | E43: =D51 -> 0
B44: Capital Additions | D44: =D24 -> 0 | E44: =E24 -> 0
B45: UCC Before Half Year Rule | D45: =SUM(D43:D44) -> 0 | E45: =SUM(E43:E44) -> 0
B46: Half Year Rule (1/2 Additions - Disposals) | D46: 0 | E46: =E44/2 -> 0
B47: Reduced UCC | D47: =D45-D46 -> 0 | E47: =E45-E46 -> 0
B48: CCA Rate Class | C48: ='Incremental Capital Summary'!M50 -> 0
B49: CCA Rate | C49: ='Incremental Capital Summary'!O50 -> 0
B50: CCA | D50: =D47*$C$49 -> 0 | E50: =E47*$C$49 -> 0
B51: Closing UCC | D51: =D45-D50 -> 0 | E51: =E45-E50 -> 0

Sheet LOOKUPS_&_DATA==>> (hidden)

Sheet DATA_PIVOT (hidden)
A1: Include | B1: Y | F1: Include | G1: Y | K1: Include | L1: Y
A3: Sum of FY12 ISA in FY14 | B3: Total | F3: Sum of FY13 ISA in FY14 | G3: Total | K3: Sum of Total FY14 ISA
A4: Total | B4: 8500000 | F4: Total | G4: 211704688.6 | K4: ICM FILING SEGMENT | L4: ASSET TITLE | M4: Total
K5: B1 Underground Infrastructure | L5: 1830_Poles Towers and Fixtures | M5: 157364.8316
L6: 1835_Overhead Conductors and Devices | M6: 152221.8918
L7: 1835_Overhead Conductors and Devices - Switches | M7: 298264.0325
L8: 1840_Underground Conduit - Cable Chamber | M8: 318322.2028
L9: 1840_Underground Conduit - Duct Bank | M9: 15022704.66
L10: 1840_Underground Conduit - Vault | M10: 586011.3721
L11: 1840_Underground Conduit - Vault Roof | M11: 29730.10406
L12: 1845_Underground Conductors and Devices | M12: 3756248.879
L13: 1845_Underground Conductors and Devices - Switch | M13: 1485958.971
L14: 1850_Line Transformers - OH | M14: 13454.85448
L15: 1850_Line Transformers - UG | M15: 1106292.524
L16: 1860_Meters - Smart Meters | M16: 2816.74674
L17: 1855_Services - UG | M17: 124317.8771
L18: 1855_Services - OH | M18: 16052.10248
K19: B17 Copeland (Formerly Bremner) (Formerly Bremner) Transformer Station Total | M19: 23069761.05
K20: B10 Fibertop Network Units | L20: 1840_Underground Conduit - Vault | M20: 22955.58033
L21: 1845_Underground Conductors and Devices | M21: 213251.3393
L22: 1850_Line Transformers - UG Network w/protector | M22: 2781861.115
K23: B17 Copeland (Formerly Bremner) (Formerly Bremner) Transformer Station Total | M23: 3018068.034
K24: B11 Automatic Transfer Switches (ATS) & Reverse Power Breakers (RPB) | L24: 1830_Poles Towers and Fixtures | M24: 3606.377503
L25: 1835_Overhead Conductors and Devices | M25: 2700.70479
L26: 1835_Overhead Conductors and Devices - Switches | M26: 13700.79493
L27: 1840_Underground Conduit - Duct Bank | M27: 2843.80896
L28: 1840_Underground Conduit - Vault | M28: 12470.18144
L29: 1845_Underground Conductors and Devices | M29: 161368.6666
L30: 1845_Underground Conductors and Devices - Switch | M30: 166241.7482
L31: 1850_Line Transformers - OH | M31: 4230.07741
L32: 1850_Line Transformers - UG | M32: 95951.19143
L33: 1850_Line Transformers - UG Network w/protector | M33: 812910.8322
L34: 1855_Services - UG | M34: 656.5457884
L35: 1855_Services - OH | M35: 532.4109038
K36: B17 Copeland (Formerly Bremner) (Formerly Bremner) Transformer Station Total | M36: 1277213.34
K37: B12 Stations Power Transformers | L37: 1808_Buildings and Fixtures - Stn Shell Site | M37: 2877.598303
L38: 1820_DS Equip - Normally Primary below 50 kV - Power Transformer | M38: 1343879.378
L39: 1840_Underground Conduit - Duct Bank | M39: 16194.55423
K40: B17 Copeland (Formerly Bremner) (Formerly Bremner) Transformer Station Total | M40: 1362951.531
K41: B13.1 & 13.2 Stations Switchgear - Muncipal and Transformer Stations | L41: 1808_Buildings and Fixtures - Stn Shell Site | M41: 34691.2
L42: 1820_DS Equip - Normally Primary below 50 kV - Indoor Breaker | M42: 19320.8964
L43: 1820_DS Equip - Normally Primary below 50 kV - Switchgear Air | M43: 4873828.888
L44: 1820_DS Equip - Normally Primary below 50 kV - Switchgear GIS | M44: 87920.20578
L45: 1830_Poles Towers and Fixtures | M45: 20006.23488
L46: 1835_Overhead Conductors and Devices | M46: 44395.91439
L47: 1835_Overhead Conductors and Devices - Switches | M47: 72977.7242
L48: 1840_Underground Conduit - Duct Bank | M48: 94439.09323
L49: 1845_Underground Conductors and Devices | M49: 91265.03289
L50: 1980_System Supervisory Equipment | M50: 29853.69093
K51: B17 Copeland (Formerly Bremner) (Formerly Bremner) Transformer Station Total | M51: 5368698.881
K52: B14 Stations Circuit Breakers | L52: 1808_Buildings and Fixtures - Stn Shell Site | M52: 2860.127825
L53: 1820_DS Equip - Normally Primary below 50 kV - Outdoor Breaker | M53: 209878.1085
L54: 1840_Underground Conduit - Duct Bank | M54: 3262.906809
K55: B17 Copeland (Formerly Bremner) (Formerly Bremner) Transformer Station Total | M55: 216001.1431
K56: B16 Downtown Station Load Transfers | L56: 1830_Poles Towers and Fixtures | M56: 11483.56881
L57: 1835_Overhead Conductors and Devices | M57: 19325.29849
L58: 1835_Overhead Conductors and Devices - Switches | M58: 33091.60982
L59: 1840_Underground Conduit - Cable Chamber | M59: 41895.17228
L60: 1840_Underground Conduit - Duct Bank | M60: 44797.103
L61: 1840_Underground Conduit - Vault | M61: 1779.826749
L62: 1840_Underground Conduit - Vault Roof | M62: 792.821917
L63: 1845_Underground Conductors and Devices | M63: 642842.5067
L64: 1845_Underground Conductors and Devices - Switch | M64: 38898.26685
L65: 1855_Services - OH | M65: 1530.058083
K66: B17 Copeland (Formerly Bremner) (Formerly Bremner) Transformer Station Total | M66: 836436.2327
K67: B17 Copeland (Formerly Bremner) Transformer Station | L67: 1808_Buildings and Fixtures - Stn Interior | M67: 8459095.175
L68: 1808_Buildings and Fixtures - Stn Shell Site | M68: 9376518.824
L69: 1808_Buildings and Fixtures - Stn Substructure | M69: 39504518.65
L70: 1815_TS Equip - Normally Primary above 50 kV - Disconnect Switch | M70: 16450312.52
L71: 1815_TS Equip - Normally Primary above 50 kV - Power Transformer | M71: 21309686.16
L72: 1815_TS Equip - Normally Primary above 50 kV - Station Service | M72: 6323557.63
L73: 1820_DS Equip - Normally Primary below 50 kV - Stn Service Batteries | M73: 922527.944
L74: 1820_DS Equip - Normally Primary below 50 kV - Switchgear GIS | M74: 20020535.65
L75: 1820_DS Equip - Normally Primary below 50 kV - Station Service | M75: 1733247.444
K76: B17 Copeland (Formerly Bremner) (Formerly Bremner) Transformer Station Total | M76: 124100000
K77: B2 Paper Insulated Lead Covered Cable - Piece Outs and Leakers | L77: 1840_Underground Conduit - Cable Chamber | M77: 81828.54235
L78: 1840_Underground Conduit - Duct Bank | M78: 626188.3081
L79: 1840_Underground Conduit - Vault | M79: 3109.570772
L80: 1840_Underground Conduit - Vault Roof | M80: 1385.147303
L81: 1845_Underground Conductors and Devices | M81: 1407153.824
L82: 1845_Underground Conductors and Devices - Switch | M82: 739.3690009
L83: 1855_Services - UG | M83: 571.2921637
K84: B17 Copeland (Formerly Bremner) (Formerly Bremner) Transformer Station Total | M84: 2120976.054
K85: B20 Metering | L85: 1820_DS Equip - Normally Primary below 50 kV - Grid Point Meters | M85: 2464270.868
L86: 1860_Meters - Smart Meters | M86: 825052.7433
K87: B17 Copeland (Formerly Bremner) (Formerly Bremner) Transformer Station Total | M87: 3289323.611
K88: B21 Externally-Initiated Plant Relocations and Expansions | L88: 1830_Poles Towers and Fixtures | M88: 32565.47623
L89: 1835_Overhead Conductors and Devices | M89: 51152.01793
L90: 1835_Overhead Conductors and Devices - Switches | M90: 6484.132199
L91: 1840_Underground Conduit - Cable Chamber | M91: 1013977.418
L92: 1840_Underground Conduit - Duct Bank | M92: 7363926.239
L93: 1840_Underground Conduit - Vault | M93: 133898.0475
L94: 1840_Underground Conduit - Vault Roof | M94: 21883.19626
L95: 1845_Underground Conductors and Devices | M95: 1027709.957
L96: 1845_Underground Conductors and Devices - Switch | M96: 395.268743
L97: 1850_Line Transformers - OH | M97: 2327.170944
L98: 1850_Line Transformers - UG | M98: 1107.025267
L99: 1850_Line Transformers - UG Network w/protector | M99: 64057.3415
L100: 1855_Services - UG | M100: 451.9753296
L101: 1855_Services - OH | M101: 2356.583899
K102: B17 Copeland (Formerly Bremner) (Formerly Bremner) Transformer Station Total | M102: 9722291.85
K103: B3 Handwell Replacement | L103: 1830_Poles Towers and Fixtures | M103: 6516921.083
K104: B17 Copeland (Formerly Bremner) (Formerly Bremner) Transformer Station Total | M104: 6516921.083
K105: B4 Overhead Infrastructure | L105: 1830_Poles Towers and Fixtures | M105: 6961351.657
L106: 1835_Overhead Conductors and Devices | M106: 5753809.524
L107: 1835_Overhead Conductors and Devices - Switches | M107: 2209397.822
L108: 1840_Underground Conduit - Cable Chamber | M108: 1847.72586
L109: 1840_Underground Conduit - Duct Bank | M109: 565989.4392
L110: 1840_Underground Conduit - Vault | M110: 12473.29155
L111: 1840_Underground Conduit - Vault Roof | M111: 728.6996113
L112: 1845_Underground Conductors and Devices | M112: 265076.0086
L113: 1845_Underground Conductors and Devices - Switch | M113: 93178.9532
L114: 1850_Line Transformers - OH | M114: 5007957.957
L115: 1850_Line Transformers - UG | M115: 406081.0467
L116: 1860_Meters - Smart Meters | M116: 67127.56234
L117: 1855_Services - UG | M117: 42412.37445
L118: 1855_Services - OH | M118: 482382.7887
K119: B17 Copeland (Formerly Bremner) (Formerly Bremner) Transformer Station Total | M119: 21869814.85
K120: B5 Box Construction | L120: 1830_Poles Towers and Fixtures | M120: 1926355.615
L121: 1835_Overhead Conductors and Devices | M121: 1946696.521
L122: 1835_Overhead Conductors and Devices - Switches | M122: 486149.8601
L123: 1840_Underground Conduit - Cable Chamber | M123: 428349.5438
L124: 1840_Underground Conduit - Duct Bank | M124: 120204.5197
L125: 1840_Underground Conduit - Vault | M125: 15080.98966
L126: 1840_Underground Conduit - Vault Roof | M126: 9343.301011
L127: 1845_Underground Conductors and Devices | M127: 1252330.725
L128: 1845_Underground Conductors and Devices - Switch | M128: 97711.59571
L129: 1850_Line Transformers - OH | M129: 1486042.125
L130: 1850_Line Transformers - UG | M130: 195156.0697
L131: 1850_Line Transformers - UG Network w/protector | M131: 45273.12587
L132: 1860_Meters - Smart Meters | M132: 11231.61186
L133: 1855_Services - UG | M133: 52428.97289
L134: 1855_Services - OH | M134: 946055.8566
K135: B17 Copeland (Formerly Bremner) (Formerly Bremner) Transformer Station Total | M135: 9018410.433
K136: B6 Rear Lot Construction | L136: 1830_Poles Towers and Fixtures | M136: 819757.0254
L137: 1835_Overhead Conductors and Devices | M137: 569017.3014
L138: 1835_Overhead Conductors and Devices - Switches | M138: 40580.03748
L139: 1840_Underground Conduit - Duct Bank | M139: 5392785.675
L140: 1840_Underground Conduit - Vault | M140: 18684.94543
L141: 1845_Underground Conductors and Devices | M141: 1678190.914
L142: 1845_Underground Conductors and Devices - Switch | M142: 118653.1624
L143: 1850_Line Transformers - OH | M143: 211744.5764
L144: 1850_Line Transformers - UG | M144: 620778.3177
L145: 1860_Meters - Smart Meters | M145: 190754.8953
L146: 1855_Services - UG | M146: 1336382.46
L147: 1855_Services - OH | M147: 519694.6414
K148: B17 Copeland (Formerly Bremner) (Formerly Bremner) Transformer Station Total | M148: 11517023.95
K149: B7 Polymer SMD-20 Switches | L149: 1830_Poles Towers and Fixtures | M149: 102167.557
L150: 1835_Overhead Conductors and Devices | M150: 76508.51476
L151: 1835_Overhead Conductors and Devices - Switches | M151: 404722.3984
L152: 1855_Services - OH | M152: 15083.1681
K153: B17 Copeland (Formerly Bremner) (Formerly Bremner) Transformer Station Total | M153: 598481.6382
K154: B8 SCADA-Mate R1 Switches | L154: 1835_Overhead Conductors and Devices | M154: 15265.81808
L155: 1835_Overhead Conductors and Devices - Switches | M155: 544180.496
K156: B17 Copeland (Formerly Bremner) (Formerly Bremner) Transformer Station Total | M156: 559446.3141
K157: B9 Network Vault & Roofs | L157: 1830_Poles Towers and Fixtures | M157: 9424.249226
L158: 1835_Overhead Conductors and Devices | M158: 7057.527827
L159: 1835_Overhead Conductors and Devices - Switches | M159: 35803.17257
L160: 1840_Underground Conduit - Cable Chamber | M160: 722411.457
L161: 1840_Underground Conduit - Duct Bank | M161: 444400.2051
L162: 1840_Underground Conduit - Vault | M162: 1914125.878
L163: 1840_Underground Conduit - Vault Roof | M163: 44372.08485
L164: 1845_Underground Conductors and Devices | M164: 1771640.547
L165: 1845_Underground Conductors and Devices - Switch | M165: 921397.9054
L166: 1850_Line Transformers - OH | M166: 11054.115
L167: 1850_Line Transformers - UG | M167: 24187.39551
L168: 1850_Line Transformers - UG Network w/protector | M168: 1415596.703
L169: 1855_Services - UG | M169: 20006.08128
L170: 1855_Services - OH | M170: 1391.309593
K171: B17 Copeland (Formerly Bremner) (Formerly Bremner) Transformer Station Total | M171: 7342868.631
K172: B18.2 Copeland (Formerly Bremner) Hydro One Capital Contributions | L172: 1815_TS Equip - Normally Primary above 50 kV - Contribution to HONI | M172: 60000000
K173: B17 Copeland (Formerly Bremner) (Formerly Bremner) Transformer Station Total | M173: 60000000
K174: Grand Total | M174: 291804688.6

Sheet DATA_PIVOT (EST) (hidden)
G1: Include | H1: Y | M1: Include | N1: Y
A3: Sum of FY12 ISA in FY14 | B3: Total | G3: Sum of FY13 ISA in FY14 | H3: Total | M3: Sum of Total FY14 ISA
A4: Total | B4: 8500000 | G4: Total | H4: 211704688.6 | M4: ICM FILING SEGMENT | N4: Estimate | O4: ESTIMATE DESCRIPTION | P4: Total
M5: B1 Underground Infrastructure | N5: EST18585_001 | O5: 18585_001 W11385 Northwoods Subdivision - UG DB Rebuild | P5: 977533.0653
N6: EST18653_002 | O6: 18653_002 E11421 Dundalk NAE5-1M29 UG Reb (Elec) Deferred from 2011 | P6: 639850.7375
N7: EST18675_002 | O7: 18675_002 ICM X11444 Tichester civil & elec UG-DB 35M9 Created Oct 2010 | P7: 861126.5164
N8: EST18719_001 | O8: 18719_001 E11438 Old Finch 47M3 UG Reb Ph 1-Civil Civil portion of Old Finch/Littles | P8: 741452.3511
N9: EST18720_001 | O9: 18720_001 E11439 Old Finch 47M3 UG Reb Ph 1 (Elec) Electrical portion of Old Finch/Littles | P9: 467921.9271
N10: EST18845_004 | O10: 18845_004 W11455 Yonge Trunk Cable Rehab RC3620 2011 CapEx WBS Rev Nov 22_10 | P10: 40395.8675
N11: EST19032_001 | O11: 19032_001 W11456 NY80M30 trunk & Lateral Cable Enh S/O HWY 401 | P11: 611731.3093
N12: EST19437_009 | O12: 19437_009 ICM - E12081 INGLETON REBUILD PHASE A ELECT ONLY - PLANNED 3110 | P12: 493164.6515
N13: EST19442_009 | O13: 19442_009 ICM - E12094 - INGLETON REBUILD PHASE 1 ELECT ONLY - 3110 | P13: 379605.7109
N14: EST19464_001 | O14: 19464_001 E12226 Yorkminster 80M27/M29 Tie (Elec) Electrical portion of the project | P14: 209610.3459
N15: EST19522_001 | O15: 19522_001 W12077 Donwoods Area DB Cable Replm | P15: 766453.8331
N16: EST19622_001 | O16: 19622_001 E12126 Morningview 47M3 UG Ph 1 - Civil Civil portion of Phase 1 | P16: 673552.4626
N17: EST19626_001 | O17: 19626_001 E12127 Morningview 47M3 UG Ph 2 - Civil Civil portion of Phase 2 | P17: 588781.9186
N18: EST19628_001 | O18: 19628_001 E12128 Morningview 47M3 UG Ph 3 - Civil Civil portion of Phase 3 | P18: 768568.9219
N19: EST19999_009 | O19: 19999_009 E12195 Mammoth Hall 47M1 UG Rebuild DO NOT PACKAGE for budgeting only -CIVIL | P19: 1339062.47
N20: EST20001_001 | O20: 20001_001 E12188 435 Markham Road H9M30 UG Rebuild Replacing cables and transformers | P20: 130729.0614
N21: EST20043_001 | O21: 20043_001 E12206 Fenn/Foursome/Danville 80M29 UG Civil portion of project | P21: 460234.1453
N22: EST20044_001 | O22: 20044_001 E12227 Fenn/Foursome/Danville 80M29 UG Electrical portion of project | P22: 155354.3852
N23: EST20066_001 | O23: 20066_001 E12209 Dalmatian/Choiceland 47M13 UG Reb Civil portion of project | P23: 438803.9611
N24: EST20106_001 | O24: 20106_001 E12202 3100 Kingston 52M3 UG Reb - Elec Direct Buried Cable Replacement - Elec | P24: 151145.39
N25: EST20136_001 | O25: 20136_001 E12230 52M3 McCowan and Kingston Civil Works for Cable Replacement | P25: 390420.6214
N26: EST20200_001 | O26: 20200_001 E12240 Durnford-Rylander-Tideswell-Shepp Civil | P26: 332103.4191
N27: EST20261_001 | O27: 20261_001 E12256 Bridletowne Area 502M22Electrical Cable Replacement | P27: 125589.0063
N28: EST20263_001 | O28: 20263_001 E12259 Bridletowne Circle 502M22 Civil Civil Works for Cable Replacement | P28: 402754.9645
N29: EST20380_001 | O29: 20380_001 W11614 Ladyshot and Eldorado Crt Direct Buried Cable Replacement | P29: 269664.0026
N30: EST20432_001 | O30: 20432_001 E12319 New Feeder H9M23 - Electrical | P30: 142534.641
N31: EST20520_009 | O31: 20520_009 ICM E12348 Muir Dr./Scar G.C. civil DO NOT PACKAGE | P31: 30448.0097
N32: EST20637_001 | O32: 20637_001 E13014 Holmcrest 47M13 UG Rebuild- Civil | P32: 458390.3232
N33: EST20973_009 | O33: 20973_009 E12493 REVLIS PART 1 CIVIL do not package | P33: 48689.50326
N34: EST20979_009 | O34: 20979_009 E12595 Revlis U/G Rebuild, Ph. 3 Cvl DO NOT PACKAGE for PCI | P34: 505703.8892
N35: EST20989_001 | O35: 20989_001 W12490 UG DB Cable Rehab - Bombardier 85M1 | P35: 362349.5527
N36: EST21139_001 | O36: 21139_001 E13060 Galloway UG Rebuild Civil SCNA47M14 | P36: 78263.23902
N37: EST21141_001 | O37: 21141_001 E13061 Galloway UG Rebuild Electrical SCNA47M14 | P37: 90517.62202
N38: EST21166_001 | O38: 21166_001 E13063 Rodda UG Rebuild Civil SCNA47M14 | P38: 69615.29471
N39: EST21167_001 | O39: 21167_001 E13064 Rodda UG Rebuild Electrical SCNA47M14 | P39: 176616.0075
N40: EST21291_001 | O40: 21291_001 E13075 UG Rehab of NY51M7 - Civil | P40: 443000.6615
N41: EST21298_001 | O41: 21298_001 E13078 UG Rehab of NY51M8 - Civil E13078 btn Leslie and Bayview | P41: 493505.3508
N42: EST21433_001 | O42: 21433_001 E13104 NY51M24 DB Cable Replacement Don Mills & Sheppard (Part 1 Civil) | P42: 440024.4697
N43: EST21434_001 | O43: 21434_001 E13106 NY51M24 DB Cable Replacement Don Mills & Sheppard (Part 2 Civil) | P43: 527409.1594
N44: EST21447_001 | O44: 21447_001 NY51M24 UG Rebuild-Sheppard & Don Mills E13108 Buchan Crt by Sheppard-Civil | P44: 94707.84856
N45: EST21449_001 | O45: 21449_001 ICM NY51M24 UG Rebuild- E of Don Mills E13102 Forest Manor-Electrical | P45: 30959.52801
N46: EST21450_001 | O46: 21450_001 ICM NY51M24 UG Rebuild- E of Don Mills E13108 Forest Manor-Civil | P46: 91143.64533
N47: EST21500_001 | O47: 21500_001 ICM NY51M24 UG Rebld on Don Mills E13099 btn Sheppard and Graydon-Electrical | P47: 76313.83807
N48: EST21506_009 | O48: 21506_009 ICM E11191 FESI-12 MCLEVIN/ALFORD UG REB RC3110 2011 CapEx WBS Rev Nov 22_10 | P48: 28979.72692
N49: EST21551_008 | O49: 21551_008 E11592 FESI Leslie Nymark Repl Sw Pt. 1 Switchgear and Cable Replacement (Ph 1) | P49: 340618.1613
N50: EST21589_001 | O50: 21589_001 E13124 Rebuild Orange File SD 502M22 UG Civil | P50: 394925.4495
N51: EST21854_009 | O51: 21854_009 ICM E11372 FESI-12 HUPFIELD UG RBLD P2 RC3110 2011 CapEx WBS Rev Nov 22_10 | P51: 231595.1257
N52: EST21864_001 | O52: 21864_001 E13129 Rebuild UG Trunk NT63M8 M11 McCow an - Civil | P52: 253038.2499
N53: EST22319_001 | O53: W13193 - UG Primary Rehab - Arrow Rd 55M21 (EST21664_001) | P53: 592089.4757
N54: EST22356_009 | O54: 22356_009 ICM E11356 FESI 47M3 PENNYHILL UG RBLD RC3110 2011 CapEx WBS Rev Nov 22_10 | P54: 108830.7469
N55: EST22424_009 | O55: 22424_009 ICM E11592 FESI Leslie & Nymark Ph2-51M6 UG Cable & Switchgear Replacement | P55: 61595.24146
N56: EST22591_001 | O56: 22591_001 E13267 UG Rebuild 63M8 Silver star Midla nd - Civil | P56: 169229.9647
N57: EST22715_001 | O57: 22715_001 W13278 - Northview heights Civil Rebuild | P57: 971587.2516
N58: EST22928_009 | O58: 22928_009 ICM E11380 FES-12 EMPRINGHAM/MCLEVIN RC3110 2011 CapEx WBS Rev Nov 22_10 | P58: 161421.1122
N59: EST24500_009 | O59: 24500_009 ICM-E12153 Melford Transfer 26M34 to M22 | P59: 135401.7107
N60: EST24658_009 | O60: 24658_009 E12096 Ingleton Rebuild UG Ph3 (Elec) for 2012 Budget | P60: 208608.8963
N61: EST24683_009 | O61: 24683_009 ICM - E13037 Bridletowne UG Rebuild Electrical - Do Not Package | P61: 64309.11356
N62: EST24717_009 | O62: 24717_009 E12317 Ingleton/Middleton Main (Elect.) for 2012 Budget | P62: 220133.5445
N63: EST24846_009 | O63: 24846_009 PCI E10112 Purple Sageway 51M3 UG DO NOT PACKAGE - Civil | P63: 132029.9134
N64: EST24850_009 | O64: 24850_009 ICM E1544 Blackwell Coxworth Rebuild-Civ DO NOT PACKAGE (from WT12121 Ver 009) | P64: 447936.5785
N65: EST24852_009 | O65: 24852_009 ICM E12121 Blackwell Coxworth Rebuild-El DO NOT PACKAGE (from Ver001 from AM19590 | P65: 188015.3571
N66: EST24859_009 | O66: 24859_009 ICM E12530 BRAYMORE W PH2 - ELECT DO NOT PACKAGE | P66: 264407.0961
N67: EST25279_001 | O67: 25279_001 E11139 Cassandra UG Cable Replace Civil for 2012 Budget | P67: 938565.6947
N68: EST26034_X01 | O68: UG Cable Replacement on 85M31 at Lodestar Road, Toronto (Electrical) NY85M31 (EST21664_001) | P68: 52976.40207
N69: EST26035_X01 | O69: UG Cable Replacement on 85M31 at Lodestar Road, Toronto (Civil) NY85M31 (EST21663_001) | P69: 77441.52476
N70: EST26536_001 | O70: E11421 Dundalk NAE5-1M29 UG Reb (Civil) Deferred from 2011 (EST18652_002) | P70: 169122.5318
N71: EST26550_001 | O71: E12095 Rebuild Ingleton PH 2 UG Elect DO NOT PACKAGE (EST19448_009) | P71: 106385.0137
N72: EST26551_001 | O72: W11615 Keegan Cresc UG Rebuild W11615 W11615 11-E639 (EST22073_002) | P72: 174713.5348
M73: B17 Copeland (Formerly Bremner) (Formerly Bremner) Transformer Station Total | P73: 23069761.05
M74: B10 Fibertop Network Units | N74: EST23638_003 | O74: X11840 LOC4540 - N/W CHANGEOUTS 2011 Changeouts (EST24053_002) | P74: 112338.8137
N75: EST23960_003 | O75: 23960_003 X12685-LOC #4517 N/W CHANGEOUT TO A91A EDWARD/CENTRE | P75: 62541.79913
N76: EST23961_003 | O76: 23961_003 X12686 LOC.4517 A-92-A 2012 Changeouts | P76: 63944.48567
N77: EST24086_003 | O77: 24086_003 X12736 - LOC 4286 - A53WR - NW CHANGEOUT | P77: 46493.26309
N78: EST24090_003 | O78: 24090_003 X12738 P04 N/W CHANGE OUT LOC #4499WV 2012 CHANGEOUTS | P78: 55985.44797
N79: EST24091_X03 | O79: 4219EV_A54WR (EST24146_003) | P79: 57776.70073
N80: EST24092_003 | O80: 24092_003 X12741 - N1034 - A65H - NW CHANGEOUT | P80: 48918.51703
N81: EST24093_003 | O81: 24093_003 X12743 Loc.N1107 Jarvis & Calton FT REP IFRS compliant | P81: 58157.75843
N82: EST24146_003 | O82: 24146_003 X12751 LOC 4219W-N/W changeout 2012 Changeouts | P82: 57776.70073
N83: EST24518_001 | O83: 24518_001 X12786 4523_A20T- N/W CHANGEOUTS 2012 Changeouts | P83: 71800.75041
N84: EST24519_001 | O84: 24519_001 X12791 4745_A55H - N/W CHANGEOUTS 2012 Changeouts | P84: 56200.37953
N85: EST24520_001 | O85: 24520_001 X12780 4099_A66H Fibertop Change Out 2012 Changeouts | P85: 50639.84664
N86: EST24521_001 | O86: 24521_001 X12783 4160_A69WR Fibertop Change Out 2012 Changeouts | P86: 74416.06392
N87: EST24522_001 | O87: 24522_001 X12784 4336_A44GD Fibertop Change Out 2012 Changeouts | P87: 74430.61169
N88: EST24523_001 | O88: 24523_001 X12785 4336_A48GD Fibertop Change Out 2012 Changeouts | P88: 55332.67548
N89: EST24525_001 | O89: 24525_001 X12787 4553_A56H Fibertop Change Out 2012 Changeouts | P89: 72945.33137
N90: EST24526_001 | O90: 24526_001 X12788 4625_A50DX Fibertop Change Out 2012 Changeouts | P90: 50639.84664
N91: EST24527_001 | O91: 24527_001 X12793 N1010_A41CE Fibertop Change Out 2012 Changeouts | P91: 50639.84664
N92: EST24528_001 | O92: 24528_001 X12794 N1102_A71CE Fibertop Change Out 2012 Changeouts | P92: 50639.84664
N93: EST24529_001 | O93: 24529_001 X12795 N1102_A72CE Fibertop Change Out 2012 Changeouts | P93: 50639.84664
N94: EST24530_001 | O94: 24530_001 X12781 4131_A67WR fibertop replacement 2012 Fibretop Changeout | P94: 71526.21993
N95: EST24533_001 | O95: 24533_001 X12782 4131_A68WR fibertop replacement 2012 Fibretop Changeout | P95: 137934.4407
N96: EST24534_001 | O96: 24534_001 X12789 4651_A53H fibertop replacement 2012 Fibretop Changeout | P96: 143051.9706
N97: EST24535_001 | O97: 24535_001 X12790 4651_A54H fibertop replacement 2012 Fibretop Changeout | P97: 71526.21993
N98: EST24536_001 | O98: 24536_001 X12792 4897NV_A43CE fibertop replacement 2012 Fibretop Changeout | P98: 71526.21993
N99: EST25078_001 | O99: 25078_001 X12843 Fibertop replacement at Mult. LOC 2012 | P99: 1171530.93
N100: EST26523_001 | O100: X12688 LOC4491 - N/W CHANGEOUT 2012 Changeouts (EST24096_002) | P100: 16332.45218
N101: EST26525_001 | O101: X11743 - LOC 4561- A55H- NW CHANGEOUT (EST21583_003) | P101: 16491.53908
N102: EST26526_001 | O102: X12690 - LOC 4643 - A23T- NW CHANGEOUT (EST24098_004) | P102: 16328.69792
N103: EST26527_001 | O103: X12740 LOC4646 A23T - N/W CHANGEOUT 2012 Changeouts (EST24094_002) | P103: 16116.58206
N104: EST26528_001 | O104: X12733 - LOC 4794 - A48CE- NW CHANGEOUT (EST24028_004) | P104: 47274.61909
N105: EST26529_001 | O105: X12684 LOCN1044 - N/W CHANGEOUT 2012 Changeouts (EST23958_002) | P105: 16169.61102
M106: B17 Copeland (Formerly Bremner) (Formerly Bremner) Transformer Station Total | P106: 3018068.034
M107: B11 Automatic Transfer Switches (ATS) & Reverse Power Breakers (RPB) | N107: EST19381_001 | O107: 19381_001 X11505 Castlefield Ave Adj#645 Location #D9012 | P107: 127116.053
N108: EST23252_001 | O108: 23252_003 X12658 - ATS Replacement Loc.#D3031 | P108: 83997.40632
N109: EST24544_001 | O109: 24544_001 X12798 Loc 4862 ATS Replacement 2012 | P109: 56314.41109
N110: EST24546_001 | O110: 24546_001 X12799 Loc 4023 ATS Replacement 2012 | P110: 139368.0896
N111: EST24548_001 | O111: 24548_001 X12800 Loc D9010 ATS Replacement 2012 | P111: 56313.47252
N112: EST24549_001 | O112: 24549_001 X12801 Loc D3022 ATS Replacement 2012 | P112: 56313.47252
N113: EST24550_001 | O113: 24550_001 X12802 Loc 4064 ATS Replacement 2012 | P113: 142962.3269
N114: EST24634_001 | O114: 24634_001 X12822 ATS Replacement 2012 | P114: 338627.9334
N115: EST24905_001 | O115: 24905_001 X12829 RBP replacement at two Locations 2012 | P115: 276200.1747
M116: B17 Copeland (Formerly Bremner) (Formerly Bremner) Transformer Station Total | P116: 1277213.34
M117: B12 Stations Power Transformers | N117: EST18419_001 | O117: 18419_001 12062 Ellesmere White Abbey MS Repl TR1 5/6.7 MVA 2012 | P117: 61840.40325
N118: EST20647_001 | O118: 20647_001 S12376 Thistletown MS Repl TR1 3/4 MVA 2012 | P118: 47592.25676
N119: EST20675_001 | O119: 20675_001 S12389 Scarborough Golf Club Repl TR1 3/4 MVA 2012 | P119: 137968.5943
N120: EST20685_001 | O120: 20685_001 S12391 Thistletown MS - Replace TR2 2012 | P120: 114263.1064
N121: EST21573_001 | O121: 21573_001 S13127Kingston Morningside MS:Replace TR 2012 | P121: 130243.4434
N122: EST21651_001 | O122: 21651_001 S13144 Edenbridge MS Replace TR1 2012 | P122: 143579.3949
N123: EST21722_001 | O123: 21722_001 S13154 High Level MS Replace TR1 TX 2012 | P123: 180976.7151
N124: EST21723_001 | O124: 21723_001 S13155 High Level MS Replace TR2 TX 2012 | P124: 209934.0051
N125: EST21802_001 | O125: 21802_001 S13168 Blaketon MS Replace TR1 Transform 2012 | P125: 185429.9012
N126: EST21852_001 | O126: 21852_001 S13170 Albion MS Replace TR2 Transformer 2012 | P126: 151123.7103
M127: B17 Copeland (Formerly Bremner) (Formerly Bremner) Transformer Station Total | P127: 1362951.531
M128: B13.1 & 13.2 Stations Switchgear - Muncipal and Transformer Stations | N128: EST18591_001 | O128: 18591_001 S12048 Strachan TS: Replace A7-8T SWGR 2012 | P128: 66811.15911
N129: EST20492_001 | O129: 20492_001 S13275 Duplex TS: Replace A5-6X SWG 2012 | P129: 89081.54548
N130: EST20706_001 | O130: 20706_001 S13199 Carlaw TS: Prepare 3 New Feeder Positions | P130: 19320.8964
N131: EST20750_002 | O131: 20750_002 S12416 Porterfield MS Replace 4kV SWGR Planned Capital | P131: 381365.2227
N132: EST20877_001 | O132: 20877_001 S12045 Wiltshire TS Replace A3-4W 2012 | P132: 2360660.955
N133: EST21625_002 | O133: 21625_002 W12537 YORK MS 4kV UG DB Replacement Creation Date: October 1, 2010 | P133: 52150.56376
N134: EST22025_001 | O134: 22025_001 S12557 Carlaw TS: Commission A10-11E SWG | P134: 337349.5857
N135: EST22315_001 | O135: 22315_001 W13233 Neilson MS DB cable Replacement | P135: 118409.8627
N136: EST22474_001 | O136: 22474_001 S13248 WiltshireTS A13-14W Feeder Tran | P136: 106914.7801
N137: EST22620_XXX | O137: 22620_XXX S11642 York MS replace swgr (continue remaining work) | P137: 356601.8893
N138: EST23116_001 | O138: 23116_001 W12651 Porterfield MS UG DB Replacement | P138: 99268.46561
N139: EST24975_XXX | O139: 24975_XXX W14--- Thornton MS Replace PILC cable | P139: 44540.77274
N140: EST25425_XXX | O140: 25425_XXX S13433 Strachan TS A7-8 Switchgear replacement | P140: 1336223.182
M141: B17 Copeland (Formerly Bremner) (Formerly Bremner) Transformer Station Total | P141: 5368698.881
M142: B14 Stations Circuit Breakers | N142: EST18233_001 | O142: 18233_001 S12036 Fairchild TS Rep KSO CB 80M1 2012 | P142: 35936.34881
N143: EST18237_001 | O143: 18237_001 S12037 Fairchild TS Rep KSO CB 80M3 2012 | P143: 35628.12698
N144: EST18262_001 | O144: 18262_001 S12043 Fairchild TS Rep KSO CB 80M5 2012 | P144: 36541.21187
N145: EST18263_001 | O145: 18263_001 S12044 Fairchild TS Rep KSO CB 80M9 2012 | P145: 37129.14946
N146: EST18403_001 | O146: 18403_001 S12001 Leslie TS: Repl. KSO M4 & M6 2012 | P146: 70766.30598
M147: B17 Copeland (Formerly Bremner) (Formerly Bremner) Transformer Station Total | P147: 216001.1431
M148: B16 Downtown Station Load Transfers | N148: EST18645_001 | O148: 18645_001 X11424 New Feeder Tie: A203BN & A240GD 2011 Budget Estimate | P148: 189089.0977
N149: EST19349_001 | O149: 19349_001 X12086 A204BN tie to new Carlaw feeder 2012 estimate | P149: 152811.183
N150: EST26555_001 | O150: X11620 Electrical cable and switch IFRS compliant (copy of 20952v9) (EST20952_004) | P150: 494535.952
M151: B17 Copeland (Formerly Bremner) (Formerly Bremner) Transformer Station Total | P151: 836436.2327
M152: B17 Copeland (Formerly Bremner) Transformer Station | N152: EST22465_X01 | O152: 22465_001 BREMNER TS THESL INVESTMENTS 2012 RC 2820 | P152: 8500000
N153: EST22473_X01 | O153: 22473_001 ICM BREMNER TS THESL INVESTMENTS 2013 RC 2820 | P153: 81000000
N154: EST25115_001 | O154: 25115_001 BREMNER TS THESL INVESTMENTS 2014 RC 2820 | P154: 34600000
M155: B17 Copeland (Formerly Bremner) (Formerly Bremner) Transformer Station Total | P155: 124100000
M156: B2 Paper Insulated Lead Covered Cable - Piece Outs and Leakers | N156: EST19554_001 | O156: 19554_001 X11532 Terauley Piece Out and Leakers 2011 budget estimate | P156: 280607.3707
N157: EST19798_001 | O157: 19798_001 X12160 Loc 6294 piece out/PILC rep. IFRS compliant | P157: 875309.6392
N158: EST21216_001 | O158: 21216_001 X12512 Carlaw Piece Out and Leakers 2012 budget estimate | P158: 196889.0236
N159: EST21217_003 | O159: 21217_003 X12513 Leaside Pieceout and Leakers Created Oct 2010 | P159: 70922.24641
N160: EST21218_003 | O160: 21218_003 X12514-esplande_piece out & leakers Created Oct 2010 | P160: 43033.23648
N161: EST21219_001 | O161: 21219_001 X12515 Glengrove Piece Out and Leakers 2012 budget estimate | P161: 112594.0934
N162: EST21220_001 | O162: 21220_001 X12516 Cecil Piece Out and Leakers 2012 budget estimate | P162: 77178.25596
N163: EST21221_001 | O163: 21221_001 X12517 Duplex Piece Out and Leakers 2012 budget estimate | P163: 238530.3672
N164: EST21222_001 | O164: 21222_001 X12518 Main Piece Out and Leakers 2012 budget estimate | P164: 225911.8209
M165: B17 Copeland (Formerly Bremner) (Formerly Bremner) Transformer Station Total | P165: 2120976.054
M166: B20 Metering | N166: EST24983_001 | O166: 24983_001 2013 Reverification Meter Rep'nt New Cap CAPEX | P166: 177884.9481
N167: EST24986_001 | O167: 24986_001 ICM 2013 RC4250 Grid Supply Point 22138 CAPEX | P167: 2464270.868
N168: EST25315_001 | O168: 25315_001 ICM 2012 Rever./Reseal of Meters-Abestos Conversion to Smart Meters | P168: 234641.4235
N169: EST25316_001 | O169: 25316_001 ICM 2012 Reverification/Reseal of Meters CAPEX | P169: 234641.4235
N170: EST26322_001 | O170: 2013 Rever. Meter Rep'nt New Cap RC4240 CAPEX (EST24983_001) | P170: 177884.9481
M171: B17 Copeland (Formerly Bremner) (Formerly Bremner) Transformer Station Total | P171: 3289323.611
M172: B21 Externally-Initiated Plant Relocations and Expansions | N172: EST22170_002 | O172: 22170_002 X11763 Directional Drilling Gardiner Estimate 2011 | P172: 293184.9174
N173: EST22851_001 | O173: 22851_001 X12635 QQ Rebuild Ph1 - yoyo to peter 2012 budget estimate | P173: 421415.9815
N174: EST22853_001 | O174: 22853_001 X12636 QQ Rebuild Ph2 - Peter to simcoe 2012 budget estimate | P174: 1830203.038
N175: EST22854_001 | O175: 22854_001 X12637 QQ Rebuild Ph3 - Simcoe to York 2012 budget estimate | P175: 1079350.509
N176: EST24037_002 | O176: 24037_002 X11380 Front St. E,Heritage lighting_OH replaces est 24037 version 003 | P176: 47103.73848
N177: EST24615_001 | O177: 24615_001 ICM NW PATH Relocation Phase 1 | P177: 331492.0056
N178: EST24729_001 | O178: 24729_001 ICM 2013 IQQuay Plceholder - 2013 DO NOT PACKAGE | P178: 3807069.63
N179: EST24963_002 | O179: 24963_002 ICM Lawrence & Allen Rd_pole relocation | P179: 61555.19061
N180: EST24967_001 | O180: 24967_001 ICM NW PATH Relocation Phase 2 | P180: 422302.1048
N181: EST25276_001 | O181: 25276_001 ICM Dundas OH to UG 2012 Bathurst to University 2012 | P181: 246373.4858
N182: EST25280_001 | O182: 25280_001 ICM Dundas OH to UG 2013 Bathurst to University | P182: 1182241.249
M183: B17 Copeland (Formerly Bremner) (Formerly Bremner) Transformer Station Total | P183: 9722291.85
M184: B3 Handwell Replacement | N184: EST20178_001 | O184: 20178_001 A12236 Contact Voltage Remediation High level | P184: 860936.4616
N185: EST25009_001 | O185: 25009_001 2013 Handwell Replacement (Parent) BULK ESTIMATE | P185: 5655984.621
M186: B17 Copeland (Formerly Bremner) (Formerly Bremner) Transformer Station Total | P186: 6516921.083
M187: B4 Overhead Infrastructure | N187: EST19452_001 | O187: 19452_001 X10449 Replacement of 3 phase switch 2010 estimate | P187: 27698.01172
N188: EST19453_001 | O188: 19453_001 X11525 Replacement of 3 phase switch 2012 estimate | P188: 28016.65477
N189: EST19454_001 | O189: 19454_001 X111524 Replacement of 3 phase switch 2012 Estimate | P189: 28016.65477
N190: EST19455_001 | O190: 19455_001 X11526 Replacement of 3 phase switch 2012 Estimate | P190: 32296.51426
N191: EST19581_001 | O191: 19581_001 X12124 Replacement of non standard CSP 2012 Estimate | P191: 187501.9583
N192: EST19775_001 | O192: 19775_001 X12154 Replacement of non-standard, 34M6 2012 Estimate | P192: 377884.8439
N193: EST19785_003 | O193: 19785_003 X12156 New SCADA Sw NY53-M8 Created Oct 2010 | P193: 118397.2446
N194: EST19792_001 | O194: 19792_001 X12158 Replacement of 3 ph switch IFRS compliant | P194: 197815.3872
N195: EST19806_001 | O195: 19806_001 Remote Switch Install - Finch 85M31 & M2 | P195: 34671.5547
N196: EST19837_003 | O196: 19837_003 X12163 SCADA SWITCH REPLACEMENT WBS7/PW-DPC | P196: 205157.3173
N197: EST19871_001 | O197: 19871_001 X12175 Replacement of CSP TX 2012 budget estimate | P197: 524329.7159
N198: EST19892_001 | O198: 19892_001 X12176 Replacement of 3 ph switch IFRS compliant | P198: 138691.3809
N199: EST20296_001 | O199: 20296_001 OH rebuild Spenvalley and Sorroundings | P199: 269930.5504
N200: EST20412_003 | O200: 20412_003 WBS7/IFRS Compliant Creation Date: October 01, 2010 | P200: 354584.4817
N201: EST20416_002 | O201: 20416_002 ICM X12318 Repl Manu SW&Inst SCADA SW 34M1 | P201: 66917.38642
... 126 more rows

Sheet DATA (hidden)
D1: Toronto Hydro Corporation Consolidated | E1: Toronto Hydro Corporation Consolidated | F1: Toronto Hydro Corporation Consolidated
D2: Jan | E2: Jan | F2: Jan
D3: ICM | E3: ICM | F3: ICM
D4: Working | E4: Working | F4: Working
D5: Total CWIP | E5: Total CWIP | F5: Total CWIP
D7: FY13 ISA | E7: FY13 ISA | F7: FY13 ISA
A8: Include | B8: Estimate | C8: Asset Class | D8: FY12 Approved Spend | E8: FY13 Approved Spend | F8: FY14 Approved Spend | G8: FY13 In-Service % in FY13 | H8: FY13 ISA in FY13 | I8: FY12 ISA in FY14 | J8: FY13 ISA in FY14 | K8: FY14 ISA in FY14 | L8: Total FY14 ISA | M8: OEB Asset Class | N8: ESTIMATE DESCRIPTION | O8: CATEGORY LISTING | P8: PROJECTS | Q8: ASSET TITLE | R8: ICM FILING SEGMENT
A9: Y | B9: EST18585_001 | C9: AC2160 | E9: 3788.471931 | G9: =INDEX(APP_G!H:H,MATCH(O9,APP_G!B:B,0)) -> 0.6086047979 | H9: =E9*G9 -> 2305.682194 | I9: 0 | J9: =E9-H9 -> 1482.789737 | K9: 0 | L9: =+SUM(I9:K9) -> 1482.789737 | M9: =VLOOKUP(C9,APP_E!A:C,3,FALSE) -> 1835_Overhead Conductors and Devices | N9: 18585_001 W11385 Northwoods Subdivision - UG DB Rebuild | O9: =INDEX(APP_B!A:A,MATCH(DATA!B9,APP_B!N:N,0)) -> C1 Underground Infrastructure | P9: Underground Infrastructure and Cable | Q9: =VLOOKUP(C9,APP_E!A:D,4,FALSE) -> 1835_Overhead Conductors and Devices | R9: =INDEX(APP_G!$A$4:$A$26,MATCH(DATA!O9,APP_G!$B$4:$B$26,0)) -> B1 Underground Infrastructure
A10: Y | B10: EST18585_001 | C10: AC2165 | E10: 2754.657604 | G10: =INDEX(APP_G!H:H,MATCH(O10,APP_G!B:B,0)) -> 0.6086047979 | H10: 1676.497835 | I10: 0 | J10: 1078.15977 | K10: 0 | L10: =+SUM(I10:K10) -> 1078.15977 | M10: =VLOOKUP(C10,APP_E!A:C,3,FALSE) -> 1835_Overhead Conductors and Devices | N10: 18585_001 W11385 Northwoods Subdivision - UG DB Rebuild | O10: =INDEX(APP_B!A:A,MATCH(DATA!B10,APP_B!N:N,0)) -> C1 Underground Infrastructure | P10: Underground Infrastructure and Cable | Q10: =VLOOKUP(C10,APP_E!A:D,4,FALSE) -> 1835_Overhead Conductors and Devices | R10: =INDEX(APP_G!$A$4:$A$26,MATCH(DATA!O10,APP_G!$B$4:$B$26,0)) -> B1 Underground Infrastructure
A11: Y | B11: EST18585_001 | C11: AC2180 | E11: 37040.35024 | G11: =INDEX(APP_G!H:H,MATCH(O11,APP_G!B:B,0)) -> 0.6086047979 | H11: 22542.93487 | I11: 0 | J11: 14497.41537 | K11: 0 | L11: 14497.41537 | M11: =VLOOKUP(C11,APP_E!A:C,3,FALSE) -> 1835_Overhead Conductors and Devices | N11: 18585_001 W11385 Northwoods Subdivision - UG DB Rebuild | O11: =INDEX(APP_B!A:A,MATCH(DATA!B11,APP_B!N:N,0)) -> C1 Underground Infrastructure | P11: Underground Infrastructure and Cable | Q11: =VLOOKUP(C11,APP_E!A:D,4,FALSE) -> 1835_Overhead Conductors and Devices - Switches | R11: =INDEX(APP_G!$A$4:$A$26,MATCH(DATA!O11,APP_G!$B$4:$B$26,0)) -> B1 Underground Infrastructure
A12: Y | B12: EST18585_001 | C12: AC2240 | E12: 1479921.76 | G12: =INDEX(APP_G!H:H,MATCH(O12,APP_G!B:B,0)) -> 0.6086047979 | H12: 900687.4839 | I12: 0 | J12: 579234.2766 | K12: 0 | L12: 579234.2766 | M12: =VLOOKUP(C12,APP_E!A:C,3,FALSE) -> 1840_Underground Conduit | N12: 18585_001 W11385 Northwoods Subdivision - UG DB Rebuild | O12: =INDEX(APP_B!A:A,MATCH(DATA!B12,APP_B!N:N,0)) -> C1 Underground Infrastructure | P12: Underground Infrastructure and Cable | Q12: =VLOOKUP(C12,APP_E!A:D,4,FALSE) -> 1840_Underground Conduit - Duct Bank | R12: =INDEX(APP_G!$A$4:$A$26,MATCH(DATA!O12,APP_G!$B$4:$B$26,0)) -> B1 Underground Infrastructure
A13: Y | B13: EST18585_001 | C13: AC2241 | E13: 49578.61903 | G13: =INDEX(APP_G!H:H,MATCH(O13,APP_G!B:B,0)) -> 0.6086047979 | H13: 30173.78541 | I13: 0 | J13: 19404.83362 | K13: 0 | L13: 19404.83362 | M13: =VLOOKUP(C13,APP_E!A:C,3,FALSE) -> 1840_Underground Conduit | N13: 18585_001 W11385 Northwoods Subdivision - UG DB Rebuild | O13: =INDEX(APP_B!A:A,MATCH(DATA!B13,APP_B!N:N,0)) -> C1 Underground Infrastructure | P13: Underground Infrastructure and Cable | Q13: =VLOOKUP(C13,APP_E!A:D,4,FALSE) -> 1840_Underground Conduit - Vault | R13: =INDEX(APP_G!$A$4:$A$26,MATCH(DATA!O13,APP_G!$B$4:$B$26,0)) -> B1 Underground Infrastructure
A14: Y | B14: EST18585_001 | C14: AC2260 | E14: 653971.544 | G14: =INDEX(APP_G!H:H,MATCH(O14,APP_G!B:B,0)) -> 0.6086047979 | H14: 398010.2193 | I14: 0 | J14: 255961.3247 | K14: 0 | L14: 255961.3247 | M14: =VLOOKUP(C14,APP_E!A:C,3,FALSE) -> 1845_Underground Conductors and Devices | N14: 18585_001 W11385 Northwoods Subdivision - UG DB Rebuild | O14: =INDEX(APP_B!A:A,MATCH(DATA!B14,APP_B!N:N,0)) -> C1 Underground Infrastructure | P14: Underground Infrastructure and Cable | Q14: =VLOOKUP(C14,APP_E!A:D,4,FALSE) -> 1845_Underground Conductors and Devices | R14: =INDEX(APP_G!$A$4:$A$26,MATCH(DATA!O14,APP_G!$B$4:$B$26,0)) -> B1 Underground Infrastructure
A15: Y | B15: EST18585_001 | C15: AC2262 | E15: 17694.0378 | G15: =INDEX(APP_G!H:H,MATCH(O15,APP_G!B:B,0)) -> 0.6086047979 | H15: 10768.6763 | I15: 0 | J15: 6925.361501 | K15: 0 | L15: 6925.361501 | M15: =VLOOKUP(C15,APP_E!A:C,3,FALSE) -> 1845_Underground Conductors and Devices | N15: 18585_001 W11385 Northwoods Subdivision - UG DB Rebuild | O15: =INDEX(APP_B!A:A,MATCH(DATA!B15,APP_B!N:N,0)) -> C1 Underground Infrastructure | P15: Underground Infrastructure and Cable | Q15: =VLOOKUP(C15,APP_E!A:D,4,FALSE) -> 1845_Underground Conductors and Devices | R15: =INDEX(APP_G!$A$4:$A$26,MATCH(DATA!O15,APP_G!$B$4:$B$26,0)) -> B1 Underground Infrastructure
A16: Y | B16: EST18585_001 | C16: AC2263 | E16: 36095.82989 | G16: =INDEX(APP_G!H:H,MATCH(O16,APP_G!B:B,0)) -> 0.6086047979 | H16: =E16*G16 -> 21968.09525 | I16: 0 | J16: =E16-H16 -> 14127.73464 | K16: 0 | L16: 14127.73464 | M16: =VLOOKUP(C16,APP_E!A:C,3,FALSE) -> 1845_Underground Conductors and Devices | N16: 18585_001 W11385 Northwoods Subdivision - UG DB Rebuild | O16: =INDEX(APP_B!A:A,MATCH(DATA!B16,APP_B!N:N,0)) -> C1 Underground Infrastructure | P16: Underground Infrastructure and Cable | Q16: =VLOOKUP(C16,APP_E!A:D,4,FALSE) -> 1845_Underground Conductors and Devices | R16: =INDEX(APP_G!$A$4:$A$26,MATCH(DATA!O16,APP_G!$B$4:$B$26,0)) -> B1 Underground Infrastructure
A17: Y | B17: EST18585_001 | C17: AC2400 | E17: 63526.6375 | G17: =INDEX(APP_G!H:H,MATCH(O17,APP_G!B:B,0)) -> 0.6086047979 | H17: 38662.61637 | I17: 0 | J17: 24864.02112 | K17: 0 | L17: 24864.02112 | M17: =VLOOKUP(C17,APP_E!A:C,3,FALSE) -> 1850_Line Transformers | N17: 18585_001 W11385 Northwoods Subdivision - UG DB Rebuild | O17: =INDEX(APP_B!A:A,MATCH(DATA!B17,APP_B!N:N,0)) -> C1 Underground Infrastructure | P17: Underground Infrastructure and Cable | Q17: =VLOOKUP(C17,APP_E!A:D,4,FALSE) -> 1850_Line Transformers - UG | R17: =INDEX(APP_G!$A$4:$A$26,MATCH(DATA!O17,APP_G!$B$4:$B$26,0)) -> B1 Underground Infrastructure
A18: Y | B18: EST18585_001 | C18: AC2520 | E18: 153188.2556 | G18: =INDEX(APP_G!H:H,MATCH(O18,APP_G!B:B,0)) -> 0.6086047979 | H18: 93231.10731 | I18: 0 | J18: 59957.14825 | K18: 0 | L18: 59957.14825 | M18: =VLOOKUP(C18,APP_E!A:C,3,FALSE) -> 1855_Services | N18: 18585_001 W11385 Northwoods Subdivision - UG DB Rebuild | O18: =INDEX(APP_B!A:A,MATCH(DATA!B18,APP_B!N:N,0)) -> C1 Underground Infrastructure | P18: Underground Infrastructure and Cable | Q18: =VLOOKUP(C18,APP_E!A:D,4,FALSE) -> 1855_Services - UG | R18: =INDEX(APP_G!$A$4:$A$26,MATCH(DATA!O18,APP_G!$B$4:$B$26,0)) -> B1 Underground Infrastructure
A19: Y | B19: EST18719_001 | C19: AC2240 | E19: 1615762.169 | G19: =INDEX(APP_G!H:H,MATCH(O19,APP_G!B:B,0)) -> 0.6086047979 | H19: 983360.6085 | I19: 0 | J19: 632401.5609 | K19: 0 | L19: 632401.5609 | M19: =VLOOKUP(C19,APP_E!A:C,3,FALSE) -> 1840_Underground Conduit | N19: 18719_001 E11438 Old Finch 47M3 UG Reb Ph 1-Civil Civil portion of Old Finch/Littles | O19: =INDEX(APP_B!A:A,MATCH(DATA!B19,APP_B!N:N,0)) -> C1 Underground Infrastructure | P19: Underground Infrastructure and Cable | Q19: =VLOOKUP(C19,APP_E!A:D,4,FALSE) -> 1840_Underground Conduit - Duct Bank | R19: =INDEX(APP_G!$A$4:$A$26,MATCH(DATA!O19,APP_G!$B$4:$B$26,0)) -> B1 Underground Infrastructure
A20: Y | B20: EST18719_001 | C20: AC2241 | E20: 64630.48464 | G20: =INDEX(APP_G!H:H,MATCH(O20,APP_G!B:B,0)) -> 0.6086047979 | H20: 39334.42304 | I20: 0 | J20: 25296.0616 | K20: 0 | L20: 25296.0616 | M20: =VLOOKUP(C20,APP_E!A:C,3,FALSE) -> 1840_Underground Conduit | N20: 18719_001 E11438 Old Finch 47M3 UG Reb Ph 1-Civil Civil portion of Old Finch/Littles | O20: =INDEX(APP_B!A:A,MATCH(DATA!B20,APP_B!N:N,0)) -> C1 Underground Infrastructure | P20: Underground Infrastructure and Cable | Q20: =VLOOKUP(C20,APP_E!A:D,4,FALSE) -> 1840_Underground Conduit - Vault | R20: =INDEX(APP_G!$A$4:$A$26,MATCH(DATA!O20,APP_G!$B$4:$B$26,0)) -> B1 Underground Infrastructure
A21: Y | B21: EST18719_001 | C21: AC2281 | E21: 213990.1769 | G21: =INDEX(APP_G!H:H,MATCH(O21,APP_G!B:B,0)) -> 0.6086047979 | H21: 130235.4483 | I21: 0 | J21: 83754.72854 | K21: 0 | L21: 83754.72854 | M21: =VLOOKUP(C21,APP_E!A:C,3,FALSE) -> 1845_Underground Conductors and Devices | N21: 18719_001 E11438 Old Finch 47M3 UG Reb Ph 1-Civil Civil portion of Old Finch/Littles | O21: =INDEX(APP_B!A:A,MATCH(DATA!B21,APP_B!N:N,0)) -> C1 Underground Infrastructure | P21: Underground Infrastructure and Cable | Q21: =VLOOKUP(C21,APP_E!A:D,4,FALSE) -> 1845_Underground Conductors and Devices - Switch | R21: =INDEX(APP_G!$A$4:$A$26,MATCH(DATA!O21,APP_G!$B$4:$B$26,0)) -> B1 Underground Infrastructure
A22: Y | B22: EST19622_001 | C22: AC2240 | E22: 1720901.173 | G22: =INDEX(APP_G!H:H,MATCH(O22,APP_G!B:B,0)) -> 0.6086047979 | H22: 1047348.711 | I22: 0 | J22: 673552.4626 | K22: 0 | L22: 673552.4626 | M22: =VLOOKUP(C22,APP_E!A:C,3,FALSE) -> 1840_Underground Conduit | N22: 19622_001 E12126 Morningview 47M3 UG Ph 1 - Civil Civil portion of Phase 1 | O22: =INDEX(APP_B!A:A,MATCH(DATA!B22,APP_B!N:N,0)) -> C1 Underground Infrastructure | P22: Underground Infrastructure and Cable | Q22: =VLOOKUP(C22,APP_E!A:D,4,FALSE) -> 1840_Underground Conduit - Duct Bank | R22: =INDEX(APP_G!$A$4:$A$26,MATCH(DATA!O22,APP_G!$B$4:$B$26,0)) -> B1 Underground Infrastructure
A23: Y | B23: EST19623_001 | C23: AC2240 | E23: 0 | G23: =INDEX(APP_G!H:H,MATCH(O23,APP_G!B:B,0)) -> 0.6086047979 | H23: 0 | I23: 0 | J23: 0 | K23: 0 | L23: 0 | M23: =VLOOKUP(C23,APP_E!A:C,3,FALSE) -> 1840_Underground Conduit | N23: 19623_001 E12126 Morningview 47M3 UG Ph 1 - Elec Electrical portion of Phase 1 | O23: =INDEX(APP_B!A:A,MATCH(DATA!B23,APP_B!N:N,0)) -> C1 Underground Infrastructure | P23: Underground Infrastructure and Cable | Q23: =VLOOKUP(C23,APP_E!A:D,4,FALSE) -> 1840_Underground Conduit - Duct Bank | R23: =INDEX(APP_G!$A$4:$A$26,MATCH(DATA!O23,APP_G!$B$4:$B$26,0)) -> B1 Underground Infrastructure
A24: Y | B24: EST19623_001 | C24: AC2260 | E24: 0 | G24: =INDEX(APP_G!H:H,MATCH(O24,APP_G!B:B,0)) -> 0.6086047979 | H24: 0 | I24: 0 | J24: 0 | K24: 0 | L24: 0 | M24: =VLOOKUP(C24,APP_E!A:C,3,FALSE) -> 1845_Underground Conductors and Devices | N24: 19623_001 E12126 Morningview 47M3 UG Ph 1 - Elec Electrical portion of Phase 1 | O24: =INDEX(APP_B!A:A,MATCH(DATA!B24,APP_B!N:N,0)) -> C1 Underground Infrastructure | P24: Underground Infrastructure and Cable | Q24: =VLOOKUP(C24,APP_E!A:D,4,FALSE) -> 1845_Underground Conductors and Devices | R24: =INDEX(APP_G!$A$4:$A$26,MATCH(DATA!O24,APP_G!$B$4:$B$26,0)) -> B1 Underground Infrastructure
A25: Y | B25: EST19623_001 | C25: AC2262 | E25: 0 | G25: =INDEX(APP_G!H:H,MATCH(O25,APP_G!B:B,0)) -> 0.6086047979 | H25: 0 | I25: 0 | J25: 0 | K25: 0 | L25: 0 | M25: =VLOOKUP(C25,APP_E!A:C,3,FALSE) -> 1845_Underground Conductors and Devices | N25: 19623_001 E12126 Morningview 47M3 UG Ph 1 - Elec Electrical portion of Phase 1 | O25: =INDEX(APP_B!A:A,MATCH(DATA!B25,APP_B!N:N,0)) -> C1 Underground Infrastructure | P25: Underground Infrastructure and Cable | Q25: =VLOOKUP(C25,APP_E!A:D,4,FALSE) -> 1845_Underground Conductors and Devices | R25: =INDEX(APP_G!$A$4:$A$26,MATCH(DATA!O25,APP_G!$B$4:$B$26,0)) -> B1 Underground Infrastructure
A26: Y | B26: EST19623_001 | C26: AC2263 | E26: 0 | G26: =INDEX(APP_G!H:H,MATCH(O26,APP_G!B:B,0)) -> 0.6086047979 | H26: 0 | I26: 0 | J26: 0 | K26: 0 | L26: 0 | M26: =VLOOKUP(C26,APP_E!A:C,3,FALSE) -> 1845_Underground Conductors and Devices | N26: 19623_001 E12126 Morningview 47M3 UG Ph 1 - Elec Electrical portion of Phase 1 | O26: =INDEX(APP_B!A:A,MATCH(DATA!B26,APP_B!N:N,0)) -> C1 Underground Infrastructure | P26: Underground Infrastructure and Cable | Q26: =VLOOKUP(C26,APP_E!A:D,4,FALSE) -> 1845_Underground Conductors and Devices | R26: =INDEX(APP_G!$A$4:$A$26,MATCH(DATA!O26,APP_G!$B$4:$B$26,0)) -> B1 Underground Infrastructure
A27: Y | B27: EST19623_001 | C27: AC2400 | E27: 0 | G27: =INDEX(APP_G!H:H,MATCH(O27,APP_G!B:B,0)) -> 0.6086047979 | H27: 0 | I27: 0 | J27: 0 | K27: 0 | L27: 0 | M27: =VLOOKUP(C27,APP_E!A:C,3,FALSE) -> 1850_Line Transformers | N27: 19623_001 E12126 Morningview 47M3 UG Ph 1 - Elec Electrical portion of Phase 1 | O27: =INDEX(APP_B!A:A,MATCH(DATA!B27,APP_B!N:N,0)) -> C1 Underground Infrastructure | P27: Underground Infrastructure and Cable | Q27: =VLOOKUP(C27,APP_E!A:D,4,FALSE) -> 1850_Line Transformers - UG | R27: =INDEX(APP_G!$A$4:$A$26,MATCH(DATA!O27,APP_G!$B$4:$B$26,0)) -> B1 Underground Infrastructure
A28: Y | B28: EST19623_001 | C28: AC2520 | E28: 0 | G28: =INDEX(APP_G!H:H,MATCH(O28,APP_G!B:B,0)) -> 0.6086047979 | H28: 0 | I28: 0 | J28: 0 | K28: 0 | L28: 0 | M28: =VLOOKUP(C28,APP_E!A:C,3,FALSE) -> 1855_Services | N28: 19623_001 E12126 Morningview 47M3 UG Ph 1 - Elec Electrical portion of Phase 1 | O28: =INDEX(APP_B!A:A,MATCH(DATA!B28,APP_B!N:N,0)) -> C1 Underground Infrastructure | P28: Underground Infrastructure and Cable | Q28: =VLOOKUP(C28,APP_E!A:D,4,FALSE) -> 1855_Services - UG | R28: =INDEX(APP_G!$A$4:$A$26,MATCH(DATA!O28,APP_G!$B$4:$B$26,0)) -> B1 Underground Infrastructure
A29: Y | B29: EST19626_001 | C29: AC2240 | E29: 1433690.476 | G29: =INDEX(APP_G!H:H,MATCH(O29,APP_G!B:B,0)) -> 0.6086047979 | H29: 872550.9023 | I29: 0 | J29: 561139.5736 | K29: 0 | L29: 561139.5736 | M29: =VLOOKUP(C29,APP_E!A:C,3,FALSE) -> 1840_Underground Conduit | N29: 19626_001 E12127 Morningview 47M3 UG Ph 2 - Civil Civil portion of Phase 2 | O29: =INDEX(APP_B!A:A,MATCH(DATA!B29,APP_B!N:N,0)) -> C1 Underground Infrastructure | P29: Underground Infrastructure and Cable | Q29: =VLOOKUP(C29,APP_E!A:D,4,FALSE) -> 1840_Underground Conduit - Duct Bank | R29: =INDEX(APP_G!$A$4:$A$26,MATCH(DATA!O29,APP_G!$B$4:$B$26,0)) -> B1 Underground Infrastructure
A30: Y | B30: EST19626_001 | C30: AC2241 | E30: 70625.15024 | G30: =INDEX(APP_G!H:H,MATCH(O30,APP_G!B:B,0)) -> 0.6086047979 | H30: 42982.80528 | I30: 0 | J30: 27642.34495 | K30: 0 | L30: 27642.34495 | M30: =VLOOKUP(C30,APP_E!A:C,3,FALSE) -> 1840_Underground Conduit | N30: 19626_001 E12127 Morningview 47M3 UG Ph 2 - Civil Civil portion of Phase 2 | O30: =INDEX(APP_B!A:A,MATCH(DATA!B30,APP_B!N:N,0)) -> C1 Underground Infrastructure | P30: Underground Infrastructure and Cable | Q30: =VLOOKUP(C30,APP_E!A:D,4,FALSE) -> 1840_Underground Conduit - Vault | R30: =INDEX(APP_G!$A$4:$A$26,MATCH(DATA!O30,APP_G!$B$4:$B$26,0)) -> B1 Underground Infrastructure
A31: Y | B31: EST19627_001 | C31: AC2240 | E31: 0 | G31: =INDEX(APP_G!H:H,MATCH(O31,APP_G!B:B,0)) -> 0.6086047979 | H31: 0 | I31: 0 | J31: 0 | K31: 0 | L31: 0 | M31: =VLOOKUP(C31,APP_E!A:C,3,FALSE) -> 1840_Underground Conduit | N31: 19627_001 E12127 Morningview 47M3 UG Ph 2 - Elec Electrical portion of Phase 2 | O31: =INDEX(APP_B!A:A,MATCH(DATA!B31,APP_B!N:N,0)) -> C1 Underground Infrastructure | P31: Underground Infrastructure and Cable | Q31: =VLOOKUP(C31,APP_E!A:D,4,FALSE) -> 1840_Underground Conduit - Duct Bank | R31: =INDEX(APP_G!$A$4:$A$26,MATCH(DATA!O31,APP_G!$B$4:$B$26,0)) -> B1 Underground Infrastructure
A32: Y | B32: EST19627_001 | C32: AC2260 | E32: 0 | G32: =INDEX(APP_G!H:H,MATCH(O32,APP_G!B:B,0)) -> 0.6086047979 | H32: 0 | I32: 0 | J32: 0 | K32: 0 | L32: 0 | M32: =VLOOKUP(C32,APP_E!A:C,3,FALSE) -> 1845_Underground Conductors and Devices | N32: 19627_001 E12127 Morningview 47M3 UG Ph 2 - Elec Electrical portion of Phase 2 | O32: =INDEX(APP_B!A:A,MATCH(DATA!B32,APP_B!N:N,0)) -> C1 Underground Infrastructure | P32: Underground Infrastructure and Cable | Q32: =VLOOKUP(C32,APP_E!A:D,4,FALSE) -> 1845_Underground Conductors and Devices | R32: =INDEX(APP_G!$A$4:$A$26,MATCH(DATA!O32,APP_G!$B$4:$B$26,0)) -> B1 Underground Infrastructure
A33: Y | B33: EST19627_001 | C33: AC2262 | E33: 0 | G33: =INDEX(APP_G!H:H,MATCH(O33,APP_G!B:B,0)) -> 0.6086047979 | H33: 0 | I33: 0 | J33: 0 | K33: 0 | L33: 0 | M33: =VLOOKUP(C33,APP_E!A:C,3,FALSE) -> 1845_Underground Conductors and Devices | N33: 19627_001 E12127 Morningview 47M3 UG Ph 2 - Elec Electrical portion of Phase 2 | O33: =INDEX(APP_B!A:A,MATCH(DATA!B33,APP_B!N:N,0)) -> C1 Underground Infrastructure | P33: Underground Infrastructure and Cable | Q33: =VLOOKUP(C33,APP_E!A:D,4,FALSE) -> 1845_Underground Conductors and Devices | R33: =INDEX(APP_G!$A$4:$A$26,MATCH(DATA!O33,APP_G!$B$4:$B$26,0)) -> B1 Underground Infrastructure
A34: Y | B34: EST19627_001 | C34: AC2263 | E34: 0 | G34: =INDEX(APP_G!H:H,MATCH(O34,APP_G!B:B,0)) -> 0.6086047979 | H34: 0 | I34: 0 | J34: 0 | K34: 0 | L34: 0 | M34: =VLOOKUP(C34,APP_E!A:C,3,FALSE) -> 1845_Underground Conductors and Devices | N34: 19627_001 E12127 Morningview 47M3 UG Ph 2 - Elec Electrical portion of Phase 2 | O34: =INDEX(APP_B!A:A,MATCH(DATA!B34,APP_B!N:N,0)) -> C1 Underground Infrastructure | P34: Underground Infrastructure and Cable | Q34: =VLOOKUP(C34,APP_E!A:D,4,FALSE) -> 1845_Underground Conductors and Devices | R34: =INDEX(APP_G!$A$4:$A$26,MATCH(DATA!O34,APP_G!$B$4:$B$26,0)) -> B1 Underground Infrastructure
A35: Y | B35: EST19627_001 | C35: AC2400 | E35: 0 | G35: =INDEX(APP_G!H:H,MATCH(O35,APP_G!B:B,0)) -> 0.6086047979 | H35: 0 | I35: 0 | J35: 0 | K35: 0 | L35: 0 | M35: =VLOOKUP(C35,APP_E!A:C,3,FALSE) -> 1850_Line Transformers | N35: 19627_001 E12127 Morningview 47M3 UG Ph 2 - Elec Electrical portion of Phase 2 | O35: =INDEX(APP_B!A:A,MATCH(DATA!B35,APP_B!N:N,0)) -> C1 Underground Infrastructure | P35: Underground Infrastructure and Cable | Q35: =VLOOKUP(C35,APP_E!A:D,4,FALSE) -> 1850_Line Transformers - UG | R35: =INDEX(APP_G!$A$4:$A$26,MATCH(DATA!O35,APP_G!$B$4:$B$26,0)) -> B1 Underground Infrastructure
A36: Y | B36: EST19627_001 | C36: AC2520 | E36: 0 | G36: =INDEX(APP_G!H:H,MATCH(O36,APP_G!B:B,0)) -> 0.6086047979 | H36: 0 | I36: 0 | J36: 0 | K36: 0 | L36: 0 | M36: =VLOOKUP(C36,APP_E!A:C,3,FALSE) -> 1855_Services | N36: 19627_001 E12127 Morningview 47M3 UG Ph 2 - Elec Electrical portion of Phase 2 | O36: =INDEX(APP_B!A:A,MATCH(DATA!B36,APP_B!N:N,0)) -> C1 Underground Infrastructure | P36: Underground Infrastructure and Cable | Q36: =VLOOKUP(C36,APP_E!A:D,4,FALSE) -> 1855_Services - UG | R36: =INDEX(APP_G!$A$4:$A$26,MATCH(DATA!O36,APP_G!$B$4:$B$26,0)) -> B1 Underground Infrastructure
A37: Y | B37: EST19628_001 | C37: AC2240 | E37: 1887700.828 | G37: =INDEX(APP_G!H:H,MATCH(O37,APP_G!B:B,0)) -> 0.6086047979 | H37: 1148863.781 | I37: 0 | J37: 738837.0472 | K37: 0 | L37: 738837.0472 | M37: =VLOOKUP(C37,APP_E!A:C,3,FALSE) -> 1840_Underground Conduit | N37: 19628_001 E12128 Morningview 47M3 UG Ph 3 - Civil Civil portion of Phase 3 | O37: =INDEX(APP_B!A:A,MATCH(DATA!B37,APP_B!N:N,0)) -> C1 Underground Infrastructure | P37: Underground Infrastructure and Cable | Q37: =VLOOKUP(C37,APP_E!A:D,4,FALSE) -> 1840_Underground Conduit - Duct Bank | R37: =INDEX(APP_G!$A$4:$A$26,MATCH(DATA!O37,APP_G!$B$4:$B$26,0)) -> B1 Underground Infrastructure
A38: Y | B38: EST19628_001 | C38: AC2241 | E38: 75963.81992 | G38: =INDEX(APP_G!H:H,MATCH(O38,APP_G!B:B,0)) -> 0.6086047979 | H38: 46231.94527 | I38: 0 | J38: 29731.87465 | K38: 0 | L38: 29731.87465 | M38: =VLOOKUP(C38,APP_E!A:C,3,FALSE) -> 1840_Underground Conduit | N38: 19628_001 E12128 Morningview 47M3 UG Ph 3 - Civil Civil portion of Phase 3 | O38: =INDEX(APP_B!A:A,MATCH(DATA!B38,APP_B!N:N,0)) -> C1 Underground Infrastructure | P38: Underground Infrastructure and Cable | Q38: =VLOOKUP(C38,APP_E!A:D,4,FALSE) -> 1840_Underground Conduit - Vault | R38: =INDEX(APP_G!$A$4:$A$26,MATCH(DATA!O38,APP_G!$B$4:$B$26,0)) -> B1 Underground Infrastructure
A39: Y | B39: EST19629_001 | C39: AC2240 | E39: 0 | G39: =INDEX(APP_G!H:H,MATCH(O39,APP_G!B:B,0)) -> 0.6086047979 | H39: 0 | I39: 0 | J39: 0 | K39: 0 | L39: 0 | M39: =VLOOKUP(C39,APP_E!A:C,3,FALSE) -> 1840_Underground Conduit | N39: 19629_001 E12128 Morningview 47M3 UG Ph 3 - Elec Electrical portion of Phase 3 | O39: =INDEX(APP_B!A:A,MATCH(DATA!B39,APP_B!N:N,0)) -> C1 Underground Infrastructure | P39: Underground Infrastructure and Cable | Q39: =VLOOKUP(C39,APP_E!A:D,4,FALSE) -> 1840_Underground Conduit - Duct Bank | R39: =INDEX(APP_G!$A$4:$A$26,MATCH(DATA!O39,APP_G!$B$4:$B$26,0)) -> B1 Underground Infrastructure
A40: Y | B40: EST19629_001 | C40: AC2260 | E40: 0 | G40: =INDEX(APP_G!H:H,MATCH(O40,APP_G!B:B,0)) -> 0.6086047979 | H40: 0 | I40: 0 | J40: 0 | K40: 0 | L40: 0 | M40: =VLOOKUP(C40,APP_E!A:C,3,FALSE) -> 1845_Underground Conductors and Devices | N40: 19629_001 E12128 Morningview 47M3 UG Ph 3 - Elec Electrical portion of Phase 3 | O40: =INDEX(APP_B!A:A,MATCH(DATA!B40,APP_B!N:N,0)) -> C1 Underground Infrastructure | P40: Underground Infrastructure and Cable | Q40: =VLOOKUP(C40,APP_E!A:D,4,FALSE) -> 1845_Underground Conductors and Devices | R40: =INDEX(APP_G!$A$4:$A$26,MATCH(DATA!O40,APP_G!$B$4:$B$26,0)) -> B1 Underground Infrastructure
A41: Y | B41: EST19629_001 | C41: AC2262 | E41: 0 | G41: =INDEX(APP_G!H:H,MATCH(O41,APP_G!B:B,0)) -> 0.6086047979 | H41: 0 | I41: 0 | J41: 0 | K41: 0 | L41: 0 | M41: =VLOOKUP(C41,APP_E!A:C,3,FALSE) -> 1845_Underground Conductors and Devices | N41: 19629_001 E12128 Morningview 47M3 UG Ph 3 - Elec Electrical portion of Phase 3 | O41: =INDEX(APP_B!A:A,MATCH(DATA!B41,APP_B!N:N,0)) -> C1 Underground Infrastructure | P41: Underground Infrastructure and Cable | Q41: =VLOOKUP(C41,APP_E!A:D,4,FALSE) -> 1845_Underground Conductors and Devices | R41: =INDEX(APP_G!$A$4:$A$26,MATCH(DATA!O41,APP_G!$B$4:$B$26,0)) -> B1 Underground Infrastructure
A42: Y | B42: EST19629_001 | C42: AC2263 | E42: 0 | G42: =INDEX(APP_G!H:H,MATCH(O42,APP_G!B:B,0)) -> 0.6086047979 | H42: 0 | I42: 0 | J42: 0 | K42: 0 | L42: 0 | M42: =VLOOKUP(C42,APP_E!A:C,3,FALSE) -> 1845_Underground Conductors and Devices | N42: 19629_001 E12128 Morningview 47M3 UG Ph 3 - Elec Electrical portion of Phase 3 | O42: =INDEX(APP_B!A:A,MATCH(DATA!B42,APP_B!N:N,0)) -> C1 Underground Infrastructure | P42: Underground Infrastructure and Cable | Q42: =VLOOKUP(C42,APP_E!A:D,4,FALSE) -> 1845_Underground Conductors and Devices | R42: =INDEX(APP_G!$A$4:$A$26,MATCH(DATA!O42,APP_G!$B$4:$B$26,0)) -> B1 Underground Infrastructure
A43: Y | B43: EST19629_001 | C43: AC2400 | E43: 0 | G43: =INDEX(APP_G!H:H,MATCH(O43,APP_G!B:B,0)) -> 0.6086047979 | H43: 0 | I43: 0 | J43: 0 | K43: 0 | L43: 0 | M43: =VLOOKUP(C43,APP_E!A:C,3,FALSE) -> 1850_Line Transformers | N43: 19629_001 E12128 Morningview 47M3 UG Ph 3 - Elec Electrical portion of Phase 3 | O43: =INDEX(APP_B!A:A,MATCH(DATA!B43,APP_B!N:N,0)) -> C1 Underground Infrastructure | P43: Underground Infrastructure and Cable | Q43: =VLOOKUP(C43,APP_E!A:D,4,FALSE) -> 1850_Line Transformers - UG | R43: =INDEX(APP_G!$A$4:$A$26,MATCH(DATA!O43,APP_G!$B$4:$B$26,0)) -> B1 Underground Infrastructure
A44: Y | B44: EST19629_001 | C44: AC2520 | E44: 0 | G44: =INDEX(APP_G!H:H,MATCH(O44,APP_G!B:B,0)) -> 0.6086047979 | H44: 0 | I44: 0 | J44: 0 | K44: 0 | L44: 0 | M44: =VLOOKUP(C44,APP_E!A:C,3,FALSE) -> 1855_Services | N44: 19629_001 E12128 Morningview 47M3 UG Ph 3 - Elec Electrical portion of Phase 3 | O44: =INDEX(APP_B!A:A,MATCH(DATA!B44,APP_B!N:N,0)) -> C1 Underground Infrastructure | P44: Underground Infrastructure and Cable | Q44: =VLOOKUP(C44,APP_E!A:D,4,FALSE) -> 1855_Services - UG | R44: =INDEX(APP_G!$A$4:$A$26,MATCH(DATA!O44,APP_G!$B$4:$B$26,0)) -> B1 Underground Infrastructure
A45: Y | B45: EST20001_001 | C45: AC2241 | E45: 273105.2747 | G45: =INDEX(APP_G!H:H,MATCH(O45,APP_G!B:B,0)) -> 0.6086047979 | H45: 166213.1805 | I45: 0 | J45: 106892.0942 | K45: 0 | L45: 106892.0942 | M45: =VLOOKUP(C45,APP_E!A:C,3,FALSE) -> 1840_Underground Conduit | N45: 20001_001 E12188 435 Markham Road H9M30 UG Rebuild Replacing cables and transformers | O45: =INDEX(APP_B!A:A,MATCH(DATA!B45,APP_B!N:N,0)) -> C1 Underground Infrastructure | P45: Underground Infrastructure and Cable | Q45: =VLOOKUP(C45,APP_E!A:D,4,FALSE) -> 1840_Underground Conduit - Vault | R45: =INDEX(APP_G!$A$4:$A$26,MATCH(DATA!O45,APP_G!$B$4:$B$26,0)) -> B1 Underground Infrastructure
A46: Y | B46: EST20001_001 | C46: AC2260 | E46: 26761.01532 | G46: =INDEX(APP_G!H:H,MATCH(O46,APP_G!B:B,0)) -> 0.6086047979 | H46: 16286.88232 | I46: 0 | J46: 10474.133 | K46: 0 | L46: 10474.133 | M46: =VLOOKUP(C46,APP_E!A:C,3,FALSE) -> 1845_Underground Conductors and Devices | N46: 20001_001 E12188 435 Markham Road H9M30 UG Rebuild Replacing cables and transformers | O46: =INDEX(APP_B!A:A,MATCH(DATA!B46,APP_B!N:N,0)) -> C1 Underground Infrastructure | P46: Underground Infrastructure and Cable | Q46: =VLOOKUP(C46,APP_E!A:D,4,FALSE) -> 1845_Underground Conductors and Devices | R46: =INDEX(APP_G!$A$4:$A$26,MATCH(DATA!O46,APP_G!$B$4:$B$26,0)) -> B1 Underground Infrastructure
A47: Y | B47: EST20001_001 | C47: AC2262 | E47: 724.051789 | G47: =INDEX(APP_G!H:H,MATCH(O47,APP_G!B:B,0)) -> 0.6086047979 | H47: 440.6613927 | I47: 0 | J47: 283.3903963 | K47: 0 | L47: 283.3903963 | M47: =VLOOKUP(C47,APP_E!A:C,3,FALSE) -> 1845_Underground Conductors and Devices | N47: 20001_001 E12188 435 Markham Road H9M30 UG Rebuild Replacing cables and transformers | O47: =INDEX(APP_B!A:A,MATCH(DATA!B47,APP_B!N:N,0)) -> C1 Underground Infrastructure | P47: Underground Infrastructure and Cable | Q47: =VLOOKUP(C47,APP_E!A:D,4,FALSE) -> 1845_Underground Conductors and Devices | R47: =INDEX(APP_G!$A$4:$A$26,MATCH(DATA!O47,APP_G!$B$4:$B$26,0)) -> B1 Underground Infrastructure
A48: Y | B48: EST20001_001 | C48: AC2263 | E48: 1477.06445 | G48: =INDEX(APP_G!H:H,MATCH(O48,APP_G!B:B,0)) -> 0.6086047979 | H48: 898.9485108 | I48: 0 | J48: 578.1159388 | K48: 0 | L48: 578.1159388 | M48: =VLOOKUP(C48,APP_E!A:C,3,FALSE) -> 1845_Underground Conductors and Devices | N48: 20001_001 E12188 435 Markham Road H9M30 UG Rebuild Replacing cables and transformers | O48: =INDEX(APP_B!A:A,MATCH(DATA!B48,APP_B!N:N,0)) -> C1 Underground Infrastructure | P48: Underground Infrastructure and Cable | Q48: =VLOOKUP(C48,APP_E!A:D,4,FALSE) -> 1845_Underground Conductors and Devices | R48: =INDEX(APP_G!$A$4:$A$26,MATCH(DATA!O48,APP_G!$B$4:$B$26,0)) -> B1 Underground Infrastructure
A49: Y | B49: EST20001_001 | C49: AC2400 | E49: 31940.42172 | G49: =INDEX(APP_G!H:H,MATCH(O49,APP_G!B:B,0)) -> 0.6086047979 | H49: 19439.09391 | I49: 0 | J49: 12501.32782 | K49: 0 | L49: 12501.32782 | M49: =VLOOKUP(C49,APP_E!A:C,3,FALSE) -> 1850_Line Transformers | N49: 20001_001 E12188 435 Markham Road H9M30 UG Rebuild Replacing cables and transformers | O49: =INDEX(APP_B!A:A,MATCH(DATA!B49,APP_B!N:N,0)) -> C1 Underground Infrastructure | P49: Underground Infrastructure and Cable | Q49: =VLOOKUP(C49,APP_E!A:D,4,FALSE) -> 1850_Line Transformers - UG | R49: =INDEX(APP_G!$A$4:$A$26,MATCH(DATA!O49,APP_G!$B$4:$B$26,0)) -> B1 Underground Infrastructure
A50: Y | B50: EST20043_001 | C50: AC2240 | E50: 1148534.835 | G50: =INDEX(APP_G!H:H,MATCH(O50,APP_G!B:B,0)) -> 0.6086047979 | H50: 699003.811 | I50: 0 | J50: 449531.0239 | K50: 0 | L50: 449531.0239 | M50: =VLOOKUP(C50,APP_E!A:C,3,FALSE) -> 1840_Underground Conduit | N50: 20043_001 E12206 Fenn/Foursome/Danville 80M29 UG Civil portion of project | O50: =INDEX(APP_B!A:A,MATCH(DATA!B50,APP_B!N:N,0)) -> C1 Underground Infrastructure | P50: Underground Infrastructure and Cable | Q50: =VLOOKUP(C50,APP_E!A:D,4,FALSE) -> 1840_Underground Conduit - Duct Bank | R50: =INDEX(APP_G!$A$4:$A$26,MATCH(DATA!O50,APP_G!$B$4:$B$26,0)) -> B1 Underground Infrastructure
A51: Y | B51: EST20043_001 | C51: AC2241 | E51: 27346.07208 | G51: =INDEX(APP_G!H:H,MATCH(O51,APP_G!B:B,0)) -> 0.6086047979 | H51: 16642.95067 | I51: 0 | J51: 10703.12141 | K51: 0 | L51: 10703.12141 | M51: =VLOOKUP(C51,APP_E!A:C,3,FALSE) -> 1840_Underground Conduit | N51: 20043_001 E12206 Fenn/Foursome/Danville 80M29 UG Civil portion of project | O51: =INDEX(APP_B!A:A,MATCH(DATA!B51,APP_B!N:N,0)) -> C1 Underground Infrastructure | P51: Underground Infrastructure and Cable | Q51: =VLOOKUP(C51,APP_E!A:D,4,FALSE) -> 1840_Underground Conduit - Vault | R51: =INDEX(APP_G!$A$4:$A$26,MATCH(DATA!O51,APP_G!$B$4:$B$26,0)) -> B1 Underground Infrastructure
A52: Y | B52: EST20044_001 | C52: AC2160 | E52: 7757.882604 | G52: =INDEX(APP_G!H:H,MATCH(O52,APP_G!B:B,0)) -> 0.6086047979 | H52: 4721.484574 | I52: 0 | J52: 3036.39803 | K52: 0 | L52: 3036.39803 | M52: =VLOOKUP(C52,APP_E!A:C,3,FALSE) -> 1835_Overhead Conductors and Devices | N52: 20044_001 E12227 Fenn/Foursome/Danville 80M29 UG Electrical portion of project | O52: =INDEX(APP_B!A:A,MATCH(DATA!B52,APP_B!N:N,0)) -> C1 Underground Infrastructure | P52: Underground Infrastructure and Cable | Q52: =VLOOKUP(C52,APP_E!A:D,4,FALSE) -> 1835_Overhead Conductors and Devices | R52: =INDEX(APP_G!$A$4:$A$26,MATCH(DATA!O52,APP_G!$B$4:$B$26,0)) -> B1 Underground Infrastructure
A53: Y | B53: EST20044_001 | C53: AC2165 | E53: 5640.873374 | G53: =INDEX(APP_G!H:H,MATCH(O53,APP_G!B:B,0)) -> 0.6086047979 | H53: 3433.0626 | I53: 0 | J53: 2207.810775 | K53: 0 | L53: 2207.810775 | M53: =VLOOKUP(C53,APP_E!A:C,3,FALSE) -> 1835_Overhead Conductors and Devices | N53: 20044_001 E12227 Fenn/Foursome/Danville 80M29 UG Electrical portion of project | O53: =INDEX(APP_B!A:A,MATCH(DATA!B53,APP_B!N:N,0)) -> C1 Underground Infrastructure | P53: Underground Infrastructure and Cable | Q53: =VLOOKUP(C53,APP_E!A:D,4,FALSE) -> 1835_Overhead Conductors and Devices | R53: =INDEX(APP_G!$A$4:$A$26,MATCH(DATA!O53,APP_G!$B$4:$B$26,0)) -> B1 Underground Infrastructure
A54: Y | B54: EST20044_001 | C54: AC2180 | E54: 1753.745795 | G54: =INDEX(APP_G!H:H,MATCH(O54,APP_G!B:B,0)) -> 0.6086047979 | H54: 1067.338105 | I54: 0 | J54: 686.40769 | K54: 0 | L54: 686.40769 | M54: =VLOOKUP(C54,APP_E!A:C,3,FALSE) -> 1835_Overhead Conductors and Devices | N54: 20044_001 E12227 Fenn/Foursome/Danville 80M29 UG Electrical portion of project | O54: =INDEX(APP_B!A:A,MATCH(DATA!B54,APP_B!N:N,0)) -> C1 Underground Infrastructure | P54: Underground Infrastructure and Cable | Q54: =VLOOKUP(C54,APP_E!A:D,4,FALSE) -> 1835_Overhead Conductors and Devices - Switches | R54: =INDEX(APP_G!$A$4:$A$26,MATCH(DATA!O54,APP_G!$B$4:$B$26,0)) -> B1 Underground Infrastructure
A55: Y | B55: EST20044_001 | C55: AC2241 | E55: 23614.41775 | G55: =INDEX(APP_G!H:H,MATCH(O55,APP_G!B:B,0)) -> 0.6086047979 | H55: 14371.84794 | I55: 0 | J55: 9242.569808 | K55: 0 | L55: 9242.569808 | M55: =VLOOKUP(C55,APP_E!A:C,3,FALSE) -> 1840_Underground Conduit | N55: 20044_001 E12227 Fenn/Foursome/Danville 80M29 UG Electrical portion of project | O55: =INDEX(APP_B!A:A,MATCH(DATA!B55,APP_B!N:N,0)) -> C1 Underground Infrastructure | P55: Underground Infrastructure and Cable | Q55: =VLOOKUP(C55,APP_E!A:D,4,FALSE) -> 1840_Underground Conduit - Vault | R55: =INDEX(APP_G!$A$4:$A$26,MATCH(DATA!O55,APP_G!$B$4:$B$26,0)) -> B1 Underground Infrastructure
A56: Y | B56: EST20044_001 | C56: AC2260 | E56: 206074.8572 | G56: =INDEX(APP_G!H:H,MATCH(O56,APP_G!B:B,0)) -> 0.6086047979 | H56: 125418.1468 | I56: 0 | J56: 80656.7104 | K56: 0 | L56: 80656.7104 | M56: =VLOOKUP(C56,APP_E!A:C,3,FALSE) -> 1845_Underground Conductors and Devices | N56: 20044_001 E12227 Fenn/Foursome/Danville 80M29 UG Electrical portion of project | O56: =INDEX(APP_B!A:A,MATCH(DATA!B56,APP_B!N:N,0)) -> C1 Underground Infrastructure | P56: Underground Infrastructure and Cable | Q56: =VLOOKUP(C56,APP_E!A:D,4,FALSE) -> 1845_Underground Conductors and Devices | R56: =INDEX(APP_G!$A$4:$A$26,MATCH(DATA!O56,APP_G!$B$4:$B$26,0)) -> B1 Underground Infrastructure
A57: Y | B57: EST20044_001 | C57: AC2262 | E57: 5575.617179 | G57: =INDEX(APP_G!H:H,MATCH(O57,APP_G!B:B,0)) -> 0.6086047979 | H57: 3393.347366 | I57: 0 | J57: 2182.269813 | K57: 0 | L57: 2182.269813 | M57: =VLOOKUP(C57,APP_E!A:C,3,FALSE) -> 1845_Underground Conductors and Devices | N57: 20044_001 E12227 Fenn/Foursome/Danville 80M29 UG Electrical portion of project | O57: =INDEX(APP_B!A:A,MATCH(DATA!B57,APP_B!N:N,0)) -> C1 Underground Infrastructure | P57: Underground Infrastructure and Cable | Q57: =VLOOKUP(C57,APP_E!A:D,4,FALSE) -> 1845_Underground Conductors and Devices | R57: =INDEX(APP_G!$A$4:$A$26,MATCH(DATA!O57,APP_G!$B$4:$B$26,0)) -> B1 Underground Infrastructure
A58: Y | B58: EST20044_001 | C58: AC2263 | E58: 11374.25868 | G58: =INDEX(APP_G!H:H,MATCH(O58,APP_G!B:B,0)) -> 0.6086047979 | H58: 6922.428404 | I58: 0 | J58: 4451.830275 | K58: 0 | L58: 4451.830275 | M58: =VLOOKUP(C58,APP_E!A:C,3,FALSE) -> 1845_Underground Conductors and Devices | N58: 20044_001 E12227 Fenn/Foursome/Danville 80M29 UG Electrical portion of project | O58: =INDEX(APP_B!A:A,MATCH(DATA!B58,APP_B!N:N,0)) -> C1 Underground Infrastructure | P58: Underground Infrastructure and Cable | Q58: =VLOOKUP(C58,APP_E!A:D,4,FALSE) -> 1845_Underground Conductors and Devices | R58: =INDEX(APP_G!$A$4:$A$26,MATCH(DATA!O58,APP_G!$B$4:$B$26,0)) -> B1 Underground Infrastructure
A59: Y | B59: EST20044_001 | C59: AC2400 | E59: 135132.9503 | G59: =INDEX(APP_G!H:H,MATCH(O59,APP_G!B:B,0)) -> 0.6086047979 | H59: 82242.5619 | I59: 0 | J59: 52890.3884 | K59: 0 | L59: 52890.3884 | M59: =VLOOKUP(C59,APP_E!A:C,3,FALSE) -> 1850_Line Transformers | N59: 20044_001 E12227 Fenn/Foursome/Danville 80M29 UG Electrical portion of project | O59: =INDEX(APP_B!A:A,MATCH(DATA!B59,APP_B!N:N,0)) -> C1 Underground Infrastructure | P59: Underground Infrastructure and Cable | Q59: =VLOOKUP(C59,APP_E!A:D,4,FALSE) -> 1850_Line Transformers - UG | R59: =INDEX(APP_G!$A$4:$A$26,MATCH(DATA!O59,APP_G!$B$4:$B$26,0)) -> B1 Underground Infrastructure
A60: Y | B60: EST20169_001 | C60: AC2240 | E60: 0 | G60: =INDEX(APP_G!H:H,MATCH(O60,APP_G!B:B,0)) -> 0.6086047979 | H60: 0 | I60: 0 | J60: 0 | K60: 0 | L60: 0 | M60: =VLOOKUP(C60,APP_E!A:C,3,FALSE) -> 1840_Underground Conduit | N60: 20169_001 E12234 Rebuild 3-Phase Neilson Civil portion of project | O60: =INDEX(APP_B!A:A,MATCH(DATA!B60,APP_B!N:N,0)) -> C1 Underground Infrastructure | P60: Underground Infrastructure and Cable | Q60: =VLOOKUP(C60,APP_E!A:D,4,FALSE) -> 1840_Underground Conduit - Duct Bank | R60: =INDEX(APP_G!$A$4:$A$26,MATCH(DATA!O60,APP_G!$B$4:$B$26,0)) -> B1 Underground Infrastructure
A61: Y | B61: EST20170_001 | C61: AC2240 | E61: 0 | G61: =INDEX(APP_G!H:H,MATCH(O61,APP_G!B:B,0)) -> 0.6086047979 | H61: 0 | I61: 0 | J61: 0 | K61: 0 | L61: 0 | M61: =VLOOKUP(C61,APP_E!A:C,3,FALSE) -> 1840_Underground Conduit | N61: 20170_001 E12235 Rebuild 3-Ph Neilson Industrial Electrical portion of project | O61: =INDEX(APP_B!A:A,MATCH(DATA!B61,APP_B!N:N,0)) -> C1 Underground Infrastructure | P61: Underground Infrastructure and Cable | Q61: =VLOOKUP(C61,APP_E!A:D,4,FALSE) -> 1840_Underground Conduit - Duct Bank | R61: =INDEX(APP_G!$A$4:$A$26,MATCH(DATA!O61,APP_G!$B$4:$B$26,0)) -> B1 Underground Infrastructure
A62: Y | B62: EST20170_001 | C62: AC2260 | E62: 0 | G62: =INDEX(APP_G!H:H,MATCH(O62,APP_G!B:B,0)) -> 0.6086047979 | H62: 0 | I62: 0 | J62: 0 | K62: 0 | L62: 0 | M62: =VLOOKUP(C62,APP_E!A:C,3,FALSE) -> 1845_Underground Conductors and Devices | N62: 20170_001 E12235 Rebuild 3-Ph Neilson Industrial Electrical portion of project | O62: =INDEX(APP_B!A:A,MATCH(DATA!B62,APP_B!N:N,0)) -> C1 Underground Infrastructure | P62: Underground Infrastructure and Cable | Q62: =VLOOKUP(C62,APP_E!A:D,4,FALSE) -> 1845_Underground Conductors and Devices | R62: =INDEX(APP_G!$A$4:$A$26,MATCH(DATA!O62,APP_G!$B$4:$B$26,0)) -> B1 Underground Infrastructure
A63: Y | B63: EST20170_001 | C63: AC2262 | E63: 0 | G63: =INDEX(APP_G!H:H,MATCH(O63,APP_G!B:B,0)) -> 0.6086047979 | H63: 0 | I63: 0 | J63: 0 | K63: 0 | L63: 0 | M63: =VLOOKUP(C63,APP_E!A:C,3,FALSE) -> 1845_Underground Conductors and Devices | N63: 20170_001 E12235 Rebuild 3-Ph Neilson Industrial Electrical portion of project | O63: =INDEX(APP_B!A:A,MATCH(DATA!B63,APP_B!N:N,0)) -> C1 Underground Infrastructure | P63: Underground Infrastructure and Cable | Q63: =VLOOKUP(C63,APP_E!A:D,4,FALSE) -> 1845_Underground Conductors and Devices | R63: =INDEX(APP_G!$A$4:$A$26,MATCH(DATA!O63,APP_G!$B$4:$B$26,0)) -> B1 Underground Infrastructure
A64: Y | B64: EST20170_001 | C64: AC2263 | E64: 0 | G64: =INDEX(APP_G!H:H,MATCH(O64,APP_G!B:B,0)) -> 0.6086047979 | H64: 0 | I64: 0 | J64: 0 | K64: 0 | L64: 0 | M64: =VLOOKUP(C64,APP_E!A:C,3,FALSE) -> 1845_Underground Conductors and Devices | N64: 20170_001 E12235 Rebuild 3-Ph Neilson Industrial Electrical portion of project | O64: =INDEX(APP_B!A:A,MATCH(DATA!B64,APP_B!N:N,0)) -> C1 Underground Infrastructure | P64: Underground Infrastructure and Cable | Q64: =VLOOKUP(C64,APP_E!A:D,4,FALSE) -> 1845_Underground Conductors and Devices | R64: =INDEX(APP_G!$A$4:$A$26,MATCH(DATA!O64,APP_G!$B$4:$B$26,0)) -> B1 Underground Infrastructure
A65: Y | B65: EST21110_001 | C65: AC2120 | E65: 0 | G65: =INDEX(APP_G!H:H,MATCH(O65,APP_G!B:B,0)) -> 0.6086047979 | H65: 0 | I65: 0 | J65: 0 | K65: 0 | L65: 0 | M65: =VLOOKUP(C65,APP_E!A:C,3,FALSE) -> 1830_Poles Towers and Fixtures | N65: 21110_001 E13058 NY51M24 UG Rebuild North of Finch E13058 Off Don Mills Road - Electrical | O65: =INDEX(APP_B!A:A,MATCH(DATA!B65,APP_B!N:N,0)) -> C1 Underground Infrastructure | P65: Underground Infrastructure and Cable | Q65: =VLOOKUP(C65,APP_E!A:D,4,FALSE) -> 1830_Poles Towers and Fixtures | R65: =INDEX(APP_G!$A$4:$A$26,MATCH(DATA!O65,APP_G!$B$4:$B$26,0)) -> B1 Underground Infrastructure
A66: Y | B66: EST21110_001 | C66: AC2121 | E66: 0 | G66: =INDEX(APP_G!H:H,MATCH(O66,APP_G!B:B,0)) -> 0.6086047979 | H66: 0 | I66: 0 | J66: 0 | K66: 0 | L66: 0 | M66: =VLOOKUP(C66,APP_E!A:C,3,FALSE) -> 1830_Poles Towers and Fixtures | N66: 21110_001 E13058 NY51M24 UG Rebuild North of Finch E13058 Off Don Mills Road - Electrical | O66: =INDEX(APP_B!A:A,MATCH(DATA!B66,APP_B!N:N,0)) -> C1 Underground Infrastructure | P66: Underground Infrastructure and Cable | Q66: =VLOOKUP(C66,APP_E!A:D,4,FALSE) -> 1830_Poles Towers and Fixtures | R66: =INDEX(APP_G!$A$4:$A$26,MATCH(DATA!O66,APP_G!$B$4:$B$26,0)) -> B1 Underground Infrastructure
A67: Y | B67: EST21110_001 | C67: AC2160 | E67: 0 | G67: =INDEX(APP_G!H:H,MATCH(O67,APP_G!B:B,0)) -> 0.6086047979 | H67: 0 | I67: 0 | J67: 0 | K67: 0 | L67: 0 | M67: =VLOOKUP(C67,APP_E!A:C,3,FALSE) -> 1835_Overhead Conductors and Devices | N67: 21110_001 E13058 NY51M24 UG Rebuild North of Finch E13058 Off Don Mills Road - Electrical | O67: =INDEX(APP_B!A:A,MATCH(DATA!B67,APP_B!N:N,0)) -> C1 Underground Infrastructure | P67: Underground Infrastructure and Cable | Q67: =VLOOKUP(C67,APP_E!A:D,4,FALSE) -> 1835_Overhead Conductors and Devices | R67: =INDEX(APP_G!$A$4:$A$26,MATCH(DATA!O67,APP_G!$B$4:$B$26,0)) -> B1 Underground Infrastructure
A68: Y | B68: EST21110_001 | C68: AC2165 | E68: 0 | G68: =INDEX(APP_G!H:H,MATCH(O68,APP_G!B:B,0)) -> 0.6086047979 | H68: 0 | I68: 0 | J68: 0 | K68: 0 | L68: 0 | M68: =VLOOKUP(C68,APP_E!A:C,3,FALSE) -> 1835_Overhead Conductors and Devices | N68: 21110_001 E13058 NY51M24 UG Rebuild North of Finch E13058 Off Don Mills Road - Electrical | O68: =INDEX(APP_B!A:A,MATCH(DATA!B68,APP_B!N:N,0)) -> C1 Underground Infrastructure | P68: Underground Infrastructure and Cable | Q68: =VLOOKUP(C68,APP_E!A:D,4,FALSE) -> 1835_Overhead Conductors and Devices | R68: =INDEX(APP_G!$A$4:$A$26,MATCH(DATA!O68,APP_G!$B$4:$B$26,0)) -> B1 Underground Infrastructure
A69: Y | B69: EST21110_001 | C69: AC2260 | E69: 0 | G69: =INDEX(APP_G!H:H,MATCH(O69,APP_G!B:B,0)) -> 0.6086047979 | H69: 0 | I69: 0 | J69: 0 | K69: 0 | L69: 0 | M69: =VLOOKUP(C69,APP_E!A:C,3,FALSE) -> 1845_Underground Conductors and Devices | N69: 21110_001 E13058 NY51M24 UG Rebuild North of Finch E13058 Off Don Mills Road - Electrical | O69: =INDEX(APP_B!A:A,MATCH(DATA!B69,APP_B!N:N,0)) -> C1 Underground Infrastructure | P69: Underground Infrastructure and Cable | Q69: =VLOOKUP(C69,APP_E!A:D,4,FALSE) -> 1845_Underground Conductors and Devices | R69: =INDEX(APP_G!$A$4:$A$26,MATCH(DATA!O69,APP_G!$B$4:$B$26,0)) -> B1 Underground Infrastructure
A70: Y | B70: EST21110_001 | C70: AC2262 | E70: 0 | G70: =INDEX(APP_G!H:H,MATCH(O70,APP_G!B:B,0)) -> 0.6086047979 | H70: 0 | I70: 0 | J70: 0 | K70: 0 | L70: 0 | M70: =VLOOKUP(C70,APP_E!A:C,3,FALSE) -> 1845_Underground Conductors and Devices | N70: 21110_001 E13058 NY51M24 UG Rebuild North of Finch E13058 Off Don Mills Road - Electrical | O70: =INDEX(APP_B!A:A,MATCH(DATA!B70,APP_B!N:N,0)) -> C1 Underground Infrastructure | P70: Underground Infrastructure and Cable | Q70: =VLOOKUP(C70,APP_E!A:D,4,FALSE) -> 1845_Underground Conductors and Devices | R70: =INDEX(APP_G!$A$4:$A$26,MATCH(DATA!O70,APP_G!$B$4:$B$26,0)) -> B1 Underground Infrastructure
A71: Y | B71: EST21110_001 | C71: AC2263 | E71: 0 | G71: =INDEX(APP_G!H:H,MATCH(O71,APP_G!B:B,0)) -> 0.6086047979 | H71: 0 | I71: 0 | J71: 0 | K71: 0 | L71: 0 | M71: =VLOOKUP(C71,APP_E!A:C,3,FALSE) -> 1845_Underground Conductors and Devices | N71: 21110_001 E13058 NY51M24 UG Rebuild North of Finch E13058 Off Don Mills Road - Electrical | O71: =INDEX(APP_B!A:A,MATCH(DATA!B71,APP_B!N:N,0)) -> C1 Underground Infrastructure | P71: Underground Infrastructure and Cable | Q71: =VLOOKUP(C71,APP_E!A:D,4,FALSE) -> 1845_Underground Conductors and Devices | R71: =INDEX(APP_G!$A$4:$A$26,MATCH(DATA!O71,APP_G!$B$4:$B$26,0)) -> B1 Underground Infrastructure
A72: Y | B72: EST21139_001 | C72: AC2240 | E72: 170211.1798 | G72: =INDEX(APP_G!H:H,MATCH(O72,APP_G!B:B,0)) -> 0.6086047979 | H72: 103591.3407 | I72: 0 | J72: 66619.83912 | K72: 0 | L72: 66619.83912 | M72: =VLOOKUP(C72,APP_E!A:C,3,FALSE) -> 1840_Underground Conduit | N72: 21139_001 E13060 Galloway UG Rebuild Civil SCNA47M14 | O72: =INDEX(APP_B!A:A,MATCH(DATA!B72,APP_B!N:N,0)) -> C1 Underground Infrastructure | P72: Underground Infrastructure and Cable | Q72: =VLOOKUP(C72,APP_E!A:D,4,FALSE) -> 1840_Underground Conduit - Duct Bank | R72: =INDEX(APP_G!$A$4:$A$26,MATCH(DATA!O72,APP_G!$B$4:$B$26,0)) -> B1 Underground Infrastructure
A73: Y | B73: EST21139_001 | C73: AC2241 | E73: 3790.099773 | G73: =INDEX(APP_G!H:H,MATCH(O73,APP_G!B:B,0)) -> 0.6086047979 | H73: =E73*G73 -> 2306.672906 | I73: 0 | J73: =E73-H73 -> 1483.426867 | K73: 0 | L73: 1483.426867 | M73: =VLOOKUP(C73,APP_E!A:C,3,FALSE) -> 1840_Underground Conduit | N73: 21139_001 E13060 Galloway UG Rebuild Civil SCNA47M14 | O73: =INDEX(APP_B!A:A,MATCH(DATA!B73,APP_B!N:N,0)) -> C1 Underground Infrastructure | P73: Underground Infrastructure and Cable | Q73: =VLOOKUP(C73,APP_E!A:D,4,FALSE) -> 1840_Underground Conduit - Vault | R73: =INDEX(APP_G!$A$4:$A$26,MATCH(DATA!O73,APP_G!$B$4:$B$26,0)) -> B1 Underground Infrastructure
A74: Y | B74: EST21139_001 | C74: AC2260 | E74: 23985.50968 | G74: =INDEX(APP_G!H:H,MATCH(O74,APP_G!B:B,0)) -> 0.6086047979 | H74: 14597.69627 | I74: 0 | J74: 9387.81341 | K74: 0 | L74: =+SUM(I74:K74) -> 9387.81341 | M74: =VLOOKUP(C74,APP_E!A:C,3,FALSE) -> 1845_Underground Conductors and Devices | N74: 21139_001 E13060 Galloway UG Rebuild Civil SCNA47M14 | O74: =INDEX(APP_B!A:A,MATCH(DATA!B74,APP_B!N:N,0)) -> C1 Underground Infrastructure | P74: Underground Infrastructure and Cable | Q74: =VLOOKUP(C74,APP_E!A:D,4,FALSE) -> 1845_Underground Conductors and Devices | R74: =INDEX(APP_G!$A$4:$A$26,MATCH(DATA!O74,APP_G!$B$4:$B$26,0)) -> B1 Underground Infrastructure
A75: Y | B75: EST21139_001 | C75: AC2262 | E75: 648.9619611 | G75: =INDEX(APP_G!H:H,MATCH(O75,APP_G!B:B,0)) -> 0.6086047979 | H75: 394.9613631 | I75: 0 | J75: 254.0005979 | K75: 0 | L75: 254.0005979 | M75: =VLOOKUP(C75,APP_E!A:C,3,FALSE) -> 1845_Underground Conductors and Devices | N75: 21139_001 E13060 Galloway UG Rebuild Civil SCNA47M14 | O75: =INDEX(APP_B!A:A,MATCH(DATA!B75,APP_B!N:N,0)) -> C1 Underground Infrastructure | P75: Underground Infrastructure and Cable | Q75: =VLOOKUP(C75,APP_E!A:D,4,FALSE) -> 1845_Underground Conductors and Devices | R75: =INDEX(APP_G!$A$4:$A$26,MATCH(DATA!O75,APP_G!$B$4:$B$26,0)) -> B1 Underground Infrastructure
A76: Y | B76: EST21139_001 | C76: AC2263 | E76: 1323.876801 | G76: =INDEX(APP_G!H:H,MATCH(O76,APP_G!B:B,0)) -> 0.6086047979 | H76: 805.7177726 | I76: 0 | J76: 518.159028 | K76: 0 | L76: 518.159028 | M76: =VLOOKUP(C76,APP_E!A:C,3,FALSE) -> 1845_Underground Conductors and Devices | N76: 21139_001 E13060 Galloway UG Rebuild Civil SCNA47M14 | O76: =INDEX(APP_B!A:A,MATCH(DATA!B76,APP_B!N:N,0)) -> C1 Underground Infrastructure | P76: Underground Infrastructure and Cable | Q76: =VLOOKUP(C76,APP_E!A:D,4,FALSE) -> 1845_Underground Conductors and Devices | R76: =INDEX(APP_G!$A$4:$A$26,MATCH(DATA!O76,APP_G!$B$4:$B$26,0)) -> B1 Underground Infrastructure
A77: Y | B77: EST21141_001 | C77: AC2160 | E77: 4812.675614 | G77: =INDEX(APP_G!H:H,MATCH(O77,APP_G!B:B,0)) -> 0.6086047979 | H77: 2929.017469 | I77: 0 | J77: 1883.658145 | K77: 0 | L77: 1883.658145 | M77: =VLOOKUP(C77,APP_E!A:C,3,FALSE) -> 1835_Overhead Conductors and Devices | N77: 21141_001 E13061 Galloway UG Rebuild Electrical SCNA47M14 | O77: =INDEX(APP_B!A:A,MATCH(DATA!B77,APP_B!N:N,0)) -> C1 Underground Infrastructure | P77: Underground Infrastructure and Cable | Q77: =VLOOKUP(C77,APP_E!A:D,4,FALSE) -> 1835_Overhead Conductors and Devices | R77: =INDEX(APP_G!$A$4:$A$26,MATCH(DATA!O77,APP_G!$B$4:$B$26,0)) -> B1 Underground Infrastructure
A78: Y | B78: EST21141_001 | C78: AC2165 | E78: 3499.374566 | G78: =INDEX(APP_G!H:H,MATCH(O78,APP_G!B:B,0)) -> 0.6086047979 | H78: 2129.73615 | I78: 0 | J78: 1369.638416 | K78: 0 | L78: 1369.638416 | M78: =VLOOKUP(C78,APP_E!A:C,3,FALSE) -> 1835_Overhead Conductors and Devices | N78: 21141_001 E13061 Galloway UG Rebuild Electrical SCNA47M14 | O78: =INDEX(APP_B!A:A,MATCH(DATA!B78,APP_B!N:N,0)) -> C1 Underground Infrastructure | P78: Underground Infrastructure and Cable | Q78: =VLOOKUP(C78,APP_E!A:D,4,FALSE) -> 1835_Overhead Conductors and Devices | R78: =INDEX(APP_G!$A$4:$A$26,MATCH(DATA!O78,APP_G!$B$4:$B$26,0)) -> B1 Underground Infrastructure
A79: Y | B79: EST21141_001 | C79: AC2180 | E79: 8855.370191 | G79: =INDEX(APP_G!H:H,MATCH(O79,APP_G!B:B,0)) -> 0.6086047979 | H79: 5389.420785 | I79: 0 | J79: 3465.949406 | K79: 0 | L79: 3465.949406 | M79: =VLOOKUP(C79,APP_E!A:C,3,FALSE) -> 1835_Overhead Conductors and Devices | N79: 21141_001 E13061 Galloway UG Rebuild Electrical SCNA47M14 | O79: =INDEX(APP_B!A:A,MATCH(DATA!B79,APP_B!N:N,0)) -> C1 Underground Infrastructure | P79: Underground Infrastructure and Cable | Q79: =VLOOKUP(C79,APP_E!A:D,4,FALSE) -> 1835_Overhead Conductors and Devices - Switches | R79: =INDEX(APP_G!$A$4:$A$26,MATCH(DATA!O79,APP_G!$B$4:$B$26,0)) -> B1 Underground Infrastructure
A80: Y | B80: EST21141_001 | C80: AC2241 | E80: 3700.36008 | G80: =INDEX(APP_G!H:H,MATCH(O80,APP_G!B:B,0)) -> 0.6086047979 | H80: 2252.056898 | I80: 0 | J80: 1448.303182 | K80: 0 | L80: 1448.303182 | M80: =VLOOKUP(C80,APP_E!A:C,3,FALSE) -> 1840_Underground Conduit | N80: 21141_001 E13061 Galloway UG Rebuild Electrical SCNA47M14 | O80: =INDEX(APP_B!A:A,MATCH(DATA!B80,APP_B!N:N,0)) -> C1 Underground Infrastructure | P80: Underground Infrastructure and Cable | Q80: =VLOOKUP(C80,APP_E!A:D,4,FALSE) -> 1840_Underground Conduit - Vault | R80: =INDEX(APP_G!$A$4:$A$26,MATCH(DATA!O80,APP_G!$B$4:$B$26,0)) -> B1 Underground Infrastructure
A81: Y | B81: EST21141_001 | C81: AC2260 | E81: 122551.086 | G81: =INDEX(APP_G!H:H,MATCH(O81,APP_G!B:B,0)) -> 0.6086047979 | H81: 74585.17895 | I81: 0 | J81: 47965.9071 | K81: 0 | L81: 47965.9071 | M81: =VLOOKUP(C81,APP_E!A:C,3,FALSE) -> 1845_Underground Conductors and Devices | N81: 21141_001 E13061 Galloway UG Rebuild Electrical SCNA47M14 | O81: =INDEX(APP_B!A:A,MATCH(DATA!B81,APP_B!N:N,0)) -> C1 Underground Infrastructure | P81: Underground Infrastructure and Cable | Q81: =VLOOKUP(C81,APP_E!A:D,4,FALSE) -> 1845_Underground Conductors and Devices | R81: =INDEX(APP_G!$A$4:$A$26,MATCH(DATA!O81,APP_G!$B$4:$B$26,0)) -> B1 Underground Infrastructure
A82: Y | B82: EST21141_001 | C82: AC2262 | E82: 3315.776322 | G82: =INDEX(APP_G!H:H,MATCH(O82,APP_G!B:B,0)) -> 0.6086047979 | H82: 2017.997378 | I82: 0 | J82: 1297.778944 | K82: 0 | L82: 1297.778944 | M82: =VLOOKUP(C82,APP_E!A:C,3,FALSE) -> 1845_Underground Conductors and Devices | N82: 21141_001 E13061 Galloway UG Rebuild Electrical SCNA47M14 | O82: =INDEX(APP_B!A:A,MATCH(DATA!B82,APP_B!N:N,0)) -> C1 Underground Infrastructure | P82: Underground Infrastructure and Cable | Q82: =VLOOKUP(C82,APP_E!A:D,4,FALSE) -> 1845_Underground Conductors and Devices | R82: =INDEX(APP_G!$A$4:$A$26,MATCH(DATA!O82,APP_G!$B$4:$B$26,0)) -> B1 Underground Infrastructure
A83: Y | B83: EST21141_001 | C83: AC2263 | E83: 6764.180496 | G83: =INDEX(APP_G!H:H,MATCH(O83,APP_G!B:B,0)) -> 0.6086047979 | H83: 4116.712704 | I83: 0 | J83: 2647.467793 | K83: 0 | L83: 2647.467793 | M83: =VLOOKUP(C83,APP_E!A:C,3,FALSE) -> 1845_Underground Conductors and Devices | N83: 21141_001 E13061 Galloway UG Rebuild Electrical SCNA47M14 | O83: =INDEX(APP_B!A:A,MATCH(DATA!B83,APP_B!N:N,0)) -> C1 Underground Infrastructure | P83: Underground Infrastructure and Cable | Q83: =VLOOKUP(C83,APP_E!A:D,4,FALSE) -> 1845_Underground Conductors and Devices | R83: =INDEX(APP_G!$A$4:$A$26,MATCH(DATA!O83,APP_G!$B$4:$B$26,0)) -> B1 Underground Infrastructure
A84: Y | B84: EST21141_001 | C84: AC2400 | E84: 77770.29168 | G84: =INDEX(APP_G!H:H,MATCH(O84,APP_G!B:B,0)) -> 0.6086047979 | H84: 47331.37265 | I84: 0 | J84: 30438.91903 | K84: 0 | L84: 30438.91903 | M84: =VLOOKUP(C84,APP_E!A:C,3,FALSE) -> 1850_Line Transformers | N84: 21141_001 E13061 Galloway UG Rebuild Electrical SCNA47M14 | O84: =INDEX(APP_B!A:A,MATCH(DATA!B84,APP_B!N:N,0)) -> C1 Underground Infrastructure | P84: Underground Infrastructure and Cable | Q84: =VLOOKUP(C84,APP_E!A:D,4,FALSE) -> 1850_Line Transformers - UG | R84: =INDEX(APP_G!$A$4:$A$26,MATCH(DATA!O84,APP_G!$B$4:$B$26,0)) -> B1 Underground Infrastructure
A85: Y | B85: EST21202_001 | C85: AC2240 | E85: 0 | G85: =INDEX(APP_G!H:H,MATCH(O85,APP_G!B:B,0)) -> 0.6086047979 | H85: 0 | I85: 0 | J85: 0 | K85: 0 | L85: 0 | M85: =VLOOKUP(C85,APP_E!A:C,3,FALSE) -> 1840_Underground Conduit | N85: 21202_001 E13069 NY51M24 UG Rebuild North of Finch Off Don Mills Road - Civil | O85: =INDEX(APP_B!A:A,MATCH(DATA!B85,APP_B!N:N,0)) -> C1 Underground Infrastructure | P85: Underground Infrastructure and Cable | Q85: =VLOOKUP(C85,APP_E!A:D,4,FALSE) -> 1840_Underground Conduit - Duct Bank | R85: =INDEX(APP_G!$A$4:$A$26,MATCH(DATA!O85,APP_G!$B$4:$B$26,0)) -> B1 Underground Infrastructure
A86: Y | B86: EST21202_001 | C86: AC2241 | E86: 0 | G86: =INDEX(APP_G!H:H,MATCH(O86,APP_G!B:B,0)) -> 0.6086047979 | H86: 0 | I86: 0 | J86: 0 | K86: 0 | L86: 0 | M86: =VLOOKUP(C86,APP_E!A:C,3,FALSE) -> 1840_Underground Conduit | N86: 21202_001 E13069 NY51M24 UG Rebuild North of Finch Off Don Mills Road - Civil | O86: =INDEX(APP_B!A:A,MATCH(DATA!B86,APP_B!N:N,0)) -> C1 Underground Infrastructure | P86: Underground Infrastructure and Cable | Q86: =VLOOKUP(C86,APP_E!A:D,4,FALSE) -> 1840_Underground Conduit - Vault | R86: =INDEX(APP_G!$A$4:$A$26,MATCH(DATA!O86,APP_G!$B$4:$B$26,0)) -> B1 Underground Infrastructure
A87: Y | B87: EST21202_001 | C87: AC2242 | E87: 0 | G87: =INDEX(APP_G!H:H,MATCH(O87,APP_G!B:B,0)) -> 0.6086047979 | H87: 0 | I87: 0 | J87: 0 | K87: 0 | L87: 0 | M87: =VLOOKUP(C87,APP_E!A:C,3,FALSE) -> 1840_Underground Conduit | N87: 21202_001 E13069 NY51M24 UG Rebuild North of Finch Off Don Mills Road - Civil | O87: =INDEX(APP_B!A:A,MATCH(DATA!B87,APP_B!N:N,0)) -> C1 Underground Infrastructure | P87: Underground Infrastructure and Cable | Q87: =VLOOKUP(C87,APP_E!A:D,4,FALSE) -> 1840_Underground Conduit - Vault Roof | R87: =INDEX(APP_G!$A$4:$A$26,MATCH(DATA!O87,APP_G!$B$4:$B$26,0)) -> B1 Underground Infrastructure
A88: Y | B88: EST21202_001 | C88: AC2243 | E88: 0 | G88: =INDEX(APP_G!H:H,MATCH(O88,APP_G!B:B,0)) -> 0.6086047979 | H88: 0 | I88: 0 | J88: 0 | K88: 0 | L88: 0 | M88: =VLOOKUP(C88,APP_E!A:C,3,FALSE) -> 1840_Underground Conduit | N88: 21202_001 E13069 NY51M24 UG Rebuild North of Finch Off Don Mills Road - Civil | O88: =INDEX(APP_B!A:A,MATCH(DATA!B88,APP_B!N:N,0)) -> C1 Underground Infrastructure | P88: Underground Infrastructure and Cable | Q88: =VLOOKUP(C88,APP_E!A:D,4,FALSE) -> 1840_Underground Conduit - Cable Chamber | R88: =INDEX(APP_G!$A$4:$A$26,MATCH(DATA!O88,APP_G!$B$4:$B$26,0)) -> B1 Underground Infrastructure
A89: Y | B89: EST21297_001 | C89: AC2260 | E89: 0 | G89: =INDEX(APP_G!H:H,MATCH(O89,APP_G!B:B,0)) -> 0.6086047979 | H89: 0 | I89: 0 | J89: 0 | K89: 0 | L89: 0 | M89: =VLOOKUP(C89,APP_E!A:C,3,FALSE) -> 1845_Underground Conductors and Devices | N89: 21297_001 E13077 UG Rehab of NY51M8 - Elec E13077 btn Leslie and Bayview | O89: =INDEX(APP_B!A:A,MATCH(DATA!B89,APP_B!N:N,0)) -> C1 Underground Infrastructure | P89: Underground Infrastructure and Cable | Q89: =VLOOKUP(C89,APP_E!A:D,4,FALSE) -> 1845_Underground Conductors and Devices | R89: =INDEX(APP_G!$A$4:$A$26,MATCH(DATA!O89,APP_G!$B$4:$B$26,0)) -> B1 Underground Infrastructure
A90: Y | B90: EST21297_001 | C90: AC2262 | E90: 0 | G90: =INDEX(APP_G!H:H,MATCH(O90,APP_G!B:B,0)) -> 0.6086047979 | H90: 0 | I90: 0 | J90: 0 | K90: 0 | L90: 0 | M90: =VLOOKUP(C90,APP_E!A:C,3,FALSE) -> 1845_Underground Conductors and Devices | N90: 21297_001 E13077 UG Rehab of NY51M8 - Elec E13077 btn Leslie and Bayview | O90: =INDEX(APP_B!A:A,MATCH(DATA!B90,APP_B!N:N,0)) -> C1 Underground Infrastructure | P90: Underground Infrastructure and Cable | Q90: =VLOOKUP(C90,APP_E!A:D,4,FALSE) -> 1845_Underground Conductors and Devices | R90: =INDEX(APP_G!$A$4:$A$26,MATCH(DATA!O90,APP_G!$B$4:$B$26,0)) -> B1 Underground Infrastructure
A91: Y | B91: EST21297_001 | C91: AC2263 | E91: 0 | G91: =INDEX(APP_G!H:H,MATCH(O91,APP_G!B:B,0)) -> 0.6086047979 | H91: 0 | I91: 0 | J91: 0 | K91: 0 | L91: 0 | M91: =VLOOKUP(C91,APP_E!A:C,3,FALSE) -> 1845_Underground Conductors and Devices | N91: 21297_001 E13077 UG Rehab of NY51M8 - Elec E13077 btn Leslie and Bayview | O91: =INDEX(APP_B!A:A,MATCH(DATA!B91,APP_B!N:N,0)) -> C1 Underground Infrastructure | P91: Underground Infrastructure and Cable | Q91: =VLOOKUP(C91,APP_E!A:D,4,FALSE) -> 1845_Underground Conductors and Devices | R91: =INDEX(APP_G!$A$4:$A$26,MATCH(DATA!O91,APP_G!$B$4:$B$26,0)) -> B1 Underground Infrastructure
A92: Y | B92: EST21297_001 | C92: AC2520 | E92: 0 | G92: =INDEX(APP_G!H:H,MATCH(O92,APP_G!B:B,0)) -> 0.6086047979 | H92: 0 | I92: 0 | J92: 0 | K92: 0 | L92: 0 | M92: =VLOOKUP(C92,APP_E!A:C,3,FALSE) -> 1855_Services | N92: 21297_001 E13077 UG Rehab of NY51M8 - Elec E13077 btn Leslie and Bayview | O92: =INDEX(APP_B!A:A,MATCH(DATA!B92,APP_B!N:N,0)) -> C1 Underground Infrastructure | P92: Underground Infrastructure and Cable | Q92: =VLOOKUP(C92,APP_E!A:D,4,FALSE) -> 1855_Services - UG | R92: =INDEX(APP_G!$A$4:$A$26,MATCH(DATA!O92,APP_G!$B$4:$B$26,0)) -> B1 Underground Infrastructure
A93: Y | B93: EST21298_001 | C93: AC2240 | E93: 1164321.904 | G93: =INDEX(APP_G!H:H,MATCH(O93,APP_G!B:B,0)) -> 0.6086047979 | H93: 708611.8973 | I93: 0 | J93: 455710.0072 | K93: 0 | L93: 455710.0072 | M93: =VLOOKUP(C93,APP_E!A:C,3,FALSE) -> 1840_Underground Conduit | N93: 21298_001 E13078 UG Rehab of NY51M8 - Civil E13078 btn Leslie and Bayview | O93: =INDEX(APP_B!A:A,MATCH(DATA!B93,APP_B!N:N,0)) -> C1 Underground Infrastructure | P93: Underground Infrastructure and Cable | Q93: =VLOOKUP(C93,APP_E!A:D,4,FALSE) -> 1840_Underground Conduit - Duct Bank | R93: =INDEX(APP_G!$A$4:$A$26,MATCH(DATA!O93,APP_G!$B$4:$B$26,0)) -> B1 Underground Infrastructure
A94: Y | B94: EST21298_001 | C94: AC2241 | E94: 92851.62956 | G94: =INDEX(APP_G!H:H,MATCH(O94,APP_G!B:B,0)) -> 0.6086047979 | H94: 56509.94724 | I94: 0 | J94: 36341.68232 | K94: 0 | L94: 36341.68232 | M94: =VLOOKUP(C94,APP_E!A:C,3,FALSE) -> 1840_Underground Conduit | N94: 21298_001 E13078 UG Rehab of NY51M8 - Civil E13078 btn Leslie and Bayview | O94: =INDEX(APP_B!A:A,MATCH(DATA!B94,APP_B!N:N,0)) -> C1 Underground Infrastructure | P94: Underground Infrastructure and Cable | Q94: =VLOOKUP(C94,APP_E!A:D,4,FALSE) -> 1840_Underground Conduit - Vault | R94: =INDEX(APP_G!$A$4:$A$26,MATCH(DATA!O94,APP_G!$B$4:$B$26,0)) -> B1 Underground Infrastructure
A95: Y | B95: EST21298_001 | C95: AC2243 | E95: 3714.049982 | G95: =INDEX(APP_G!H:H,MATCH(O95,APP_G!B:B,0)) -> 0.6086047979 | H95: 2260.388639 | I95: 0 | J95: 1453.661344 | K95: 0 | L95: 1453.661344 | M95: =VLOOKUP(C95,APP_E!A:C,3,FALSE) -> 1840_Underground Conduit | N95: 21298_001 E13078 UG Rehab of NY51M8 - Civil E13078 btn Leslie and Bayview | O95: =INDEX(APP_B!A:A,MATCH(DATA!B95,APP_B!N:N,0)) -> C1 Underground Infrastructure | P95: Underground Infrastructure and Cable | Q95: =VLOOKUP(C95,APP_E!A:D,4,FALSE) -> 1840_Underground Conduit - Cable Chamber | R95: =INDEX(APP_G!$A$4:$A$26,MATCH(DATA!O95,APP_G!$B$4:$B$26,0)) -> B1 Underground Infrastructure
A96: Y | B96: EST18652_002 | C96: AC2240 | E96: 0 | G96: =INDEX(APP_G!H:H,MATCH(O96,APP_G!B:B,0)) -> 0.6086047979 | H96: 0 | I96: 0 | J96: 0 | K96: 0 | L96: 0 | M96: =VLOOKUP(C96,APP_E!A:C,3,FALSE) -> 1840_Underground Conduit | N96: 18652_002 E11421 Dundalk NAE5-1M29 UG Reb (Civil) Deferred from 2011 | O96: =INDEX(APP_B!A:A,MATCH(DATA!B96,APP_B!N:N,0)) -> C1 Underground Infrastructure | P96: Underground Infrastructure and Cable | Q96: =VLOOKUP(C96,APP_E!A:D,4,FALSE) -> 1840_Underground Conduit - Duct Bank | R96: =INDEX(APP_G!$A$4:$A$26,MATCH(DATA!O96,APP_G!$B$4:$B$26,0)) -> B1 Underground Infrastructure
A97: Y | B97: EST18652_002 | C97: AC2241 | E97: 0 | G97: =INDEX(APP_G!H:H,MATCH(O97,APP_G!B:B,0)) -> 0.6086047979 | H97: 0 | I97: 0 | J97: 0 | K97: 0 | L97: 0 | M97: =VLOOKUP(C97,APP_E!A:C,3,FALSE) -> 1840_Underground Conduit | N97: 18652_002 E11421 Dundalk NAE5-1M29 UG Reb (Civil) Deferred from 2011 | O97: =INDEX(APP_B!A:A,MATCH(DATA!B97,APP_B!N:N,0)) -> C1 Underground Infrastructure | P97: Underground Infrastructure and Cable | Q97: =VLOOKUP(C97,APP_E!A:D,4,FALSE) -> 1840_Underground Conduit - Vault | R97: =INDEX(APP_G!$A$4:$A$26,MATCH(DATA!O97,APP_G!$B$4:$B$26,0)) -> B1 Underground Infrastructure
A98: Y | B98: EST18653_002 | C98: AC2240 | E98: 68634.55937 | G98: =INDEX(APP_G!H:H,MATCH(O98,APP_G!B:B,0)) -> 0.6086047979 | H98: 41771.32213 | I98: 0 | J98: 26863.23724 | K98: 0 | L98: 26863.23724 | M98: =VLOOKUP(C98,APP_E!A:C,3,FALSE) -> 1840_Underground Conduit | N98: 18653_002 E11421 Dundalk NAE5-1M29 UG Reb (Elec) Deferred from 2011 | O98: =INDEX(APP_B!A:A,MATCH(DATA!B98,APP_B!N:N,0)) -> C1 Underground Infrastructure | P98: Underground Infrastructure and Cable | Q98: =VLOOKUP(C98,APP_E!A:D,4,FALSE) -> 1840_Underground Conduit - Duct Bank | R98: =INDEX(APP_G!$A$4:$A$26,MATCH(DATA!O98,APP_G!$B$4:$B$26,0)) -> B1 Underground Infrastructure
A99: Y | B99: EST18653_002 | C99: AC2260 | E99: 1012126.798 | G99: =INDEX(APP_G!H:H,MATCH(O99,APP_G!B:B,0)) -> 0.6086047979 | H99: 615985.2255 | I99: 0 | J99: 396141.5729 | K99: 0 | L99: 396141.5729 | M99: =VLOOKUP(C99,APP_E!A:C,3,FALSE) -> 1845_Underground Conductors and Devices | N99: 18653_002 E11421 Dundalk NAE5-1M29 UG Reb (Elec) Deferred from 2011 | O99: =INDEX(APP_B!A:A,MATCH(DATA!B99,APP_B!N:N,0)) -> C1 Underground Infrastructure | P99: Underground Infrastructure and Cable | Q99: =VLOOKUP(C99,APP_E!A:D,4,FALSE) -> 1845_Underground Conductors and Devices | R99: =INDEX(APP_G!$A$4:$A$26,MATCH(DATA!O99,APP_G!$B$4:$B$26,0)) -> B1 Underground Infrastructure
A100: Y | B100: EST18653_002 | C100: AC2262 | E100: 27384.38525 | G100: =INDEX(APP_G!H:H,MATCH(O100,APP_G!B:B,0)) -> 0.6086047979 | H100: 16666.26825 | I100: 0 | J100: 10718.117 | K100: 0 | L100: 10718.117 | M100: =VLOOKUP(C100,APP_E!A:C,3,FALSE) -> 1845_Underground Conductors and Devices | N100: 18653_002 E11421 Dundalk NAE5-1M29 UG Reb (Elec) Deferred from 2011 | O100: =INDEX(APP_B!A:A,MATCH(DATA!B100,APP_B!N:N,0)) -> C1 Underground Infrastructure | P100: Underground Infrastructure and Cable | Q100: =VLOOKUP(C100,APP_E!A:D,4,FALSE) -> 1845_Underground Conductors and Devices | R100: =INDEX(APP_G!$A$4:$A$26,MATCH(DATA!O100,APP_G!$B$4:$B$26,0)) -> B1 Underground Infrastructure
A101: Y | B101: EST18653_002 | C101: AC2263 | E101: 55864.14631 | G101: =INDEX(APP_G!H:H,MATCH(O101,APP_G!B:B,0)) -> 0.6086047979 | H101: 33999.18747 | I101: 0 | J101: 21864.95884 | K101: 0 | L101: 21864.95884 | M101: =VLOOKUP(C101,APP_E!A:C,3,FALSE) -> 1845_Underground Conductors and Devices | N101: 18653_002 E11421 Dundalk NAE5-1M29 UG Reb (Elec) Deferred from 2011 | O101: =INDEX(APP_B!A:A,MATCH(DATA!B101,APP_B!N:N,0)) -> C1 Underground Infrastructure | P101: Underground Infrastructure and Cable | Q101: =VLOOKUP(C101,APP_E!A:D,4,FALSE) -> 1845_Underground Conductors and Devices | R101: =INDEX(APP_G!$A$4:$A$26,MATCH(DATA!O101,APP_G!$B$4:$B$26,0)) -> B1 Underground Infrastructure
A102: Y | B102: EST18653_002 | C102: AC2281 | E102: 128797.5288 | G102: =INDEX(APP_G!H:H,MATCH(O102,APP_G!B:B,0)) -> 0.6086047979 | H102: 78386.79399 | I102: 0 | J102: 50410.73483 | K102: 0 | L102: 50410.73483 | M102: =VLOOKUP(C102,APP_E!A:C,3,FALSE) -> 1845_Underground Conductors and Devices | N102: 18653_002 E11421 Dundalk NAE5-1M29 UG Reb (Elec) Deferred from 2011 | O102: =INDEX(APP_B!A:A,MATCH(DATA!B102,APP_B!N:N,0)) -> C1 Underground Infrastructure | P102: Underground Infrastructure and Cable | Q102: =VLOOKUP(C102,APP_E!A:D,4,FALSE) -> 1845_Underground Conductors and Devices - Switch | R102: =INDEX(APP_G!$A$4:$A$26,MATCH(DATA!O102,APP_G!$B$4:$B$26,0)) -> B1 Underground Infrastructure
A103: Y | B103: EST18653_002 | C103: AC2400 | E103: 341987.1169 | G103: =INDEX(APP_G!H:H,MATCH(O103,APP_G!B:B,0)) -> 0.6086047979 | H103: 208135.0001 | I103: 0 | J103: 133852.1167 | K103: 0 | L103: 133852.1167 | M103: =VLOOKUP(C103,APP_E!A:C,3,FALSE) -> 1850_Line Transformers | N103: 18653_002 E11421 Dundalk NAE5-1M29 UG Reb (Elec) Deferred from 2011 | O103: =INDEX(APP_B!A:A,MATCH(DATA!B103,APP_B!N:N,0)) -> C1 Underground Infrastructure | P103: Underground Infrastructure and Cable | Q103: =VLOOKUP(C103,APP_E!A:D,4,FALSE) -> 1850_Line Transformers - UG | R103: =INDEX(APP_G!$A$4:$A$26,MATCH(DATA!O103,APP_G!$B$4:$B$26,0)) -> B1 Underground Infrastructure
A104: Y | B104: EST19522_001 | C104: AC2120 | E104: 4135.556099 | G104: =INDEX(APP_G!H:H,MATCH(O104,APP_G!B:B,0)) -> 0.6086047979 | H104: 2516.919284 | I104: 0 | J104: 1618.636815 | K104: 0 | L104: 1618.636815 | M104: =VLOOKUP(C104,APP_E!A:C,3,FALSE) -> 1830_Poles Towers and Fixtures | N104: 19522_001 W12077 Donwoods Area DB Cable Replm | O104: =INDEX(APP_B!A:A,MATCH(DATA!B104,APP_B!N:N,0)) -> C1 Underground Infrastructure | P104: Underground Infrastructure and Cable | Q104: =VLOOKUP(C104,APP_E!A:D,4,FALSE) -> 1830_Poles Towers and Fixtures | R104: =INDEX(APP_G!$A$4:$A$26,MATCH(DATA!O104,APP_G!$B$4:$B$26,0)) -> B1 Underground Infrastructure
A105: Y | B105: EST19522_001 | C105: AC2121 | E105: 271568.2269 | G105: =INDEX(APP_G!H:H,MATCH(O105,APP_G!B:B,0)) -> 0.6086047979 | H105: 165277.7259 | I105: 0 | J105: 106290.5011 | K105: 0 | L105: 106290.5011 | M105: =VLOOKUP(C105,APP_E!A:C,3,FALSE) -> 1830_Poles Towers and Fixtures | N105: 19522_001 W12077 Donwoods Area DB Cable Replm | O105: =INDEX(APP_B!A:A,MATCH(DATA!B105,APP_B!N:N,0)) -> C1 Underground Infrastructure | P105: Underground Infrastructure and Cable | Q105: =VLOOKUP(C105,APP_E!A:D,4,FALSE) -> 1830_Poles Towers and Fixtures | R105: =INDEX(APP_G!$A$4:$A$26,MATCH(DATA!O105,APP_G!$B$4:$B$26,0)) -> B1 Underground Infrastructure
A106: Y | B106: EST19522_001 | C106: AC2160 | E106: 77582.47176 | G106: =INDEX(APP_G!H:H,MATCH(O106,APP_G!B:B,0)) -> 0.6086047979 | H106: 47217.06454 | I106: 0 | J106: 30365.40722 | K106: 0 | L106: 30365.40722 | M106: =VLOOKUP(C106,APP_E!A:C,3,FALSE) -> 1835_Overhead Conductors and Devices | N106: 19522_001 W12077 Donwoods Area DB Cable Replm | O106: =INDEX(APP_B!A:A,MATCH(DATA!B106,APP_B!N:N,0)) -> C1 Underground Infrastructure | P106: Underground Infrastructure and Cable | Q106: =VLOOKUP(C106,APP_E!A:D,4,FALSE) -> 1835_Overhead Conductors and Devices | R106: =INDEX(APP_G!$A$4:$A$26,MATCH(DATA!O106,APP_G!$B$4:$B$26,0)) -> B1 Underground Infrastructure
A107: Y | B107: EST19522_001 | C107: AC2165 | E107: 56411.43604 | G107: =INDEX(APP_G!H:H,MATCH(O107,APP_G!B:B,0)) -> 0.6086047979 | H107: 34332.27063 | I107: 0 | J107: 22079.16541 | K107: 0 | L107: 22079.16541 | M107: =VLOOKUP(C107,APP_E!A:C,3,FALSE) -> 1835_Overhead Conductors and Devices | N107: 19522_001 W12077 Donwoods Area DB Cable Replm | O107: =INDEX(APP_B!A:A,MATCH(DATA!B107,APP_B!N:N,0)) -> C1 Underground Infrastructure | P107: Underground Infrastructure and Cable | Q107: =VLOOKUP(C107,APP_E!A:D,4,FALSE) -> 1835_Overhead Conductors and Devices | R107: =INDEX(APP_G!$A$4:$A$26,MATCH(DATA!O107,APP_G!$B$4:$B$26,0)) -> B1 Underground Infrastructure
A108: Y | B108: EST19522_001 | C108: AC2180 | E108: 2782.424271 | G108: =INDEX(APP_G!H:H,MATCH(O108,APP_G!B:B,0)) -> 0.6086047979 | H108: 1693.396761 | I108: 0 | J108: 1089.02751 | K108: 0 | L108: 1089.02751 | M108: =VLOOKUP(C108,APP_E!A:C,3,FALSE) -> 1835_Overhead Conductors and Devices | N108: 19522_001 W12077 Donwoods Area DB Cable Replm | O108: =INDEX(APP_B!A:A,MATCH(DATA!B108,APP_B!N:N,0)) -> C1 Underground Infrastructure | P108: Underground Infrastructure and Cable | Q108: =VLOOKUP(C108,APP_E!A:D,4,FALSE) -> 1835_Overhead Conductors and Devices - Switches | R108: =INDEX(APP_G!$A$4:$A$26,MATCH(DATA!O108,APP_G!$B$4:$B$26,0)) -> B1 Underground Infrastructure
A109: Y | B109: EST19522_001 | C109: AC2240 | E109: 964285.2964 | G109: =INDEX(APP_G!H:H,MATCH(O109,APP_G!B:B,0)) -> 0.6086047979 | H109: 586868.6579 | I109: 0 | J109: 377416.6385 | K109: 0 | L109: 377416.6385 | M109: =VLOOKUP(C109,APP_E!A:C,3,FALSE) -> 1840_Underground Conduit | N109: 19522_001 W12077 Donwoods Area DB Cable Replm | O109: =INDEX(APP_B!A:A,MATCH(DATA!B109,APP_B!N:N,0)) -> C1 Underground Infrastructure | P109: Underground Infrastructure and Cable | Q109: =VLOOKUP(C109,APP_E!A:D,4,FALSE) -> 1840_Underground Conduit - Duct Bank | R109: =INDEX(APP_G!$A$4:$A$26,MATCH(DATA!O109,APP_G!$B$4:$B$26,0)) -> B1 Underground Infrastructure
A110: Y | B110: EST19522_001 | C110: AC2241 | E110: 34457.82423 | G110: =INDEX(APP_G!H:H,MATCH(O110,APP_G!B:B,0)) -> 0.6086047979 | H110: 20971.19715 | I110: 0 | J110: 13486.62708 | K110: 0 | L110: 13486.62708 | M110: =VLOOKUP(C110,APP_E!A:C,3,FALSE) -> 1840_Underground Conduit | N110: 19522_001 W12077 Donwoods Area DB Cable Replm | O110: =INDEX(APP_B!A:A,MATCH(DATA!B110,APP_B!N:N,0)) -> C1 Underground Infrastructure | P110: Underground Infrastructure and Cable | Q110: =VLOOKUP(C110,APP_E!A:D,4,FALSE) -> 1840_Underground Conduit - Vault | R110: =INDEX(APP_G!$A$4:$A$26,MATCH(DATA!O110,APP_G!$B$4:$B$26,0)) -> B1 Underground Infrastructure
A111: Y | B111: EST19522_001 | C111: AC2243 | E111: 128882.7501 | G111: =INDEX(APP_G!H:H,MATCH(O111,APP_G!B:B,0)) -> 0.6086047979 | H111: 78438.66008 | I111: 0 | J111: 50444.09003 | K111: 0 | L111: 50444.09003 | M111: =VLOOKUP(C111,APP_E!A:C,3,FALSE) -> 1840_Underground Conduit | N111: 19522_001 W12077 Donwoods Area DB Cable Replm | O111: =INDEX(APP_B!A:A,MATCH(DATA!B111,APP_B!N:N,0)) -> C1 Underground Infrastructure | P111: Underground Infrastructure and Cable | Q111: =VLOOKUP(C111,APP_E!A:D,4,FALSE) -> 1840_Underground Conduit - Cable Chamber | R111: =INDEX(APP_G!$A$4:$A$26,MATCH(DATA!O111,APP_G!$B$4:$B$26,0)) -> B1 Underground Infrastructure
A112: Y | B112: EST19522_001 | C112: AC2260 | E112: 198681.5925 | G112: =INDEX(APP_G!H:H,MATCH(O112,APP_G!B:B,0)) -> 0.6086047979 | H112: 120918.5704 | I112: 0 | J112: 77763.02205 | K112: 0 | L112: 77763.02205 | M112: =VLOOKUP(C112,APP_E!A:C,3,FALSE) -> 1845_Underground Conductors and Devices | N112: 19522_001 W12077 Donwoods Area DB Cable Replm | O112: =INDEX(APP_B!A:A,MATCH(DATA!B112,APP_B!N:N,0)) -> C1 Underground Infrastructure | P112: Underground Infrastructure and Cable | Q112: =VLOOKUP(C112,APP_E!A:D,4,FALSE) -> 1845_Underground Conductors and Devices | R112: =INDEX(APP_G!$A$4:$A$26,MATCH(DATA!O112,APP_G!$B$4:$B$26,0)) -> B1 Underground Infrastructure
A113: Y | B113: EST19522_001 | C113: AC2262 | E113: 5375.584775 | G113: =INDEX(APP_G!H:H,MATCH(O113,APP_G!B:B,0)) -> 0.6086047979 | H113: 3271.606685 | I113: 0 | J113: 2103.97809 | K113: 0 | L113: 2103.97809 | M113: =VLOOKUP(C113,APP_E!A:C,3,FALSE) -> 1845_Underground Conductors and Devices | N113: 19522_001 W12077 Donwoods Area DB Cable Replm | O113: =INDEX(APP_B!A:A,MATCH(DATA!B113,APP_B!N:N,0)) -> C1 Underground Infrastructure | P113: Underground Infrastructure and Cable | Q113: =VLOOKUP(C113,APP_E!A:D,4,FALSE) -> 1845_Underground Conductors and Devices | R113: =INDEX(APP_G!$A$4:$A$26,MATCH(DATA!O113,APP_G!$B$4:$B$26,0)) -> B1 Underground Infrastructure
A114: Y | B114: EST19522_001 | C114: AC2263 | E114: 10966.19125 | G114: =INDEX(APP_G!H:H,MATCH(O114,APP_G!B:B,0)) -> 0.6086047979 | H114: 6674.076612 | I114: 0 | J114: 4292.114643 | K114: 0 | L114: 4292.114643 | M114: =VLOOKUP(C114,APP_E!A:C,3,FALSE) -> 1845_Underground Conductors and Devices | N114: 19522_001 W12077 Donwoods Area DB Cable Replm | O114: =INDEX(APP_B!A:A,MATCH(DATA!B114,APP_B!N:N,0)) -> C1 Underground Infrastructure | P114: Underground Infrastructure and Cable | Q114: =VLOOKUP(C114,APP_E!A:D,4,FALSE) -> 1845_Underground Conductors and Devices | R114: =INDEX(APP_G!$A$4:$A$26,MATCH(DATA!O114,APP_G!$B$4:$B$26,0)) -> B1 Underground Infrastructure
A115: Y | B115: EST19522_001 | C115: AC2281 | E115: 9957.037184 | G115: =INDEX(APP_G!H:H,MATCH(O115,APP_G!B:B,0)) -> 0.6086047979 | H115: 6059.900602 | I115: 0 | J115: 3897.136581 | K115: 0 | L115: 3897.136581 | M115: =VLOOKUP(C115,APP_E!A:C,3,FALSE) -> 1845_Underground Conductors and Devices | N115: 19522_001 W12077 Donwoods Area DB Cable Replm | O115: =INDEX(APP_B!A:A,MATCH(DATA!B115,APP_B!N:N,0)) -> C1 Underground Infrastructure | P115: Underground Infrastructure and Cable | Q115: =VLOOKUP(C115,APP_E!A:D,4,FALSE) -> 1845_Underground Conductors and Devices - Switch | R115: =INDEX(APP_G!$A$4:$A$26,MATCH(DATA!O115,APP_G!$B$4:$B$26,0)) -> B1 Underground Infrastructure
A116: Y | B116: EST19522_001 | C116: AC2360 | E116: 10606.19337 | G116: =INDEX(APP_G!H:H,MATCH(O116,APP_G!B:B,0)) -> 0.6086047979 | H116: 6454.98017 | I116: 0 | J116: 4151.213197 | K116: 0 | L116: 4151.213197 | M116: =VLOOKUP(C116,APP_E!A:C,3,FALSE) -> 1850_Line Transformers | N116: 19522_001 W12077 Donwoods Area DB Cable Replm | O116: =INDEX(APP_B!A:A,MATCH(DATA!B116,APP_B!N:N,0)) -> C1 Underground Infrastructure | P116: Underground Infrastructure and Cable | Q116: =VLOOKUP(C116,APP_E!A:D,4,FALSE) -> 1850_Line Transformers - OH | R116: =INDEX(APP_G!$A$4:$A$26,MATCH(DATA!O116,APP_G!$B$4:$B$26,0)) -> B1 Underground Infrastructure
A117: Y | B117: EST19522_001 | C117: AC2400 | E117: 148360.3466 | G117: =INDEX(APP_G!H:H,MATCH(O117,APP_G!B:B,0)) -> 0.6086047979 | H117: 90292.81875 | I117: 0 | J117: 58067.52785 | K117: 0 | L117: 58067.52785 | M117: =VLOOKUP(C117,APP_E!A:C,3,FALSE) -> 1850_Line Transformers | N117: 19522_001 W12077 Donwoods Area DB Cable Replm | O117: =INDEX(APP_B!A:A,MATCH(DATA!B117,APP_B!N:N,0)) -> C1 Underground Infrastructure | P117: Underground Infrastructure and Cable | Q117: =VLOOKUP(C117,APP_E!A:D,4,FALSE) -> 1850_Line Transformers - UG | R117: =INDEX(APP_G!$A$4:$A$26,MATCH(DATA!O117,APP_G!$B$4:$B$26,0)) -> B1 Underground Infrastructure
A118: Y | B118: EST19522_001 | C118: AC2500 | E118: 29298.48651 | G118: =INDEX(APP_G!H:H,MATCH(O118,APP_G!B:B,0)) -> 0.6086047979 | H118: 17831.19946 | I118: 0 | J118: 11467.28705 | K118: 0 | L118: 11467.28705 | M118: =VLOOKUP(C118,APP_E!A:C,3,FALSE) -> 1855_Services | N118: 19522_001 W12077 Donwoods Area DB Cable Replm | O118: =INDEX(APP_B!A:A,MATCH(DATA!B118,APP_B!N:N,0)) -> C1 Underground Infrastructure | P118: Underground Infrastructure and Cable | Q118: =VLOOKUP(C118,APP_E!A:D,4,FALSE) -> 1855_Services - OH | R118: =INDEX(APP_G!$A$4:$A$26,MATCH(DATA!O118,APP_G!$B$4:$B$26,0)) -> B1 Underground Infrastructure
A119: Y | B119: EST19522_001 | C119: AC2520 | E119: 3784.772377 | G119: =INDEX(APP_G!H:H,MATCH(O119,APP_G!B:B,0)) -> 0.6086047979 | H119: 2303.430628 | I119: 0 | J119: 1481.34175 | K119: 0 | L119: 1481.34175 | M119: =VLOOKUP(C119,APP_E!A:C,3,FALSE) -> 1855_Services | N119: 19522_001 W12077 Donwoods Area DB Cable Replm | O119: =INDEX(APP_B!A:A,MATCH(DATA!B119,APP_B!N:N,0)) -> C1 Underground Infrastructure | P119: Underground Infrastructure and Cable | Q119: =VLOOKUP(C119,APP_E!A:D,4,FALSE) -> 1855_Services - UG | R119: =INDEX(APP_G!$A$4:$A$26,MATCH(DATA!O119,APP_G!$B$4:$B$26,0)) -> B1 Underground Infrastructure
A120: Y | B120: EST19522_001 | C120: AC2640 | E120: 1124.485486 | G120: =INDEX(APP_G!H:H,MATCH(O120,APP_G!B:B,0)) -> 0.6086047979 | H120: 684.3672621 | I120: 0 | J120: 440.1182242 | K120: 0 | L120: 440.1182242 | M120: =VLOOKUP(C120,APP_E!A:C,3,FALSE) -> 1860_Meters | N120: 19522_001 W12077 Donwoods Area DB Cable Replm | O120: =INDEX(APP_B!A:A,MATCH(DATA!B120,APP_B!N:N,0)) -> C1 Underground Infrastructure | P120: Underground Infrastructure and Cable | Q120: =VLOOKUP(C120,APP_E!A:D,4,FALSE) -> 1860_Meters - Smart Meters | R120: =INDEX(APP_G!$A$4:$A$26,MATCH(DATA!O120,APP_G!$B$4:$B$26,0)) -> B1 Underground Infrastructure
A121: Y | B121: EST20051_009 | C121: AC2120 | E121: 0 | G121: =INDEX(APP_G!H:H,MATCH(O121,APP_G!B:B,0)) -> 0.6086047979 | H121: 0 | I121: 0 | J121: 0 | K121: 0 | L121: 0 | M121: =VLOOKUP(C121,APP_E!A:C,3,FALSE) -> 1830_Poles Towers and Fixtures | N121: 20051_009 E12213 MORNINGSIDE ELECTRICAL DO NOT PACKAGE for budget | O121: =INDEX(APP_B!A:A,MATCH(DATA!B121,APP_B!N:N,0)) -> C1 Underground Infrastructure | P121: Underground Infrastructure and Cable | Q121: =VLOOKUP(C121,APP_E!A:D,4,FALSE) -> 1830_Poles Towers and Fixtures | R121: =INDEX(APP_G!$A$4:$A$26,MATCH(DATA!O121,APP_G!$B$4:$B$26,0)) -> B1 Underground Infrastructure
A122: Y | B122: EST20051_009 | C122: AC2121 | E122: 0 | G122: =INDEX(APP_G!H:H,MATCH(O122,APP_G!B:B,0)) -> 0.6086047979 | H122: 0 | I122: 0 | J122: 0 | K122: 0 | L122: 0 | M122: =VLOOKUP(C122,APP_E!A:C,3,FALSE) -> 1830_Poles Towers and Fixtures | N122: 20051_009 E12213 MORNINGSIDE ELECTRICAL DO NOT PACKAGE for budget | O122: =INDEX(APP_B!A:A,MATCH(DATA!B122,APP_B!N:N,0)) -> C1 Underground Infrastructure | P122: Underground Infrastructure and Cable | Q122: =VLOOKUP(C122,APP_E!A:D,4,FALSE) -> 1830_Poles Towers and Fixtures | R122: =INDEX(APP_G!$A$4:$A$26,MATCH(DATA!O122,APP_G!$B$4:$B$26,0)) -> B1 Underground Infrastructure
A123: Y | B123: EST20051_009 | C123: AC2160 | E123: 0 | G123: =INDEX(APP_G!H:H,MATCH(O123,APP_G!B:B,0)) -> 0.6086047979 | H123: 0 | I123: 0 | J123: 0 | K123: 0 | L123: 0 | M123: =VLOOKUP(C123,APP_E!A:C,3,FALSE) -> 1835_Overhead Conductors and Devices | N123: 20051_009 E12213 MORNINGSIDE ELECTRICAL DO NOT PACKAGE for budget | O123: =INDEX(APP_B!A:A,MATCH(DATA!B123,APP_B!N:N,0)) -> C1 Underground Infrastructure | P123: Underground Infrastructure and Cable | Q123: =VLOOKUP(C123,APP_E!A:D,4,FALSE) -> 1835_Overhead Conductors and Devices | R123: =INDEX(APP_G!$A$4:$A$26,MATCH(DATA!O123,APP_G!$B$4:$B$26,0)) -> B1 Underground Infrastructure
A124: Y | B124: EST20051_009 | C124: AC2165 | E124: 0 | G124: =INDEX(APP_G!H:H,MATCH(O124,APP_G!B:B,0)) -> 0.6086047979 | H124: 0 | I124: 0 | J124: 0 | K124: 0 | L124: 0 | M124: =VLOOKUP(C124,APP_E!A:C,3,FALSE) -> 1835_Overhead Conductors and Devices | N124: 20051_009 E12213 MORNINGSIDE ELECTRICAL DO NOT PACKAGE for budget | O124: =INDEX(APP_B!A:A,MATCH(DATA!B124,APP_B!N:N,0)) -> C1 Underground Infrastructure | P124: Underground Infrastructure and Cable | Q124: =VLOOKUP(C124,APP_E!A:D,4,FALSE) -> 1835_Overhead Conductors and Devices | R124: =INDEX(APP_G!$A$4:$A$26,MATCH(DATA!O124,APP_G!$B$4:$B$26,0)) -> B1 Underground Infrastructure
A125: Y | B125: EST20051_009 | C125: AC2180 | E125: 0 | G125: =INDEX(APP_G!H:H,MATCH(O125,APP_G!B:B,0)) -> 0.6086047979 | H125: 0 | I125: 0 | J125: 0 | K125: 0 | L125: 0 | M125: =VLOOKUP(C125,APP_E!A:C,3,FALSE) -> 1835_Overhead Conductors and Devices | N125: 20051_009 E12213 MORNINGSIDE ELECTRICAL DO NOT PACKAGE for budget | O125: =INDEX(APP_B!A:A,MATCH(DATA!B125,APP_B!N:N,0)) -> C1 Underground Infrastructure | P125: Underground Infrastructure and Cable | Q125: =VLOOKUP(C125,APP_E!A:D,4,FALSE) -> 1835_Overhead Conductors and Devices - Switches | R125: =INDEX(APP_G!$A$4:$A$26,MATCH(DATA!O125,APP_G!$B$4:$B$26,0)) -> B1 Underground Infrastructure
A126: Y | B126: EST20051_009 | C126: AC2240 | E126: 0 | G126: =INDEX(APP_G!H:H,MATCH(O126,APP_G!B:B,0)) -> 0.6086047979 | H126: 0 | I126: 0 | J126: 0 | K126: 0 | L126: 0 | M126: =VLOOKUP(C126,APP_E!A:C,3,FALSE) -> 1840_Underground Conduit | N126: 20051_009 E12213 MORNINGSIDE ELECTRICAL DO NOT PACKAGE for budget | O126: =INDEX(APP_B!A:A,MATCH(DATA!B126,APP_B!N:N,0)) -> C1 Underground Infrastructure | P126: Underground Infrastructure and Cable | Q126: =VLOOKUP(C126,APP_E!A:D,4,FALSE) -> 1840_Underground Conduit - Duct Bank | R126: =INDEX(APP_G!$A$4:$A$26,MATCH(DATA!O126,APP_G!$B$4:$B$26,0)) -> B1 Underground Infrastructure
A127: Y | B127: EST20051_009 | C127: AC2241 | E127: 0 | G127: =INDEX(APP_G!H:H,MATCH(O127,APP_G!B:B,0)) -> 0.6086047979 | H127: 0 | I127: 0 | J127: 0 | K127: 0 | L127: 0 | M127: =VLOOKUP(C127,APP_E!A:C,3,FALSE) -> 1840_Underground Conduit | N127: 20051_009 E12213 MORNINGSIDE ELECTRICAL DO NOT PACKAGE for budget | O127: =INDEX(APP_B!A:A,MATCH(DATA!B127,APP_B!N:N,0)) -> C1 Underground Infrastructure | P127: Underground Infrastructure and Cable | Q127: =VLOOKUP(C127,APP_E!A:D,4,FALSE) -> 1840_Underground Conduit - Vault | R127: =INDEX(APP_G!$A$4:$A$26,MATCH(DATA!O127,APP_G!$B$4:$B$26,0)) -> B1 Underground Infrastructure
A128: Y | B128: EST20051_009 | C128: AC2243 | E128: 0 | G128: =INDEX(APP_G!H:H,MATCH(O128,APP_G!B:B,0)) -> 0.6086047979 | H128: 0 | I128: 0 | J128: 0 | K128: 0 | L128: 0 | M128: =VLOOKUP(C128,APP_E!A:C,3,FALSE) -> 1840_Underground Conduit | N128: 20051_009 E12213 MORNINGSIDE ELECTRICAL DO NOT PACKAGE for budget | O128: =INDEX(APP_B!A:A,MATCH(DATA!B128,APP_B!N:N,0)) -> C1 Underground Infrastructure | P128: Underground Infrastructure and Cable | Q128: =VLOOKUP(C128,APP_E!A:D,4,FALSE) -> 1840_Underground Conduit - Cable Chamber | R128: =INDEX(APP_G!$A$4:$A$26,MATCH(DATA!O128,APP_G!$B$4:$B$26,0)) -> B1 Underground Infrastructure
A129: Y | B129: EST20051_009 | C129: AC2260 | E129: 0 | G129: =INDEX(APP_G!H:H,MATCH(O129,APP_G!B:B,0)) -> 0.6086047979 | H129: 0 | I129: 0 | J129: 0 | K129: 0 | L129: 0 | M129: =VLOOKUP(C129,APP_E!A:C,3,FALSE) -> 1845_Underground Conductors and Devices | N129: 20051_009 E12213 MORNINGSIDE ELECTRICAL DO NOT PACKAGE for budget | O129: =INDEX(APP_B!A:A,MATCH(DATA!B129,APP_B!N:N,0)) -> C1 Underground Infrastructure | P129: Underground Infrastructure and Cable | Q129: =VLOOKUP(C129,APP_E!A:D,4,FALSE) -> 1845_Underground Conductors and Devices | R129: =INDEX(APP_G!$A$4:$A$26,MATCH(DATA!O129,APP_G!$B$4:$B$26,0)) -> B1 Underground Infrastructure
A130: Y | B130: EST20051_009 | C130: AC2262 | E130: 0 | G130: =INDEX(APP_G!H:H,MATCH(O130,APP_G!B:B,0)) -> 0.6086047979 | H130: 0 | I130: 0 | J130: 0 | K130: 0 | L130: 0 | M130: =VLOOKUP(C130,APP_E!A:C,3,FALSE) -> 1845_Underground Conductors and Devices | N130: 20051_009 E12213 MORNINGSIDE ELECTRICAL DO NOT PACKAGE for budget | O130: =INDEX(APP_B!A:A,MATCH(DATA!B130,APP_B!N:N,0)) -> C1 Underground Infrastructure | P130: Underground Infrastructure and Cable | Q130: =VLOOKUP(C130,APP_E!A:D,4,FALSE) -> 1845_Underground Conductors and Devices | R130: =INDEX(APP_G!$A$4:$A$26,MATCH(DATA!O130,APP_G!$B$4:$B$26,0)) -> B1 Underground Infrastructure
A131: Y | B131: EST20051_009 | C131: AC2263 | E131: 0 | G131: =INDEX(APP_G!H:H,MATCH(O131,APP_G!B:B,0)) -> 0.6086047979 | H131: 0 | I131: 0 | J131: 0 | K131: 0 | L131: 0 | M131: =VLOOKUP(C131,APP_E!A:C,3,FALSE) -> 1845_Underground Conductors and Devices | N131: 20051_009 E12213 MORNINGSIDE ELECTRICAL DO NOT PACKAGE for budget | O131: =INDEX(APP_B!A:A,MATCH(DATA!B131,APP_B!N:N,0)) -> C1 Underground Infrastructure | P131: Underground Infrastructure and Cable | Q131: =VLOOKUP(C131,APP_E!A:D,4,FALSE) -> 1845_Underground Conductors and Devices | R131: =INDEX(APP_G!$A$4:$A$26,MATCH(DATA!O131,APP_G!$B$4:$B$26,0)) -> B1 Underground Infrastructure
A132: Y | B132: EST20051_009 | C132: AC2281 | E132: 0 | G132: =INDEX(APP_G!H:H,MATCH(O132,APP_G!B:B,0)) -> 0.6086047979 | H132: 0 | I132: 0 | J132: 0 | K132: 0 | L132: 0 | M132: =VLOOKUP(C132,APP_E!A:C,3,FALSE) -> 1845_Underground Conductors and Devices | N132: 20051_009 E12213 MORNINGSIDE ELECTRICAL DO NOT PACKAGE for budget | O132: =INDEX(APP_B!A:A,MATCH(DATA!B132,APP_B!N:N,0)) -> C1 Underground Infrastructure | P132: Underground Infrastructure and Cable | Q132: =VLOOKUP(C132,APP_E!A:D,4,FALSE) -> 1845_Underground Conductors and Devices - Switch | R132: =INDEX(APP_G!$A$4:$A$26,MATCH(DATA!O132,APP_G!$B$4:$B$26,0)) -> B1 Underground Infrastructure
A133: Y | B133: EST20051_009 | C133: AC2400 | E133: 0 | G133: =INDEX(APP_G!H:H,MATCH(O133,APP_G!B:B,0)) -> 0.6086047979 | H133: 0 | I133: 0 | J133: 0 | K133: 0 | L133: 0 | M133: =VLOOKUP(C133,APP_E!A:C,3,FALSE) -> 1850_Line Transformers | N133: 20051_009 E12213 MORNINGSIDE ELECTRICAL DO NOT PACKAGE for budget | O133: =INDEX(APP_B!A:A,MATCH(DATA!B133,APP_B!N:N,0)) -> C1 Underground Infrastructure | P133: Underground Infrastructure and Cable | Q133: =VLOOKUP(C133,APP_E!A:D,4,FALSE) -> 1850_Line Transformers - UG | R133: =INDEX(APP_G!$A$4:$A$26,MATCH(DATA!O133,APP_G!$B$4:$B$26,0)) -> B1 Underground Infrastructure
A134: Y | B134: EST20051_009 | C134: AC2520 | E134: 0 | G134: =INDEX(APP_G!H:H,MATCH(O134,APP_G!B:B,0)) -> 0.6086047979 | H134: 0 | I134: 0 | J134: 0 | K134: 0 | L134: 0 | M134: =VLOOKUP(C134,APP_E!A:C,3,FALSE) -> 1855_Services | N134: 20051_009 E12213 MORNINGSIDE ELECTRICAL DO NOT PACKAGE for budget | O134: =INDEX(APP_B!A:A,MATCH(DATA!B134,APP_B!N:N,0)) -> C1 Underground Infrastructure | P134: Underground Infrastructure and Cable | Q134: =VLOOKUP(C134,APP_E!A:D,4,FALSE) -> 1855_Services - UG | R134: =INDEX(APP_G!$A$4:$A$26,MATCH(DATA!O134,APP_G!$B$4:$B$26,0)) -> B1 Underground Infrastructure
A135: Y | B135: EST24578_009 | C135: AC2120 | E135: 0 | G135: =INDEX(APP_G!H:H,MATCH(O135,APP_G!B:B,0)) -> 0.6086047979 | H135: 0 | I135: 0 | J135: 0 | K135: 0 | L135: 0 | M135: =VLOOKUP(C135,APP_E!A:C,3,FALSE) -> 1830_Poles Towers and Fixtures | N135: 24578_009 Bluffwood Saddletree UG Rebuild Civil for 2012 Budget | O135: =INDEX(APP_B!A:A,MATCH(DATA!B135,APP_B!N:N,0)) -> C1 Underground Infrastructure | P135: Underground Infrastructure and Cable | Q135: =VLOOKUP(C135,APP_E!A:D,4,FALSE) -> 1830_Poles Towers and Fixtures | R135: =INDEX(APP_G!$A$4:$A$26,MATCH(DATA!O135,APP_G!$B$4:$B$26,0)) -> B1 Underground Infrastructure
A136: Y | B136: EST24578_009 | C136: AC2121 | E136: 0 | G136: =INDEX(APP_G!H:H,MATCH(O136,APP_G!B:B,0)) -> 0.6086047979 | H136: 0 | I136: 0 | J136: 0 | K136: 0 | L136: 0 | M136: =VLOOKUP(C136,APP_E!A:C,3,FALSE) -> 1830_Poles Towers and Fixtures | N136: 24578_009 Bluffwood Saddletree UG Rebuild Civil for 2012 Budget | O136: =INDEX(APP_B!A:A,MATCH(DATA!B136,APP_B!N:N,0)) -> C1 Underground Infrastructure | P136: Underground Infrastructure and Cable | Q136: =VLOOKUP(C136,APP_E!A:D,4,FALSE) -> 1830_Poles Towers and Fixtures | R136: =INDEX(APP_G!$A$4:$A$26,MATCH(DATA!O136,APP_G!$B$4:$B$26,0)) -> B1 Underground Infrastructure
A137: Y | B137: EST24578_009 | C137: AC2240 | E137: 0 | G137: =INDEX(APP_G!H:H,MATCH(O137,APP_G!B:B,0)) -> 0.6086047979 | H137: =E137*G137 -> 0 | I137: 0 | J137: =E137-H137 -> 0 | K137: 0 | L137: 0 | M137: =VLOOKUP(C137,APP_E!A:C,3,FALSE) -> 1840_Underground Conduit | N137: 24578_009 Bluffwood Saddletree UG Rebuild Civil for 2012 Budget | O137: =INDEX(APP_B!A:A,MATCH(DATA!B137,APP_B!N:N,0)) -> C1 Underground Infrastructure | P137: Underground Infrastructure and Cable | Q137: =VLOOKUP(C137,APP_E!A:D,4,FALSE) -> 1840_Underground Conduit - Duct Bank | R137: =INDEX(APP_G!$A$4:$A$26,MATCH(DATA!O137,APP_G!$B$4:$B$26,0)) -> B1 Underground Infrastructure
A138: Y | B138: EST19442_009 | C138: AC2240 | E138: 17667.67426 | G138: =INDEX(APP_G!H:H,MATCH(O138,APP_G!B:B,0)) -> 0.6086047979 | H138: 10752.63132 | I138: 0 | J138: 6915.04294 | K138: 0 | L138: =+SUM(I138:K138) -> 6915.04294 | M138: =VLOOKUP(C138,APP_E!A:C,3,FALSE) -> 1840_Underground Conduit | N138: 19442_009 ICM - E12094 - INGLETON REBUILD PHASE 1 ELECT ONLY - 3110 | O138: =INDEX(APP_B!A:A,MATCH(DATA!B138,APP_B!N:N,0)) -> C1 Underground Infrastructure | P138: Underground Infrastructure and Cable | Q138: =VLOOKUP(C138,APP_E!A:D,4,FALSE) -> 1840_Underground Conduit - Duct Bank | R138: =INDEX(APP_G!$A$4:$A$26,MATCH(DATA!O138,APP_G!$B$4:$B$26,0)) -> B1 Underground Infrastructure
A139: Y | B139: EST19442_009 | C139: AC2241 | E139: 7681.593691 | G139: =INDEX(APP_G!H:H,MATCH(O139,APP_G!B:B,0)) -> 0.6086047979 | H139: 4675.054775 | I139: 0 | J139: 3006.538915 | K139: 0 | L139: 3006.538915 | M139: =VLOOKUP(C139,APP_E!A:C,3,FALSE) -> 1840_Underground Conduit | N139: 19442_009 ICM - E12094 - INGLETON REBUILD PHASE 1 ELECT ONLY - 3110 | O139: =INDEX(APP_B!A:A,MATCH(DATA!B139,APP_B!N:N,0)) -> C1 Underground Infrastructure | P139: Underground Infrastructure and Cable | Q139: =VLOOKUP(C139,APP_E!A:D,4,FALSE) -> 1840_Underground Conduit - Vault | R139: =INDEX(APP_G!$A$4:$A$26,MATCH(DATA!O139,APP_G!$B$4:$B$26,0)) -> B1 Underground Infrastructure
A140: Y | B140: EST19442_009 | C140: AC2260 | E140: 295033.1247 | G140: =INDEX(APP_G!H:H,MATCH(O140,APP_G!B:B,0)) -> 0.6086047979 | H140: 179558.5752 | I140: 0 | J140: 115474.5495 | K140: 0 | L140: 115474.5495 | M140: =VLOOKUP(C140,APP_E!A:C,3,FALSE) -> 1845_Underground Conductors and Devices | N140: 19442_009 ICM - E12094 - INGLETON REBUILD PHASE 1 ELECT ONLY - 3110 | O140: =INDEX(APP_B!A:A,MATCH(DATA!B140,APP_B!N:N,0)) -> C1 Underground Infrastructure | P140: Underground Infrastructure and Cable | Q140: =VLOOKUP(C140,APP_E!A:D,4,FALSE) -> 1845_Underground Conductors and Devices | R140: =INDEX(APP_G!$A$4:$A$26,MATCH(DATA!O140,APP_G!$B$4:$B$26,0)) -> B1 Underground Infrastructure
A141: Y | B141: EST19442_009 | C141: AC2262 | E141: 7982.501114 | G141: =INDEX(APP_G!H:H,MATCH(O141,APP_G!B:B,0)) -> 0.6086047979 | H141: 4858.188477 | I141: 0 | J141: 3124.312637 | K141: 0 | L141: 3124.312637 | M141: =VLOOKUP(C141,APP_E!A:C,3,FALSE) -> 1845_Underground Conductors and Devices | N141: 19442_009 ICM - E12094 - INGLETON REBUILD PHASE 1 ELECT ONLY - 3110 | O141: =INDEX(APP_B!A:A,MATCH(DATA!B141,APP_B!N:N,0)) -> C1 Underground Infrastructure | P141: Underground Infrastructure and Cable | Q141: =VLOOKUP(C141,APP_E!A:D,4,FALSE) -> 1845_Underground Conductors and Devices | R141: =INDEX(APP_G!$A$4:$A$26,MATCH(DATA!O141,APP_G!$B$4:$B$26,0)) -> B1 Underground Infrastructure
A142: Y | B142: EST19442_009 | C142: AC2263 | E142: 16284.29908 | G142: =INDEX(APP_G!H:H,MATCH(O142,APP_G!B:B,0)) -> 0.6086047979 | H142: 9910.70255 | I142: 0 | J142: 6373.59653 | K142: 0 | L142: 6373.59653 | M142: =VLOOKUP(C142,APP_E!A:C,3,FALSE) -> 1845_Underground Conductors and Devices | N142: 19442_009 ICM - E12094 - INGLETON REBUILD PHASE 1 ELECT ONLY - 3110 | O142: =INDEX(APP_B!A:A,MATCH(DATA!B142,APP_B!N:N,0)) -> C1 Underground Infrastructure | P142: Underground Infrastructure and Cable | Q142: =VLOOKUP(C142,APP_E!A:D,4,FALSE) -> 1845_Underground Conductors and Devices | R142: =INDEX(APP_G!$A$4:$A$26,MATCH(DATA!O142,APP_G!$B$4:$B$26,0)) -> B1 Underground Infrastructure
A143: Y | B143: EST19442_009 | C143: AC2281 | E143: 230099.3824 | G143: =INDEX(APP_G!H:H,MATCH(O143,APP_G!B:B,0)) -> 0.6086047979 | H143: 140039.5881 | I143: 0 | J143: 90059.79431 | K143: 0 | L143: 90059.79431 | M143: =VLOOKUP(C143,APP_E!A:C,3,FALSE) -> 1845_Underground Conductors and Devices | N143: 19442_009 ICM - E12094 - INGLETON REBUILD PHASE 1 ELECT ONLY - 3110 | O143: =INDEX(APP_B!A:A,MATCH(DATA!B143,APP_B!N:N,0)) -> C1 Underground Infrastructure | P143: Underground Infrastructure and Cable | Q143: =VLOOKUP(C143,APP_E!A:D,4,FALSE) -> 1845_Underground Conductors and Devices - Switch | R143: =INDEX(APP_G!$A$4:$A$26,MATCH(DATA!O143,APP_G!$B$4:$B$26,0)) -> B1 Underground Infrastructure
A144: Y | B144: EST19442_009 | C144: AC2400 | E144: 395129.7187 | G144: =INDEX(APP_G!H:H,MATCH(O144,APP_G!B:B,0)) -> 0.6086047979 | H144: 240477.8426 | I144: 0 | J144: 154651.8761 | K144: 0 | L144: 154651.8761 | M144: =VLOOKUP(C144,APP_E!A:C,3,FALSE) -> 1850_Line Transformers | N144: 19442_009 ICM - E12094 - INGLETON REBUILD PHASE 1 ELECT ONLY - 3110 | O144: =INDEX(APP_B!A:A,MATCH(DATA!B144,APP_B!N:N,0)) -> C1 Underground Infrastructure | P144: Underground Infrastructure and Cable | Q144: =VLOOKUP(C144,APP_E!A:D,4,FALSE) -> 1850_Line Transformers - UG | R144: =INDEX(APP_G!$A$4:$A$26,MATCH(DATA!O144,APP_G!$B$4:$B$26,0)) -> B1 Underground Infrastructure
A145: Y | B145: EST19448_009 | C145: AC2240 | E145: 0 | G145: =INDEX(APP_G!H:H,MATCH(O145,APP_G!B:B,0)) -> 0.6086047979 | H145: 0 | I145: 0 | J145: 0 | K145: 0 | L145: 0 | M145: =VLOOKUP(C145,APP_E!A:C,3,FALSE) -> 1840_Underground Conduit | N145: 19448_009 E12095 Rebuild Ingleton PH 2 UG Elect DO NOT PACKAGE | O145: =INDEX(APP_B!A:A,MATCH(DATA!B145,APP_B!N:N,0)) -> C1 Underground Infrastructure | P145: Underground Infrastructure and Cable | Q145: =VLOOKUP(C145,APP_E!A:D,4,FALSE) -> 1840_Underground Conduit - Duct Bank | R145: =INDEX(APP_G!$A$4:$A$26,MATCH(DATA!O145,APP_G!$B$4:$B$26,0)) -> B1 Underground Infrastructure
A146: Y | B146: EST19448_009 | C146: AC2260 | E146: 0 | G146: =INDEX(APP_G!H:H,MATCH(O146,APP_G!B:B,0)) -> 0.6086047979 | H146: 0 | I146: 0 | J146: 0 | K146: 0 | L146: 0 | M146: =VLOOKUP(C146,APP_E!A:C,3,FALSE) -> 1845_Underground Conductors and Devices | N146: 19448_009 E12095 Rebuild Ingleton PH 2 UG Elect DO NOT PACKAGE | O146: =INDEX(APP_B!A:A,MATCH(DATA!B146,APP_B!N:N,0)) -> C1 Underground Infrastructure | P146: Underground Infrastructure and Cable | Q146: =VLOOKUP(C146,APP_E!A:D,4,FALSE) -> 1845_Underground Conductors and Devices | R146: =INDEX(APP_G!$A$4:$A$26,MATCH(DATA!O146,APP_G!$B$4:$B$26,0)) -> B1 Underground Infrastructure
A147: Y | B147: EST19448_009 | C147: AC2262 | E147: 0 | G147: =INDEX(APP_G!H:H,MATCH(O147,APP_G!B:B,0)) -> 0.6086047979 | H147: 0 | I147: 0 | J147: 0 | K147: 0 | L147: 0 | M147: =VLOOKUP(C147,APP_E!A:C,3,FALSE) -> 1845_Underground Conductors and Devices | N147: 19448_009 E12095 Rebuild Ingleton PH 2 UG Elect DO NOT PACKAGE | O147: =INDEX(APP_B!A:A,MATCH(DATA!B147,APP_B!N:N,0)) -> C1 Underground Infrastructure | P147: Underground Infrastructure and Cable | Q147: =VLOOKUP(C147,APP_E!A:D,4,FALSE) -> 1845_Underground Conductors and Devices | R147: =INDEX(APP_G!$A$4:$A$26,MATCH(DATA!O147,APP_G!$B$4:$B$26,0)) -> B1 Underground Infrastructure
A148: Y | B148: EST19448_009 | C148: AC2263 | E148: 0 | G148: =INDEX(APP_G!H:H,MATCH(O148,APP_G!B:B,0)) -> 0.6086047979 | H148: 0 | I148: 0 | J148: 0 | K148: 0 | L148: 0 | M148: =VLOOKUP(C148,APP_E!A:C,3,FALSE) -> 1845_Underground Conductors and Devices | N148: 19448_009 E12095 Rebuild Ingleton PH 2 UG Elect DO NOT PACKAGE | O148: =INDEX(APP_B!A:A,MATCH(DATA!B148,APP_B!N:N,0)) -> C1 Underground Infrastructure | P148: Underground Infrastructure and Cable | Q148: =VLOOKUP(C148,APP_E!A:D,4,FALSE) -> 1845_Underground Conductors and Devices | R148: =INDEX(APP_G!$A$4:$A$26,MATCH(DATA!O148,APP_G!$B$4:$B$26,0)) -> B1 Underground Infrastructure
A149: Y | B149: EST19448_009 | C149: AC2281 | E149: 0 | G149: =INDEX(APP_G!H:H,MATCH(O149,APP_G!B:B,0)) -> 0.6086047979 | H149: 0 | I149: 0 | J149: 0 | K149: 0 | L149: 0 | M149: =VLOOKUP(C149,APP_E!A:C,3,FALSE) -> 1845_Underground Conductors and Devices | N149: 19448_009 E12095 Rebuild Ingleton PH 2 UG Elect DO NOT PACKAGE | O149: =INDEX(APP_B!A:A,MATCH(DATA!B149,APP_B!N:N,0)) -> C1 Underground Infrastructure | P149: Underground Infrastructure and Cable | Q149: =VLOOKUP(C149,APP_E!A:D,4,FALSE) -> 1845_Underground Conductors and Devices - Switch | R149: =INDEX(APP_G!$A$4:$A$26,MATCH(DATA!O149,APP_G!$B$4:$B$26,0)) -> B1 Underground Infrastructure
A150: Y | B150: EST19448_009 | C150: AC2400 | E150: 0 | G150: =INDEX(APP_G!H:H,MATCH(O150,APP_G!B:B,0)) -> 0.6086047979 | H150: 0 | I150: 0 | J150: 0 | K150: 0 | L150: 0 | M150: =VLOOKUP(C150,APP_E!A:C,3,FALSE) -> 1850_Line Transformers | N150: 19448_009 E12095 Rebuild Ingleton PH 2 UG Elect DO NOT PACKAGE | O150: =INDEX(APP_B!A:A,MATCH(DATA!B150,APP_B!N:N,0)) -> C1 Underground Infrastructure | P150: Underground Infrastructure and Cable | Q150: =VLOOKUP(C150,APP_E!A:D,4,FALSE) -> 1850_Line Transformers - UG | R150: =INDEX(APP_G!$A$4:$A$26,MATCH(DATA!O150,APP_G!$B$4:$B$26,0)) -> B1 Underground Infrastructure
A151: Y | B151: EST22928_009 | C151: AC2240 | E151: 337167.7943 | G151: =INDEX(APP_G!H:H,MATCH(O151,APP_G!B:B,0)) -> 0.6086047979 | H151: 205201.9373 | I151: 0 | J151: 131965.857 | K151: 0 | L151: 131965.857 | M151: =VLOOKUP(C151,APP_E!A:C,3,FALSE) -> 1840_Underground Conduit | N151: 22928_009 ICM E11380 FES-12 EMPRINGHAM/MCLEVIN RC3110 2011 CapEx WBS Rev Nov 22_10 | O151: =INDEX(APP_B!A:A,MATCH(DATA!B151,APP_B!N:N,0)) -> C1 Underground Infrastructure | P151: Underground Infrastructure and Cable | Q151: =VLOOKUP(C151,APP_E!A:D,4,FALSE) -> 1840_Underground Conduit - Duct Bank | R151: =INDEX(APP_G!$A$4:$A$26,MATCH(DATA!O151,APP_G!$B$4:$B$26,0)) -> B1 Underground Infrastructure
A152: Y | B152: EST22928_009 | C152: AC2241 | E152: 1083.395537 | G152: =INDEX(APP_G!H:H,MATCH(O152,APP_G!B:B,0)) -> 0.6086047979 | H152: 659.3597217 | I152: 0 | J152: 424.0358151 | K152: 0 | L152: 424.0358151 | M152: =VLOOKUP(C152,APP_E!A:C,3,FALSE) -> 1840_Underground Conduit | N152: 22928_009 ICM E11380 FES-12 EMPRINGHAM/MCLEVIN RC3110 2011 CapEx WBS Rev Nov 22_10 | O152: =INDEX(APP_B!A:A,MATCH(DATA!B152,APP_B!N:N,0)) -> C1 Underground Infrastructure | P152: Underground Infrastructure and Cable | Q152: =VLOOKUP(C152,APP_E!A:D,4,FALSE) -> 1840_Underground Conduit - Vault | R152: =INDEX(APP_G!$A$4:$A$26,MATCH(DATA!O152,APP_G!$B$4:$B$26,0)) -> B1 Underground Infrastructure
A153: Y | B153: EST22928_009 | C153: AC2260 | E153: 42689.35234 | G153: =INDEX(APP_G!H:H,MATCH(O153,APP_G!B:B,0)) -> 0.6086047979 | H153: 25980.94465 | I153: 0 | J153: 16708.40769 | K153: 0 | L153: 16708.40769 | M153: =VLOOKUP(C153,APP_E!A:C,3,FALSE) -> 1845_Underground Conductors and Devices | N153: 22928_009 ICM E11380 FES-12 EMPRINGHAM/MCLEVIN RC3110 2011 CapEx WBS Rev Nov 22_10 | O153: =INDEX(APP_B!A:A,MATCH(DATA!B153,APP_B!N:N,0)) -> C1 Underground Infrastructure | P153: Underground Infrastructure and Cable | Q153: =VLOOKUP(C153,APP_E!A:D,4,FALSE) -> 1845_Underground Conductors and Devices | R153: =INDEX(APP_G!$A$4:$A$26,MATCH(DATA!O153,APP_G!$B$4:$B$26,0)) -> B1 Underground Infrastructure
A154: Y | B154: EST22928_009 | C154: AC2262 | E154: 1155.014271 | G154: =INDEX(APP_G!H:H,MATCH(O154,APP_G!B:B,0)) -> 0.6086047979 | H154: 702.9472266 | I154: 0 | J154: 452.0670439 | K154: 0 | L154: 452.0670439 | M154: =VLOOKUP(C154,APP_E!A:C,3,FALSE) -> 1845_Underground Conductors and Devices | N154: 22928_009 ICM E11380 FES-12 EMPRINGHAM/MCLEVIN RC3110 2011 CapEx WBS Rev Nov 22_10 | O154: =INDEX(APP_B!A:A,MATCH(DATA!B154,APP_B!N:N,0)) -> C1 Underground Infrastructure | P154: Underground Infrastructure and Cable | Q154: =VLOOKUP(C154,APP_E!A:D,4,FALSE) -> 1845_Underground Conductors and Devices | R154: =INDEX(APP_G!$A$4:$A$26,MATCH(DATA!O154,APP_G!$B$4:$B$26,0)) -> B1 Underground Infrastructure
A155: Y | B155: EST22928_009 | C155: AC2263 | E155: 2356.231179 | G155: =INDEX(APP_G!H:H,MATCH(O155,APP_G!B:B,0)) -> 0.6086047979 | H155: 1434.013601 | I155: 0 | J155: 922.2175787 | K155: 0 | L155: 922.2175787 | M155: =VLOOKUP(C155,APP_E!A:C,3,FALSE) -> 1845_Underground Conductors and Devices | N155: 22928_009 ICM E11380 FES-12 EMPRINGHAM/MCLEVIN RC3110 2011 CapEx WBS Rev Nov 22_10 | O155: =INDEX(APP_B!A:A,MATCH(DATA!B155,APP_B!N:N,0)) -> C1 Underground Infrastructure | P155: Underground Infrastructure and Cable | Q155: =VLOOKUP(C155,APP_E!A:D,4,FALSE) -> 1845_Underground Conductors and Devices | R155: =INDEX(APP_G!$A$4:$A$26,MATCH(DATA!O155,APP_G!$B$4:$B$26,0)) -> B1 Underground Infrastructure
A156: Y | B156: EST22928_009 | C156: AC2281 | E156: 4728.120458 | G156: =INDEX(APP_G!H:H,MATCH(O156,APP_G!B:B,0)) -> 0.6086047979 | H156: 2877.556796 | I156: 0 | J156: 1850.563663 | K156: 0 | L156: 1850.563663 | M156: =VLOOKUP(C156,APP_E!A:C,3,FALSE) -> 1845_Underground Conductors and Devices | N156: 22928_009 ICM E11380 FES-12 EMPRINGHAM/MCLEVIN RC3110 2011 CapEx WBS Rev Nov 22_10 | O156: =INDEX(APP_B!A:A,MATCH(DATA!B156,APP_B!N:N,0)) -> C1 Underground Infrastructure | P156: Underground Infrastructure and Cable | Q156: =VLOOKUP(C156,APP_E!A:D,4,FALSE) -> 1845_Underground Conductors and Devices - Switch | R156: =INDEX(APP_G!$A$4:$A$26,MATCH(DATA!O156,APP_G!$B$4:$B$26,0)) -> B1 Underground Infrastructure
A157: Y | B157: EST22928_009 | C157: AC2520 | E157: 23244.95388 | G157: =INDEX(APP_G!H:H,MATCH(O157,APP_G!B:B,0)) -> 0.6086047979 | H157: 14146.99046 | I157: 0 | J157: 9097.963422 | K157: 0 | L157: 9097.963422 | M157: =VLOOKUP(C157,APP_E!A:C,3,FALSE) -> 1855_Services | N157: 22928_009 ICM E11380 FES-12 EMPRINGHAM/MCLEVIN RC3110 2011 CapEx WBS Rev Nov 22_10 | O157: =INDEX(APP_B!A:A,MATCH(DATA!B157,APP_B!N:N,0)) -> C1 Underground Infrastructure | P157: Underground Infrastructure and Cable | Q157: =VLOOKUP(C157,APP_E!A:D,4,FALSE) -> 1855_Services - UG | R157: =INDEX(APP_G!$A$4:$A$26,MATCH(DATA!O157,APP_G!$B$4:$B$26,0)) -> B1 Underground Infrastructure
A158: Y | B158: EST22356_009 | C158: AC2240 | E158: 228256.9966 | G158: =INDEX(APP_G!H:H,MATCH(O158,APP_G!B:B,0)) -> 0.6086047979 | H158: 138918.3033 | I158: 0 | J158: 89338.69334 | K158: 0 | L158: 89338.69334 | M158: =VLOOKUP(C158,APP_E!A:C,3,FALSE) -> 1840_Underground Conduit | N158: 22356_009 ICM E11356 FESI 47M3 PENNYHILL UG RBLD RC3110 2011 CapEx WBS Rev Nov 22_10 | O158: =INDEX(APP_B!A:A,MATCH(DATA!B158,APP_B!N:N,0)) -> C1 Underground Infrastructure | P158: Underground Infrastructure and Cable | Q158: =VLOOKUP(C158,APP_E!A:D,4,FALSE) -> 1840_Underground Conduit - Duct Bank | R158: =INDEX(APP_G!$A$4:$A$26,MATCH(DATA!O158,APP_G!$B$4:$B$26,0)) -> B1 Underground Infrastructure
A159: Y | B159: EST22356_009 | C159: AC2241 | E159: 527.3040122 | G159: =INDEX(APP_G!H:H,MATCH(O159,APP_G!B:B,0)) -> 0.6086047979 | H159: 320.9197517 | I159: 0 | J159: 206.3842604 | K159: 0 | L159: 206.3842604 | M159: =VLOOKUP(C159,APP_E!A:C,3,FALSE) -> 1840_Underground Conduit | N159: 22356_009 ICM E11356 FESI 47M3 PENNYHILL UG RBLD RC3110 2011 CapEx WBS Rev Nov 22_10 | O159: =INDEX(APP_B!A:A,MATCH(DATA!B159,APP_B!N:N,0)) -> C1 Underground Infrastructure | P159: Underground Infrastructure and Cable | Q159: =VLOOKUP(C159,APP_E!A:D,4,FALSE) -> 1840_Underground Conduit - Vault | R159: =INDEX(APP_G!$A$4:$A$26,MATCH(DATA!O159,APP_G!$B$4:$B$26,0)) -> B1 Underground Infrastructure
A160: Y | B160: EST22356_009 | C160: AC2260 | E160: 26559.71793 | G160: =INDEX(APP_G!H:H,MATCH(O160,APP_G!B:B,0)) -> 0.6086047979 | H160: 16164.37176 | I160: 0 | J160: 10395.34617 | K160: 0 | L160: 10395.34617 | M160: =VLOOKUP(C160,APP_E!A:C,3,FALSE) -> 1845_Underground Conductors and Devices | N160: 22356_009 ICM E11356 FESI 47M3 PENNYHILL UG RBLD RC3110 2011 CapEx WBS Rev Nov 22_10 | O160: =INDEX(APP_B!A:A,MATCH(DATA!B160,APP_B!N:N,0)) -> C1 Underground Infrastructure | P160: Underground Infrastructure and Cable | Q160: =VLOOKUP(C160,APP_E!A:D,4,FALSE) -> 1845_Underground Conductors and Devices | R160: =INDEX(APP_G!$A$4:$A$26,MATCH(DATA!O160,APP_G!$B$4:$B$26,0)) -> B1 Underground Infrastructure
A161: Y | B161: EST22356_009 | C161: AC2262 | E161: 718.6060391 | G161: =INDEX(APP_G!H:H,MATCH(O161,APP_G!B:B,0)) -> 0.6086047979 | H161: 437.3470832 | I161: 0 | J161: 281.2589559 | K161: 0 | L161: 281.2589559 | M161: =VLOOKUP(C161,APP_E!A:C,3,FALSE) -> 1845_Underground Conductors and Devices | N161: 22356_009 ICM E11356 FESI 47M3 PENNYHILL UG RBLD RC3110 2011 CapEx WBS Rev Nov 22_10 | O161: =INDEX(APP_B!A:A,MATCH(DATA!B161,APP_B!N:N,0)) -> C1 Underground Infrastructure | P161: Underground Infrastructure and Cable | Q161: =VLOOKUP(C161,APP_E!A:D,4,FALSE) -> 1845_Underground Conductors and Devices | R161: =INDEX(APP_G!$A$4:$A$26,MATCH(DATA!O161,APP_G!$B$4:$B$26,0)) -> B1 Underground Infrastructure
A162: Y | B162: EST22356_009 | C162: AC2263 | E162: 1465.959445 | G162: =INDEX(APP_G!H:H,MATCH(O162,APP_G!B:B,0)) -> 0.6086047979 | H162: 892.1899515 | I162: 0 | J162: 573.7694932 | K162: 0 | L162: 573.7694932 | M162: =VLOOKUP(C162,APP_E!A:C,3,FALSE) -> 1845_Underground Conductors and Devices | N162: 22356_009 ICM E11356 FESI 47M3 PENNYHILL UG RBLD RC3110 2011 CapEx WBS Rev Nov 22_10 | O162: =INDEX(APP_B!A:A,MATCH(DATA!B162,APP_B!N:N,0)) -> C1 Underground Infrastructure | P162: Underground Infrastructure and Cable | Q162: =VLOOKUP(C162,APP_E!A:D,4,FALSE) -> 1845_Underground Conductors and Devices | R162: =INDEX(APP_G!$A$4:$A$26,MATCH(DATA!O162,APP_G!$B$4:$B$26,0)) -> B1 Underground Infrastructure
A163: Y | B163: EST22356_009 | C163: AC2281 | E163: 2208.632568 | G163: =INDEX(APP_G!H:H,MATCH(O163,APP_G!B:B,0)) -> 0.6086047979 | H163: 1344.184377 | I163: 0 | J163: 864.4481903 | K163: 0 | L163: 864.4481903 | M163: =VLOOKUP(C163,APP_E!A:C,3,FALSE) -> 1845_Underground Conductors and Devices | N163: 22356_009 ICM E11356 FESI 47M3 PENNYHILL UG RBLD RC3110 2011 CapEx WBS Rev Nov 22_10 | O163: =INDEX(APP_B!A:A,MATCH(DATA!B163,APP_B!N:N,0)) -> C1 Underground Infrastructure | P163: Underground Infrastructure and Cable | Q163: =VLOOKUP(C163,APP_E!A:D,4,FALSE) -> 1845_Underground Conductors and Devices - Switch | R163: =INDEX(APP_G!$A$4:$A$26,MATCH(DATA!O163,APP_G!$B$4:$B$26,0)) -> B1 Underground Infrastructure
A164: Y | B164: EST22356_009 | C164: AC2520 | E164: 18321.24273 | G164: =INDEX(APP_G!H:H,MATCH(O164,APP_G!B:B,0)) -> 0.6086047979 | H164: 11150.39623 | I164: 0 | J164: 7170.846501 | K164: 0 | L164: 7170.846501 | M164: =VLOOKUP(C164,APP_E!A:C,3,FALSE) -> 1855_Services | N164: 22356_009 ICM E11356 FESI 47M3 PENNYHILL UG RBLD RC3110 2011 CapEx WBS Rev Nov 22_10 | O164: =INDEX(APP_B!A:A,MATCH(DATA!B164,APP_B!N:N,0)) -> C1 Underground Infrastructure | P164: Underground Infrastructure and Cable | Q164: =VLOOKUP(C164,APP_E!A:D,4,FALSE) -> 1855_Services - UG | R164: =INDEX(APP_G!$A$4:$A$26,MATCH(DATA!O164,APP_G!$B$4:$B$26,0)) -> B1 Underground Infrastructure
A165: Y | B165: EST21853_009 | C165: AC2240 | E165: 0 | G165: =INDEX(APP_G!H:H,MATCH(O165,APP_G!B:B,0)) -> 0.6086047979 | H165: 0 | I165: 0 | J165: 0 | K165: 0 | L165: 0 | M165: =VLOOKUP(C165,APP_E!A:C,3,FALSE) -> 1840_Underground Conduit | N165: 21853_009 ICM E11301 FESI-12 HUPFIELD UG REBD PH1 RC3110 2011 CapEx WBS Rev Nov 22_10 | O165: =INDEX(APP_B!A:A,MATCH(DATA!B165,APP_B!N:N,0)) -> C1 Underground Infrastructure | P165: Underground Infrastructure and Cable | Q165: =VLOOKUP(C165,APP_E!A:D,4,FALSE) -> 1840_Underground Conduit - Duct Bank | R165: =INDEX(APP_G!$A$4:$A$26,MATCH(DATA!O165,APP_G!$B$4:$B$26,0)) -> B1 Underground Infrastructure
A166: Y | B166: EST21853_009 | C166: AC2241 | E166: 0 | G166: =INDEX(APP_G!H:H,MATCH(O166,APP_G!B:B,0)) -> 0.6086047979 | H166: 0 | I166: 0 | J166: 0 | K166: 0 | L166: 0 | M166: =VLOOKUP(C166,APP_E!A:C,3,FALSE) -> 1840_Underground Conduit | N166: 21853_009 ICM E11301 FESI-12 HUPFIELD UG REBD PH1 RC3110 2011 CapEx WBS Rev Nov 22_10 | O166: =INDEX(APP_B!A:A,MATCH(DATA!B166,APP_B!N:N,0)) -> C1 Underground Infrastructure | P166: Underground Infrastructure and Cable | Q166: =VLOOKUP(C166,APP_E!A:D,4,FALSE) -> 1840_Underground Conduit - Vault | R166: =INDEX(APP_G!$A$4:$A$26,MATCH(DATA!O166,APP_G!$B$4:$B$26,0)) -> B1 Underground Infrastructure
A167: Y | B167: EST21853_009 | C167: AC2260 | E167: 0 | G167: =INDEX(APP_G!H:H,MATCH(O167,APP_G!B:B,0)) -> 0.6086047979 | H167: 0 | I167: 0 | J167: 0 | K167: 0 | L167: 0 | M167: =VLOOKUP(C167,APP_E!A:C,3,FALSE) -> 1845_Underground Conductors and Devices | N167: 21853_009 ICM E11301 FESI-12 HUPFIELD UG REBD PH1 RC3110 2011 CapEx WBS Rev Nov 22_10 | O167: =INDEX(APP_B!A:A,MATCH(DATA!B167,APP_B!N:N,0)) -> C1 Underground Infrastructure | P167: Underground Infrastructure and Cable | Q167: =VLOOKUP(C167,APP_E!A:D,4,FALSE) -> 1845_Underground Conductors and Devices | R167: =INDEX(APP_G!$A$4:$A$26,MATCH(DATA!O167,APP_G!$B$4:$B$26,0)) -> B1 Underground Infrastructure
A168: Y | B168: EST21853_009 | C168: AC2262 | E168: 0 | G168: =INDEX(APP_G!H:H,MATCH(O168,APP_G!B:B,0)) -> 0.6086047979 | H168: 0 | I168: 0 | J168: 0 | K168: 0 | L168: 0 | M168: =VLOOKUP(C168,APP_E!A:C,3,FALSE) -> 1845_Underground Conductors and Devices | N168: 21853_009 ICM E11301 FESI-12 HUPFIELD UG REBD PH1 RC3110 2011 CapEx WBS Rev Nov 22_10 | O168: =INDEX(APP_B!A:A,MATCH(DATA!B168,APP_B!N:N,0)) -> C1 Underground Infrastructure | P168: Underground Infrastructure and Cable | Q168: =VLOOKUP(C168,APP_E!A:D,4,FALSE) -> 1845_Underground Conductors and Devices | R168: =INDEX(APP_G!$A$4:$A$26,MATCH(DATA!O168,APP_G!$B$4:$B$26,0)) -> B1 Underground Infrastructure
A169: Y | B169: EST21853_009 | C169: AC2263 | E169: 0 | G169: =INDEX(APP_G!H:H,MATCH(O169,APP_G!B:B,0)) -> 0.6086047979 | H169: 0 | I169: 0 | J169: 0 | K169: 0 | L169: 0 | M169: =VLOOKUP(C169,APP_E!A:C,3,FALSE) -> 1845_Underground Conductors and Devices | N169: 21853_009 ICM E11301 FESI-12 HUPFIELD UG REBD PH1 RC3110 2011 CapEx WBS Rev Nov 22_10 | O169: =INDEX(APP_B!A:A,MATCH(DATA!B169,APP_B!N:N,0)) -> C1 Underground Infrastructure | P169: Underground Infrastructure and Cable | Q169: =VLOOKUP(C169,APP_E!A:D,4,FALSE) -> 1845_Underground Conductors and Devices | R169: =INDEX(APP_G!$A$4:$A$26,MATCH(DATA!O169,APP_G!$B$4:$B$26,0)) -> B1 Underground Infrastructure
A170: Y | B170: EST21853_009 | C170: AC2281 | E170: 0 | G170: =INDEX(APP_G!H:H,MATCH(O170,APP_G!B:B,0)) -> 0.6086047979 | H170: 0 | I170: 0 | J170: 0 | K170: 0 | L170: 0 | M170: =VLOOKUP(C170,APP_E!A:C,3,FALSE) -> 1845_Underground Conductors and Devices | N170: 21853_009 ICM E11301 FESI-12 HUPFIELD UG REBD PH1 RC3110 2011 CapEx WBS Rev Nov 22_10 | O170: =INDEX(APP_B!A:A,MATCH(DATA!B170,APP_B!N:N,0)) -> C1 Underground Infrastructure | P170: Underground Infrastructure and Cable | Q170: =VLOOKUP(C170,APP_E!A:D,4,FALSE) -> 1845_Underground Conductors and Devices - Switch | R170: =INDEX(APP_G!$A$4:$A$26,MATCH(DATA!O170,APP_G!$B$4:$B$26,0)) -> B1 Underground Infrastructure
A171: Y | B171: EST21853_009 | C171: AC2400 | E171: 0 | G171: =INDEX(APP_G!H:H,MATCH(O171,APP_G!B:B,0)) -> 0.6086047979 | H171: 0 | I171: 0 | J171: 0 | K171: 0 | L171: 0 | M171: =VLOOKUP(C171,APP_E!A:C,3,FALSE) -> 1850_Line Transformers | N171: 21853_009 ICM E11301 FESI-12 HUPFIELD UG REBD PH1 RC3110 2011 CapEx WBS Rev Nov 22_10 | O171: =INDEX(APP_B!A:A,MATCH(DATA!B171,APP_B!N:N,0)) -> C1 Underground Infrastructure | P171: Underground Infrastructure and Cable | Q171: =VLOOKUP(C171,APP_E!A:D,4,FALSE) -> 1850_Line Transformers - UG | R171: =INDEX(APP_G!$A$4:$A$26,MATCH(DATA!O171,APP_G!$B$4:$B$26,0)) -> B1 Underground Infrastructure
A172: Y | B172: EST24859_009 | C172: AC2120 | E172: 77.67149908 | G172: =INDEX(APP_G!H:H,MATCH(O172,APP_G!B:B,0)) -> 0.6086047979 | H172: 47.271247 | I172: 0 | J172: 30.40025208 | K172: 0 | L172: 30.40025208 | M172: =VLOOKUP(C172,APP_E!A:C,3,FALSE) -> 1830_Poles Towers and Fixtures | N172: 24859_009 ICM E12530 BRAYMORE W PH2 - ELECT DO NOT PACKAGE | O172: =INDEX(APP_B!A:A,MATCH(DATA!B172,APP_B!N:N,0)) -> C1 Underground Infrastructure | P172: Underground Infrastructure and Cable | Q172: =VLOOKUP(C172,APP_E!A:D,4,FALSE) -> 1830_Poles Towers and Fixtures | R172: =INDEX(APP_G!$A$4:$A$26,MATCH(DATA!O172,APP_G!$B$4:$B$26,0)) -> B1 Underground Infrastructure
A173: Y | B173: EST24859_009 | C173: AC2121 | E173: 5100.14844 | G173: =INDEX(APP_G!H:H,MATCH(O173,APP_G!B:B,0)) -> 0.6086047979 | H173: 3103.97481 | I173: 0 | J173: 1996.173629 | K173: 0 | L173: 1996.173629 | M173: =VLOOKUP(C173,APP_E!A:C,3,FALSE) -> 1830_Poles Towers and Fixtures | N173: 24859_009 ICM E12530 BRAYMORE W PH2 - ELECT DO NOT PACKAGE | O173: =INDEX(APP_B!A:A,MATCH(DATA!B173,APP_B!N:N,0)) -> C1 Underground Infrastructure | P173: Underground Infrastructure and Cable | Q173: =VLOOKUP(C173,APP_E!A:D,4,FALSE) -> 1830_Poles Towers and Fixtures | R173: =INDEX(APP_G!$A$4:$A$26,MATCH(DATA!O173,APP_G!$B$4:$B$26,0)) -> B1 Underground Infrastructure
A174: Y | B174: EST24859_009 | C174: AC2160 | E174: 1817.519758 | G174: =INDEX(APP_G!H:H,MATCH(O174,APP_G!B:B,0)) -> 0.6086047979 | H174: 1106.151245 | I174: 0 | J174: 711.3685133 | K174: 0 | L174: 711.3685133 | M174: =VLOOKUP(C174,APP_E!A:C,3,FALSE) -> 1835_Overhead Conductors and Devices | N174: 24859_009 ICM E12530 BRAYMORE W PH2 - ELECT DO NOT PACKAGE | O174: =INDEX(APP_B!A:A,MATCH(DATA!B174,APP_B!N:N,0)) -> C1 Underground Infrastructure | P174: Underground Infrastructure and Cable | Q174: =VLOOKUP(C174,APP_E!A:D,4,FALSE) -> 1835_Overhead Conductors and Devices | R174: =INDEX(APP_G!$A$4:$A$26,MATCH(DATA!O174,APP_G!$B$4:$B$26,0)) -> B1 Underground Infrastructure
A175: Y | B175: EST24859_009 | C175: AC2165 | E175: 1321.540204 | G175: =INDEX(APP_G!H:H,MATCH(O175,APP_G!B:B,0)) -> 0.6086047979 | H175: 804.2957089 | I175: 0 | J175: 517.2444954 | K175: 0 | L175: 517.2444954 | M175: =VLOOKUP(C175,APP_E!A:C,3,FALSE) -> 1835_Overhead Conductors and Devices | N175: 24859_009 ICM E12530 BRAYMORE W PH2 - ELECT DO NOT PACKAGE | O175: =INDEX(APP_B!A:A,MATCH(DATA!B175,APP_B!N:N,0)) -> C1 Underground Infrastructure | P175: Underground Infrastructure and Cable | Q175: =VLOOKUP(C175,APP_E!A:D,4,FALSE) -> 1835_Overhead Conductors and Devices | R175: =INDEX(APP_G!$A$4:$A$26,MATCH(DATA!O175,APP_G!$B$4:$B$26,0)) -> B1 Underground Infrastructure
A176: Y | B176: EST24859_009 | C176: AC2180 | E176: 10411.00988 | G176: =INDEX(APP_G!H:H,MATCH(O176,APP_G!B:B,0)) -> 0.6086047979 | H176: 6336.190561 | I176: 0 | J176: 4074.819315 | K176: 0 | L176: 4074.819315 | M176: =VLOOKUP(C176,APP_E!A:C,3,FALSE) -> 1835_Overhead Conductors and Devices | N176: 24859_009 ICM E12530 BRAYMORE W PH2 - ELECT DO NOT PACKAGE | O176: =INDEX(APP_B!A:A,MATCH(DATA!B176,APP_B!N:N,0)) -> C1 Underground Infrastructure | P176: Underground Infrastructure and Cable | Q176: =VLOOKUP(C176,APP_E!A:D,4,FALSE) -> 1835_Overhead Conductors and Devices - Switches | R176: =INDEX(APP_G!$A$4:$A$26,MATCH(DATA!O176,APP_G!$B$4:$B$26,0)) -> B1 Underground Infrastructure
A177: Y | B177: EST24859_009 | C177: AC2240 | E177: 31036.18963 | G177: =INDEX(APP_G!H:H,MATCH(O177,APP_G!B:B,0)) -> 0.6086047979 | H177: 18888.77392 | I177: 0 | J177: 12147.41572 | K177: 0 | L177: 12147.41572 | M177: =VLOOKUP(C177,APP_E!A:C,3,FALSE) -> 1840_Underground Conduit | N177: 24859_009 ICM E12530 BRAYMORE W PH2 - ELECT DO NOT PACKAGE | O177: =INDEX(APP_B!A:A,MATCH(DATA!B177,APP_B!N:N,0)) -> C1 Underground Infrastructure | P177: Underground Infrastructure and Cable | Q177: =VLOOKUP(C177,APP_E!A:D,4,FALSE) -> 1840_Underground Conduit - Duct Bank | R177: =INDEX(APP_G!$A$4:$A$26,MATCH(DATA!O177,APP_G!$B$4:$B$26,0)) -> B1 Underground Infrastructure
A178: Y | B178: EST24859_009 | C178: AC2241 | E178: 31036.18963 | G178: =INDEX(APP_G!H:H,MATCH(O178,APP_G!B:B,0)) -> 0.6086047979 | H178: 18888.77392 | I178: 0 | J178: 12147.41572 | K178: 0 | L178: 12147.41572 | M178: =VLOOKUP(C178,APP_E!A:C,3,FALSE) -> 1840_Underground Conduit | N178: 24859_009 ICM E12530 BRAYMORE W PH2 - ELECT DO NOT PACKAGE | O178: =INDEX(APP_B!A:A,MATCH(DATA!B178,APP_B!N:N,0)) -> C1 Underground Infrastructure | P178: Underground Infrastructure and Cable | Q178: =VLOOKUP(C178,APP_E!A:D,4,FALSE) -> 1840_Underground Conduit - Vault | R178: =INDEX(APP_G!$A$4:$A$26,MATCH(DATA!O178,APP_G!$B$4:$B$26,0)) -> B1 Underground Infrastructure
A179: Y | B179: EST24859_009 | C179: AC2260 | E179: 208669.8554 | G179: =INDEX(APP_G!H:H,MATCH(O179,APP_G!B:B,0)) -> 0.6086047979 | H179: 126997.4752 | I179: 0 | J179: 81672.38024 | K179: 0 | L179: 81672.38024 | M179: =VLOOKUP(C179,APP_E!A:C,3,FALSE) -> 1845_Underground Conductors and Devices | N179: 24859_009 ICM E12530 BRAYMORE W PH2 - ELECT DO NOT PACKAGE | O179: =INDEX(APP_B!A:A,MATCH(DATA!B179,APP_B!N:N,0)) -> C1 Underground Infrastructure | P179: Underground Infrastructure and Cable | Q179: =VLOOKUP(C179,APP_E!A:D,4,FALSE) -> 1845_Underground Conductors and Devices | R179: =INDEX(APP_G!$A$4:$A$26,MATCH(DATA!O179,APP_G!$B$4:$B$26,0)) -> B1 Underground Infrastructure
A180: Y | B180: EST24859_009 | C180: AC2262 | E180: 5645.829183 | G180: =INDEX(APP_G!H:H,MATCH(O180,APP_G!B:B,0)) -> 0.6086047979 | H180: 3436.078729 | I180: 0 | J180: 2209.750454 | K180: 0 | L180: 2209.750454 | M180: =VLOOKUP(C180,APP_E!A:C,3,FALSE) -> 1845_Underground Conductors and Devices | N180: 24859_009 ICM E12530 BRAYMORE W PH2 - ELECT DO NOT PACKAGE | O180: =INDEX(APP_B!A:A,MATCH(DATA!B180,APP_B!N:N,0)) -> C1 Underground Infrastructure | P180: Underground Infrastructure and Cable | Q180: =VLOOKUP(C180,APP_E!A:D,4,FALSE) -> 1845_Underground Conductors and Devices | R180: =INDEX(APP_G!$A$4:$A$26,MATCH(DATA!O180,APP_G!$B$4:$B$26,0)) -> B1 Underground Infrastructure
A181: Y | B181: EST24859_009 | C181: AC2263 | E181: 11517.49273 | G181: =INDEX(APP_G!H:H,MATCH(O181,APP_G!B:B,0)) -> 0.6086047979 | H181: 7009.601337 | I181: 0 | J181: 4507.891397 | K181: 0 | L181: 4507.891397 | M181: =VLOOKUP(C181,APP_E!A:C,3,FALSE) -> 1845_Underground Conductors and Devices | N181: 24859_009 ICM E12530 BRAYMORE W PH2 - ELECT DO NOT PACKAGE | O181: =INDEX(APP_B!A:A,MATCH(DATA!B181,APP_B!N:N,0)) -> C1 Underground Infrastructure | P181: Underground Infrastructure and Cable | Q181: =VLOOKUP(C181,APP_E!A:D,4,FALSE) -> 1845_Underground Conductors and Devices | R181: =INDEX(APP_G!$A$4:$A$26,MATCH(DATA!O181,APP_G!$B$4:$B$26,0)) -> B1 Underground Infrastructure
A182: Y | B182: EST24859_009 | C182: AC2281 | E182: 582.4699931 | G182: =INDEX(APP_G!H:H,MATCH(O182,APP_G!B:B,0)) -> 0.6086047979 | H182: 354.4940324 | I182: 0 | J182: 227.9759607 | K182: 0 | L182: 227.9759607 | M182: =VLOOKUP(C182,APP_E!A:C,3,FALSE) -> 1845_Underground Conductors and Devices | N182: 24859_009 ICM E12530 BRAYMORE W PH2 - ELECT DO NOT PACKAGE | O182: =INDEX(APP_B!A:A,MATCH(DATA!B182,APP_B!N:N,0)) -> C1 Underground Infrastructure | P182: Underground Infrastructure and Cable | Q182: =VLOOKUP(C182,APP_E!A:D,4,FALSE) -> 1845_Underground Conductors and Devices - Switch | R182: =INDEX(APP_G!$A$4:$A$26,MATCH(DATA!O182,APP_G!$B$4:$B$26,0)) -> B1 Underground Infrastructure
A183: Y | B183: EST24859_009 | C183: AC2400 | E183: 365965.1857 | G183: =INDEX(APP_G!H:H,MATCH(O183,APP_G!B:B,0)) -> 0.6086047979 | H183: 222728.1678 | I183: 0 | J183: 143237.0178 | K183: 0 | L183: 143237.0178 | M183: =VLOOKUP(C183,APP_E!A:C,3,FALSE) -> 1850_Line Transformers | N183: 24859_009 ICM E12530 BRAYMORE W PH2 - ELECT DO NOT PACKAGE | O183: =INDEX(APP_B!A:A,MATCH(DATA!B183,APP_B!N:N,0)) -> C1 Underground Infrastructure | P183: Underground Infrastructure and Cable | Q183: =VLOOKUP(C183,APP_E!A:D,4,FALSE) -> 1850_Line Transformers - UG | R183: =INDEX(APP_G!$A$4:$A$26,MATCH(DATA!O183,APP_G!$B$4:$B$26,0)) -> B1 Underground Infrastructure
A184: Y | B184: EST24859_009 | C184: AC5020 | E184: 2321.688573 | G184: =INDEX(APP_G!H:H,MATCH(O184,APP_G!B:B,0)) -> 0.6086047979 | H184: 1412.990804 | I184: 0 | J184: 908.6977682 | K184: 0 | L184: 908.6977682 | M184: =VLOOKUP(C184,APP_E!A:C,3,FALSE) -> 1830_Poles Towers and Fixtures | N184: 24859_009 ICM E12530 BRAYMORE W PH2 - ELECT DO NOT PACKAGE | O184: =INDEX(APP_B!A:A,MATCH(DATA!B184,APP_B!N:N,0)) -> C1 Underground Infrastructure | P184: Underground Infrastructure and Cable | Q184: =VLOOKUP(C184,APP_E!A:D,4,FALSE) -> 1830_Poles Towers and Fixtures | R184: =INDEX(APP_G!$A$4:$A$26,MATCH(DATA!O184,APP_G!$B$4:$B$26,0)) -> B1 Underground Infrastructure
A185: Y | B185: EST24859_009 | C185: AC5022 | E185: 47.38139944 | G185: =INDEX(APP_G!H:H,MATCH(O185,APP_G!B:B,0)) -> 0.6086047979 | H185: 28.83654703 | I185: 0 | J185: 18.54485241 | K185: 0 | L185: 18.54485241 | M185: =VLOOKUP(C185,APP_E!A:C,3,FALSE) -> 1830_Poles Towers and Fixtures | N185: 24859_009 ICM E12530 BRAYMORE W PH2 - ELECT DO NOT PACKAGE | O185: =INDEX(APP_B!A:A,MATCH(DATA!B185,APP_B!N:N,0)) -> C1 Underground Infrastructure | P185: Underground Infrastructure and Cable | Q185: =VLOOKUP(C185,APP_E!A:D,4,FALSE) -> 1830_Poles Towers and Fixtures | R185: =INDEX(APP_G!$A$4:$A$26,MATCH(DATA!O185,APP_G!$B$4:$B$26,0)) -> B1 Underground Infrastructure
A186: Y | B186: EST24500_009 | C186: AC2120 | E186: 34.21732096 | G186: =INDEX(APP_G!H:H,MATCH(O186,APP_G!B:B,0)) -> 0.6086047979 | H186: 20.8248257 | I186: 0 | J186: 13.39249525 | K186: 0 | L186: 13.39249525 | M186: =VLOOKUP(C186,APP_E!A:C,3,FALSE) -> 1830_Poles Towers and Fixtures | N186: 24500_009 ICM-E12153 Melford Transfer 26M34 to M22 | O186: =INDEX(APP_B!A:A,MATCH(DATA!B186,APP_B!N:N,0)) -> C1 Underground Infrastructure | P186: Underground Infrastructure and Cable | Q186: =VLOOKUP(C186,APP_E!A:D,4,FALSE) -> 1830_Poles Towers and Fixtures | R186: =INDEX(APP_G!$A$4:$A$26,MATCH(DATA!O186,APP_G!$B$4:$B$26,0)) -> B1 Underground Infrastructure
A187: Y | B187: EST24500_009 | C187: AC2121 | E187: 2247.09336 | G187: =INDEX(APP_G!H:H,MATCH(O187,APP_G!B:B,0)) -> 0.6086047979 | H187: 1367.5918 | I187: 0 | J187: 879.5015597 | K187: 0 | L187: 879.5015597 | M187: =VLOOKUP(C187,APP_E!A:C,3,FALSE) -> 1830_Poles Towers and Fixtures | N187: 24500_009 ICM-E12153 Melford Transfer 26M34 to M22 | O187: =INDEX(APP_B!A:A,MATCH(DATA!B187,APP_B!N:N,0)) -> C1 Underground Infrastructure | P187: Underground Infrastructure and Cable | Q187: =VLOOKUP(C187,APP_E!A:D,4,FALSE) -> 1830_Poles Towers and Fixtures | R187: =INDEX(APP_G!$A$4:$A$26,MATCH(DATA!O187,APP_G!$B$4:$B$26,0)) -> B1 Underground Infrastructure
A188: Y | B188: EST24500_009 | C188: AC2160 | E188: 499.1375033 | G188: =INDEX(APP_G!H:H,MATCH(O188,APP_G!B:B,0)) -> 0.6086047979 | H188: 303.7774793 | I188: 0 | J188: 195.360024 | K188: 0 | L188: 195.360024 | M188: =VLOOKUP(C188,APP_E!A:C,3,FALSE) -> 1835_Overhead Conductors and Devices | N188: 24500_009 ICM-E12153 Melford Transfer 26M34 to M22 | O188: =INDEX(APP_B!A:A,MATCH(DATA!B188,APP_B!N:N,0)) -> C1 Underground Infrastructure | P188: Underground Infrastructure and Cable | Q188: =VLOOKUP(C188,APP_E!A:D,4,FALSE) -> 1835_Overhead Conductors and Devices | R188: =INDEX(APP_G!$A$4:$A$26,MATCH(DATA!O188,APP_G!$B$4:$B$26,0)) -> B1 Underground Infrastructure
A189: Y | B189: EST24500_009 | C189: AC2165 | E189: 362.9317496 | G189: =INDEX(APP_G!H:H,MATCH(O189,APP_G!B:B,0)) -> 0.6086047979 | H189: 220.8820041 | I189: 0 | J189: 142.0497455 | K189: 0 | L189: 142.0497455 | M189: =VLOOKUP(C189,APP_E!A:C,3,FALSE) -> 1835_Overhead Conductors and Devices | N189: 24500_009 ICM-E12153 Melford Transfer 26M34 to M22 | O189: =INDEX(APP_B!A:A,MATCH(DATA!B189,APP_B!N:N,0)) -> C1 Underground Infrastructure | P189: Underground Infrastructure and Cable | Q189: =VLOOKUP(C189,APP_E!A:D,4,FALSE) -> 1835_Overhead Conductors and Devices | R189: =INDEX(APP_G!$A$4:$A$26,MATCH(DATA!O189,APP_G!$B$4:$B$26,0)) -> B1 Underground Infrastructure
A190: Y | B190: EST24500_009 | C190: AC2180 | E190: 136511.6534 | G190: =INDEX(APP_G!H:H,MATCH(O190,APP_G!B:B,0)) -> 0.6086047979 | H190: 83081.64721 | I190: 0 | J190: 53430.00617 | K190: 0 | L190: 53430.00617 | M190: =VLOOKUP(C190,APP_E!A:C,3,FALSE) -> 1835_Overhead Conductors and Devices | N190: 24500_009 ICM-E12153 Melford Transfer 26M34 to M22 | O190: =INDEX(APP_B!A:A,MATCH(DATA!B190,APP_B!N:N,0)) -> C1 Underground Infrastructure | P190: Underground Infrastructure and Cable | Q190: =VLOOKUP(C190,APP_E!A:D,4,FALSE) -> 1835_Overhead Conductors and Devices - Switches | R190: =INDEX(APP_G!$A$4:$A$26,MATCH(DATA!O190,APP_G!$B$4:$B$26,0)) -> B1 Underground Infrastructure
A191: Y | B191: EST24500_009 | C191: AC2240 | E191: 52765.1956 | G191: =INDEX(APP_G!H:H,MATCH(O191,APP_G!B:B,0)) -> 0.6086047979 | H191: 32113.1512 | I191: 0 | J191: 20652.0444 | K191: 0 | L191: 20652.0444 | M191: =VLOOKUP(C191,APP_E!A:C,3,FALSE) -> 1840_Underground Conduit | N191: 24500_009 ICM-E12153 Melford Transfer 26M34 to M22 | O191: =INDEX(APP_B!A:A,MATCH(DATA!B191,APP_B!N:N,0)) -> C1 Underground Infrastructure | P191: Underground Infrastructure and Cable | Q191: =VLOOKUP(C191,APP_E!A:D,4,FALSE) -> 1840_Underground Conduit - Duct Bank | R191: =INDEX(APP_G!$A$4:$A$26,MATCH(DATA!O191,APP_G!$B$4:$B$26,0)) -> B1 Underground Infrastructure
A192: Y | B192: EST24500_009 | C192: AC2260 | E192: 64747.28998 | G192: =INDEX(APP_G!H:H,MATCH(O192,APP_G!B:B,0)) -> 0.6086047979 | H192: 39405.51133 | I192: 0 | J192: 25341.77865 | K192: 0 | L192: 25341.77865 | M192: =VLOOKUP(C192,APP_E!A:C,3,FALSE) -> 1845_Underground Conductors and Devices | N192: 24500_009 ICM-E12153 Melford Transfer 26M34 to M22 | O192: =INDEX(APP_B!A:A,MATCH(DATA!B192,APP_B!N:N,0)) -> C1 Underground Infrastructure | P192: Underground Infrastructure and Cable | Q192: =VLOOKUP(C192,APP_E!A:D,4,FALSE) -> 1845_Underground Conductors and Devices | R192: =INDEX(APP_G!$A$4:$A$26,MATCH(DATA!O192,APP_G!$B$4:$B$26,0)) -> B1 Underground Infrastructure
A193: Y | B193: EST24500_009 | C193: AC2262 | E193: 1751.817586 | G193: =INDEX(APP_G!H:H,MATCH(O193,APP_G!B:B,0)) -> 0.6086047979 | H193: 1066.164588 | I193: 0 | J193: 685.6529983 | K193: 0 | L193: 685.6529983 | M193: =VLOOKUP(C193,APP_E!A:C,3,FALSE) -> 1845_Underground Conductors and Devices | N193: 24500_009 ICM-E12153 Melford Transfer 26M34 to M22 | O193: =INDEX(APP_B!A:A,MATCH(DATA!B193,APP_B!N:N,0)) -> C1 Underground Infrastructure | P193: Underground Infrastructure and Cable | Q193: =VLOOKUP(C193,APP_E!A:D,4,FALSE) -> 1845_Underground Conductors and Devices | R193: =INDEX(APP_G!$A$4:$A$26,MATCH(DATA!O193,APP_G!$B$4:$B$26,0)) -> B1 Underground Infrastructure
A194: Y | B194: EST24500_009 | C194: AC2263 | E194: 3573.714708 | G194: =INDEX(APP_G!H:H,MATCH(O194,APP_G!B:B,0)) -> 0.6086047979 | H194: 2174.979918 | I194: 0 | J194: 1398.734791 | K194: 0 | L194: 1398.734791 | M194: =VLOOKUP(C194,APP_E!A:C,3,FALSE) -> 1845_Underground Conductors and Devices | N194: 24500_009 ICM-E12153 Melford Transfer 26M34 to M22 | O194: =INDEX(APP_B!A:A,MATCH(DATA!B194,APP_B!N:N,0)) -> C1 Underground Infrastructure | P194: Underground Infrastructure and Cable | Q194: =VLOOKUP(C194,APP_E!A:D,4,FALSE) -> 1845_Underground Conductors and Devices | R194: =INDEX(APP_G!$A$4:$A$26,MATCH(DATA!O194,APP_G!$B$4:$B$26,0)) -> B1 Underground Infrastructure
A195: Y | B195: EST24500_009 | C195: AC2281 | E195: 83453.21982 | G195: =INDEX(APP_G!H:H,MATCH(O195,APP_G!B:B,0)) -> 0.6086047979 | H195: 50790.02998 | I195: 0 | J195: 32663.18984 | K195: 0 | L195: 32663.18984 | M195: =VLOOKUP(C195,APP_E!A:C,3,FALSE) -> 1845_Underground Conductors and Devices | N195: 24500_009 ICM-E12153 Melford Transfer 26M34 to M22 | O195: =INDEX(APP_B!A:A,MATCH(DATA!B195,APP_B!N:N,0)) -> C1 Underground Infrastructure | P195: Underground Infrastructure and Cable | Q195: =VLOOKUP(C195,APP_E!A:D,4,FALSE) -> 1845_Underground Conductors and Devices - Switch | R195: =INDEX(APP_G!$A$4:$A$26,MATCH(DATA!O195,APP_G!$B$4:$B$26,0)) -> B1 Underground Infrastructure
A196: Y | B196: EST20948_009 | C196: AC2120 | E196: 0 | G196: =INDEX(APP_G!H:H,MATCH(O196,APP_G!B:B,0)) -> 0.6086047979 | H196: 0 | I196: 0 | J196: 0 | K196: 0 | L196: 0 | M196: =VLOOKUP(C196,APP_E!A:C,3,FALSE) -> 1830_Poles Towers and Fixtures | N196: 20948_009 E11072 Bridletowne U/GRebuild Elect Created November 2009 | O196: =INDEX(APP_B!A:A,MATCH(DATA!B196,APP_B!N:N,0)) -> C1 Underground Infrastructure | P196: Underground Infrastructure and Cable | Q196: =VLOOKUP(C196,APP_E!A:D,4,FALSE) -> 1830_Poles Towers and Fixtures | R196: =INDEX(APP_G!$A$4:$A$26,MATCH(DATA!O196,APP_G!$B$4:$B$26,0)) -> B1 Underground Infrastructure
A197: Y | B197: EST20948_009 | C197: AC2121 | E197: 0 | G197: =INDEX(APP_G!H:H,MATCH(O197,APP_G!B:B,0)) -> 0.6086047979 | H197: 0 | I197: 0 | J197: 0 | K197: 0 | L197: 0 | M197: =VLOOKUP(C197,APP_E!A:C,3,FALSE) -> 1830_Poles Towers and Fixtures | N197: 20948_009 E11072 Bridletowne U/GRebuild Elect Created November 2009 | O197: =INDEX(APP_B!A:A,MATCH(DATA!B197,APP_B!N:N,0)) -> C1 Underground Infrastructure | P197: Underground Infrastructure and Cable | Q197: =VLOOKUP(C197,APP_E!A:D,4,FALSE) -> 1830_Poles Towers and Fixtures | R197: =INDEX(APP_G!$A$4:$A$26,MATCH(DATA!O197,APP_G!$B$4:$B$26,0)) -> B1 Underground Infrastructure
A198: Y | B198: EST20948_009 | C198: AC2160 | E198: 0 | G198: =INDEX(APP_G!H:H,MATCH(O198,APP_G!B:B,0)) -> 0.6086047979 | H198: 0 | I198: 0 | J198: 0 | K198: 0 | L198: 0 | M198: =VLOOKUP(C198,APP_E!A:C,3,FALSE) -> 1835_Overhead Conductors and Devices | N198: 20948_009 E11072 Bridletowne U/GRebuild Elect Created November 2009 | O198: =INDEX(APP_B!A:A,MATCH(DATA!B198,APP_B!N:N,0)) -> C1 Underground Infrastructure | P198: Underground Infrastructure and Cable | Q198: =VLOOKUP(C198,APP_E!A:D,4,FALSE) -> 1835_Overhead Conductors and Devices | R198: =INDEX(APP_G!$A$4:$A$26,MATCH(DATA!O198,APP_G!$B$4:$B$26,0)) -> B1 Underground Infrastructure
A199: Y | B199: EST20948_009 | C199: AC2165 | E199: 0 | G199: =INDEX(APP_G!H:H,MATCH(O199,APP_G!B:B,0)) -> 0.6086047979 | H199: 0 | I199: 0 | J199: 0 | K199: 0 | L199: 0 | M199: =VLOOKUP(C199,APP_E!A:C,3,FALSE) -> 1835_Overhead Conductors and Devices | N199: 20948_009 E11072 Bridletowne U/GRebuild Elect Created November 2009 | O199: =INDEX(APP_B!A:A,MATCH(DATA!B199,APP_B!N:N,0)) -> C1 Underground Infrastructure | P199: Underground Infrastructure and Cable | Q199: =VLOOKUP(C199,APP_E!A:D,4,FALSE) -> 1835_Overhead Conductors and Devices | R199: =INDEX(APP_G!$A$4:$A$26,MATCH(DATA!O199,APP_G!$B$4:$B$26,0)) -> B1 Underground Infrastructure
A200: Y | B200: EST20948_009 | C200: AC2180 | E200: 0 | G200: =INDEX(APP_G!H:H,MATCH(O200,APP_G!B:B,0)) -> 0.6086047979 | H200: 0 | I200: 0 | J200: 0 | K200: 0 | L200: 0 | M200: =VLOOKUP(C200,APP_E!A:C,3,FALSE) -> 1835_Overhead Conductors and Devices | N200: 20948_009 E11072 Bridletowne U/GRebuild Elect Created November 2009 | O200: =INDEX(APP_B!A:A,MATCH(DATA!B200,APP_B!N:N,0)) -> C1 Underground Infrastructure | P200: Underground Infrastructure and Cable | Q200: =VLOOKUP(C200,APP_E!A:D,4,FALSE) -> 1835_Overhead Conductors and Devices - Switches | R200: =INDEX(APP_G!$A$4:$A$26,MATCH(DATA!O200,APP_G!$B$4:$B$26,0)) -> B1 Underground Infrastructure
A201: Y | B201: EST20948_009 | C201: AC2260 | E201: 0 | G201: =INDEX(APP_G!H:H,MATCH(O201,APP_G!B:B,0)) -> 0.6086047979 | H201: =E201*G201 -> 0 | I201: 0 | J201: =E201-H201 -> 0 | K201: 0 | L201: 0 | M201: =VLOOKUP(C201,APP_E!A:C,3,FALSE) -> 1845_Underground Conductors and Devices | N201: 20948_009 E11072 Bridletowne U/GRebuild Elect Created November 2009 | O201: =INDEX(APP_B!A:A,MATCH(DATA!B201,APP_B!N:N,0)) -> C1 Underground Infrastructure | P201: Underground Infrastructure and Cable | Q201: =VLOOKUP(C201,APP_E!A:D,4,FALSE) -> 1845_Underground Conductors and Devices | R201: =INDEX(APP_G!$A$4:$A$26,MATCH(DATA!O201,APP_G!$B$4:$B$26,0)) -> B1 Underground Infrastructure
... 5270 more rows

Sheet DATA_UPDATE_INPUT (hidden)
A1: ICM FILING | F1: ICM FILING | L1: THESL2012
A2: Ellipse Estimate # | B2: FY12 | C2: FY13 | D2: FY14 | E2: Orig Total | F2: FY12 Update Amt | G2: FY13 Update Amt | H2: FY12 Update % | I2: FY13 Update % | J2: FY14 Update %
A3: EST16616_005 | B3: 780254.03 | C3: 0 | D3: 0 | E3: =SUM(B3:D3) -> 780254.03 | F3: 953275.741 | G3: 0 | H3: =IFERROR(F3/E3,0) -> 1.221750487 | I3: =IFERROR(G3/E3,0) -> 0 | J3: 0
A4: EST17705_001 | B4: 329578.456 | C4: 0 | D4: 0 | E4: =SUM(B4:D4) -> 329578.456 | F4: 0 | G4: 0 | H4: =IFERROR(F4/E4,0) -> 0 | I4: =IFERROR(G4/E4,0) -> 0 | J4: 0
A5: EST17801_009 | B5: 327341.41 | C5: 0 | D5: 0 | E5: 327341.41 | F5: 147357.1 | G5: 0 | H5: 0.4501633325 | I5: 0 | J5: 0
A6: EST18151_001 | B6: 231350.848 | C6: 0 | D6: 0 | E6: 231350.848 | F6: 17076.828 | G6: 204840 | H6: 0.07381355265 | I6: 0.8854084684 | J6: 0
A7: EST18153_001 | B7: 217694.848 | C7: 0 | D7: 0 | E7: 217694.848 | F7: 19346 | G7: 204840 | H7: 0.08886751422 | I7: 0.9409501506 | J7: 0
A8: EST18202_001 | B8: 63800.832 | C8: 0 | D8: 0 | E8: 63800.832 | F8: 0 | G8: 63800.832 | H8: 0 | I8: 1 | J8: 0
A9: EST18233_001 | B9: 194236.116 | C9: 0 | D9: 0 | E9: 194236.116 | F9: 102420 | G9: 91816.116 | H9: 0.5272963757 | I9: 0.4727036243 | J9: 0
A10: EST18237_001 | B10: 193448.6181 | C10: 0 | D10: 0 | E10: 193448.6181 | F10: 102420 | G10: 91028.62 | H10: 0.5294429137 | I10: 0.4705570963 | J10: 0
A11: EST18262_001 | B11: 195781.5087 | C11: 0 | D11: 0 | E11: 195781.5087 | F11: 102420 | G11: 93361.52 | H11: 0.5231341851 | I11: 0.4768658727 | J11: 0
A12: EST18263_001 | B12: 197283.6782 | C12: 0 | D12: 0 | E12: 197283.6782 | F12: 102420 | G12: 94863.68 | H12: 0.5191509045 | I12: 0.4808491045 | J12: 0
A13: EST18403_001 | B13: 385645.4551 | C13: 0 | D13: 0 | E13: 385645.4551 | F13: 204840 | G13: 180805.44 | H13: 0.5311614523 | I13: 0.4688385086 | J13: 0
A14: EST18419_001 | B14: 362839.92 | C14: 0 | D14: 0 | E14: 362839.92 | F14: 204840 | G14: 157999.92 | H14: 0.564546481 | I14: 0.435453519 | J14: 0
A15: EST18456_004 | B15: 207320 | C15: 0 | D15: 0 | E15: 207320 | F15: 140002.3741 | G15: 0 | H15: 0.6752960354 | I15: 0 | J15: 0
A16: EST18523_001 | B16: 534730.03 | C16: 0 | D16: 0 | E16: 534730.03 | F16: 0 | G16: 0 | H16: 0 | I16: 0 | J16: 0
A17: EST18550_001 | B17: 390981.522 | C17: 0 | D17: 0 | E17: 390981.522 | F17: 0 | G17: 0 | H17: 0 | I17: 0 | J17: 0
A18: EST18580_001 | B18: 5330325.93 | C18: 0 | D18: 0 | E18: 5330325.93 | F18: 391572.4175 | G18: 4938753.539 | H18: 0.07346125221 | I18: 0.9265387529 | J18: 0
A19: EST18585_001 | B19: 2490403.33 | C19: 0 | D19: 0 | E19: 2490403.33 | F19: 0 | G19: 2497560.164 | H19: 0 | I19: 1.002873765 | J19: 0
A20: EST18591_001 | B20: 341400 | C20: 0 | D20: 0 | E20: 341400 | F20: 171193.892 | G20: 170700 | H20: 0.5014466667 | I20: 0.5 | J20: 0
A21: EST18629_001 | B21: 1817397.41 | C21: 0 | D21: 0 | E21: 1817397.41 | F21: 62377.78316 | G21: 1817397.439 | H21: 0.03432258834 | I21: 1.000000016 | J21: 0
A22: EST18645_001 | B22: 483115.49 | C22: 0 | D22: 0 | E22: 483115.49 | F22: 0 | G22: 483115.468 | H22: 0 | I22: 0.9999999545 | J22: 0
A23: EST18652_002 | B23: 2276806.29 | C23: 0 | D23: 0 | E23: 2276806.29 | F23: 1844704.58 | G23: 0 | H23: 0.810215866 | I23: 0 | J23: 0
A24: EST18653_002 | B24: 0 | C24: 1634794.55 | D24: 0 | E24: 1634794.55 | F24: 59261.30189 | G24: 1634794.535 | H24: 0.03624999967 | I24: 0.9999999908 | J24: 0
A25: EST18675_002 | B25: 2140195.83 | C25: 0 | D25: 0 | E25: 2140195.83 | F25: 119900 | G25: 2200145.816 | H25: 0.05602291076 | I25: 1.028011449 | J25: 0
A26: EST18719_001 | B26: 1766984.28 | C26: 0 | D26: 0 | E26: 1766984.28 | F26: 55992.74546 | G26: 1894382.831 | H26: 0.03168830991 | I26: 1.072099425 | J26: 0
A27: EST18720_001 | B27: 0 | C27: 541087.13 | D27: 0 | E27: 541087.13 | F27: 51437.1 | G27: 1195522.9 | H27: 0.09506250869 | I27: 2.209483157 | J27: 0
A28: EST18738_X01 | B28: 0 | C28: 2726725 | D28: 0 | E28: 2726725 | F28: 148708.3826 | G28: 2578016.651 | H28: 0.05453735987 | I28: 0.9454626526 | J28: 0
A29: EST18740_001 | B29: 0 | C29: 3448762.87 | D29: 0 | E29: 3448762.87 | F29: 0 | G29: 3448762.834 | H29: 0 | I29: 0.9999999896 | J29: 0
A30: EST18758_001 | B30: 0 | C30: 6033058.64 | D30: 0 | E30: 6033058.64 | F30: 0 | G30: 1813591.813 | H30: 0 | I30: 0.3006090146 | J30: 0
A31: EST18761_001 | B31: 1329175.49 | C31: 0 | D31: 0 | E31: 1329175.49 | F31: 0 | G31: 1329175.43 | H31: 0 | I31: 0.9999999549 | J31: 0
A32: EST18826_X01 | B32: 0 | C32: 124793.1 | D32: 0 | E32: 124793.1 | F32: 0 | G32: 124793.119 | H32: 0 | I32: 1.000000152 | J32: 0
A33: EST18834_003 | B33: 0 | C33: 2061586.98 | D33: 0 | E33: 2061586.98 | F33: 0 | G33: 2061585.779 | H33: 0 | I33: 0.9999994174 | J33: 0
A34: EST18836_002 | B34: 0 | C34: 970638.47 | D34: 0 | E34: 970638.47 | F34: 0 | G34: 982628.46 | H34: 0 | I34: 1.012352684 | J34: 0
A35: EST18837_001 | B35: 1013155.01 | C35: 0 | D35: 0 | E35: 1013155.01 | F35: 111507 | G35: 0 | H35: 0.1100591705 | I35: 0 | J35: 0
A36: EST18845_004 | B36: 392427.87 | C36: 0 | D36: 0 | E36: 392427.87 | F36: 289217.984 | G36: 103209.92 | H36: 0.7369965441 | I36: 0.2630035425 | J36: 0
A37: EST18892_002 | B37: 697001.37 | C37: 0 | D37: 0 | E37: 697001.37 | F37: 35970 | G37: 0 | H37: 0.05160678522 | I37: 0 | J37: 0
A38: EST19001_009 | B38: 3446453.57 | C38: 0 | D38: 0 | E38: 3446453.57 | F38: 2674297.212 | G38: 0 | H38: 0.7759562571 | I38: 0 | J38: 0
A39: EST19005_009 | B39: 35970 | C39: 0 | D39: 0 | E39: 35970 | F39: 17849.513 | G39: 0 | H39: 0.4962333333 | I39: 0 | J39: 0
A40: EST19032_001 | B40: 1562950.44 | C40: 0 | D40: 0 | E40: 1562950.44 | F40: 34171.5 | G40: 1562950.455 | H40: 0.02186345717 | I40: 1.00000001 | J40: 0
A41: EST19033_004 | B41: 1617990.57 | C41: 0 | D41: 0 | E41: 1617990.57 | F41: 1617990.67 | G41: 0 | H41: 1.000000062 | I41: 0 | J41: 0
A42: EST19085_001 | B42: 0 | C42: 0 | D42: 1809062 | E42: 1809062 | F42: 0 | G42: 0 | H42: 0 | I42: 0 | J42: 0
A43: EST19136_001 | B43: 0 | C43: 0 | D43: 1782879.43 | E43: 1782879.43 | F43: 0 | G43: 0 | H43: 0 | I43: 0 | J43: 0
A44: EST19349_001 | B44: 0 | C44: 390426.74 | D44: 0 | E44: 390426.74 | F44: 0 | G44: 390426.773 | H44: 0 | I44: 1.000000085 | J44: 0
A45: EST19372_001 | B45: 0 | C45: 860757.3 | D45: 0 | E45: 860757.3 | F45: 0 | G45: 860673.374 | H45: 0 | I45: 0.9999024975 | J45: 0
A46: EST19381_001 | B46: 324776.71 | C46: 0 | D46: 0 | E46: 324776.71 | F46: 0 | G46: 324776.727 | H46: 0 | I46: 1.000000052 | J46: 0
A47: EST19399_004 | B47: 21775.024 | C47: 0 | D47: 0 | E47: 21775.024 | F47: 29951.21184 | G47: 0 | H47: 1.375484676 | I47: 0 | J47: 0
A48: EST19437_009 | B48: 1260017.11 | C48: 0 | D48: 0 | E48: 1260017.11 | F48: 0 | G48: 1260017.11 | H48: 0 | I48: 1 | J48: 0
A49: EST19442_009 | B49: 0 | C49: 1215673.29 | D49: 0 | E49: 1215673.29 | F49: 245795 | G49: 969878.294 | H49: 0.2021883692 | I49: 0.7978116341 | J49: 0
A50: EST19448_009 | B50: 666896.94 | C50: 0 | D50: 0 | E50: 666896.94 | F50: 404234.457 | G50: 0 | H50: 0.6061423179 | I50: 0 | J50: 0
A51: EST19452_001 | B51: 70767.36 | C51: 0 | D51: 0 | E51: 70767.36 | F51: 3504.290922 | G51: 70767.378 | H51: 0.04951846334 | I51: 1.000000254 | J51: 0
A52: EST19453_001 | B52: 71581.47 | C52: 0 | D52: 0 | E52: 71581.47 | F52: 2574.329017 | G52: 71581.499 | H52: 0.03596362322 | I52: 1.000000405 | J52: 0
A53: EST19454_001 | B53: 71581.47 | C53: 0 | D53: 0 | E53: 71581.47 | F53: 2574.329017 | G53: 71581.499 | H53: 0.03596362322 | I53: 1.000000405 | J53: 0
A54: EST19455_001 | B54: 82516.37 | C54: 0 | D54: 0 | E54: 82516.37 | F54: 2977.826089 | G54: 82516.379 | H54: 0.03608770101 | I54: 1.000000109 | J54: 0
A55: EST19464_001 | B55: 535546.57 | C55: 0 | D55: 0 | E55: 535546.57 | F55: 0 | G55: 535546.539 | H55: 0 | I55: 0.9999999421 | J55: 0
A56: EST19501_009 | B56: 2549833 | C56: 0 | D56: 0 | E56: 2549833 | F56: 1530723.733 | G56: 0 | H56: 0.6003231321 | I56: 0 | J56: 0
A57: EST19502_001 | B57: 0 | C57: 2779645.29 | D57: 0 | E57: 2779645.29 | F57: 119900 | G57: 2659745.297 | H57: 0.04313500015 | I57: 0.9568650024 | J57: 0
A58: EST19522_001 | B58: 6969338.56 | C58: 0 | D58: 0 | E58: 6969338.56 | F58: 117502 | G58: 1958260.676 | H58: 0.01685984961 | I58: 0.2809822853 | J58: 0
A59: EST19537_005 | B59: 1577454.73 | C59: 0 | D59: 0 | E59: 1577454.73 | F59: 324682.006 | G59: 0 | H59: 0.2058265127 | I59: 0 | J59: 0
A60: EST19554_001 | B60: 0 | C60: 758508.99 | D60: 0 | E60: 758508.99 | F60: 41567.70835 | G60: 716941.2736 | H60: 0.05480186643 | I60: 0.945198123 | J60: 0
A61: EST19581_001 | B61: 479060.44 | C61: 0 | D61: 0 | E61: 479060.44 | F61: 52285.992 | G61: 479060.45 | H61: 0.1091427879 | I61: 1.000000021 | J61: 0
A62: EST19622_001 | B62: 0 | C62: 1846460 | D62: 0 | E62: 1846460 | F62: 93125.93552 | G62: 1720901.173 | H62: 0.05043485129 | I62: 0.9320002455 | J62: 0
A63: EST19623_001 | B63: 0 | C63: 0 | D63: 643074.07 | E63: 643074.07 | F63: 32433.34448 | G63: 0 | H63: 0.05043485035 | I63: 0 | J63: 0
A64: EST19626_001 | B64: 0 | C64: 1626700.09 | D64: 0 | E64: 1626700.09 | F64: 82224.7005 | G64: 1504315.626 | H64: 0.05054693302 | I64: 0.9247651951 | J64: 0
A65: EST19627_001 | B65: 0 | C65: 0 | D65: 794501.8 | E65: 794501.8 | F65: 40159.6275 | G65: 0 | H65: 0.05054693079 | I65: 0 | J65: 0
A66: EST19628_001 | B66: 0 | C66: 1963664.65 | D66: 0 | E66: 1963664.65 | F66: 0 | G66: 1963664.648 | H66: 0 | I66: 0.999999999 | J66: 0
A67: EST19629_001 | B67: 0 | C67: 0 | D67: 794501.76 | E67: 794501.76 | F67: 0 | G67: 0 | H67: 0 | I67: 0 | J67: 0
A68: EST19632_001 | B68: 0 | C68: 0 | D68: 4843154.28 | E68: =SUM(B68:D68) -> 4843154.28 | F68: 0 | G68: 0 | H68: =IFERROR(F68/E68,0) -> 0 | I68: =IFERROR(G68/E68,0) -> 0 | J68: 0
A69: EST19685_001 | B69: 0 | C69: 404109.73 | D69: 0 | E69: 404109.73 | F69: 0 | G69: 0 | H69: 0 | I69: 0 | J69: 0
A70: EST19686_001 | B70: 0 | C70: 791138.53 | D70: 0 | E70: 791138.53 | F70: 0 | G70: 0 | H70: 0 | I70: 0 | J70: 0
A71: EST19706_001 | B71: 0 | C71: 0 | D71: 2235868.81 | E71: 2235868.81 | F71: 0 | G71: 0 | H71: 0 | I71: 0 | J71: 0
A72: EST19711_001 | B72: 0 | C72: 0 | D72: 1106105.07 | E72: 1106105.07 | F72: 0 | G72: 0 | H72: 0 | I72: 0 | J72: 0
A73: EST19712_001 | B73: 0 | C73: 0 | D73: 618185.2 | E73: 618185.2 | F73: 0 | G73: 0 | H73: 0 | I73: 0 | J73: 0
A74: EST19755_003 | B74: 190830.4 | C74: 0 | D74: 0 | E74: 190830.4 | F74: 0 | G74: 0 | H74: 0 | I74: 0 | J74: 0
A75: EST19757_001 | B75: 968308.8 | C75: 0 | D75: 0 | E75: 968308.8 | F75: 0 | G75: 968308.803 | H75: 0 | I75: 1.000000003 | J75: 0
A76: EST19759_001 | B76: 579326.83 | C76: 0 | D76: 0 | E76: 579326.83 | F76: 0 | G76: 579326.825 | H76: 0 | I76: 0.9999999914 | J76: 0
A77: EST19775_001 | B77: 0 | C77: 965481.54 | D77: 0 | E77: 965481.54 | F77: 0 | G77: 965481.561 | H77: 0 | I77: 1.000000022 | J77: 0
A78: EST19785_003 | B78: 296095.45 | C78: 0 | D78: 0 | E78: 296095.45 | F78: 0 | G78: 302500.506 | H78: 0 | I78: 1.021631727 | J78: 0
A79: EST19792_001 | B79: 505410.89 | C79: 0 | D79: 0 | E79: 505410.89 | F79: 25359.59188 | G79: 505410.873 | H79: 0.05017618809 | I79: 0.9999999664 | J79: 0
A80: EST19798_001 | B80: 0 | C80: 2236383.22 | D80: 0 | E80: 2236383.22 | F80: 0 | G80: 2236383.193 | H80: 0 | I80: 0.9999999879 | J80: 0
A81: EST19806_001 | B81: 88584.5 | C81: 0 | D81: 0 | E81: 88584.5 | F81: 0 | G81: 88584.518 | H81: 0 | I81: 1.000000203 | J81: 0
A82: EST19837_003 | B82: 524170.46 | C82: 0 | D82: 0 | E82: 524170.46 | F82: 0 | G82: 524169.228 | H82: 0 | I82: 0.9999976496 | J82: 0
A83: EST19871_001 | B83: 1339642.7 | C83: 0 | D83: 0 | E83: 1339642.7 | F83: 78160.50792 | G83: 1339642.7 | H83: 0.05834429428 | I83: 1 | J83: 0
A84: EST19886_001 | B84: 0 | C84: 1286616.93 | D84: 0 | E84: 1286616.93 | F84: 0 | G84: 0 | H84: 0 | I84: 0 | J84: 0
A85: EST19892_001 | B85: 354351.27 | C85: 0 | D85: 0 | E85: 354351.27 | F85: 21582 | G85: 354351.261 | H85: 0.06090566573 | I85: 0.9999999746 | J85: 0
A86: EST19894_003 | B86: 195504.512 | C86: 0 | D86: 0 | E86: 195504.512 | F86: 17740.404 | G86: 0 | H86: 0.09074166022 | I86: 0 | J86: 0
A87: EST19965_009 | B87: 176600.7 | C87: 0 | D87: 0 | E87: 176600.7 | F87: 155758.9606 | G87: 0 | H87: 0.8819838235 | I87: 0 | J87: 0
A88: EST19966_001 | B88: 0 | C88: 0 | D88: 3673797.25 | E88: 3673797.25 | F88: 0 | G88: 0 | H88: 0 | I88: 0 | J88: 0
A89: EST19976_001 | B89: 0 | C89: 2706587.79 | D89: 0 | E89: 2706587.79 | F89: 0 | G89: 0 | H89: 0 | I89: 0 | J89: 0
A90: EST19977_001 | B90: 0 | C90: 0 | D90: 3782291.05 | E90: 3782291.05 | F90: 0 | G90: 0 | H90: 0 | I90: 0 | J90: 0
A91: EST19984_001 | B91: 0 | C91: 2959980.92 | D91: 0 | E91: 2959980.92 | F91: 0 | G91: 1479990.446 | H91: 0 | I91: 0.4999999953 | J91: 0
A92: EST19999_009 | B92: 0 | C92: 3421254.17 | D92: 0 | E92: 3421254.17 | F92: 0 | G92: 3421254.177 | H92: 0 | I92: 1.000000002 | J92: 0
A93: EST20001_001 | B93: 0 | C93: 334007.81 | D93: 0 | E93: 334007.81 | F93: 28073.15685 | G93: 334007.828 | H93: 0.08404940246 | I93: 1.000000054 | J93: 0
A94: EST20012_002 | B94: 3045760.97 | C94: 0 | D94: 0 | E94: 3045760.97 | F94: 0 | G94: 3045760.949 | H94: 0 | I94: 0.9999999931 | J94: 0
A95: EST20013_001 | B95: 0 | C95: 0 | D95: 1214549.83 | E95: 1214549.83 | F95: 0 | G95: 0 | H95: 0 | I95: 0 | J95: 0
A96: EST20023_001 | B96: 0 | C96: 1193970.21 | D96: 0 | E96: 1193970.21 | F96: 94232.98542 | G96: 0 | H96: 0.07892406748 | I96: 0 | J96: 0
A97: EST20030_001 | B97: 14795.5 | C97: 0 | D97: 0 | E97: 14795.5 | F97: 22067.72689 | G97: 0 | H97: 1.491516129 | I97: 0 | J97: 0
A98: EST20043_001 | B98: 1283902.39 | C98: 0 | D98: 0 | E98: 1283902.39 | F98: 108021.4821 | G98: 1175880.907 | H98: 0.08413527609 | I98: 0.9158647231 | J98: 0
A99: EST20044_001 | B99: 0 | C99: 432264.66 | D99: 0 | E99: 432264.66 | F99: 35340.07609 | G99: 396924.6029 | H99: 0.08175564501 | I99: 0.9182443989 | J99: 0
A100: EST20047_001 | B100: 292280.25 | C100: 0 | D100: 0 | E100: 292280.25 | F100: 119900 | G100: 292280.23 | H100: 0.4102227229 | I100: 0.9999999316 | J100: 0
A101: EST20051_009 | B101: 0 | C101: 0 | D101: 2050698.9 | E101: 2050698.9 | F101: 0 | G101: 0 | H101: 0 | I101: 0 | J101: 0
A102: EST20058_009 | B102: 0 | C102: 0 | D102: 1394120.45 | E102: 1394120.45 | F102: 1318900 | G102: 0 | H102: 0.9460445114 | I102: 0 | J102: 0
A103: EST20059_009 | B103: 0 | C103: 0 | D103: 1919965.96 | E103: 1919965.96 | F103: 0 | G103: 0 | H103: 0 | I103: 0 | J103: 0
A104: EST20066_001 | B104: 0 | C104: 1198167.9 | D104: 0 | E104: 1198167.9 | F104: 77040.30044 | G104: 1121127.594 | H104: 0.06429841798 | I104: 0.935701577 | J104: 0
A105: EST20067_001 | B105: 0 | C105: 0 | D105: 360102.88 | E105: 360102.88 | F105: 20065.64868 | G105: 0 | H105: 0.05572198889 | I105: 0 | J105: 0
A106: EST20106_001 | B106: 0 | C106: 423535.96 | D106: 0 | E106: 423535.96 | F106: 37365.18038 | G106: 386170.7786 | H106: 0.08822197855 | I106: 0.9117780191 | J106: 0
A107: EST20124_004 | B107: 1729370.42 | C107: 0 | D107: 0 | E107: 1729370.42 | F107: 1116268.308 | G107: 0 | H107: 0.6454766979 | I107: 0 | J107: 0
A108: EST20125_004 | B108: 1338008.46 | C108: 0 | D108: 0 | E108: 1338008.46 | F108: 1012773.322 | G108: 0 | H108: 0.7569259482 | I108: 0 | J108: 0
A109: EST20129_004 | B109: 921954.27 | C109: 0 | D109: 0 | E109: 921954.27 | F109: 461036.4465 | G109: 0 | H109: 0.5000643324 | I109: 0 | J109: 0
A110: EST20136_001 | B110: 0 | C110: 1088534.93 | D110: 0 | E110: 1088534.93 | F110: 91024.94821 | G110: 997509.9828 | H110: 0.08362152257 | I110: 0.9163784784 | J110: 0
A111: EST20169_001 | B111: 0 | C111: 0 | D111: 712530.92 | E111: 712530.92 | F111: 30957.28195 | G111: 0 | H111: 0.04344693133 | I111: 0 | J111: 0
A112: EST20170_001 | B112: 0 | C112: 0 | D112: 290210.75 | E112: 290210.75 | F112: 12653.85033 | G112: 0 | H112: 0.04360227983 | I112: 0 | J112: 0
A113: EST20178_001 | B113: 12007529.38 | C113: 0 | D113: 0 | E113: 12007529.38 | F113: 719400 | G113: 2199660.221 | H113: 0.05991240806 | I113: 0.1831900761 | J113: 0
A114: EST20179_001 | B114: 0 | C114: 1045488.43 | D114: 0 | E114: 1045488.43 | F114: 0 | G114: 0 | H114: 0 | I114: 0 | J114: 0
A115: EST20200_001 | B115: 0 | C115: 886339.17 | D115: 0 | E115: 886339.17 | F115: 37827.44044 | G115: 848511.7276 | H115: 0.04267829035 | I115: 0.9573217074 | J115: 0
A116: EST20206_001 | B116: 0 | C116: 0 | D116: 278169.22 | E116: 278169.22 | F116: 12550.79628 | G116: 0 | H116: 0.04511928487 | I116: 0 | J116: 0
A117: EST20207_001 | B117: 0 | C117: 0 | D117: 1061299.64 | E117: 1061299.64 | F117: 46443.58993 | G117: 0 | H117: 0.04376105313 | I117: 0 | J117: 0
A118: EST20208_001 | B118: 0 | C118: 0 | D118: 185448.12 | E118: 185448.12 | F118: 8894.967345 | G118: 0 | H118: 0.04796472105 | I118: 0 | J118: 0
A119: EST20209_001 | B119: 0 | C119: 0 | D119: 1533216.47 | E119: 1533216.47 | F119: 49656.59699 | G119: 0 | H119: 0.03238720557 | I119: 0 | J119: 0
A120: EST20210_001 | B120: 0 | C120: 0 | D120: 322346.38 | E120: 322346.38 | F120: 14403.53904 | G120: 0 | H120: 0.04468342111 | I120: 0 | J120: 0
A121: EST20261_001 | B121: 0 | C121: 320875.19 | D121: 0 | E121: 320875.19 | F121: 16151.68104 | G121: 320875.181 | H121: 0.05033633495 | I121: 0.999999972 | J121: 0
A122: EST20263_001 | B122: 0 | C122: 1029023.77 | D122: 0 | E122: 1029023.77 | F122: 61072.09164 | G122: 1029023.765 | H122: 0.05934954413 | I122: 0.9999999951 | J122: 0
A123: EST20296_001 | B123: 0 | C123: 689662.36 | D123: 0 | E123: 689662.36 | F123: 0 | G123: 689662.402 | H123: 0 | I123: 1.000000061 | J123: 0
A124: EST20313_001 | B124: 0 | C124: 0 | D124: 477493.33 | E124: 477493.33 | F124: 20785.32806 | G124: 0 | H124: 0.0435300909 | I124: 0 | J124: 0
A125: EST20345_001 | B125: 0 | C125: 0 | D125: 451230.45 | E125: 451230.45 | F125: 17524.52924 | G125: 0 | H125: 0.03883720444 | I125: 0 | J125: 0
A126: EST20365_001 | B126: 3638944.64 | C126: 0 | D126: 0 | E126: 3638944.64 | F126: 139473.675 | G126: 3499470.942 | H126: 0.03832805629 | I126: 0.9616719374 | J126: 0
A127: EST20366_001 | B127: 0 | C127: 0 | D127: 1677620.36 | E127: 1677620.36 | F127: 0 | G127: 0 | H127: 0 | I127: 0 | J127: 0
A128: EST20368_001 | B128: 0 | C128: 1441346.64 | D128: 0 | E128: 1441346.64 | F128: 0 | G128: 1441346.676 | H128: 0 | I128: 1.000000025 | J128: 0
A129: EST20369_001 | B129: 0 | C129: 0 | D129: 2144965.45 | E129: 2144965.45 | F129: 0 | G129: 0 | H129: 0 | I129: 0 | J129: 0
A130: EST20379_004 | B130: 1024332.08 | C130: 0 | D130: 0 | E130: 1024332.08 | F130: 0 | G130: 0 | H130: 0 | I130: 0 | J130: 0
A131: EST20380_001 | B131: 0 | C131: 688981.37 | D131: 0 | E131: 688981.37 | F131: 0 | G131: 688981.37 | H131: 0 | I131: 1 | J131: 0
A132: EST20382_001 | B132: 1883931.16 | C132: 0 | D132: 0 | E132: =SUM(B132:D132) -> 1883931.16 | F132: 0 | G132: 1883931.148 | H132: =IFERROR(F132/E132,0) -> 0 | I132: =IFERROR(G132/E132,0) -> 0.9999999936 | J132: 0
A133: EST20383_001 | B133: 0 | C133: 0 | D133: 201881.63 | E133: 201881.63 | F133: 14138.39615 | G133: 0 | H133: 0.07003309884 | I133: 0 | J133: 0
A134: EST20388_001 | B134: 0 | C134: 0 | D134: 256667.54 | E134: 256667.54 | F134: 12011.60055 | G134: 0 | H134: 0.04679828446 | I134: 0 | J134: 0
A135: EST20391_009 | B135: 278115.24 | C135: 0 | D135: 0 | E135: 278115.24 | F135: 153882.4657 | G135: 0 | H135: 0.5533046864 | I135: 0 | J135: 0
A136: EST20412_003 | B136: 0 | C136: 905949.98 | D136: 0 | E136: 905949.98 | F136: 0 | G136: 905950.012 | H136: 0 | I136: 1.000000035 | J136: 0
A137: EST20416_002 | B137: 0 | C137: 170971.4 | D137: 0 | E137: 170971.4 | F137: 0 | G137: 170971.405 | H137: 0 | I137: 1.000000029 | J137: 0
A138: EST20417_009 | B138: 0 | C138: 0 | D138: 266493.34 | E138: 266493.34 | F138: 0 | G138: 0 | H138: 0 | I138: 0 | J138: 0
A139: EST20424_001 | B139: 0 | C139: 0 | D139: 138590.02 | E139: 138590.02 | F139: 0 | G139: 0 | H139: 0 | I139: 0 | J139: 0
A140: EST20427_001 | B140: 4082048.106 | C140: 0 | D140: 0 | E140: 4082048.106 | F140: 0 | G140: 4082024.208 | H140: 0 | I140: 0.9999941456 | J140: 0
A141: EST20429_001 | B141: 292280.25 | C141: 0 | D141: 0 | E141: 292280.25 | F141: 0 | G141: 292280.23 | H141: 0 | I141: 0.9999999316 | J141: 0
A142: EST20430_001 | B142: 1707095.44 | C142: 0 | D142: 0 | E142: 1707095.44 | F142: 1146782.735 | G142: 0 | H142: 0.6717742358 | I142: 0 | J142: 0
A143: EST20432_001 | B143: 0 | C143: 424291.3 | D143: 0 | E143: 424291.3 | F143: 0 | G143: 364170.6394 | H143: 0 | I143: 0.8583033387 | J143: 0
A144: EST20438_009 | B144: 64358.72 | C144: 0 | D144: 0 | E144: 64358.72 | F144: 28328.773 | G144: 0 | H144: 0.4401699257 | I144: 0 | J144: 0
A145: EST20449_001 | B145: 292280.25 | C145: 0 | D145: 0 | E145: 292280.25 | F145: 33092.4 | G145: 292280.23 | H145: 0.1132214715 | I145: 0.9999999316 | J145: 0
A146: EST20456_002 | B146: 1118174.2 | C146: 0 | D146: 0 | E146: 1118174.2 | F146: 0 | G146: 1118174.211 | H146: 0 | I146: 1.00000001 | J146: 0
A147: EST20472_001 | B147: 0 | C147: 1584953.29 | D147: 0 | E147: 1584953.29 | F147: 0 | G147: 1584953.304 | H147: 0 | I147: 1.000000009 | J147: 0
A148: EST20476_001 | B148: 0 | C148: 733363.52 | D148: 0 | E148: 733363.52 | F148: 0 | G148: 733363.554 | H148: 0 | I148: 1.000000046 | J148: 0
A149: EST20477_001 | B149: 0 | C149: 0 | D149: 40395.49 | E149: 40395.49 | F149: 2400.85362 | G149: 0 | H149: 0.0594337046 | I149: 0 | J149: 0
A150: EST20478_001 | B150: 0 | C150: 0 | D150: 467756.26 | E150: 467756.26 | F150: 27637.87623 | G150: 0 | H150: 0.05908606381 | I150: 0 | J150: 0
A151: EST20492_001 | B151: 0 | C151: 6676623.24 | D151: 0 | E151: 6676623.24 | F151: 0 | G151: 227600 | H151: 0 | I151: 0.03408908842 | J151: 0
A152: EST20499_001 | B152: 849142.58 | C152: 0 | D152: 0 | E152: 849142.58 | F152: 0 | G152: 849142.591 | H152: 0 | I152: 1.000000013 | J152: 0
A153: EST20510_003 | B153: 0 | C153: 724772.71 | D153: 0 | E153: 724772.71 | F153: 0 | G153: 724772.719 | H153: 0 | I153: 1.000000012 | J153: 0
A154: EST20519_001 | B154: 0 | C154: 0 | D154: 137482.14 | E154: 137482.14 | F154: 0 | G154: 0 | H154: 0 | I154: 0 | J154: 0
A155: EST20520_009 | B155: 0 | C155: 478980.11 | D155: 0 | E155: 478980.11 | F155: 401186.599 | G155: 77793.518 | H155: 0.837585091 | I155: 0.1624149237 | J155: 0
A156: EST20525_001 | B156: 0 | C156: 0 | D156: 362939.72 | E156: 362939.72 | F156: 0 | G156: 0 | H156: 0 | I156: 0 | J156: 0
A157: EST20530_001 | B157: 603540.64 | C157: 0 | D157: 0 | E157: 603540.64 | F157: 36488.83308 | G157: 603540.63 | H157: 0.06045795537 | I157: 0.9999999834 | J157: 0
A158: EST20531_001 | B158: 13036.727 | C158: 0 | D158: 0 | E158: 13036.727 | F158: 0 | G158: 0 | H158: 0 | I158: 0 | J158: 0
A159: EST20544_XXX | B159: 574041.34 | C159: 0 | D159: 0 | E159: 574041.34 | F159: 82695.046 | G159: 0 | H159: 0.1440576492 | I159: 0 | J159: 0
A160: EST20548_001 | B160: 0 | C160: 212724.2 | D160: 0 | E160: 212724.2 | F160: 0 | G160: 212724.182 | H160: 0 | I160: 0.9999999154 | J160: 0
A161: EST20556_001 | B161: 434317.35 | C161: 0 | D161: 0 | E161: 434317.35 | F161: 0 | G161: 0 | H161: 0 | I161: 0 | J161: 0
A162: EST20558_001 | B162: 0 | C162: 381567.28 | D162: 0 | E162: 381567.28 | F162: 23271.35443 | G162: 0 | H162: 0.06098886265 | I162: 0 | J162: 0
A163: EST20560_XXX | B163: 580731.642 | C163: 0 | D163: 0 | E163: 580731.642 | F163: 82695.046 | G163: 0 | H163: 0.1423980373 | I163: 0 | J163: 0
A164: EST20561_XXX | B164: 580731.642 | C164: 0 | D164: 0 | E164: 580731.642 | F164: 82695.046 | G164: 0 | H164: 0.1423980373 | I164: 0 | J164: 0
A165: EST20565_002 | B165: 0 | C165: 4413402.69 | D165: 0 | E165: 4413402.69 | F165: 2398000 | G165: 2015402.697 | H165: 0.5433449355 | I165: 0.4566550661 | J165: 0
A166: EST20567_003 | B166: 0 | C166: 1630074.08 | D166: 0 | E166: 1630074.08 | F166: 0 | G166: 1630074.072 | H166: 0 | I166: 0.9999999951 | J166: 0
A167: EST20572_002 | B167: 1624395.61 | C167: 0 | D167: 0 | E167: 1624395.61 | F167: 498784 | G167: 1125611.608 | H167: 0.3070582049 | I167: 0.6929417939 | J167: 0
A168: EST20578_001 | B168: 0 | C168: 1578973.89 | D168: 0 | E168: 1578973.89 | F168: 52883.52384 | G168: 1526090.367 | H168: 0.03349233586 | I168: 0.9665076648 | J168: 0
A169: EST20595_001 | B169: 0 | C169: 827320.81 | D169: 0 | E169: 827320.81 | F169: 43004.02958 | G169: 784316.7614 | H169: 0.05197987173 | I169: 0.9480201053 | J169: 0
A170: EST20623_001 | B170: 994805.04 | C170: 0 | D170: 0 | E170: 994805.04 | F170: 0 | G170: 993550.151 | H170: 0 | I170: 0.9987385579 | J170: 0
A171: EST20637_001 | B171: 0 | C171: 1410970.01 | D171: 0 | E171: 1410970.01 | F171: 0 | G171: 1171170.011 | H171: 0 | I171: 0.8300459986 | J171: 0
A172: EST20638_001 | B172: 0 | C172: 0 | D172: 437901.23 | E172: 437901.23 | F172: 0 | G172: 0 | H172: 0 | I172: 0 | J172: 0
A173: EST20645_001 | B173: 0 | C173: 0 | D173: 319040.71 | E173: 319040.71 | F173: 0 | G173: 0 | H173: 0 | I173: 0 | J173: 0
A174: EST20647_001 | B174: 292296.438 | C174: 0 | D174: 0 | E174: 292296.438 | F174: 170700 | G174: 121596.438 | H174: 0.583996169 | I174: 0.416003831 | J174: 0
A175: EST20648_001 | B175: 0 | C175: 0 | D175: 131636.98 | E175: 131636.98 | F175: 0 | G175: 0 | H175: 0 | I175: 0 | J175: 0
A176: EST20659_001 | B176: 0 | C176: 212766.17 | D176: 0 | E176: 212766.17 | F176: 22445.28 | G176: 190320.867 | H176: 0.1054927106 | I176: 0.8945071813 | J176: 0
A177: EST20662_001 | B177: 0 | C177: 3243458.07 | D177: 0 | E177: 3243458.07 | F177: 0 | G177: 3243458.064 | H177: 0 | I177: 0.9999999982 | J177: 0
A178: EST20672_001 | B178: 0 | C178: 0 | D178: 178529.89 | E178: 178529.89 | F178: 12244.02254 | G178: 0 | H178: 0.06858247959 | I178: 0 | J178: 0
A179: EST20674_001 | B179: 0 | C179: 0 | D179: 367521.07 | E179: 367521.07 | F179: 22321.3064 | G179: 0 | H179: 0.06073476657 | I179: 0 | J179: 0
A180: EST20675_001 | B180: 352504.604 | C180: 0 | D180: 0 | E180: 352504.604 | F180: 0 | G180: 352504.604 | H180: 0 | I180: 1 | J180: 0
A181: EST20677_008 | B181: 2689250.27 | C181: 0 | D181: 0 | E181: 2689250.27 | F181: 2848645.109 | G181: 0 | H181: 1.059271107 | I181: 0 | J181: 0
A182: EST20684_004 | B182: 512461.168 | C182: 0 | D182: 0 | E182: 512461.168 | F182: 462268.9706 | G182: 0 | H182: 0.9020565839 | I182: 0 | J182: 0
A183: EST20685_001 | B183: 291937.968 | C183: 0 | D183: 0 | E183: 291937.968 | F183: 0 | G183: 291937.968 | H183: 0 | I183: 1 | J183: 0
A184: EST20693_002 | B184: 0 | C184: 0 | D184: 171528.95 | E184: 171528.95 | F184: 0 | G184: 0 | H184: 0 | I184: 0 | J184: 0
A185: EST20697_001 | B185: 0 | C185: 0 | D185: 447134.68 | E185: 447134.68 | F185: 0 | G185: 0 | H185: 0 | I185: 0 | J185: 0
A186: EST20706_001 | B186: 45765.808 | C186: 0 | D186: 0 | E186: 45765.808 | F186: 0 | G186: 49364.164 | H186: 0 | I186: 1.078625423 | J186: 0
A187: EST20714_001 | B187: 0 | C187: 2224907.6 | D187: 0 | E187: 2224907.6 | F187: 0 | G187: 2224907.564 | H187: 0 | I187: 0.9999999838 | J187: 0
A188: EST20726_001 | B188: 0 | C188: 1445823.75 | D188: 0 | E188: 1445823.75 | F188: 0 | G188: 0 | H188: 0 | I188: 0 | J188: 0
A189: EST20750_002 | B189: 974373.808 | C189: 0 | D189: 0 | E189: 974373.808 | F189: 0 | G189: 974373.808 | H189: 0 | I189: 1 | J189: 0
A190: EST20757_001 | B190: 17600000 | C190: 0 | D190: 0 | E190: 17600000 | F190: 17600000 | G190: 0 | H190: 1 | I190: 0 | J190: 0
A191: EST20773_002 | B191: 0 | C191: 1018515.74 | D191: 0 | E191: 1018515.74 | F191: 0 | G191: 1018515.729 | H191: 0 | I191: 0.9999999892 | J191: 0
A192: EST20774_001 | B192: 0 | C192: 824789.66 | D192: 0 | E192: 824789.66 | F192: 76708.22732 | G192: 824789.702 | H192: 0.0930033814 | I192: 1.000000051 | J192: 0
A193: EST20779_001 | B193: 0 | C193: 0 | D193: 0 | E193: 0 | F193: 0 | G193: 0 | H193: 0 | I193: 0 | J193: 0
A194: EST20779_XXX | B194: 0 | C194: 0 | D194: 615236.94 | E194: 615236.94 | F194: 0 | G194: 0 | H194: 0 | I194: 0 | J194: 0
A195: EST20808_001 | B195: 0 | C195: 1076432.24 | D195: 0 | E195: 1076432.24 | F195: 0 | G195: 1290642.256 | H195: 0 | I195: 1.199 | J195: 0
A196: EST20812_003 | B196: 551176.72 | C196: 0 | D196: 0 | E196: =SUM(B196:D196) -> 551176.72 | F196: 563530 | G196: 0 | H196: =IFERROR(F196/E196,0) -> 1.022412558 | I196: =IFERROR(G196/E196,0) -> 0 | J196: 0
A197: EST20848_001 | B197: 0 | C197: 263649.31 | D197: 0 | E197: 263649.31 | F197: 7999.493163 | G197: 255649.8158 | H197: 0.03034141513 | I197: 0.9696585811 | J197: 0
A198: EST20873_008 | B198: 1342879.96 | C198: 0 | D198: 0 | E198: 1342879.96 | F198: 510040.212 | G198: 0 | H198: 0.3798107256 | I198: 0 | J198: 0
A199: EST20875_001 | B199: 1627291.25 | C199: 0 | D199: 0 | E199: 1627291.25 | F199: 1353326.647 | G199: 273964.5458 | H199: 0.8316437805 | I199: 0.1683561844 | J199: 0
A200: EST20877_001 | B200: 7028747.752 | C200: 0 | D200: 0 | E200: 7028747.752 | F200: 403990 | G200: 6031400 | H200: 0.05747681013 | I200: 0.8581044893 | J200: 0
... 639 more rows

Sheet APP_A (hidden)
A2: PROJECTS | B2: CATEGORY LISTING
A3: Underground Infrastructure and Cable | B3: C1 Underground Infrastructure
A4: Underground Infrastructure and Cable | B4: C2 Paper Insulated Lead Covered Cable - Piece Outs and Leakers
A5: Underground Infrastructure and Cable | B5: C3 Handwell Replacement
A6: Overhead Infrastructure and Equipment | B6: C4 Overhead Infrastructure
A7: Overhead Infrastructure and Equipment | B7: C5 Box Construction
A8: Overhead Infrastructure and Equipment | B8: C6 Rear Lot Construction
A9: Overhead Infrastructure and Equipment | B9: C7 Polymer SMD-20 Fuses
A10: Overhead Infrastructure and Equipment | B10: C8 Scadamate R1 Switches
A11: Network Infrastructure and Equipment | B11: C9 Network Vault & Roofs
A12: Network Infrastructure and Equipment | B12: C10 Fibertop Network Units
A13: Network Infrastructure and Equipment | B13: C11 Automatic Transfer Switches (ATS) & Reverse Power Breakers (RPB)
A14: Station Infrastructure and Equipment | B14: C12 Stations Power Transformers
A15: Station Infrastructure and Equipment | B15: C13 Stations Switchgear
A16: Station Infrastructure and Equipment | B16: C14 Stations Circuit Breakers
A17: Station Infrastructure and Equipment | B17: C15 Stations Control & Communicaton Systems
A18: Station Infrastructure and Equipment | B18: C16 Downtown Station Load Transfers
A19: Bremner TS | B19: C17 Bremner Transformer Station
A20: Hydro One Capital Contributions | B20: C18 Hydro One Capital Contributions
A21: Feeder Automation | B21: C19 Feeder Automation
A22: Metering | B22: C20 Wholesale and Smart Metering
A23: Plant Relocations | B23: C21 Externally-Initiated Plant Relocations and Expansions
A24: Grid Solutions | B24: C22 Grid Solutions
A30: PROJECTS | B30: PROJECT DETAILS
A31: Underground Infrastructure and Cable | B31: Underground Infrastructure and Cable
A32: Overhead Infrastructure and Equipment | B32: Overhead Infrastructure and Equipment
A33: Network Infrastructure and Equipment | B33: Network Infrastructure and Equipment
A34: Station Infrastructure and Equipment | B34: Station Infrastructure and Equipment
A35: Bremner TS | B35: Bremner TS
A36: Hydro One Capital Contributions | B36: Hydro One Capital Contributions
A37: Feeder Automation | B37: Feeder Automation
A38: Metering | B38: Metering
A39: Plant Relocations | B39: Plant Relocations
A40: Grid Solutions | B40: Grid Solutions
A45: CATEGORY LISTING | B45: CATEGORY LISTING DETAILS | C45: ICM Filing
A46: C1 Underground Infrastructure | B46: C1 Underground Infrastructure | C46: B1 Underground Infrastructure
A47: C2 Paper Insulated Lead Covered Cable - Piece Outs and Leakers | B47: C2 Paper Insulated Lead Covered Cable - Piece Outs and Leakers | C47: B2 Paper Insulated Lead Covered Cable - Piece Outs and Leakers
A48: C3 Handwell Replacement | B48: C3 Handwell Replacement | C48: B3 Handwell Replacement
A49: C4 Overhead Infrastructure | B49: C4 Overhead Infrastructure | C49: B4 Overhead Infrastructure
A50: C5 Box Construction | B50: C5 Box Construction | C50: B5 Box Construction
A51: C6 Rear Lot Construction | B51: C6 Rear Lot Construction | C51: B6 Rear Lot Construction
A52: C7 Polymer SMD-20 Fuses | B52: C7 Polymer SMD-20 Fuses | C52: B7 Polymer SMD-20 Switches
A53: C8 Scadamate R1 Switches | B53: C8 Scadamate R1 Switches | C53: B8 SCADA-Mate R1 Switches
A54: C9 Network Vault & Roofs | B54: C9 Network Vault & Roofs | C54: B9 Network Vault & Roofs
A55: C10 Fibertop Network Units | B55: C10 Fibertop Network Units | C55: B10 Fibertop Network Units
A56: C11 Automatic Transfer Switches (ATS) & Reverse Power Breakers (RPB) | B56: C11 Automatic Transfer Switches (ATS) & Reverse Power Breakers (RPB) | C56: B11 Automatic Transfer Switches (ATS) & Reverse Power Breakers (RPB)
A57: C12 Stations Power Transformers | B57: C12 Stations Power Transformers | C57: B12 Stations Power Transformers
A58: C13 Stations Switchgear | B58: C13 Stations Switchgear | C58: B13.1 & 13.2 Stations Switchgear - Muncipal and Transformer Stations
A59: C14 Stations Circuit Breakers | B59: C14 Stations Circuit Breakers | C59: B14 Stations Circuit Breakers
A60: C15 Stations Control & Communicaton Systems | B60: C15 Stations Control & Communicaton Systems | C60: B15 Stations Control & Communicaton Systems
A61: C16 Downtown Station Load Transfers | B61: C16 Downtown Station Load Transfers | C61: B16 Downtown Station Load Transfers
A62: C17 Bremner Transformer Station | B62: C17 Bremner Transformer Station | C62: B17 Copeland (Formerly Bremner) Transformer Station
A63: C18 Hydro One Capital Contributions | B63: C18 Hydro One Capital Contributions | C63: B18.2 Copeland (Formerly Bremner) Hydro One Capital Contributions
A64: C19 Feeder Automation | B64: C19 Feeder Automation | C64: B19 Feeder Automation
A65: C20 Wholesale and Smart Metering | B65: C20 Wholesale and Smart Metering | C65: B20 Metering
A66: C21 Externally-Initiated Plant Relocations and Expansions | B66: C21 Externally-Initiated Plant Relocations and Expansions | C66: B21 Externally-Initiated Plant Relocations and Expansions
C67: BXX ICM Understatement of Capitalized Labour
A69: C22 Grid Solutions | B69: C22 Grid Solutions | C69: B22 Grid Solutions

Sheet APP_B (hidden)
A1: Last Updated: | C1: 2012-03-27T15:56:00 | E1: ICM List Rev.02 (Draft-15)
A3: 2012 - 2014 ICM PROJECTS SUMMARY REV. 01 - FINAL
A4: New Category | B4: Original Category | C4: Project Name | D4: Scope # | E4: Ellipse # | F4: SFW Version # | G4: Cost to Complete ($) (Gross Amount) | H4: Total Cost ($) | I4: Amount Recoverable | J4: Cost to Complete ($) (Net Amount) | K4: Comments | L4: Project Execution Year | M4: If project cost included design cost | N4: Estimate
A5: C1 Underground Infrastructure | B5: 01 U/G INFRASTRUCTURE | C5: E11618 Rebuild Ingleton UG SCNT63M12 Main (Civil) - Ph B | D5: E11618 | E5: 22215 | F5: 9 | G5: 50000 | H5: 50000 | I5: 0 | J5: 50000 | L5: 2012 | M5: N | N5: ="EST"&E5&"_00"&F5 -> EST22215_009
A6: C1 Underground Infrastructure | B6: 01 U/G INFRASTRUCTURE | C6: E11484 Rebuild Ingleton SCNT63M12 Ph 2 (Civil) | D6: E11484 | E6: 19005 | F6: 9 | G6: 30000 | H6: 30000 | I6: 0 | J6: 30000 | L6: 2012 | M6: N | N6: ="EST"&E6&"_00"&F6 -> EST19005_009
A7: C1 Underground Infrastructure | B7: 01 U/G INFRASTRUCTURE | C7: UG Cable Replacement NY80M29 Harrison Garden West | D7: E12656 | E7: 23241 | F7: 2 | G7: 404974 | H7: 404974 | I7: 0 | J7: 404974 | L7: 2012 | M7: N | N7: EST23241_002
A8: C1 Underground Infrastructure | B8: 01 U/G INFRASTRUCTURE | C8: E11472 Rebuild Ingleton UG SCNT63M12 Main (Civil) - Ph A | D8: E11472 | E8: 20438 | F8: 9 | G8: 53677 | H8: 53677 | I8: 0 | J8: 53677 | L8: 2012 | M8: N | N8: EST20438_009
A9: C1 Underground Infrastructure | B9: 01 U/G INFRASTRUCTURE | C9: E11087 Grand Marshall Cable Repl SCNT47M1 | D9: E11087 | E9: 24664 | F9: 9 | G9: 1076546 | H9: 1076546 | I9: 0 | J9: 1076546 | L9: 2012 | M9: N | N9: EST24664_009
A10: C1 Underground Infrastructure | B10: 01 U/G INFRASTRUCTURE | C10: E12530 FESI Braymore West SCN47M14 UG Rebuild Electrical SCNA47M14 - Ph 2 | D10: E12530 | E10: 24859 | F10: 9 | G10: 563428 | H10: 563428 | I10: 0 | J10: 563428 | L10: 2012 | M10: N | N10: EST24859_009
A11: C1 Underground Infrastructure | B11: 01 U/G INFRASTRUCTURE | C11: E13061 Galloway UG Rebuild Electrical | D11: E13061 | E11: 21141 | F11: 1 | G11: 192885 | H11: 192885 | I11: 0 | J11: 192885 | L11: 2012 | M11: N | N11: EST21141_001
A12: C1 Underground Infrastructure | B12: 01 U/G INFRASTRUCTURE | C12: E12299 Gateforth Drive SCNT47M1 UG Rebuild (Civil) SCNT47M1 | D12: E12299 | E12: 20417 | F12: 9 | G12: 222263 | H12: 222263 | I12: 0 | J12: 222263 | L12: 2012 | M12: N | N12: EST20417_009
A13: C1 Underground Infrastructure | B13: 01 U/G INFRASTRUCTURE | C13: E13043 FESI UG Rebuild NT63M8 Revlis Sub Part 2-Elec SCNT63M8 | D13: E13043 | E13: 21357 | F13: 9 | G13: 339143 | H13: 339143 | I13: 0 | J13: 339143 | L13: 2013 | M13: N | N13: EST21357_009
A14: C1 Underground Infrastructure | B14: 01 U/G INFRASTRUCTURE | C14: E13060 Galloway UG Rebuild Civil | D14: E13060 | E14: 21139 | F14: 1 | G14: 166772 | H14: 166772 | I14: 0 | J14: 166772 | L14: 2012 | M14: N | N14: EST21139_001
A15: C1 Underground Infrastructure | B15: 01 U/G INFRASTRUCTURE | C15: E12121 Rebuild Blackwell Coxworth - Elec Electrical portion of project | D15: E12121 | E15: 24852 | F15: 9 | G15: 400644 | H15: 400644 | I15: 0 | J15: 400644 | L15: 2013 | M15: N | N15: EST24852_009
A16: C1 Underground Infrastructure | B16: 01 U/G INFRASTRUCTURE | C16: E10112 Purple Sageway 51M3 UG replacement NY51M3 civil | D16: E10112 | E16: 24846 | F16: 9 | G16: 281344 | H16: 281344 | I16: 0 | J16: 281344 | L16: 2012 | M16: N | N16: EST24846_009
A17: C1 Underground Infrastructure | B17: 01 U/G INFRASTRUCTURE | C17: E12235 Neilson Industrial Ph3 UGDB Rebuild Elec (47M3) | D17: E12235 | E17: 20170 | F17: 1 | G17: 242044 | H17: 242044 | I17: 0 | J17: 242044 | L17: 2012 | M17: N | N17: EST20170_001
A18: C1 Underground Infrastructure | B18: 01 U/G INFRASTRUCTURE | C18: E12227 NY80M29 Fenn/Foursome UG DB Rebuild Elect | D18: E12227 | E18: 20044 | F18: 1 | G18: 360521 | H18: 360521 | I18: 0 | J18: 360521 | L18: 2012 | M18: N | N18: EST20044_001
A19: C1 Underground Infrastructure | B19: 01 U/G INFRASTRUCTURE | C19: E13044 FESI UG Rebuild NT63M8 Revlis Sub Part 3-Elec SCNT63M8 | D19: E13044 | E19: 21358 | F19: 9 | G19: 561664 | H19: 561664 | I19: 0 | J19: 561664 | L19: 2013 | M19: N | N19: EST21358_009
A20: C1 Underground Infrastructure | B20: 01 U/G INFRASTRUCTURE | C20: E12276 Muirbank UG Rebuild 47M13 - Electrical | D20: E12276 | E20: 24636 | F20: 9 | G20: 435147 | H20: 435147 | I20: 0 | J20: 435147 | L20: 2012 | M20: N | N20: EST24636_009
A21: C1 Underground Infrastructure | B21: 01 U/G INFRASTRUCTURE | C21: E12276 Muirbank UG Rebuild 47M13 - Electrical | D21: E12276 | E21: 24844 | F21: 9 | G21: 435147 | H21: 435147 | I21: 0 | J21: 435147 | L21: 2012 | M21: N | N21: ="EST"&E21&"_00"&F21 -> EST24844_009
A22: C1 Underground Infrastructure | B22: 01 U/G INFRASTRUCTURE | C22: E10112 Purple Sageway 51M3 UG replacement NY51M3 electrical | D22: E10112 | E22: 24849 | F22: 9 | G22: 80611.28 | H22: 80611.28 | I22: 0 | J22: 80611.28 | L22: 2012 | M22: N | N22: EST24849_009
A23: C1 Underground Infrastructure | B23: 01 U/G INFRASTRUCTURE | C23: E13077 UG Rehab of NY51M8 - Elec | D23: E13077 | E23: 21297 | F23: 1 | G23: 264039 | H23: 264039 | I23: 0 | J23: 264039 | L23: 2012 | M23: N | N23: EST21297_001
A24: C1 Underground Infrastructure | B24: 01 U/G INFRASTRUCTURE | C24: E12317 Rebuild Ingleton Main Ph B - Elect | D24: E12317 | E24: 24717 | F24: 9 | G24: 469085 | H24: 469085 | I24: 0 | J24: 469085 | K24: Status changed from category 2 to 3(D.S. is creating a revised estimate). Revised Estimate will be created | L24: 2012 | M24: N | N24: EST24717_009
A25: C1 Underground Infrastructure | B25: 01 U/G INFRASTRUCTURE | C25: E12666 Phase 1 Reconfigure FESI 80M29 -Harrison Garden | D25: E12666 | E25: 23556 | F25: 1 | G25: 134630 | H25: 134630 | I25: 0 | J25: 134630 | L25: 2012 | M25: N | N25: EST23556_001
A26: C1 Underground Infrastructure | B26: 01 U/G INFRASTRUCTURE | C26: E11439 Old Finch UG Rebuild Phase 1 - Electrical (47M3) | D26: E11439 | E26: 18720 | F26: 1 | G26: 451282 | H26: 451282 | I26: 0 | J26: 451282 | L26: 2012 | M26: N | N26: EST18720_001
A27: C1 Underground Infrastructure | B27: 01 U/G INFRASTRUCTURE | C27: E12095 Rebuild Ingleton Ph 2 Elect | D27: E12095 | E27: 19448 | F27: 9 | G27: 556211 | H27: 556211 | I27: 0 | J27: 556211 | L27: 2012 | M27: N | N27: EST19448_009
A28: C1 Underground Infrastructure | B28: 01 U/G INFRASTRUCTURE | C28: E12096 Rebuild Ingleton Ph 3 Elect | D28: E12096 | E28: 24658 | F28: 9 | G28: 1003490 | H28: 1003490 | I28: 0 | J28: 1003490 | K28: Status changed from category 2 to 3(D.S. is creating a revised estimate). Revised Estimate will be created | L28: 2012 | M28: N | N28: EST24658_009
A29: C1 Underground Infrastructure | B29: 01 U/G INFRASTRUCTURE | C29: E13079 FESI Conlins Milner NT47M1 - Elec | D29: E13079 | E29: 21288 | F29: 9 | G29: 824638 | H29: 824638 | I29: 0 | J29: 824638 | L29: 2013 | M29: N | N29: EST21288_009
A30: C1 Underground Infrastructure | B30: 01 U/G INFRASTRUCTURE | C30: E12094 Rebuild Ingleton Ph 1 Elect | D30: E12094 | E30: 19442 | F30: 9 | G30: 1013906 | H30: 1013906 | I30: 0 | J30: 1013906 | L30: 2012 | M30: N | N30: EST19442_009
A31: C1 Underground Infrastructure | B31: 01 U/G INFRASTRUCTURE | C31: E12081 Rebuild Ingleton Main Ph A - Elect | D31: E12081 | E31: 19437 | F31: 9 | G31: 1050890 | H31: 1050890 | I31: 0 | J31: 1050890 | L31: 2012 | M31: N | N31: EST19437_009
A32: C1 Underground Infrastructure | B32: 01 U/G INFRASTRUCTURE | C32: E12234 Neilson Industrial Ph3 UGDB Rebuild Civil (47M3) | D32: E12234 | E32: 20169 | F32: 1 | G32: 594271 | H32: 594271 | I32: 0 | J32: 594271 | L32: 2012 | M32: N | N32: EST20169_001
